Workbook

Sheet Instructions
A1: Instructions
A2: 1 | B2: Click the "Begin Button" below
A3: 2 | B3: Enter the Community using the pull-down menu in cell B2
A4: 3 | B4: Enter the information in cells B3-B11
A5: 4 | B5: Select Yes in cell B14 to use the default borrowing rate* or No and then enter the known borrowing rate for the Community
A6: 5 | B6: Click on the "Run Model" button to view the results on the Drinking Water Outputs page
A7: 6 | B7: Navigate through the results using the "Go To Outputs" buttons to view the results on for Wastewater or Combined Household Bills
A8: 7 | B8: Click on the "New Model" button from any page to return to the Inputs page and repeat steps 2-6
B13: * The default borrowing rate is the average of the most recent National A-rated municipal bond yield curve rates at various maturities.

Sheet Inputs
A1: Model Inputs
A2: Community | B2: Abbyville
A3: Current Average Household Monthly Drinking Water Bill ($) | B3: 0
A4: Current Annual Growth Rate in Drinking Water Bills* | B4: 0
A5: Current Average Household Monthly Wastewater Bill ($) | B5: 0
A6: Current Annual Growth Rate in Wastewater Bills* | B6: 0
A8: Planned Expenditure on Drinking Water Infrastructure | B8: 0
A9: Number of Years that the Infrastructure Will be Financed | B9: 0
A10: Planned Expenditure on Wastewater Infrastructure | B10: 0
A11: Number of Years that the Infrastructure Will be Financed | B11: 0
A13: Annual Interest Rate
A14: Use Default Rate? | B14: Yes
A15: If not, Enter Annual Interest Rate for Financing
A19: * - Note: The current annual growth rate in bills should
A20: incorporate all projected cost increases
A21: EXCEPT for those associated with the debt
A22: payments on infrastructure.

Sheet Drinking Water Output
A1: Model Outputs - Drinking Water
A2: Community | B2: =city -> Abbyville
A3: Community Population (2021) | B3: ='Drinking Water Analysis Sheet'!M6 -> 84.45454545
A4: Increase in Average Monthly Drinking Water Bill | B4: =IF(drinkprincipal>0,((PMT(rate,drinkyears,-drinkprincipal))/('Drinking Water Analysis Sheet'!N6/2.5))/12,0) -> 0
A5: Probability that Monthly Drinking Water Bill
A6: Exceeds 2.5% of Median Household Income | B6: =drinkmaxprob -> 0.0977718619
A7: Sustainability Risk | B7: =IF(B6<0.33,"Low",IF(B6<0.67,"Moderate","High")) -> Low
A9: Current MHI (2021) | B9: =+B24 -> 38787.63995
A10: Current Drinking Water Bill | B10: =+drinkbill -> 0
A11: Projected Average Drinking Water Bill | B11: =+B10+B4 -> 0
A17: Note: The graph shows the typical sustainable threshold
A18: for the community (blue line), forecast into the future,
A19: along with a range of estimates developed in a
A20: statistical model. It also shows the projected drinking water
A21: bills using the inputs you provided.
A23: Projections | B23: 2021 | C23: 2022 | D23: 2023 | E23: 2024 | F23: 2025 | G23: 2026 | H23: 2027 | I23: 2028 | J23: 2029 | K23: 2030 | L23: 2031 | M23: 2032 | N23: 2033
A24: Median Household Income | B24: ='Drinking Water Analysis Sheet'!M2*12 -> 38787.63995 | C24: ='Drinking Water Analysis Sheet'!N2*12 -> 38665.98438 | D24: ='Drinking Water Analysis Sheet'!O2*12 -> 38560.99206 | E24: ='Drinking Water Analysis Sheet'!P2*12 -> 38481.69697 | F24: ='Drinking Water Analysis Sheet'!Q2*12 -> 38424.30226 | G24: ='Drinking Water Analysis Sheet'!R2*12 -> 38374.13912 | H24: ='Drinking Water Analysis Sheet'!S2*12 -> 38338.50317 | I24: ='Drinking Water Analysis Sheet'!T2*12 -> 38311.76543 | J24: ='Drinking Water Analysis Sheet'!U2*12 -> 38288.48158 | K24: ='Drinking Water Analysis Sheet'!V2*12 -> 38281.50102 | L24: ='Drinking Water Analysis Sheet'!W2*12 -> 38275.06874 | M24: ='Drinking Water Analysis Sheet'!X2*12 -> 38270.15924 | N24: ='Drinking Water Analysis Sheet'!Y2*12 -> 38268.31822
A25: Monthly Drinking Water Bill | B25: ='Drinking Water Analysis Sheet'!M7 -> 0 | C25: ='Drinking Water Analysis Sheet'!N7 -> 0 | D25: ='Drinking Water Analysis Sheet'!O7 -> 0 | E25: ='Drinking Water Analysis Sheet'!P7 -> 0 | F25: ='Drinking Water Analysis Sheet'!Q7 -> 0 | G25: ='Drinking Water Analysis Sheet'!R7 -> 0 | H25: ='Drinking Water Analysis Sheet'!S7 -> 0 | I25: ='Drinking Water Analysis Sheet'!T7 -> 0 | J25: ='Drinking Water Analysis Sheet'!U7 -> 0 | K25: ='Drinking Water Analysis Sheet'!V7 -> 0 | L25: ='Drinking Water Analysis Sheet'!W7 -> 0 | M25: ='Drinking Water Analysis Sheet'!X7 -> 0 | N25: ='Drinking Water Analysis Sheet'!Y7 -> 0
A26: % MHI | B26: =+(B25/B24)*12 -> 0 | C26: =+(C25/C24)*12 -> 0 | D26: 0 | E26: 0 | F26: 0 | G26: 0 | H26: 0 | I26: 0 | J26: 0 | K26: 0 | L26: 0 | M26: 0 | N26: 0
A27: Population | B27: =VLOOKUP(city,poptable,B23-2008,FALSE) -> 84.45454545 | C27: 83.90909091 | D27: 83.36363636 | E27: 82.81818182 | F27: 82.27272727 | G27: 81.72727273 | H27: 81.18181818 | I27: 80.63636364 | J27: 80.09090909 | K27: 79.54545455 | L27: 79 | M27: 78.45454545 | N27: 77.90909091
A29: Projections | B29: 2034 | C29: 2035 | D29: 2036 | E29: 2037 | F29: 2038 | G29: 2039 | H29: 2040 | I29: 2041 | J29: 2042 | K29: 2043 | L29: 2044 | M29: 2045 | N29: 2046
A30: Median Household Income | B30: =+'Drinking Water Analysis Sheet'!Z2*12 -> 38266.40971 | C30: =+'Drinking Water Analysis Sheet'!AA2*12 -> 38264.97163 | D30: =+'Drinking Water Analysis Sheet'!AB2*12 -> 38264.08623 | E30: =+'Drinking Water Analysis Sheet'!AC2*12 -> 38263.16719 | F30: =+'Drinking Water Analysis Sheet'!AD2*12 -> 38262.37278 | G30: =+'Drinking Water Analysis Sheet'!AE2*12 -> 38261.67339 | H30: =+'Drinking Water Analysis Sheet'!AF2*12 -> 38260.96634 | I30: =+'Drinking Water Analysis Sheet'!AG2*12 -> 38260.28937 | J30: =+'Drinking Water Analysis Sheet'!AH2*12 -> 38259.6279 | K30: =+'Drinking Water Analysis Sheet'!AI2*12 -> 38258.96531 | L30: =+'Drinking Water Analysis Sheet'!AJ2*12 -> 38258.3095 | M30: =+'Drinking Water Analysis Sheet'!AK2*12 -> 38257.65607 | N30: =+'Drinking Water Analysis Sheet'!AL2*12 -> 38257.0026
A31: Monthly Drinking Water Bill | B31: =+'Drinking Water Analysis Sheet'!Z7 -> 0 | C31: =+'Drinking Water Analysis Sheet'!AA7 -> 0 | D31: =+'Drinking Water Analysis Sheet'!AB7 -> 0 | E31: =+'Drinking Water Analysis Sheet'!AC7 -> 0 | F31: =+'Drinking Water Analysis Sheet'!AD7 -> 0 | G31: =+'Drinking Water Analysis Sheet'!AE7 -> 0 | H31: =+'Drinking Water Analysis Sheet'!AF7 -> 0 | I31: =+'Drinking Water Analysis Sheet'!AG7 -> 0 | J31: =+'Drinking Water Analysis Sheet'!AH7 -> 0 | K31: =+'Drinking Water Analysis Sheet'!AI7 -> 0 | L31: =+'Drinking Water Analysis Sheet'!AJ7 -> 0 | M31: =+'Drinking Water Analysis Sheet'!AK7 -> 0 | N31: =+'Drinking Water Analysis Sheet'!AL7 -> 0
A32: % MHI | B32: =+(B31/B30)*12 -> 0 | C32: =+(C31/C30)*12 -> 0 | D32: 0 | E32: 0 | F32: 0 | G32: 0 | H32: 0 | I32: 0 | J32: 0 | K32: 0 | L32: 0 | M32: 0 | N32: 0
A33: Population | B33: =VLOOKUP(city,poptable,B29-2008,FALSE) -> 77.36363636 | C33: 76.81818182 | D33: 76.27272727 | E33: 75.72727273 | F33: 75.18181818 | G33: 74.63636364 | H33: 74.09090909 | I33: 73.54545455 | J33: 73 | K33: 72.45454545 | L33: 71.90909091 | M33: 71.36363636 | N33: 70.81818182
A35: Projections | B35: 2047 | C35: 2048 | D35: 2049 | E35: 2050 | F35: 2051
A36: Median Household Income | B36: =+'Drinking Water Analysis Sheet'!AM2*12 -> 38256.35058 | C36: =+'Drinking Water Analysis Sheet'!AN2*12 -> 38255.69889 | D36: =+'Drinking Water Analysis Sheet'!AO2*12 -> 38255.04725 | E36: =+'Drinking Water Analysis Sheet'!AP2*12 -> 38254.39591 | F36: =+'Drinking Water Analysis Sheet'!AQ2*12 -> 38253.74461
A37: Monthly Drinking Water Bill | B37: =+'Drinking Water Analysis Sheet'!AM7 -> 0 | C37: =+'Drinking Water Analysis Sheet'!AN7 -> 0 | D37: =+'Drinking Water Analysis Sheet'!AO7 -> 0 | E37: =+'Drinking Water Analysis Sheet'!AP7 -> 0 | F37: =+'Drinking Water Analysis Sheet'!AQ7 -> 0
A38: % MHI | B38: =+B37/B36*12 -> 0 | C38: =+C37/C36*12 -> 0 | D38: 0 | E38: 0 | F38: 0
A39: Population | B39: =VLOOKUP(city,poptable,B35-2008,FALSE) -> 70.27272727 | C39: =VLOOKUP(city,poptable,C35-2008,FALSE) -> 69.72727273 | D39: =VLOOKUP(city,poptable,D35-2008,FALSE) -> 69.18181818 | E39: =VLOOKUP(city,poptable,E35-2008,FALSE) -> 68.63636364 | F39: =VLOOKUP(city,poptable,F35-2008,FALSE) -> 68.09090909

Sheet Drinking Water Analysis Sheet (hidden)
A1: City | B1: 2010 | C1: 2011 | D1: 2012 | E1: 2013 | F1: 2014 | G1: 2015 | H1: 2016 | I1: 2017 | J1: 2018 | K1: 2019 | L1: 2020 | M1: 2021 | N1: 2022 | O1: 2023 | P1: 2024 | Q1: 2025 | R1: 2026 | S1: 2027 | T1: 2028 | U1: 2029 | V1: 2030 | W1: 2031 | X1: 2032 | Y1: 2033 | Z1: 2034 | AA1: 2035 | AB1: 2036 | AC1: 2037 | AD1: 2038 | AE1: 2039 | AF1: 2040 | AG1: 2041 | AH1: 2042 | AI1: 2043 | AJ1: 2044 | AK1: 2045 | AL1: 2046 | AM1: 2047 | AN1: 2048 | AO1: 2049 | AP1: 2050 | AQ1: 2051 | AT1: rate | AU1: =IF(Inputs!B14="Yes",VLOOKUP(drinkyears,yieldcurve,2),userrate) -> 0.0218 | AW1: 0 | AX1: 0.0218 | AZ1: Yes
A2: Income | B2: =VLOOKUP(city,incometable,'Drinking Water Analysis Sheet'!B1-2008,FALSE)/12 -> 3559 | C2: =VLOOKUP(city,incometable,'Drinking Water Analysis Sheet'!C1-2008,FALSE)/12 -> 3697.916667 | D2: =VLOOKUP(city,incometable,'Drinking Water Analysis Sheet'!D1-2008,FALSE)/12 -> 3177.083333 | E2: =VLOOKUP(city,incometable,'Drinking Water Analysis Sheet'!E1-2008,FALSE)/12 -> 3229.166667 | F2: =VLOOKUP(city,incometable,'Drinking Water Analysis Sheet'!F1-2008,FALSE)/12 -> 3333.333333 | G2: =VLOOKUP(city,incometable,'Drinking Water Analysis Sheet'!G1-2008,FALSE)/12 -> 3541.666667 | H2: =VLOOKUP(city,incometable,'Drinking Water Analysis Sheet'!H1-2008,FALSE)/12 -> 3697.916667 | I2: =VLOOKUP(city,incometable,'Drinking Water Analysis Sheet'!I1-2008,FALSE)/12 -> 3593.75 | J2: =VLOOKUP(city,incometable,'Drinking Water Analysis Sheet'!J1-2008,FALSE)/12 -> 2395.833333 | K2: =VLOOKUP(city,incometable,'Drinking Water Analysis Sheet'!K1-2008,FALSE)/12 -> 3281.25 | L2: =VLOOKUP(city,incometable,'Drinking Water Analysis Sheet'!L1-2008,FALSE)/12 -> 3252.371299 | M2: =VLOOKUP(city,incometable,'Drinking Water Analysis Sheet'!M1-2008,FALSE)/12 -> 3232.303329 | N2: =VLOOKUP(city,incometable,'Drinking Water Analysis Sheet'!N1-2008,FALSE)/12 -> 3222.165365 | O2: =VLOOKUP(city,incometable,'Drinking Water Analysis Sheet'!O1-2008,FALSE)/12 -> 3213.416005 | P2: =VLOOKUP(city,incometable,'Drinking Water Analysis Sheet'!P1-2008,FALSE)/12 -> 3206.808081 | Q2: =VLOOKUP(city,incometable,'Drinking Water Analysis Sheet'!Q1-2008,FALSE)/12 -> 3202.025189 | R2: =VLOOKUP(city,incometable,'Drinking Water Analysis Sheet'!R1-2008,FALSE)/12 -> 3197.844927 | S2: =VLOOKUP(city,incometable,'Drinking Water Analysis Sheet'!S1-2008,FALSE)/12 -> 3194.875264 | T2: =VLOOKUP(city,incometable,'Drinking Water Analysis Sheet'!T1-2008,FALSE)/12 -> 3192.647119 | U2: =VLOOKUP(city,incometable,'Drinking Water Analysis Sheet'!U1-2008,FALSE)/12 -> 3190.706798 | V2: =VLOOKUP(city,incometable,'Drinking Water Analysis Sheet'!V1-2008,FALSE)/12 -> 3190.125085 | W2: =VLOOKUP(city,incometable,'Drinking Water Analysis Sheet'!W1-2008,FALSE)/12 -> 3189.589061 | X2: =VLOOKUP(city,incometable,'Drinking Water Analysis Sheet'!X1-2008,FALSE)/12 -> 3189.179937 | Y2: =VLOOKUP(city,incometable,'Drinking Water Analysis Sheet'!Y1-2008,FALSE)/12 -> 3189.026519 | Z2: =VLOOKUP(city,incometable,'Drinking Water Analysis Sheet'!Z1-2008,FALSE)/12 -> 3188.867476 | AA2: =VLOOKUP(city,incometable,'Drinking Water Analysis Sheet'!AA1-2008,FALSE)/12 -> 3188.747636 | AB2: =VLOOKUP(city,incometable,'Drinking Water Analysis Sheet'!AB1-2008,FALSE)/12 -> 3188.673853 | AC2: =VLOOKUP(city,incometable,'Drinking Water Analysis Sheet'!AC1-2008,FALSE)/12 -> 3188.597266 | AD2: =VLOOKUP(city,incometable,'Drinking Water Analysis Sheet'!AD1-2008,FALSE)/12 -> 3188.531065 | AE2: =VLOOKUP(city,incometable,'Drinking Water Analysis Sheet'!AE1-2008,FALSE)/12 -> 3188.472782 | AF2: =VLOOKUP(city,incometable,'Drinking Water Analysis Sheet'!AF1-2008,FALSE)/12 -> 3188.413861 | AG2: =VLOOKUP(city,incometable,'Drinking Water Analysis Sheet'!AG1-2008,FALSE)/12 -> 3188.357447 | AH2: =VLOOKUP(city,incometable,'Drinking Water Analysis Sheet'!AH1-2008,FALSE)/12 -> 3188.302325 | AI2: =VLOOKUP(city,incometable,'Drinking Water Analysis Sheet'!AI1-2008,FALSE)/12 -> 3188.247109 | AJ2: =VLOOKUP(city,incometable,'Drinking Water Analysis Sheet'!AJ1-2008,FALSE)/12 -> 3188.192458 | AK2: =VLOOKUP(city,incometable,'Drinking Water Analysis Sheet'!AK1-2008,FALSE)/12 -> 3188.138006 | AL2: =VLOOKUP(city,incometable,'Drinking Water Analysis Sheet'!AL1-2008,FALSE)/12 -> 3188.08355 | AM2: =VLOOKUP(city,incometable,'Drinking Water Analysis Sheet'!AM1-2008,FALSE)/12 -> 3188.029215 | AN2: =VLOOKUP(city,incometable,'Drinking Water Analysis Sheet'!AN1-2008,FALSE)/12 -> 3187.974908 | AO2: =VLOOKUP(city,incometable,'Drinking Water Analysis Sheet'!AO1-2008,FALSE)/12 -> 3187.920604 | AP2: =VLOOKUP(city,incometable,'Drinking Water Analysis Sheet'!AP1-2008,FALSE)/12 -> 3187.866326 | AQ2: =VLOOKUP(city,incometable,'Drinking Water Analysis Sheet'!AQ1-2008,FALSE)/12 -> 3187.812051 | AT2: =MAX(M8:AQ8) -> 0.0977718619 | AW2: 10 | AX2: 0.036 | AZ2: No
A3: SE | B3: =VLOOKUP(city,setable,B1-2008,FALSE)/12 -> 0 | C3: 0 | D3: 0 | E3: 0 | F3: 0 | G3: 0 | H3: 0 | I3: 0 | J3: 0 | K3: 0 | L3: 435.3767018 | M3: 615.7156364 | N3: 754.0945679 | O3: 870.7534035 | P3: 973.5319009 | Q3: 1066.450765 | R3: 1151.898479 | S3: 1231.431273 | T3: 1306.130105 | U3: 1376.782018 | V3: 1443.981162 | W3: 1508.189136 | X3: 1569.773022 | Y3: 1629.030452 | Z3: 1686.206715 | AA3: 1741.506807 | AB3: 1795.104128 | AC3: 1847.146909 | AD3: 1897.763045 | AE3: 1947.063802 | AF3: 1995.146692 | AG3: 2042.097743 | AH3: 2087.993311 | AI3: 2132.90153 | AJ3: 2176.883509 | AK3: 2219.994298 | AL3: 2262.283704 | AM3: 2303.796959 | AN3: 2344.575292 | AO3: 2384.656406 | AP3: 2424.074884 | AQ3: 2462.862545 | AW3: 20 | AX3: 0.041
A4: 2.5% Income | B4: =B2*0.025 -> 88.975 | C4: =C2*0.025 -> 92.44791667 | D4: 79.42708333 | E4: 80.72916667 | F4: 83.33333333 | G4: 88.54166667 | H4: 92.44791667 | I4: 89.84375 | J4: 59.89583333 | K4: 82.03125 | L4: 81.30928246 | M4: 80.80758322 | N4: 80.55413412 | O4: 80.33540013 | P4: 80.17020201 | Q4: 80.05062971 | R4: 79.94612318 | S4: 79.8718816 | T4: 79.81617798 | U4: 79.76766996 | V4: 79.75312712 | W4: 79.73972654 | X4: 79.72949841 | Y4: 79.72566297 | Z4: 79.72168689 | AA4: 79.7186909 | AB4: 79.71684631 | AC4: 79.71493164 | AD4: 79.71327663 | AE4: 79.71181956 | AF4: 79.71034654 | AG4: 79.70893619 | AH4: 79.70755813 | AI4: 79.70617772 | AJ4: 79.70481146 | AK4: 79.70345015 | AL4: 79.70208875 | AM4: 79.70073037 | AN4: 79.6993727 | AO4: 79.69801511 | AP4: 79.69665815 | AQ4: 79.69530127
A5: 2.5% SE | B5: =B3*0.025 -> 0 | C5: =C3*0.025 -> 0 | D5: 0 | E5: 0 | F5: 0 | G5: 0 | H5: 0 | I5: 0 | J5: 0 | K5: 0 | L5: 10.88441754 | M5: 15.39289091 | N5: 18.8523642 | O5: 21.76883509 | P5: 24.33829752 | Q5: 26.66126913 | R5: 28.79746199 | S5: 30.78578182 | T5: 32.65325263 | U5: 34.41955044 | V5: 36.09952905 | W5: 37.70472839 | X5: 39.24432556 | Y5: 40.7257613 | Z5: 42.15516788 | AA5: 43.53767018 | AB5: 44.87760321 | AC5: 46.17867273 | AD5: 47.44407613 | AE5: 48.67659505 | AF5: 49.87866729 | AG5: 51.05244358 | AH5: 52.19983277 | AI5: 53.32253826 | AJ5: 54.42208772 | AK5: 55.49985745 | AL5: 56.55709259 | AM5: 57.59492397 | AN5: 58.6143823 | AO5: 59.61641014 | AP5: 60.60187211 | AQ5: 61.57156364
A6: Population | B6: =VLOOKUP(city,poptable,B1-2008,FALSE) -> 89 | C6: 89 | D6: 90 | E6: 90 | F6: 89 | G6: 89 | H6: 88 | I6: 86 | J6: 85 | K6: 85 | L6: 85 | M6: =VLOOKUP(city,poptable,M1-2008,FALSE) -> 84.45454545 | N6: 83.90909091 | O6: 83.36363636 | P6: 82.81818182 | Q6: 82.27272727 | R6: 81.72727273 | S6: 81.18181818 | T6: 80.63636364 | U6: 80.09090909 | V6: 79.54545455 | W6: 79 | X6: 78.45454545 | Y6: 77.90909091 | Z6: 77.36363636 | AA6: 76.81818182 | AB6: 76.27272727 | AC6: 75.72727273 | AD6: 75.18181818 | AE6: 74.63636364 | AF6: 74.09090909 | AG6: 73.54545455 | AH6: 73 | AI6: 72.45454545 | AJ6: 71.90909091 | AK6: 71.36363636 | AL6: 70.81818182 | AM6: 70.27272727 | AN6: 69.72727273 | AO6: 69.18181818 | AP6: 68.63636364 | AQ6: 68.09090909
A7: Water Cost | M7: =drinkbill -> 0 | N7: =M7*(1+drinkbillgrowth)+IF(drinkprincipal>0,((PMT(rate,drinkyears,-drinkprincipal))/(N6/2.5))/12,0) -> 0 | O7: =IF(O1<$M$1+drinkyears+1,N7*(1+drinkbillgrowth)-IF(drinkprincipal>0,O14*(PMT(rate,drinkyears,-drinkprincipal)/(N6/2.5)/12),0),O16) -> 0 | P7: =IF(P1<$M$1+drinkyears+1,O7*(1+drinkbillgrowth)-IF(drinkprincipal>0,P14*(PMT(rate,drinkyears,-drinkprincipal)/(O6/2.5)/12),0),P16) -> 0 | Q7: =IF(Q1<$M$1+drinkyears+1,P7*(1+drinkbillgrowth)-IF(drinkprincipal>0,Q14*(PMT(rate,drinkyears,-drinkprincipal)/(P6/2.5)/12),0),Q16) -> 0 | R7: =IF(R1<$M$1+drinkyears+1,Q7*(1+drinkbillgrowth)-IF(drinkprincipal>0,R14*(PMT(rate,drinkyears,-drinkprincipal)/(Q6/2.5)/12),0),R16) -> 0 | S7: =IF(S1<$M$1+drinkyears+1,R7*(1+drinkbillgrowth)-IF(drinkprincipal>0,S14*(PMT(rate,drinkyears,-drinkprincipal)/(R6/2.5)/12),0),S16) -> 0 | T7: =IF(T1<$M$1+drinkyears+1,S7*(1+drinkbillgrowth)-IF(drinkprincipal>0,T14*(PMT(rate,drinkyears,-drinkprincipal)/(S6/2.5)/12),0),T16) -> 0 | U7: =IF(U1<$M$1+drinkyears+1,T7*(1+drinkbillgrowth)-IF(drinkprincipal>0,U14*(PMT(rate,drinkyears,-drinkprincipal)/(T6/2.5)/12),0),U16) -> 0 | V7: =IF(V1<$M$1+drinkyears+1,U7*(1+drinkbillgrowth)-IF(drinkprincipal>0,V14*(PMT(rate,drinkyears,-drinkprincipal)/(U6/2.5)/12),0),V16) -> 0 | W7: =IF(W1<$M$1+drinkyears+1,V7*(1+drinkbillgrowth)-IF(drinkprincipal>0,W14*(PMT(rate,drinkyears,-drinkprincipal)/(V6/2.5)/12),0),W16) -> 0 | X7: =IF(X1<$M$1+drinkyears+1,W7*(1+drinkbillgrowth)-IF(drinkprincipal>0,X14*(PMT(rate,drinkyears,-drinkprincipal)/(W6/2.5)/12),0),X16) -> 0 | Y7: =IF(Y1<$M$1+drinkyears+1,X7*(1+drinkbillgrowth)-IF(drinkprincipal>0,Y14*(PMT(rate,drinkyears,-drinkprincipal)/(X6/2.5)/12),0),Y16) -> 0 | Z7: =IF(Z1<$M$1+drinkyears+1,Y7*(1+drinkbillgrowth)-IF(drinkprincipal>0,Z14*(PMT(rate,drinkyears,-drinkprincipal)/(Y6/2.5)/12),0),Z16) -> 0 | AA7: =IF(AA1<$M$1+drinkyears+1,Z7*(1+drinkbillgrowth)-IF(drinkprincipal>0,AA14*(PMT(rate,drinkyears,-drinkprincipal)/(Z6/2.5)/12),0),AA16) -> 0 | AB7: =IF(AB1<$M$1+drinkyears+1,AA7*(1+drinkbillgrowth)-IF(drinkprincipal>0,AB14*(PMT(rate,drinkyears,-drinkprincipal)/(AA6/2.5)/12),0),AB16) -> 0 | AC7: =IF(AC1<$M$1+drinkyears+1,AB7*(1+drinkbillgrowth)-IF(drinkprincipal>0,AC14*(PMT(rate,drinkyears,-drinkprincipal)/(AB6/2.5)/12),0),AC16) -> 0 | AD7: =IF(AD1<$M$1+drinkyears+1,AC7*(1+drinkbillgrowth)-IF(drinkprincipal>0,AD14*(PMT(rate,drinkyears,-drinkprincipal)/(AC6/2.5)/12),0),AD16) -> 0 | AE7: =IF(AE1<$M$1+drinkyears+1,AD7*(1+drinkbillgrowth)-IF(drinkprincipal>0,AE14*(PMT(rate,drinkyears,-drinkprincipal)/(AD6/2.5)/12),0),AE16) -> 0 | AF7: =IF(AF1<$M$1+drinkyears+1,AE7*(1+drinkbillgrowth)-IF(drinkprincipal>0,AF14*(PMT(rate,drinkyears,-drinkprincipal)/(AE6/2.5)/12),0),AF16) -> 0 | AG7: =IF(AG1<$M$1+drinkyears+1,AF7*(1+drinkbillgrowth)-IF(drinkprincipal>0,AG14*(PMT(rate,drinkyears,-drinkprincipal)/(AF6/2.5)/12),0),AG16) -> 0 | AH7: =IF(AH1<$M$1+drinkyears+1,AG7*(1+drinkbillgrowth)-IF(drinkprincipal>0,AH14*(PMT(rate,drinkyears,-drinkprincipal)/(AG6/2.5)/12),0),AH16) -> 0 | AI7: =IF(AI1<$M$1+drinkyears+1,AH7*(1+drinkbillgrowth)-IF(drinkprincipal>0,AI14*(PMT(rate,drinkyears,-drinkprincipal)/(AH6/2.5)/12),0),AI16) -> 0 | AJ7: =IF(AJ1<$M$1+drinkyears+1,AI7*(1+drinkbillgrowth)-IF(drinkprincipal>0,AJ14*(PMT(rate,drinkyears,-drinkprincipal)/(AI6/2.5)/12),0),AJ16) -> 0 | AK7: =IF(AK1<$M$1+drinkyears+1,AJ7*(1+drinkbillgrowth)-IF(drinkprincipal>0,AK14*(PMT(rate,drinkyears,-drinkprincipal)/(AJ6/2.5)/12),0),AK16) -> 0 | AL7: =IF(AL1<$M$1+drinkyears+1,AK7*(1+drinkbillgrowth)-IF(drinkprincipal>0,AL14*(PMT(rate,drinkyears,-drinkprincipal)/(AK6/2.5)/12),0),AL16) -> 0 | AM7: =IF(AM1<$M$1+drinkyears+1,AL7*(1+drinkbillgrowth)-IF(drinkprincipal>0,AM14*(PMT(rate,drinkyears,-drinkprincipal)/(AL6/2.5)/12),0),AM16) -> 0 | AN7: =IF(AN1<$M$1+drinkyears+1,AM7*(1+drinkbillgrowth)-IF(drinkprincipal>0,AN14*(PMT(rate,drinkyears,-drinkprincipal)/(AM6/2.5)/12),0),AN16) -> 0 | AO7: =IF(AO1<$M$1+drinkyears+1,AN7*(1+drinkbillgrowth)-IF(drinkprincipal>0,AO14*(PMT(rate,drinkyears,-drinkprincipal)/(AN6/2.5)/12),0),AO16) -> 0 | AP7: =IF(AP1<$M$1+drinkyears+1,AO7*(1+drinkbillgrowth)-IF(drinkprincipal>0,AP14*(PMT(rate,drinkyears,-drinkprincipal)/(AO6/2.5)/12),0),AP16) -> 0 | AQ7: =IF(AQ1<$M$1+drinkyears+1,AP7*(1+drinkbillgrowth)-IF(drinkprincipal>0,AQ14*(PMT(rate,drinkyears,-drinkprincipal)/(AP6/2.5)/12),0),AQ16) -> 0
A8: Probability Unafforable | M8: =_xlfn.NORM.DIST(M7,M4,M5,TRUE) -> 7.61863496e-08 | N8: 9.647655132e-06 | O8: 0.0001119570933 | P8: 0.0004938733231 | Q8: 0.00133883196 | R8: 0.002750326787 | S8: 0.004737249469 | T8: 0.007255547378 | U8: 0.01023796935 | V8: =_xlfn.NORM.DIST(V7,V4,V5,TRUE) -> 0.01357839489 | W8: 0.01722150067 | X8: 0.02109614542 | Y8: 0.02513716792 | Z8: 0.02930225496 | AA8: 0.03354818582 | AB8: 0.03784034722 | AC8: 0.04215317447 | AD8: 0.04646383753 | AE8: 0.05075466676 | AF8: 0.05501203848 | AG8: 0.05922474562 | AH8: 0.06338428458 | AI8: 0.067484186 | AJ8: 0.07151950103 | AK8: 0.07548667527 | AL8: 0.0793832264 | AM8: 0.0832075261 | AN8: 0.08695866629 | AO8: 0.09063630274 | AP8: =_xlfn.NORM.DIST(AP7,AP4,AP5,TRUE) -> 0.09424054339 | AQ8: 0.0977718619
A10: Chart Inputs
A11: 2.5% High Income | L11: =_xlfn.NORM.INV(0.95,L4,L5) -> 99.21255614 | M11: =_xlfn.NORM.INV(0.95,M4,M5) -> 106.1266357 | N11: 111.5635137 | O11: 116.1419475 | P11: 120.203139 | Q11: 123.9045149 | R11: 127.313733 | S11: 130.5099865 | T11: 133.525999 | U11: 136.3827923 | V11: =_xlfn.NORM.INV(0.95,V4,V5) -> 139.1315684 | W11: 141.7584858 | X11: 144.2806696 | Y11: 146.7135792 | Z11: 149.0607677 | AA11: 151.3317856 | AB11: 153.5339347 | AC11: 155.672089 | AD11: 157.7518373 | AE11: 159.7776935 | AF11: 161.7534533 | AG11: 163.6827332 | AH11: 165.5686424 | AI11: 167.4139482 | AJ11: 169.2211798 | AK11: 170.992592 | AL11: 172.7302276 | AM11: 174.43595 | AN11: 176.111452 | AO11: 177.7582836 | AP11: =_xlfn.NORM.INV(0.95,AP4,AP5) -> 179.3778673 | AQ11: 180.971511
A12: 2.5% Low Income | L12: =_xlfn.NORM.INV(0.05,L4,L5) -> 63.40600879 | M12: =_xlfn.NORM.INV(0.05,M4,M5) -> 55.48853078 | N12: 49.54475449 | O12: 44.52885278 | P12: 40.13726506 | Q12: 36.19674449 | R12: 32.57851338 | S12: 29.23377672 | T12: 26.10635696 | U12: 23.15254758 | V12: =_xlfn.NORM.INV(0.05,V4,V5) -> 20.37468582 | W12: 17.72096728 | X12: 15.17832718 | Y12: 12.73774678 | Z12: 10.38260611 | AA12: 8.1055962 | AB12: 5.89975791 | AC12: 3.757774321 | AD12: 1.674715929 | AE12: -0.3540543557 | AF12: -2.332760265 | AG12: -4.264860808 | AH12: -6.153526125 | AI12: -8.001592733 | AJ12: -9.811556912 | AK12: -11.58569167 | AL12: -13.32605013 | AM12: -15.03448922 | AN12: -16.71270663 | AO12: -18.36225333 | AP12: =_xlfn.NORM.INV(0.05,AP4,AP5) -> -19.98455099 | AQ12: -21.58090849
A14: Payoff Counter | M14: =IF(M1=$M$1+drinkyears+1,1,0) -> 0 | N14: 1 | O14: 0 | P14: 0 | Q14: 0 | R14: 0 | S14: 0 | T14: 0 | U14: 0 | V14: 0 | W14: 0 | X14: 0 | Y14: 0 | Z14: 0 | AA14: 0 | AB14: 0 | AC14: 0 | AD14: 0 | AE14: 0 | AF14: 0 | AG14: 0 | AH14: 0 | AI14: 0 | AJ14: 0 | AK14: 0 | AL14: 0 | AM14: 0 | AN14: 0 | AO14: 0 | AP14: 0 | AQ14: 0
A16: Growthrate | M16: =drinkbill -> 0 | N16: =M16*(1+drinkbillgrowth) -> 0 | O16: =N16*(1+drinkbillgrowth) -> 0 | P16: =O16*(1+drinkbillgrowth) -> 0 | Q16: =P16*(1+drinkbillgrowth) -> 0 | R16: =Q16*(1+drinkbillgrowth) -> 0 | S16: =R16*(1+drinkbillgrowth) -> 0 | T16: =S16*(1+drinkbillgrowth) -> 0 | U16: =T16*(1+drinkbillgrowth) -> 0 | V16: =U16*(1+drinkbillgrowth) -> 0 | W16: =V16*(1+drinkbillgrowth) -> 0 | X16: =W16*(1+drinkbillgrowth) -> 0 | Y16: =X16*(1+drinkbillgrowth) -> 0 | Z16: =Y16*(1+drinkbillgrowth) -> 0 | AA16: =Z16*(1+drinkbillgrowth) -> 0 | AB16: =AA16*(1+drinkbillgrowth) -> 0 | AC16: =AB16*(1+drinkbillgrowth) -> 0 | AD16: =AC16*(1+drinkbillgrowth) -> 0 | AE16: =AD16*(1+drinkbillgrowth) -> 0 | AF16: =AE16*(1+drinkbillgrowth) -> 0 | AG16: =AF16*(1+drinkbillgrowth) -> 0 | AH16: =AG16*(1+drinkbillgrowth) -> 0 | AI16: =AH16*(1+drinkbillgrowth) -> 0 | AJ16: =AI16*(1+drinkbillgrowth) -> 0 | AK16: =AJ16*(1+drinkbillgrowth) -> 0 | AL16: =AK16*(1+drinkbillgrowth) -> 0 | AM16: =AL16*(1+drinkbillgrowth) -> 0 | AN16: =AM16*(1+drinkbillgrowth) -> 0 | AO16: =AN16*(1+drinkbillgrowth) -> 0 | AP16: =AO16*(1+drinkbillgrowth) -> 0 | AQ16: =AP16*(1+drinkbillgrowth) -> 0

Sheet Wastewater Output
A1: Model Outputs - Wastewater
A2: Community | B2: =city -> Abbyville
A3: Community Population (2021) | B3: ='Wastewater Analysis Sheet'!M6 -> 84.45454545
A4: Increase in Average Monthly Wastewater Bill | B4: =IF(wasteprincipal>0,((PMT(wasterate,wasteyears,-wasteprincipal))/('Wastewater Analysis Sheet'!N6/2.5))/12,0) -> 0
A5: Probability that Monthly Wastewater Bill
A6: Exceeds 2.0% of Median Household Income | B6: =wastemaxprob -> 0.0977718619
A7: Sustainability Risk | B7: =IF(B6<0.33,"Low",IF(B6<0.67,"Moderate","High")) -> Low
A9: Current MHI (2021) | B9: =+B24 -> 38787.63995
A10: Current Wastewater Bill | B10: =+wastebill -> 0
A11: Projected Average Wastewater Bill | B11: =+B10+B4 -> 0
A17: Note: The graph shows the typical sustainable threshold
A18: for the community (blue line), forecast into the future,
A19: along with a range of estimates developed in a
A20: statistical model. It also shows the projected wastewater
A21: bills using the inputs you provided.
A23: Projections | B23: 2021 | C23: 2022 | D23: 2023 | E23: 2024 | F23: 2025 | G23: 2026 | H23: 2027 | I23: 2028 | J23: 2029 | K23: 2030 | L23: 2031 | M23: 2032 | N23: 2033
A24: Median Household Income | B24: ='Wastewater Analysis Sheet'!M2*12 -> 38787.63995 | C24: ='Wastewater Analysis Sheet'!N2*12 -> 38665.98438 | D24: ='Wastewater Analysis Sheet'!O2*12 -> 38560.99206 | E24: ='Wastewater Analysis Sheet'!P2*12 -> 38481.69697 | F24: ='Wastewater Analysis Sheet'!Q2*12 -> 38424.30226 | G24: ='Wastewater Analysis Sheet'!R2*12 -> 38374.13912 | H24: ='Wastewater Analysis Sheet'!S2*12 -> 38338.50317 | I24: ='Wastewater Analysis Sheet'!T2*12 -> 38311.76543 | J24: ='Wastewater Analysis Sheet'!U2*12 -> 38288.48158 | K24: ='Wastewater Analysis Sheet'!V2*12 -> 38281.50102 | L24: ='Wastewater Analysis Sheet'!W2*12 -> 38275.06874 | M24: ='Wastewater Analysis Sheet'!X2*12 -> 38270.15924 | N24: ='Wastewater Analysis Sheet'!Y2*12 -> 38268.31822
A25: Monthly Wastewater Bill | B25: ='Wastewater Analysis Sheet'!M7 -> 0 | C25: ='Wastewater Analysis Sheet'!N7 -> 0 | D25: ='Wastewater Analysis Sheet'!O7 -> 0 | E25: ='Wastewater Analysis Sheet'!P7 -> 0 | F25: ='Wastewater Analysis Sheet'!Q7 -> 0 | G25: ='Wastewater Analysis Sheet'!R7 -> 0 | H25: ='Wastewater Analysis Sheet'!S7 -> 0 | I25: ='Wastewater Analysis Sheet'!T7 -> 0 | J25: ='Wastewater Analysis Sheet'!U7 -> 0 | K25: ='Wastewater Analysis Sheet'!V7 -> 0 | L25: ='Wastewater Analysis Sheet'!W7 -> 0 | M25: ='Wastewater Analysis Sheet'!X7 -> 0 | N25: ='Wastewater Analysis Sheet'!Y7 -> 0
A26: %MHI | B26: =+B25*12/B24 -> 0 | C26: =+C25*12/C24 -> 0 | D26: 0 | E26: 0 | F26: 0 | G26: 0 | H26: 0 | I26: 0 | J26: 0 | K26: 0 | L26: 0 | M26: 0 | N26: 0
A27: Population | B27: =VLOOKUP(city,poptable,B23-2008,FALSE) -> 84.45454545 | C27: 83.90909091 | D27: 83.36363636 | E27: 82.81818182 | F27: 82.27272727 | G27: 81.72727273 | H27: 81.18181818 | I27: 80.63636364 | J27: 80.09090909 | K27: 79.54545455 | L27: 79 | M27: 78.45454545 | N27: 77.90909091
A29: Projections | B29: 2034 | C29: 2035 | D29: 2036 | E29: 2037 | F29: 2038 | G29: 2039 | H29: 2040 | I29: 2041 | J29: 2042 | K29: 2043 | L29: 2044 | M29: 2045 | N29: 2046
A30: Median Household Income | B30: =+'Wastewater Analysis Sheet'!Z2*12 -> 38266.40971 | C30: =+'Wastewater Analysis Sheet'!AA2*12 -> 38264.97163 | D30: =+'Wastewater Analysis Sheet'!AB2*12 -> 38264.08623 | E30: =+'Wastewater Analysis Sheet'!AC2*12 -> 38263.16719 | F30: =+'Wastewater Analysis Sheet'!AD2*12 -> 38262.37278 | G30: =+'Wastewater Analysis Sheet'!AE2*12 -> 38261.67339 | H30: =+'Wastewater Analysis Sheet'!AF2*12 -> 38260.96634 | I30: =+'Wastewater Analysis Sheet'!AG2*12 -> 38260.28937 | J30: =+'Wastewater Analysis Sheet'!AH2*12 -> 38259.6279 | K30: =+'Wastewater Analysis Sheet'!AI2*12 -> 38258.96531 | L30: =+'Wastewater Analysis Sheet'!AJ2*12 -> 38258.3095 | M30: =+'Wastewater Analysis Sheet'!AK2*12 -> 38257.65607 | N30: =+'Wastewater Analysis Sheet'!AL2*12 -> 38257.0026
A31: Monthly Wastewater Bill | B31: ='Wastewater Analysis Sheet'!Z7 -> 0 | C31: ='Wastewater Analysis Sheet'!AA7 -> 0 | D31: ='Wastewater Analysis Sheet'!AB7 -> 0 | E31: ='Wastewater Analysis Sheet'!AC7 -> 0 | F31: ='Wastewater Analysis Sheet'!AD7 -> 0 | G31: ='Wastewater Analysis Sheet'!AE7 -> 0 | H31: ='Wastewater Analysis Sheet'!AF7 -> 0 | I31: ='Wastewater Analysis Sheet'!AG7 -> 0 | J31: ='Wastewater Analysis Sheet'!AH7 -> 0 | K31: ='Wastewater Analysis Sheet'!AI7 -> 0 | L31: ='Wastewater Analysis Sheet'!AJ7 -> 0 | M31: ='Wastewater Analysis Sheet'!AK7 -> 0 | N31: ='Wastewater Analysis Sheet'!AL7 -> 0
A32: % MHI | B32: =+(B31/B30)*12 -> 0 | C32: =+(C31/C30)*12 -> 0 | D32: 0 | E32: 0 | F32: 0 | G32: 0 | H32: 0 | I32: 0 | J32: 0 | K32: 0 | L32: 0 | M32: 0 | N32: 0
A33: Population | B33: =VLOOKUP(city,poptable,B29-2008,FALSE) -> 77.36363636 | C33: 76.81818182 | D33: 76.27272727 | E33: 75.72727273 | F33: 75.18181818 | G33: 74.63636364 | H33: 74.09090909 | I33: 73.54545455 | J33: 73 | K33: 72.45454545 | L33: 71.90909091 | M33: 71.36363636 | N33: 70.81818182
A35: Projections | B35: 2047 | C35: 2048 | D35: 2049 | E35: 2050 | F35: 2051
A36: Median Household Income | B36: =+'Wastewater Analysis Sheet'!AM2*12 -> 38256.35058 | C36: =+'Wastewater Analysis Sheet'!AN2*12 -> 38255.69889 | D36: =+'Wastewater Analysis Sheet'!AO2*12 -> 38255.04725 | E36: =+'Wastewater Analysis Sheet'!AP2*12 -> 38254.39591 | F36: =+'Wastewater Analysis Sheet'!AQ2*12 -> 38253.74461
A37: Monthly Wastewater Bill | B37: =+'Wastewater Analysis Sheet'!AM7 -> 0 | C37: =+'Wastewater Analysis Sheet'!AN7 -> 0 | D37: =+'Wastewater Analysis Sheet'!AO7 -> 0 | E37: =+'Wastewater Analysis Sheet'!AP7 -> 0 | F37: =+'Wastewater Analysis Sheet'!AQ7 -> 0
A38: % MHI | B38: =+B37/B36*12 -> 0 | C38: =+C37/C36*12 -> 0 | D38: 0 | E38: 0 | F38: 0
A39: Population | B39: =VLOOKUP(city,poptable,B35-2008,FALSE) -> 70.27272727 | C39: =VLOOKUP(city,poptable,C35-2008,FALSE) -> 69.72727273 | D39: =VLOOKUP(city,poptable,D35-2008,FALSE) -> 69.18181818 | E39: =VLOOKUP(city,poptable,E35-2008,FALSE) -> 68.63636364 | F39: =VLOOKUP(city,poptable,F35-2008,FALSE) -> 68.09090909

Sheet Combined Bill Output
A1: Model Outputs - Combined Bill
A2: Community | B2: =city -> Abbyville
A3: Community Population (2021) | B3: ='Wastewater Analysis Sheet'!M6 -> 84.45454545
A4: Increase in Average Monthly Combined Bill | B4: =IF(drinkprincipal>0,((PMT(rate,drinkyears,-drinkprincipal)+PMT(wasterate,wasteyears,-wasteprincipal))/('Wastewater Analysis Sheet'!N6/2.5))/12,0) -> 0
A5: Probability that Monthly Combined Bill
A6: Exceeds 2.0% of Median Household Income | B6: ='Combined Bill Analysis Sheet'!combinedmaxprob -> 0.0977718619
A7: Sustainability Risk | B7: =IF(B6<0.33,"Low",IF(B6<0.67,"Moderate","High")) -> Low
A9: Current MHI (2021) | B9: =+B24 -> 38787.63995
A10: Current Combined Bill | B10: =+wastebill+drinkbill -> 0
A11: Projected Combined Bill | B11: =+B10+B4 -> 0
A17: Note: The graph shows the typical sustainable threshold
A18: for the community (blue line), forecast into the future,
A19: along with a range of estimates developed in a
A20: statistical model. It also shows the projected combined
A21: bills using the inputs you provided.
A23: Projections | B23: 2021 | C23: 2022 | D23: 2023 | E23: 2024 | F23: 2025 | G23: 2026 | H23: 2027 | I23: 2028 | J23: 2029 | K23: 2030 | L23: 2031 | M23: 2032 | N23: 2033
A24: Median Household Income | B24: ='Wastewater Analysis Sheet'!M2*12 -> 38787.63995 | C24: ='Wastewater Analysis Sheet'!N2*12 -> 38665.98438 | D24: ='Wastewater Analysis Sheet'!O2*12 -> 38560.99206 | E24: ='Wastewater Analysis Sheet'!P2*12 -> 38481.69697 | F24: ='Wastewater Analysis Sheet'!Q2*12 -> 38424.30226 | G24: ='Wastewater Analysis Sheet'!R2*12 -> 38374.13912 | H24: ='Wastewater Analysis Sheet'!S2*12 -> 38338.50317 | I24: ='Wastewater Analysis Sheet'!T2*12 -> 38311.76543 | J24: ='Wastewater Analysis Sheet'!U2*12 -> 38288.48158 | K24: ='Wastewater Analysis Sheet'!V2*12 -> 38281.50102 | L24: ='Wastewater Analysis Sheet'!W2*12 -> 38275.06874 | M24: ='Wastewater Analysis Sheet'!X2*12 -> 38270.15924 | N24: ='Wastewater Analysis Sheet'!Y2*12 -> 38268.31822
A25: Monthly Combined Bill | B25: ='Wastewater Analysis Sheet'!M7+'Drinking Water Analysis Sheet'!M7 -> 0 | C25: ='Wastewater Analysis Sheet'!N7+'Drinking Water Analysis Sheet'!N7 -> 0 | D25: ='Wastewater Analysis Sheet'!O7+'Drinking Water Analysis Sheet'!O7 -> 0 | E25: ='Wastewater Analysis Sheet'!P7+'Drinking Water Analysis Sheet'!P7 -> 0 | F25: ='Wastewater Analysis Sheet'!Q7+'Drinking Water Analysis Sheet'!Q7 -> 0 | G25: ='Wastewater Analysis Sheet'!R7+'Drinking Water Analysis Sheet'!R7 -> 0 | H25: ='Wastewater Analysis Sheet'!S7+'Drinking Water Analysis Sheet'!S7 -> 0 | I25: ='Wastewater Analysis Sheet'!T7+'Drinking Water Analysis Sheet'!T7 -> 0 | J25: ='Wastewater Analysis Sheet'!U7+'Drinking Water Analysis Sheet'!U7 -> 0 | K25: ='Wastewater Analysis Sheet'!V7+'Drinking Water Analysis Sheet'!V7 -> 0 | L25: ='Wastewater Analysis Sheet'!W7+'Drinking Water Analysis Sheet'!W7 -> 0 | M25: ='Wastewater Analysis Sheet'!X7+'Drinking Water Analysis Sheet'!X7 -> 0 | N25: ='Wastewater Analysis Sheet'!Y7+'Drinking Water Analysis Sheet'!Y7 -> 0
A26: %MHI | B26: =+B25*12/B24 -> 0 | C26: =+C25*12/C24 -> 0 | D26: 0 | E26: 0 | F26: 0 | G26: 0 | H26: 0 | I26: 0 | J26: 0 | K26: 0 | L26: 0 | M26: 0 | N26: 0
A27: Population | B27: =VLOOKUP(city,poptable,B23-2008,FALSE) -> 84.45454545 | C27: 83.90909091 | D27: 83.36363636 | E27: 82.81818182 | F27: 82.27272727 | G27: 81.72727273 | H27: 81.18181818 | I27: 80.63636364 | J27: 80.09090909 | K27: 79.54545455 | L27: 79 | M27: 78.45454545 | N27: 77.90909091
A29: Projections | B29: 2034 | C29: 2035 | D29: 2036 | E29: 2037 | F29: 2038 | G29: 2039 | H29: 2040 | I29: 2041 | J29: 2042 | K29: 2043 | L29: 2044 | M29: 2045 | N29: 2046
A30: Median Household Income | B30: =+'Wastewater Analysis Sheet'!Z2*12 -> 38266.40971 | C30: =+'Wastewater Analysis Sheet'!AA2*12 -> 38264.97163 | D30: =+'Wastewater Analysis Sheet'!AB2*12 -> 38264.08623 | E30: =+'Wastewater Analysis Sheet'!AC2*12 -> 38263.16719 | F30: =+'Wastewater Analysis Sheet'!AD2*12 -> 38262.37278 | G30: =+'Wastewater Analysis Sheet'!AE2*12 -> 38261.67339 | H30: =+'Wastewater Analysis Sheet'!AF2*12 -> 38260.96634 | I30: =+'Wastewater Analysis Sheet'!AG2*12 -> 38260.28937 | J30: =+'Wastewater Analysis Sheet'!AH2*12 -> 38259.6279 | K30: =+'Wastewater Analysis Sheet'!AI2*12 -> 38258.96531 | L30: =+'Wastewater Analysis Sheet'!AJ2*12 -> 38258.3095 | M30: =+'Wastewater Analysis Sheet'!AK2*12 -> 38257.65607 | N30: =+'Wastewater Analysis Sheet'!AL2*12 -> 38257.0026
A31: Monthly Combined Bill | B31: ='Wastewater Analysis Sheet'!Z7+'Drinking Water Analysis Sheet'!Z7 -> 0 | C31: ='Wastewater Analysis Sheet'!AA7+'Drinking Water Analysis Sheet'!AA7 -> 0 | D31: ='Wastewater Analysis Sheet'!AB7+'Drinking Water Analysis Sheet'!AB7 -> 0 | E31: ='Wastewater Analysis Sheet'!AC7+'Drinking Water Analysis Sheet'!AC7 -> 0 | F31: ='Wastewater Analysis Sheet'!AD7+'Drinking Water Analysis Sheet'!AD7 -> 0 | G31: ='Wastewater Analysis Sheet'!AE7+'Drinking Water Analysis Sheet'!AE7 -> 0 | H31: ='Wastewater Analysis Sheet'!AF7+'Drinking Water Analysis Sheet'!AF7 -> 0 | I31: ='Wastewater Analysis Sheet'!AG7+'Drinking Water Analysis Sheet'!AG7 -> 0 | J31: ='Wastewater Analysis Sheet'!AH7+'Drinking Water Analysis Sheet'!AH7 -> 0 | K31: ='Wastewater Analysis Sheet'!AI7+'Drinking Water Analysis Sheet'!AI7 -> 0 | L31: ='Wastewater Analysis Sheet'!AJ7+'Drinking Water Analysis Sheet'!AJ7 -> 0 | M31: ='Wastewater Analysis Sheet'!AK7+'Drinking Water Analysis Sheet'!AK7 -> 0 | N31: ='Wastewater Analysis Sheet'!AL7+'Drinking Water Analysis Sheet'!AL7 -> 0
A32: % MHI | B32: =+(B31/B30)*12 -> 0 | C32: =+(C31/C30)*12 -> 0 | D32: 0 | E32: 0 | F32: 0 | G32: 0 | H32: 0 | I32: 0 | J32: 0 | K32: 0 | L32: 0 | M32: 0 | N32: 0
A33: Population | B33: =VLOOKUP(city,poptable,B29-2008,FALSE) -> 77.36363636 | C33: 76.81818182 | D33: 76.27272727 | E33: 75.72727273 | F33: 75.18181818 | G33: 74.63636364 | H33: 74.09090909 | I33: 73.54545455 | J33: 73 | K33: 72.45454545 | L33: 71.90909091 | M33: 71.36363636 | N33: 70.81818182
A35: Projections | B35: 2047 | C35: 2048 | D35: 2049 | E35: 2050 | F35: 2051
A36: Monthly Household Income | B36: =+'Wastewater Analysis Sheet'!AM2*12 -> 38256.35058 | C36: =+'Wastewater Analysis Sheet'!AN2*12 -> 38255.69889 | D36: =+'Wastewater Analysis Sheet'!AO2*12 -> 38255.04725 | E36: =+'Wastewater Analysis Sheet'!AP2*12 -> 38254.39591 | F36: =+'Wastewater Analysis Sheet'!AQ2*12 -> 38253.74461
A37: Monthly Combined Bill | B37: =+'Wastewater Analysis Sheet'!AM7+'Drinking Water Analysis Sheet'!AM7 -> 0 | C37: =+'Wastewater Analysis Sheet'!AN7+'Drinking Water Analysis Sheet'!AN7 -> 0 | D37: =+'Wastewater Analysis Sheet'!AO7+'Drinking Water Analysis Sheet'!AO7 -> 0 | E37: =+'Wastewater Analysis Sheet'!AP7+'Drinking Water Analysis Sheet'!AP7 -> 0 | F37: =+'Wastewater Analysis Sheet'!AQ7+'Drinking Water Analysis Sheet'!AQ7 -> 0
A38: % MHI | B38: =+B37/B36*12 -> 0 | C38: =+C37/C36*12 -> 0 | D38: 0 | E38: 0 | F38: 0
A39: Population | B39: =VLOOKUP(city,poptable,B35-2008,FALSE) -> 70.27272727 | C39: =VLOOKUP(city,poptable,C35-2008,FALSE) -> 69.72727273 | D39: =VLOOKUP(city,poptable,D35-2008,FALSE) -> 69.18181818 | E39: =VLOOKUP(city,poptable,E35-2008,FALSE) -> 68.63636364 | F39: =VLOOKUP(city,poptable,F35-2008,FALSE) -> 68.09090909

Sheet Coefficients (hidden)
A1: Population | B1: Ed_HS | C1: Ed_BACH | D1: MANU_ | E1: Inc_LAG
A2: 0.4982803 | B2: 121.3372 | C2: 109.6053 | D2: 10.28205 | E2: 0.5826287

Sheet Unit Specific Constants (hidden)
A1: Abbyville | B1: 3819.417
A2: Abilene | B2: 4244.8594
A3: Admire | B3: 3010.1635
A4: Agenda | B4: 738.72
A5: Agra | B5: 3804.42222
A6: Albert | B6: 5883.036
A7: Alden | B7: 10735.409
A8: Alexander | B8: 2818.588
A9: Allen | B9: 5036.229
A10: Alma | B10: 7040.778
A11: Almena | B11: 4785.7486
A12: Alta Vista | B12: 5142.325
A13: Altamont | B13: 6651.732
A14: Alton | B14: 3005.342
A15: Altoona | B15: 2414.324
A16: Americus | B16: 9079.651
A17: Andale | B17: 16614.227
A18: Andover | B18: 12867.125
A19: Anthony | B19: 5053.459
A20: Arcadia | B20: -2520.407
A21: Argonia | B21: 6844.948
A22: Arkansas City | B22: -1618.899
A23: Arlington | B23: 4278.8139
A24: Arma | B24: 1341.856
A25: Ashland | B25: 4891.889
A26: Assaria | B26: 10589.592
A27: Atchison | B27: -1069.648
A28: Athol | B28: 8753.492
A29: Atlanta | B29: 5213.96
A30: Attica | B30: 5083.458
A31: Atwood | B31: 3509.9243
A32: Auburn | B32: 9746.3
A33: Augusta | B33: 1502.547
A34: Aurora | B34: -2684.76
A35: Axtell | B35: 7026.624
A36: Baldwin City | B36: 7030.291
A37: Barnard | B37: 2573.296
A38: Barnes | B38: 1951.898
A39: Bartlett | B39: 8495.933
A40: Basehor | B40: 16022.557
A41: Bassett | B41: -1274.5
A42: Baxter Springs | B42: 3529.8301
A43: Bazine | B43: 5402.459
A44: Beattie | B44: 10057.003
A45: Bel Aire | B45: 11701.621
A46: Belle Plaine | B46: 7504.24
A47: Belleville | B47: 230.763
A48: Beloit | B48: 2860.7873
A49: Belpre | B49: 7745.39
A50: Belvue | B50: 10993.065
A51: Benedict | B51: 3740.65076
A52: Bennington | B52: 8292.34
A53: Bentley | B53: 13551.203
A54: Benton | B54: 9438.241
A55: Bern | B55: 11396.004
A56: Beverly | B56: 2145.063
A57: Bird City | B57: 3385.862
A58: Bison | B58: 3998.3834
A59: Blue Mound | B59: 3367.5005
A60: Blue Rapids | B60: 5529.066
A61: Bluff City | B61: 311.07
A62: Bogue | B62: 601.621
A63: Bonner Springs | B63: 7241.582
A64: Brewster | B64: 7214.085
A65: Bronson | B65: 2494.011
A66: Brookville | B66: 9423.493
A67: Brownell | B67: 8086.997
A68: Bucklin | B68: 10349.779
A69: Buffalo | B69: 4931.956
A70: Buhler | B70: 7308.807
A71: Bunker Hill | B71: 5328.866
A72: Burden | B72: 6024.289
A73: Burdett | B73: 4927.556
A74: Burlingame | B74: 2476.274
A75: Burlington | B75: 5757.092
A76: Burns | B76: 7242.934
A77: Burr Oak | B77: 1898.272
A78: Burrton | B78: 7585.279
A79: Bushong | B79: 2043.195
A80: Bushton | B80: 9776.379
A81: Byers | B81: 17727.857
A82: Caldwell | B82: 3344.0745
A83: Cambridge | B83: 10565.904
A84: Caney | B84: 764.946
A85: Canton | B85: 9535.588
A86: Carbondale | B86: 4860.715
A87: Carlton | B87: 8354.139
A88: Cassoday | B88: 5792.397
A89: Cawker City | B89: 4089.9878
A90: Cedar Point | B90: -2640.246
A91: Cedar Vale | B91: 2192.063
A92: Centralia | B92: 6114.568
A93: Chanute | B93: -1230.539
A94: Chapman | B94: 7554.405
A95: Chase | B95: 4230.1087
A96: Chautauqua | B96: 956.834
A97: Cheney | B97: 11300.489
A98: Cherokee | B98: 2267.802
A99: Cherryvale | B99: 1689.05
A100: Chetopa | B100: 1113.908
A101: Cimarron | B101: 10812.963
A102: Circleville | B102: 8719.933
A103: Claflin | B103: 7983.975
A104: Clay Center | B104: 2157.014
A105: Clayton | B105: 6416.854
A106: Clearwater | B106: 11734.889
A107: Clifton | B107: 6305.515
A108: Climax | B108: 4132.6886
A109: Clyde | B109: 5154.863
A110: Coats | B110: 2698.778
A111: Coffeyville | B111: -2696.886
A112: Colby | B112: 4181.2273
A113: Coldwater | B113: 4247.9844
A114: Collyer | B114: 3151.6277
A115: Colony | B115: 4344.0924
A116: Columbus | B116: 1532.652
A117: Colwich | B117: 14954.047
A118: Concordia | B118: 934.153
A119: Conway Springs | B119: 6289.971
A120: Coolidge | B120: 5250.077
A121: Copeland | B121: 13947.997
A122: Corning | B122: 8039.4
A123: Cottonwood Falls | B123: 766.707
A124: Council Grove | B124: 3459.6496
A125: Courtland | B125: 3213.9065
A126: Coyville | B126: 8564.611
A127: Cuba | B127: 5462.28
A128: Cullison | B128: 12992.198
A129: Culver | B129: 4211.6907
A130: Cunningham | B130: 6446.401
A131: Damar | B131: 756.785
A132: Danville | B132: 9421.94
A133: De Soto | B133: 5520.266
A134: Dearing | B134: 7310.04
A135: Deerfield | B135: 11812.634
A136: Delia | B136: 9353.134
A137: Delphos | B137: 6671.578
A138: Denison | B138: 5836.402
A139: Denton | B139: 13222.403
A140: Derby | B140: 1458.327
A141: Dexter | B141: 5952.214
A142: Dighton | B142: 7194.94
A143: Dodge City | B143: -3393.429
A144: Dorrance | B144: 7045.739
A145: Douglass | B145: 8729.661
A146: Downs | B146: 4851.808
A147: Dresden | B147: 708.368
A148: Dunlap | B148: 1460.014
A149: Durham | B149: 6989.078
A150: Dwight | B150: 3299.1221
A151: Earlton | B151: 3572.9461
A152: Eastborough | B152: 34291.277
A153: Easton | B153: 6556.232
A154: Edgerton | B154: 9008.993
A155: Edmond | B155: 7324.208
A156: Edna | B156: 8369.021
A157: Edwardsville | B157: 10571.64
A158: Effingham | B158: 3990.9627
A159: El Dorado | B159: -1827.9
A160: Elbing | B160: 14253.637
A161: Elgin | B161: 3204.1933
A162: Elk City | B162: -417.067
A163: Elk Falls | B163: 466.805
A164: Elkhart | B164: 5500.086
A165: Ellinwood | B165: 6960.691
A166: Ellis | B166: 5589.375
A167: Ellsworth | B167: 3925.3308
A168: Elmdale | B168: 865.785
A169: Elsmore | B169: 6397.72
A170: Elwood | B170: 3442.1655
A171: Emmett | B171: 5853.619
A172: Emporia | B172: -9579.003
A173: Englewood | B173: 1875.897
A174: Ensign | B174: 11642.349
A175: Enterprise | B175: 6036.104
A176: Erie | B176: 4617.8513
A177: Esbon | B177: 739.66
A178: Eskridge | B178: 4443.6736
A179: Eudora | B179: 11093.222
A180: Eureka | B180: 1069.501
A181: Everest | B181: 8724.638
A182: Fairview | B182: 3940.7022
A183: Fairway | B183: 22489.467
A184: Fall River | B184: 4444.8282
A185: Florence | B185: 250.686
A186: Fontana | B186: 10213.812
A187: Ford | B187: 6892.695
A188: Formoso | B188: 2595.406
A189: Fort Scott | B189: -2750.925
A190: Fowler | B190: 4218.0551
A191: Frankfort | B191: 6677.749
A192: Fredonia | B192: 3164.6648
A193: Frontenac | B193: 4786.5825
A194: Fulton | B194: 2388.721
A195: Galatia | B195: 9056.472
A196: Galena | B196: 2124.054
A197: Galesburg | B197: 1825.63
A198: Galva | B198: 11466.303
A199: Garden City | B199: -2912.534
A200: Garden Plain | B200: 12417.771
... 418 more rows

Sheet High School (hidden)
A1: GEO_ID | B1: NAME | C1: ED_HS_10 | D1: ED_HS_11 | E1: ED_HS_12 | F1: ED_HS_13 | G1: ED_HS_14 | H1: ED_HS_15 | I1: ED_HS_16 | J1: ED_HS_17 | K1: ED_HS_18 | L1: ED_HS_19 | M1: ED_HS_20 | N1: ED_HS_21 | O1: ED_HS_22 | P1: ED_HS_23 | Q1: ED_HS_24 | R1: ED_HS_25 | S1: ED_HS_26 | T1: ED_HS_27 | U1: ED_HS_28 | V1: ED_HS_29 | W1: ED_HS_30 | X1: ED_HS_31 | Y1: ED_HS_32 | Z1: ED_HS_33 | AA1: ED_HS_34 | AB1: ED_HS_35 | AC1: ED_HS_36 | AD1: ED_HS_37 | AE1: ED_HS_38 | AF1: ED_HS_39 | AG1: ED_HS_40 | AH1: ED_HS_41 | AI1: ED_HS_42 | AJ1: ED_HS_43 | AK1: ED_HS_44 | AL1: ED_HS_45 | AM1: ED_HS_46 | AN1: ED_HS_47 | AO1: ED_HS_48 | AP1: ED_HS_49 | AQ1: ED_HS_50 | AR1: ED_HS_51
A2: 1600000US2000100 | B2: Abbyville | C2: 95.2 | D2: 95.4 | E2: 96.9 | F2: 94.7 | G2: 97.5 | H2: 95.5 | I2: 94.9 | J2: 92.1875 | K2: 95.52238806 | L2: 96.875 | M2: 95.16746269 | N2: 95.11273066 | O2: 95.05799864 | P2: 95.00326662 | Q2: 94.9485346 | R2: 94.89380258 | S2: 94.83907056 | T2: 94.78433853 | U2: 94.72960651 | V2: 94.67487449 | W2: 94.72960651 | X2: 94.71136251 | Y2: 94.70528117 | Z2: 94.71541673 | AA2: 94.7106868 | AB2: 94.71046157 | AC2: 94.71218837 | AD2: 94.71111224 | AE2: 94.71125406 | AF2: 94.71151822 | AG2: 94.71129484 | AH2: 94.71135571 | AI2: 94.71138959 | AJ2: 94.71134671 | AK2: 94.711364 | AL2: 94.71136677 | AM2: 94.71135916 | AN2: 94.71136331 | AO2: 94.71136308 | AP2: 94.71136185 | AQ2: 94.71136275 | AR2: 94.71136256
A3: 1600000US2000125 | B3: Abilene | C3: 90.6 | D3: 90.6 | E3: 89.2 | F3: 89.8 | G3: 86.8 | H3: 85.2 | I3: 85.3 | J3: 86.76860347 | K3: 86.63123467 | L3: 87.60262726 | M3: 85.11642338 | N3: 84.61936463 | O3: 84.12230587 | P3: 83.62524712 | Q3: 83.12818836 | R3: 82.63112961 | S3: 82.13407085 | T3: 81.63701209 | U3: 81.13995334 | V3: 80.64289458 | W3: 81.13995334 | X3: 80.97426709 | Y3: 80.91903834 | Z3: 81.01108625 | AA3: 80.96813056 | AB3: 80.96608505 | AC3: 80.98176729 | AD3: 80.9719943 | AE3: 80.97328221 | AF3: 80.97568127 | AG3: 80.97365259 | AH3: 80.97420536 | AI3: 80.97451307 | AJ3: 80.97412367 | AK3: 80.9742807 | AL3: 80.97430582 | AM3: 80.97423673 | AN3: 80.97427442 | AO3: 80.97427232 | AP3: 80.97426116 | AQ3: 80.9742693 | AR3: 80.97426759
A4: 1600000US2000325 | B4: Admire | C4: 95.4 | D4: 93.2 | E4: 95.8 | F4: 95.1 | G4: 90.6 | H4: 93.9 | I4: 92.1 | J4: 96.875 | K4: 97.01492537 | L4: 96.25 | M4: 95.75830846 | N4: 95.96454772 | O4: 96.17078697 | P4: 96.37702623 | Q4: 96.58326549 | R4: 96.78950475 | S4: 96.99574401 | T4: 97.20198327 | U4: 97.40822252 | V4: 97.61446178 | W4: 97.40822252 | X4: 97.47696894 | Y4: 97.49988442 | Z4: 97.46169196 | AA4: 97.47951511 | AB4: 97.48036383 | AC4: 97.47385697 | AD4: 97.47791197 | AE4: 97.47737759 | AF4: 97.47638217 | AG4: 97.47722391 | AH4: 97.47699456 | AI4: 97.47686688 | AJ4: 97.47702845 | AK4: 97.47696329 | AL4: 97.47695287 | AM4: 97.47698154 | AN4: 97.4769659 | AO4: 97.47696677 | AP4: 97.4769714 | AQ4: 97.47696803 | AR4: 97.47696873
A5: 1600000US2000475 | B5: Agenda | C5: 91.8 | D5: 89.9 | E5: 95.2 | F5: 100 | G5: 96.7 | H5: 95.9 | I5: 96 | J5: 93.33333333 | K5: 94.11764706 | L5: 94.11764706 | M5: 95.64849673 | N5: 95.81970291 | O5: 95.99090909 | P5: 96.16211527 | Q5: 96.33332145 | R5: 96.50452763 | S5: 96.67573381 | T5: 96.84693999 | U5: 97.01814617 | V5: 97.18935235 | W5: 97.01814617 | X5: 97.07521489 | Y5: 97.0942378 | Z5: 97.06253295 | AA5: 97.07732855 | AB5: 97.0780331 | AC5: 97.07263154 | AD5: 97.07599773 | AE5: 97.07555412 | AF5: 97.0747278 | AG5: 97.07542655 | AH5: 97.07523616 | AI5: 97.07513017 | AJ5: 97.07526429 | AK5: 97.0752102 | AL5: 97.07520155 | AM5: 97.07522535 | AN5: 97.07521237 | AO5: 97.07521309 | AP5: 97.07521694 | AQ5: 97.07521413 | AR5: 97.07521472
A6: 1600000US2000550 | B6: Agra | C6: 89.5 | D6: 91.7 | E6: 91.5 | F6: 91.8 | G6: 93 | H6: 94.4 | I6: 94.8 | J6: 94.95412844 | K6: 93.5828877 | L6: 91.84782609 | M6: 94.77452725 | N6: 95.15017144 | O6: 95.52581563 | P6: 95.90145981 | Q6: 96.277104 | R6: 96.65274819 | S6: 97.02839238 | T6: 97.40403656 | U6: 97.77968075 | V6: 98.15532494 | W6: 97.77968075 | X6: 97.90489548 | Y6: 97.94663372 | Z6: 97.87706998 | AA6: 97.90953306 | AB6: 97.91107892 | AC6: 97.89922732 | AD6: 97.9066131 | AE6: 97.90563978 | AF6: 97.90382674 | AG6: 97.90535987 | AH6: 97.90494213 | AI6: 97.90470958 | AJ6: 97.90500386 | AK6: 97.90488519 | AL6: 97.90486621 | AM6: 97.90491842 | AN6: 97.90488994 | AO6: 97.90489152 | AP6: 97.90489996 | AQ6: 97.90489381 | AR6: 97.9048951
A7: 1600000US2000825 | B7: Albert | C7: 88.7 | D7: 95.5 | E7: 95.9 | F7: 98.6 | G7: 97 | H7: 96.5 | I7: 96.4 | J7: 94.0397351 | K7: 91.47286822 | L7: 96.05263158 | M7: 95.73593806 | N7: 95.86674071 | O7: 95.99754336 | P7: 96.12834601 | Q7: 96.25914866 | R7: 96.38995131 | S7: 96.52075396 | T7: 96.65155661 | U7: 96.78235926 | V7: 96.91316191 | W7: 96.78235926 | X7: 96.82596015 | Y7: 96.84049377 | Z7: 96.81627106 | AA7: 96.82757499 | AB7: 96.82811328 | AC7: 96.82398644 | AD7: 96.82655824 | AE7: 96.82621932 | AF7: 96.825588 | AG7: 96.82612185 | AH7: 96.82597639 | AI7: 96.82589541 | AJ7: 96.82599789 | AK7: 96.82595656 | AL7: 96.82594995 | AM7: 96.82596813 | AN7: 96.82595822 | AO7: 96.82595877 | AP7: 96.82596171 | AQ7: 96.82595956 | AR7: 96.82596001
A8: 1600000US2000950 | B8: Alden | C8: 81.7 | D8: 80.4 | E8: 72 | F8: 77.4 | G8: 87.3 | H8: 90.3 | I8: 86.6 | J8: 89.55223881 | K8: 88.31168831 | L8: 82.5 | M8: 89.63782645 | N8: 90.73445077 | O8: 91.83107509 | P8: 92.9276994 | Q8: 94.02432372 | R8: 95.12094803 | S8: 96.21757235 | T8: 97.31419667 | U8: 98.41082098 | V8: 99.5074453 | W8: 98.41082098 | X8: 98.77636242 | Y8: 98.89820957 | Z8: 98.69513099 | AA8: 98.78990099 | AB8: 98.79441385 | AC8: 98.75981528 | AD8: 98.78137671 | AE8: 98.77853528 | AF8: 98.77324242 | AG8: 98.77771814 | AH8: 98.77649861 | AI8: 98.77581972 | AJ8: 98.77667882 | AK8: 98.77633239 | AL8: 98.77627698 | AM8: 98.7764294 | AN8: 98.77634625 | AO8: 98.77635088 | AP8: 98.77637551 | AQ8: 98.77635755 | AR8: 98.77636131
A9: 1600000US2001050 | B9: Alexander | C9: 93.9 | D9: 95.7 | E9: 97.1 | F9: 97.1 | G9: 91.2 | H9: 90.3 | I9: 89.7 | J9: 68.18181818 | K9: 77.27272727 | L9: 78.57142857 | M9: 73.41463203 | N9: 70.78045651 | O9: 68.14628099 | P9: 65.51210547 | Q9: 62.87792995 | R9: 60.24375443 | S9: 57.60957891 | T9: 54.97540338 | U9: 52.34122786 | V9: 49.70705234 | W9: 52.34122786 | X9: 51.46316936 | Y9: 51.17048319 | Z9: 51.65829347 | AA9: 51.43064867 | AB9: 51.41980844 | AC9: 51.50291686 | AD9: 51.45112466 | AE9: 51.45794999 | AF9: 51.47066383 | AG9: 51.45991283 | AH9: 51.46284222 | AI9: 51.46447296 | AJ9: 51.46240933 | AK9: 51.4632415 | AL9: 51.4633746 | AM9: 51.46300848 | AN9: 51.46320819 | AO9: 51.46319709 | AP9: 51.46313792 | AQ9: 51.46318107 | AR9: 51.46317203
A10: 1600000US2001275 | B10: Allen | C10: 90.5 | D10: 88.4 | E10: 89.7 | F10: 92.6 | G10: 86.3 | H10: 84.2 | I10: 82.1 | J10: 83.64779874 | K10: 81.53846154 | L10: 88.18897638 | M10: 82.29449073 | N10: 81.49030292 | O10: 80.68611512 | P10: 79.88192731 | Q10: 79.0777395 | R10: 78.27355169 | S10: 77.46936389 | T10: 76.66517608 | U10: 75.86098827 | V10: 75.05680047 | W10: 75.86098827 | X10: 75.59292567 | Y10: 75.50357147 | Z10: 75.65249514 | AA10: 75.58299743 | AB10: 75.57968801 | AC10: 75.60506019 | AD10: 75.58924854 | AE10: 75.59133225 | AF10: 75.59521366 | AG10: 75.59193149 | AH10: 75.5928258 | AI10: 75.59332365 | AJ10: 75.59269364 | AK10: 75.5929477 | AL10: 75.59298833 | AM10: 75.59287656 | AN10: 75.59293753 | AO10: 75.59293414 | AP10: 75.59291608 | AQ10: 75.59292925 | AR10: 75.59292649
A11: 1600000US2001350 | B11: Alma | C11: 94.4 | D11: 91.9 | E11: 91.2 | F11: 93.1 | G11: 93.7 | H11: 93.4 | I11: 95.6 | J11: 92.70440252 | K11: 92.04851752 | L11: 92.15406562 | M11: 92.87230609 | N11: 92.84532564 | O11: 92.81834519 | P11: 92.79136474 | Q11: 92.76438429 | R11: 92.73740384 | S11: 92.71042339 | T11: 92.68344294 | U11: 92.6564625 | V11: 92.62948205 | W11: 92.6564625 | X11: 92.64746901 | Y11: 92.64447118 | Z11: 92.64946756 | AA11: 92.64713592 | AB11: 92.64702489 | AC11: 92.64787612 | AD11: 92.64734564 | AE11: 92.64741555 | AF11: 92.64754577 | AG11: 92.64743566 | AH11: 92.64746566 | AI11: 92.64748236 | AJ11: 92.64746123 | AK11: 92.64746975 | AL11: 92.64747111 | AM11: 92.64746736 | AN11: 92.64746941 | AO11: 92.6474693 | AP11: 92.64746869 | AQ11: 92.64746913 | AR11: 92.64746904
A12: 1600000US2001425 | B12: Almena | C12: 89.8 | D12: 91.5 | E12: 94.3 | F12: 94 | G12: 94.6 | H12: 93.2 | I12: 90 | J12: 83.90243902 | K12: 86.12903226 | L12: 82.29813665 | M12: 84.28958248 | N12: 83.25624097 | O12: 82.22289946 | P12: 81.18955795 | Q12: 80.15621644 | R12: 79.12287493 | S12: 78.08953342 | T12: 77.05619191 | U12: 76.0228504 | V12: 74.98950889 | W12: 76.0228504 | X12: 75.67840323 | Y12: 75.56358751 | Z12: 75.75494704 | AA12: 75.66564593 | AB12: 75.66139349 | AC12: 75.69399549 | AD12: 75.6736783 | AE12: 75.67635576 | AF12: 75.68134318 | AG12: 75.67712575 | AH12: 75.6782749 | AI12: 75.67891461 | AJ12: 75.67810509 | AK12: 75.67843153 | AL12: 75.67848374 | AM12: 75.67834012 | AN12: 75.67841846 | AO12: 75.67841411 | AP12: 75.6783909 | AQ12: 75.67840782 | AR12: 75.67840428
A13: 1600000US2001575 | B13: Alta Vista | C13: 87.8 | D13: 85.8 | E13: 87.5 | F13: 89.8 | G13: 91.2 | H13: 92.2 | I13: 90.5 | J13: 88.61985472 | K13: 92.48120301 | L13: 91.29213483 | M13: 92.61588286 | N13: 93.14253079 | O13: 93.66917872 | P13: 94.19582665 | Q13: 94.72247457 | R13: 95.2491225 | S13: 95.77577043 | T13: 96.30241836 | U13: 96.82906629 | V13: 97.35571421 | W13: 96.82906629 | X13: 97.0046156 | Y13: 97.06313203 | Z13: 96.96560464 | AA13: 97.01111742 | AB13: 97.0132847 | AC13: 96.99666892 | AD13: 97.00702368 | AE13: 97.0056591 | AF13: 97.00311723 | AG13: 97.00526667 | AH13: 97.004681 | AI13: 97.00435497 | AJ13: 97.00476755 | AK13: 97.00460117 | AL13: 97.00457456 | AM13: 97.00464776 | AN13: 97.00460783 | AO13: 97.00461005 | AP13: 97.00462188 | AQ13: 97.00461325 | AR13: 97.00461506
A14: 1600000US2001550 | B14: Altamont | C14: 96 | D14: 96 | E14: 98.2 | F14: 96.8 | G14: 94.8 | H14: 93.6 | I14: 92.5 | J14: 89.91389914 | K14: 93.12668464 | L14: 90.45226131 | M14: 89.95350584 | N14: 89.19245517 | O14: 88.4314045 | P14: 87.67035384 | Q14: 86.90930317 | R14: 86.1482525 | S14: 85.38720183 | T14: 84.62615117 | U14: 83.8651005 | V14: 83.10404983 | W14: 83.8651005 | X14: 83.61141694 | Y14: 83.52685576 | Z14: 83.66779107 | AA14: 83.60202126 | AB14: 83.59888936 | AC14: 83.62290056 | AD14: 83.60793706 | AE14: 83.60990899 | AF14: 83.61358221 | AG14: 83.61047609 | AH14: 83.61132243 | AI14: 83.61179357 | AJ14: 83.61119736 | AK14: 83.61143779 | AL14: 83.61147624 | AM14: 83.61137046 | AN14: 83.61142817 | AO14: 83.61142496 | AP14: 83.61140786 | AQ14: 83.61142033 | AR14: 83.61141772
A15: 1600000US2001600 | B15: Alton | C15: 72.6 | D15: 82.9 | E15: 80.6 | F15: 91 | G15: 87.9 | H15: 85.4 | I15: 81.3 | J15: 83 | K15: 79.80769231 | L15: 88.57142857 | M15: 86.72446886 | N15: 87.34566101 | O15: 87.96685315 | P15: 88.58804529 | Q15: 89.20923743 | R15: 89.83042957 | S15: 90.45162171 | T15: 91.07281385 | U15: 91.69400599 | V15: 92.31519814 | W15: 91.69400599 | X15: 91.90107004 | Y15: 91.97009139 | Z15: 91.85505581 | AA15: 91.90873908 | AB15: 91.91129543 | AC15: 91.89169677 | AD15: 91.90391043 | AE15: 91.90230087 | AF15: 91.89930269 | AG15: 91.901838 | AH15: 91.90114719 | AI15: 91.90076262 | AJ15: 91.90124927 | AK15: 91.90105303 | AL15: 91.90102164 | AM15: 91.90110798 | AN15: 91.90106088 | AO15: 91.9010635 | AP15: 91.90107745 | AQ15: 91.90106728 | AR15: 91.90106941
A16: 1600000US2001625 | B16: Altoona | C16: 84.7 | D16: 78.5 | E16: 76.2 | F16: 79.9 | G16: 78.8 | H16: 78.3 | I16: 88.2 | J16: 87.86407767 | K16: 80.09049774 | L16: 82.58706468 | M16: 84.00874583 | N16: 84.46230616 | O16: 84.91586649 | P16: 85.36942682 | Q16: 85.82298715 | R16: 86.27654748 | S16: 86.73010781 | T16: 87.18366814 | U16: 87.63722848 | V16: 88.09078881 | W16: 87.63722848 | X16: 87.78841525 | Y16: 87.83881085 | Z16: 87.75481819 | AA16: 87.79401476 | AB16: 87.79588127 | AC16: 87.78157141 | AD16: 87.79048915 | AE16: 87.78931394 | AF16: 87.78712483 | AG16: 87.78897597 | AH16: 87.78847158 | AI16: 87.78819079 | AJ16: 87.78854612 | AK16: 87.78840283 | AL16: 87.78837991 | AM16: 87.78844295 | AN16: 87.78840857 | AO16: 87.78841048 | AP16: 87.78842067 | AQ16: 87.78841324 | AR16: 87.78841479
A17: 1600000US2001675 | B17: Americus | C17: 88.2 | D17: 87.4 | E17: 89.3 | F17: 90.9 | G17: 87.7 | H17: 89.3 | I17: 93.4 | J17: 97.4317817 | K17: 89.06525573 | L17: 87.8477306 | M17: 91.99598594 | N17: 92.3489876 | O17: 92.70198926 | P17: 93.05499092 | Q17: 93.40799258 | R17: 93.76099424 | S17: 94.1139959 | T17: 94.46699756 | U17: 94.81999922 | V17: 95.17300089 | W17: 94.81999922 | X17: 94.93766644 | Y17: 94.97688885 | Z17: 94.91151817 | AA17: 94.94202449 | AB17: 94.94347717 | AC17: 94.93233994 | AD17: 94.93928054 | AE17: 94.93836588 | AF17: 94.93666212 | AG17: 94.93810285 | AH17: 94.93771028 | AI17: 94.93749175 | AJ17: 94.93776829 | AK17: 94.93765678 | AL17: 94.93763894 | AM17: 94.937688 | AN17: 94.93766124 | AO17: 94.93766273 | AP17: 94.93767066 | AQ17: 94.93766488 | AR17: 94.93766609
A18: 1600000US2001775 | B18: Andale | C18: 95.9 | D18: 95.8 | E18: 97.6 | F18: 96.8 | G18: 96 | H18: 95.8 | I18: 96.1 | J18: 93.49005425 | K18: 94.45471349 | L18: 93.45132743 | M18: 93.72944994 | N18: 93.40033001 | O18: 93.07121009 | P18: 92.74209017 | Q18: 92.41297024 | R18: 92.08385032 | S18: 91.7547304 | T18: 91.42561047 | U18: 91.09649055 | V18: 90.76737063 | W18: 91.09649055 | X18: 90.98678391 | Y18: 90.95021503 | Z18: 91.01116316 | AA18: 90.9827207 | AB18: 90.9813663 | AC18: 90.99175005 | AD18: 90.98527902 | AE18: 90.98613179 | AF18: 90.98772029 | AG18: 90.98637703 | AH18: 90.98674303 | AI18: 90.98694678 | AJ18: 90.98668895 | AK18: 90.98679292 | AL18: 90.98680955 | AM18: 90.98676381 | AN18: 90.98678876 | AO18: 90.98678737 | AP18: 90.98677998 | AQ18: 90.98678537 | AR18: 90.98678424
A19: 1600000US2001800 | B19: Andover | C19: 96.1 | D19: 96.1 | E19: 95.8 | F19: 96.4 | G19: 96.7 | H19: 97.3 | I19: 96.5 | J19: 94.65946939 | K19: 94.96912874 | L19: 93.97590361 | M19: 94.78926287 | N19: 94.59631972 | O19: 94.40337657 | P19: 94.21043342 | Q19: 94.01749028 | R19: 93.82454713 | S19: 93.63160398 | T19: 93.43866083 | U19: 93.24571769 | V19: 93.05277454 | W19: 93.24571769 | X19: 93.1814033 | Y19: 93.15996518 | Z19: 93.19569539 | AA19: 93.17902129 | AB19: 93.17822729 | AC19: 93.18431466 | AD19: 93.18052108 | AE19: 93.18102101 | AF19: 93.18195225 | AG19: 93.18116478 | AH19: 93.18137934 | AI19: 93.18149879 | AJ19: 93.18134764 | AK19: 93.18140859 | AL19: 93.18141834 | AM19: 93.18139152 | AN19: 93.18140615 | AO19: 93.18140534 | AP19: 93.181401 | AQ19: 93.18140416 | AR19: 93.1814035
A20: 1600000US2001975 | B20: Anthony | C20: 85.1 | D20: 85.6 | E20: 84 | F20: 84.7 | G20: 89 | H20: 87.5 | I20: 89.4 | J20: 88.84462151 | K20: 89.04191617 | L20: 84.0098401 | M20: 88.4231405 | N20: 88.73286827 | O20: 89.04259603 | P20: 89.3523238 | Q20: 89.66205157 | R20: 89.97177934 | S20: 90.2815071 | T20: 90.59123487 | U20: 90.90096264 | V20: 91.21069041 | W20: 90.90096264 | X20: 91.00420523 | Y20: 91.03861942 | Z20: 90.98126243 | AA20: 91.00802903 | AB20: 91.00930363 | AC20: 90.99953169 | AD20: 91.00562145 | AE20: 91.00481892 | AF20: 91.00332402 | AG20: 91.00458813 | AH20: 91.00424369 | AI20: 91.00405195 | AJ20: 91.00429459 | AK20: 91.00419674 | AL20: 91.0041811 | AM20: 91.00422414 | AN20: 91.00420066 | AO20: 91.00420197 | AP20: 91.00420892 | AQ20: 91.00420385 | AR20: 91.00420491
A21: 1600000US2002175 | B21: Arcadia | C21: 83.4 | D21: 80.4 | E21: 79.4 | F21: 78.6 | G21: 76.7 | H21: 79.4 | I21: 81.5 | J21: 82.48407643 | K21: 82.4742268 | L21: 81.69014085 | M21: 81.46988565 | N21: 81.62716588 | O21: 81.78444611 | P21: 81.94172633 | Q21: 82.09900656 | R21: 82.25628679 | S21: 82.41356701 | T21: 82.57084724 | U21: 82.72812747 | V21: 82.88540769 | W21: 82.72812747 | X21: 82.78055421 | Y21: 82.79802979 | Z21: 82.76890382 | AA21: 82.78249594 | AB21: 82.78314319 | AC21: 82.77818098 | AD21: 82.78127337 | AE21: 82.78086585 | AF21: 82.78010673 | AG21: 82.78074865 | AH21: 82.78057374 | AI21: 82.78047638 | AJ21: 82.78059959 | AK21: 82.7805499 | AL21: 82.78054196 | AM21: 82.78056382 | AN21: 82.78055189 | AO21: 82.78055255 | AP21: 82.78055609 | AQ21: 82.78055351 | AR21: 82.78055405
A22: 1600000US2002250 | B22: Argonia | C22: 88.4 | D22: 88 | E22: 87.7 | F22: 91.6 | G22: 93.4 | H22: 94.5 | I22: 94.2 | J22: 88.83248731 | K22: 88.53333333 | L22: 84.83146067 | M22: 89.53902533 | N22: 89.45526118 | O22: 89.37149704 | P22: 89.28773289 | Q22: 89.20396875 | R22: 89.1202046 | S22: 89.03644046 | T22: 88.95267631 | U22: 88.86891216 | V22: 88.78514802 | W22: 88.86891216 | X22: 88.84099078 | Y22: 88.83168365 | Z22: 88.84719553 | AA22: 88.83995666 | AB22: 88.83961195 | AC22: 88.84225471 | AD22: 88.84060777 | AE22: 88.84082481 | AF22: 88.8412291 | AG22: 88.84088723 | AH22: 88.84098038 | AI22: 88.84103224 | AJ22: 88.84096661 | AK22: 88.84099308 | AL22: 88.84099731 | AM22: 88.84098567 | AN22: 88.84099202 | AO22: 88.84099166 | AP22: 88.84098978 | AQ22: 88.84099115 | AR22: 88.84099087
A23: 1600000US2002300 | B23: Arkansas City | C23: 80 | D23: 80.9 | E23: 81 | F23: 82.4 | G23: 83.9 | H23: 87.2 | I23: 85.1 | J23: 88.27071022 | K23: 87.58800818 | L23: 88.29678446 | M23: 90.1069059 | N23: 91.13260692 | O23: 92.15830794 | P23: 93.18400896 | Q23: 94.20970998 | R23: 95.23541101 | S23: 96.26111203 | T23: 97.28681305 | U23: 98.31251407 | V23: 99.33821509 | W23: 98.31251407 | X23: 98.65441441 | Y23: 98.76838119 | Z23: 98.57843656 | AA23: 98.66707738 | AB23: 98.67129838 | AC23: 98.63893744 | AD23: 98.6591044 | AE23: 98.65644674 | AF23: 98.65149619 | AG23: 98.65568244 | AH23: 98.65454179 | AI23: 98.65390681 | AJ23: 98.65471035 | AK23: 98.65438632 | AL23: 98.65433449 | AM23: 98.65447705 | AN23: 98.65439929 | AO23: 98.65440361 | AP23: 98.65442665 | AQ23: 98.65440985 | AR23: 98.65441337
A24: 1600000US2002325 | B24: Arlington | C24: 87.7 | D24: 86.9 | E24: 86.5 | F24: 90.8 | G24: 87.8 | H24: 86.9 | I24: 88.5 | J24: 89.46188341 | K24: 88.52813853 | L24: 88.34498834 | M24: 88.95054376 | N24: 89.0972788 | O24: 89.24401384 | P24: 89.39074888 | Q24: 89.53748392 | R24: 89.68421896 | S24: 89.83095401 | T24: 89.97768905 | U24: 90.12442409 | V24: 90.27115913 | W24: 90.12442409 | X24: 90.17333577 | Y24: 90.18963966 | Z24: 90.16246651 | AA24: 90.17514731 | AB24: 90.17575116 | AC24: 90.17112166 | AD24: 90.17400671 | AE24: 90.17362651 | AF24: 90.17291829 | AG24: 90.17351717 | AH24: 90.17335399 | AI24: 90.17326315 | AJ24: 90.1733781 | AK24: 90.17333175 | AL24: 90.17332434 | AM24: 90.17334473 | AN24: 90.17333361 | AO24: 90.17333422 | AP24: 90.17333752 | AQ24: 90.17333512 | AR24: 90.17333562
A25: 1600000US2002375 | B25: Arma | C25: 86.5 | D25: 84.1 | E25: 84.6 | F25: 87.2 | G25: 86.4 | H25: 88.4 | I25: 90 | J25: 87.34177215 | K25: 86.38095238 | L25: 88.39122486 | M25: 88.83461331 | N25: 89.18065302 | O25: 89.52669272 | P25: 89.87273243 | Q25: 90.21877213 | R25: 90.56481183 | S25: 90.91085154 | T25: 91.25689124 | U25: 91.60293095 | V25: 91.94897065 | W25: 91.60293095 | X25: 91.71827751 | Y25: 91.75672637 | Z25: 91.69264494 | AA25: 91.72254961 | AB25: 91.72397364 | AC25: 91.71305606 | AD25: 91.71985977 | AE25: 91.71896316 | AF25: 91.717293 | AG25: 91.71870531 | AH25: 91.71832049 | AI25: 91.71810627 | AJ25: 91.71837735 | AK25: 91.71826804 | AL25: 91.71825055 | AM25: 91.71829865 | AN25: 91.71827241 | AO25: 91.71827387 | AP25: 91.71828164 | AQ25: 91.71827598 | AR25: 91.71827716
A26: 1600000US2002675 | B26: Ashland | C26: 90.1 | D26: 89.3 | E26: 86.4 | F26: 90.5 | G26: 92.4 | H26: 92.1 | I26: 91.4 | J26: 93.43629344 | K26: 95.05703422 | L26: 91.35802469 | M26: 94.1785662 | N26: 94.71919001 | O26: 95.25981382 | P26: 95.80043764 | Q26: 96.34106145 | R26: 96.88168526 | S26: 97.42230907 | T26: 97.96293288 | U26: 98.50355669 | V26: 99.04418051 | W26: 98.50355669 | X26: 98.68376463 | Y26: 98.74383394 | Z26: 98.64371842 | AA26: 98.690439 | AB26: 98.69266379 | AC26: 98.67560707 | AD26: 98.68623662 | AE26: 98.68483583 | AF26: 98.68222651 | AG26: 98.68443298 | AH26: 98.68383177 | AI26: 98.68349709 | AJ26: 98.68392061 | AK26: 98.68374982 | AL26: 98.68372251 | AM26: 98.68379765 | AN26: 98.68375666 | AO26: 98.68375894 | AP26: 98.68377108 | AQ26: 98.68376223 | AR26: 98.68376408
A27: 1600000US2002850 | B27: Assaria | C27: 98.7 | D27: 99.1 | E27: 98.7 | F27: 99.4 | G27: 98 | H27: 95.9 | I27: 95 | J27: 92.52873563 | K27: 91.26760563 | L27: 92.74924471 | M27: 90.98322927 | N27: 90.04662393 | O27: 89.1100186 | P27: 88.17341327 | Q27: 87.23680793 | R27: 86.3002026 | S27: 85.36359727 | T27: 84.42699193 | U27: 83.4903866 | V27: 82.55378127 | W27: 83.4903866 | X27: 83.17818482 | Y27: 83.07411756 | Z27: 83.24756299 | AA27: 83.16662179 | AB27: 83.16276745 | AC27: 83.19231741 | AD27: 83.17390222 | AE27: 83.17632903 | AF27: 83.18084955 | AG27: 83.17702693 | AH27: 83.1780685 | AI27: 83.17864833 | AJ27: 83.17791459 | AK27: 83.17821047 | AL27: 83.1782578 | AM27: 83.17812762 | AN27: 83.17819863 | AO27: 83.17819468 | AP27: 83.17817364 | AQ27: 83.17818899 | AR27: 83.17818577
A28: 1600000US2002900 | B28: Atchison | C28: 85.9 | D28: 87.7 | E28: 89 | F28: 91.8 | G28: 91.8 | H28: 93 | I28: 92.3 | J28: 92.20570012 | K28: 92.217851 | L28: 92.88173101 | M28: 94.6534961 | N28: 95.33949026 | O28: 96.02548442 | P28: 96.71147858 | Q28: 97.39747275 | R28: 98.08346691 | S28: 98.76946107 | T28: 99.45545523 | U28: 100 | V28: 100 | W28: 99.81848508 | X28: 99.93949503 | Y28: 99.9193267 | Z28: 99.8924356 | AA28: 99.91708578 | AB28: 99.90961603 | AC28: 99.90637913 | AD28: 99.91102698 | AE28: 99.90900738 | AF28: 99.9088045 | AG28: 99.90961295 | AH28: 99.90914161 | AI28: 99.90918635 | AJ28: 99.90931364 | AK28: 99.90921387 | AL28: 99.90923795 | AM28: 99.90925515 | AN28: 99.90923566 | AO28: 99.90924292 | AP28: 99.90924458 | AQ28: 99.90924105 | AR28: 99.90924285
A29: 1600000US2003025 | B29: Athol | C29: 71.7 | D29: 85.4 | E29: 84.9 | F29: 91.8 | G29: 100 | H29: 91.3 | I29: 88.9 | J29: 90.24390244 | K29: 88.23529412 | L29: 80.64516129 | M29: 90.96820321 | N29: 91.63288819 | O29: 92.29757318 | P29: 92.96225816 | Q29: 93.62694315 | R29: 94.29162813 | S29: 94.95631312 | T29: 95.62099811 | U29: 96.28568309 | V29: 96.95036808 | W29: 96.28568309 | X29: 96.50724475 | Y29: 96.58109864 | Z29: 96.45800883 | AA29: 96.51545074 | AB29: 96.51818607 | AC29: 96.49721521 | AD29: 96.51028401 | AE29: 96.50856176 | AF29: 96.50535366 | AG29: 96.50806648 | AH29: 96.5073273 | AI29: 96.50691581 | AJ29: 96.50743653 | AK29: 96.50722655 | AL29: 96.50719296 | AM29: 96.50728535 | AN29: 96.50723495 | AO29: 96.50723775 | AP29: 96.50725268 | AQ29: 96.5072418 | AR29: 96.50724408
A30: 1600000US2003050 | B30: Atlanta | C30: 90.7 | D30: 89 | E30: 88.9 | F30: 89.1 | G30: 88.5 | H30: 95.3 | I30: 94.8 | J30: 90.78947368 | K30: 94.15584416 | L30: 90.60402685 | M30: 93.47075177 | N30: 93.88635492 | O30: 94.30195807 | P30: 94.71756121 | Q30: 95.13316436 | R30: 95.5487675 | S30: 95.96437065 | T30: 96.3799738 | U30: 96.79557694 | V30: 97.21118009 | W30: 96.79557694 | X30: 96.93411132 | Y30: 96.98028945 | Z30: 96.90332591 | AA30: 96.93924223 | AB30: 96.94095253 | AC30: 96.92784022 | AD30: 96.93601166 | AE30: 96.9349348 | AF30: 96.93292889 | AG30: 96.93462512 | AH30: 96.93416294 | AI30: 96.93390565 | AJ30: 96.93423124 | AK30: 96.93409994 | AL30: 96.93407894 | AM30: 96.93413671 | AN30: 96.9341052 | AO30: 96.93410695 | AP30: 96.93411628 | AQ30: 96.93410948 | AR30: 96.9341109
A31: 1600000US2003100 | B31: Attica | C31: 77.8 | D31: 81.8 | E31: 85.1 | F31: 87.7 | G31: 87.1 | H31: 85.1 | I31: 85.5 | J31: 85.82375479 | K31: 91.07505071 | L31: 87.15789474 | M31: 90.22117608 | N31: 91.09490445 | O31: 91.96863282 | P31: 92.84236119 | Q31: 93.71608957 | R31: 94.58981794 | S31: 95.46354631 | T31: 96.33727469 | U31: 97.21100306 | V31: 98.08473143 | W31: 97.21100306 | X31: 97.50224585 | Y31: 97.59932678 | Z31: 97.43752523 | AA31: 97.51303262 | AB31: 97.51662821 | AC31: 97.48906202 | AD31: 97.50624095 | AE31: 97.50397706 | AF31: 97.49976001 | AG31: 97.50332601 | AH31: 97.50235436 | AI31: 97.50181346 | AJ31: 97.50249794 | AK31: 97.50222192 | AL31: 97.50217777 | AM31: 97.50229921 | AN31: 97.50223297 | AO31: 97.50223665 | AP31: 97.50225628 | AQ31: 97.50224197 | AR31: 97.50224496
A32: 1600000US2003150 | B32: Atwood | C32: 89.2 | D32: 88.1 | E32: 92.3 | F32: 92.3 | G32: 93.6 | H32: 92.4 | I32: 93.7 | J32: 93.58669834 | K32: 93.77934272 | L32: 94.96567506 | M32: 95.76250382 | N32: 96.37510968 | O32: 96.98771553 | P32: 97.60032139 | Q32: 98.21292725 | R32: 98.8255331 | S32: 99.43813896 | T32: 100 | U32: 100 | V32: 100 | W32: 100 | X32: 100 | Y32: 100 | Z32: 100 | AA32: 100 | AB32: 100 | AC32: 100 | AD32: 100 | AE32: 100 | AF32: 100 | AG32: 100 | AH32: 100 | AI32: 100 | AJ32: 100 | AK32: 100 | AL32: 100 | AM32: 100 | AN32: 100 | AO32: 100 | AP32: 100 | AQ32: 100 | AR32: 100
A33: 1600000US2003250 | B33: Auburn | C33: 91.5 | D33: 92.5 | E33: 89.8 | F33: 92.7 | G33: 93.7 | H33: 92.7 | I33: 91.9 | J33: 94.66824645 | K33: 94.92140266 | L33: 92.15922799 | M33: 94.11569113 | N33: 94.38129176 | O33: 94.64689238 | P33: 94.912493 | Q33: 95.17809362 | R33: 95.44369425 | S33: 95.70929487 | T33: 95.97489549 | U33: 96.24049611 | V33: 96.50609674 | W33: 96.24049611 | X33: 96.32902965 | Y33: 96.35854083 | Z33: 96.30935553 | AA33: 96.33230867 | AB33: 96.33340168 | AC33: 96.32502196 | AD33: 96.33024411 | AE33: 96.32955592 | AF33: 96.328274 | AG33: 96.32935801 | AH33: 96.32906264 | AI33: 96.32889821 | AJ33: 96.32910629 | AK33: 96.32902238 | AL33: 96.32900896 | AM33: 96.32904588 | AN33: 96.32902574 | AO33: 96.32902686 | AP33: 96.32903282 | AQ33: 96.32902847 | AR33: 96.32902938
A34: 1600000US2003300 | B34: Augusta | C34: 90.5 | D34: 90.4 | E34: 89.4 | F34: 89 | G34: 89.7 | H34: 89.7 | I34: 89.9 | J34: 90.28994262 | K34: 91.14778695 | L34: 91.32206459 | M34: 90.79540618 | N34: 90.91530196 | O34: 91.03519774 | P34: 91.15509351 | Q34: 91.27498929 | R34: 91.39488506 | S34: 91.51478084 | T34: 91.63467662 | U34: 91.75457239 | V34: 91.87446817 | W34: 91.75457239 | X34: 91.79453765 | Y34: 91.8078594 | Z34: 91.78565648 | AA34: 91.79601785 | AB34: 91.79651124 | AC34: 91.79272852 | AD34: 91.79508587 | AE34: 91.79477521 | AF34: 91.79419654 | AG34: 91.79468587 | AH34: 91.79455254 | AI34: 91.79447832 | AJ34: 91.79457224 | AK34: 91.79453437 | AL34: 91.79452831 | AM34: 91.79454497 | AN34: 91.79453588 | AO34: 91.79453639 | AP34: 91.79453908 | AQ34: 91.79453712 | AR34: 91.79453753
A35: 1600000US2003425 | B35: Aurora | C35: 96 | D35: 96.2 | E35: 91.3 | F35: 91.7 | G35: 88.6 | H35: 70.6 | I35: 75.6 | J35: 88.13559322 | K35: 83.92857143 | L35: 88.88888889 | M35: 79.36123756 | N35: 77.95504341 | O35: 76.54884927 | P35: 75.14265512 | Q35: 73.73646098 | R35: 72.33026683 | S35: 70.92407269 | T35: 69.51787854 | U35: 68.1116844 | V35: 66.70549025 | W35: 68.1116844 | X35: 67.64295302 | Y35: 67.48670922 | Z35: 67.74711555 | AA35: 67.6255926 | AB35: 67.61980579 | AC35: 67.66417131 | AD35: 67.63652323 | AE35: 67.64016678 | AF35: 67.64695377 | AG35: 67.64121459 | AH35: 67.64277838 | AI35: 67.64364892 | AJ35: 67.6425473 | AK35: 67.64299153 | AL35: 67.64306258 | AM35: 67.64286714 | AN35: 67.64297375 | AO35: 67.64296782 | AP35: 67.64293624 | AQ35: 67.64295927 | AR35: 67.64295444
A36: 1600000US2003600 | B36: Axtell | C36: 89.3 | D36: 94 | E36: 94.8 | F36: 91.5 | G36: 91.2 | H36: 92.8 | I36: 90.1 | J36: 90.27777778 | K36: 90.625 | L36: 90.61371841 | M36: 90.28789477 | N36: 90.06357571 | O36: 89.83925665 | P36: 89.61493758 | Q36: 89.39061852 | R36: 89.16629946 | S36: 88.94198039 | T36: 88.71766133 | U36: 88.49334227 | V36: 88.2690232 | W36: 88.49334227 | X36: 88.41856925 | Y36: 88.39364491 | Z36: 88.43518547 | AA36: 88.41579988 | AB36: 88.41487675 | AC36: 88.42195403 | AD36: 88.41754355 | AE36: 88.41812478 | AF36: 88.41920746 | AG36: 88.41829193 | AH36: 88.41854139 | AI36: 88.41868026 | AJ36: 88.41850453 | AK36: 88.41857539 | AL36: 88.41858672 | AM36: 88.41855555 | AN36: 88.41857255 | AO36: 88.41857161 | AP36: 88.41856657 | AQ36: 88.41857024 | AR36: 88.41856947
A37: 1600000US2003900 | B37: Baldwin City | C37: 96.1 | D37: 94 | E37: 93.8 | F37: 93.8 | G37: 93.5 | H37: 96.1 | I37: 95.6 | J37: 95.29276693 | K37: 93.94700139 | L37: 95.2934812 | M37: 95.00446413 | N37: 95.05194398 | O37: 95.09942383 | P37: 95.14690368 | Q37: 95.19438353 | R37: 95.24186338 | S37: 95.28934323 | T37: 95.33682308 | U37: 95.38430293 | V37: 95.43178278 | W37: 95.38430293 | X37: 95.40012954 | Y37: 95.40540508 | Z37: 95.39661252 | AA37: 95.40071572 | AB37: 95.40091111 | AC37: 95.39941311 | AD37: 95.40034664 | AE37: 95.40022362 | AF37: 95.39999446 | AG37: 95.40018824 | AH37: 95.40013544 | AI37: 95.40010605 | AJ37: 95.40014324 | AK37: 95.40012824 | AL37: 95.40012584 | AM37: 95.40013244 | AN37: 95.40012884 | AO37: 95.40012904 | AP37: 95.40013011 | AQ37: 95.40012933 | AR37: 95.4001295
A38: 1600000US2004225 | B38: Barnard | C38: 96.6 | D38: 93.9 | E38: 98.4 | F38: 98.4 | G38: 94 | H38: 95.9 | I38: 95.8 | J38: 97.87234043 | K38: 97.43589744 | L38: 100 | M38: 98.39125659 | N38: 98.67497165 | O38: 98.9586867 | P38: 99.24240176 | Q38: 99.52611681 | R38: 99.80983187 | S38: 100 | T38: 100 | U38: 100 | V38: 100 | W38: 100 | X38: 100 | Y38: 100 | Z38: 100 | AA38: 100 | AB38: 100 | AC38: 100 | AD38: 100 | AE38: 100 | AF38: 100 | AG38: 100 | AH38: 100 | AI38: 100 | AJ38: 100 | AK38: 100 | AL38: 100 | AM38: 100 | AN38: 100 | AO38: 100 | AP38: 100 | AQ38: 100 | AR38: 100
A39: 1600000US2004250 | B39: Barnes | C39: 81.6 | D39: 87.8 | E39: 89.1 | F39: 91.1 | G39: 85.1 | H39: 88.9 | I39: 89.4 | J39: 91.89189189 | K39: 94.35483871 | L39: 95.45454545 | M39: 95.57793559 | N39: 96.68844613 | O39: 97.79895667 | P39: 98.90946722 | Q39: 100 | R39: 100 | S39: 100 | T39: 100 | U39: 100 | V39: 100 | W39: 100 | X39: 100 | Y39: 100 | Z39: 100 | AA39: 100 | AB39: 100 | AC39: 100 | AD39: 100 | AE39: 100 | AF39: 100 | AG39: 100 | AH39: 100 | AI39: 100 | AJ39: 100 | AK39: 100 | AL39: 100 | AM39: 100 | AN39: 100 | AO39: 100 | AP39: 100 | AQ39: 100 | AR39: 100
A40: 1600000US2004350 | B40: Bartlett | C40: 84.6 | D40: 83.3 | E40: 96.5 | F40: 98.2 | G40: 98 | H40: 95.8 | I40: 92.8 | J40: 84.90566038 | K40: 86.66666667 | L40: 82 | M40: 87.73706499 | N40: 87.27521631 | O40: 86.81336764 | P40: 86.35151896 | Q40: 85.88967029 | R40: 85.42782161 | S40: 84.96597294 | T40: 84.50412426 | U40: 84.04227559 | V40: 83.58042691 | W40: 84.04227559 | X40: 83.88832603 | Y40: 83.83700951 | Z40: 83.92253704 | AA40: 83.88262419 | AB40: 83.88072358 | AC40: 83.89529494 | AD40: 83.88621424 | AE40: 83.88741092 | AF40: 83.88964003 | AG40: 83.88775506 | AH40: 83.88826867 | AI40: 83.88855459 | AJ40: 83.88819277 | AK40: 83.88833868 | AL40: 83.88836201 | AM40: 83.88829782 | AN40: 83.88833284 | AO40: 83.88833089 | AP40: 83.88832052 | AQ40: 83.88832808 | AR40: 83.8883265
A41: 1600000US2004400 | B41: Basehor | C41: 94.5 | D41: 94.4 | E41: 94.2 | F41: 94.9 | G41: 95.2 | H41: 94.2 | I41: 93.3 | J41: 97.35859125 | K41: 97.73832685 | L41: 96.86394718 | M41: 97.08731216 | N41: 97.41844409 | O41: 97.74957602 | P41: 98.08070795 | Q41: 98.41183988 | R41: 98.74297182 | S41: 99.07410375 | T41: 99.40523568 | U41: 99.73636761 | V41: 100.0674995 | W41: 99.73636761 | X41: 99.84674492 | Y41: 99.88353736 | Z41: 99.82221663 | AA41: 99.85083297 | AB41: 99.85219566 | AC41: 99.84174842 | AD41: 99.84825902 | AE41: 99.84740103 | AF41: 99.84580282 | AG41: 99.84715429 | AH41: 99.84678605 | AI41: 99.84658105 | AJ41: 99.84684046 | AK41: 99.84673585 | AL41: 99.84671912 | AM41: 99.84676515 | AN41: 99.84674004 | AO41: 99.84674144 | AP41: 99.84674888 | AQ41: 99.84674345 | AR41: 99.84674459
A42: 1600000US2004450 | B42: Bassett | C42: 100 | D42: 100 | E42: 100 | F42: 100 | G42: 100 | H42: 100 | I42: 100 | J42: 100 | K42: 100 | L42: 100 | M42: 100 | N42: 100 | O42: 100 | P42: 100 | Q42: 100 | R42: 100 | S42: 100 | T42: 100 | U42: 100 | V42: 100 | W42: 100 | X42: 100 | Y42: 100 | Z42: 100 | AA42: 100 | AB42: 100 | AC42: 100 | AD42: 100 | AE42: 100 | AF42: 100 | AG42: 100 | AH42: 100 | AI42: 100 | AJ42: 100 | AK42: 100 | AL42: 100 | AM42: 100 | AN42: 100 | AO42: 100 | AP42: 100 | AQ42: 100 | AR42: 100
A43: 1600000US2004625 | B43: Baxter Springs | C43: 86 | D43: 85.8 | E43: 88.3 | F43: 85.4 | G43: 88.8 | H43: 88.7 | I43: 88.3 | J43: 85.52051543 | K43: 89.12376406 | L43: 89.7755611 | M43: 89.30361657 | N43: 89.61845885 | O43: 89.93330113 | P43: 90.2481434 | Q43: 90.56298568 | R43: 90.87782795 | S43: 91.19267023 | T43: 91.5075125 | U43: 91.82235478 | V43: 92.13719705 | W43: 91.82235478 | X43: 91.9273022 | Y43: 91.96228468 | Z43: 91.90398055 | AA43: 91.93118915 | AB43: 91.93248479 | AC43: 91.9225515 | AD43: 91.92874181 | AE43: 91.92792603 | AF43: 91.92640645 | AG43: 91.92769143 | AH43: 91.9273413 | AI43: 91.92714639 | AJ43: 91.92739304 | AK43: 91.92729358 | AL43: 91.92727767 | AM43: 91.92732143 | AN43: 91.92729756 | AO43: 91.92729889 | AP43: 91.92730596 | AQ43: 91.9273008 | AR43: 91.92730189
A44: 1600000US2004775 | B44: Bazine | C44: 83.8 | D44: 83.3 | E44: 80.2 | F44: 82.7 | G44: 86.3 | H44: 84.2 | I44: 90.7 | J44: 84.49612403 | K44: 82.94573643 | L44: 83.5443038 | M44: 85.50526674 | N44: 85.73920316 | O44: 85.97313958 | P44: 86.207076 | Q44: 86.44101242 | R44: 86.67494884 | S44: 86.90888526 | T44: 87.14282168 | U44: 87.3767581 | V44: 87.61069452 | W44: 87.3767581 | X44: 87.45473691 | Y44: 87.48072984 | Z44: 87.43740829 | AA44: 87.45762501 | AB44: 87.45858771 | AC44: 87.451207 | AD44: 87.45580658 | AE44: 87.45520043 | AF44: 87.45407134 | AG44: 87.45502612 | AH44: 87.45476596 | AI44: 87.45462114 | AJ44: 87.45480441 | AK44: 87.4547305 | AL44: 87.45471868 | AM44: 87.4547512 | AN44: 87.45473346 | AO44: 87.45473445 | AP44: 87.4547397 | AQ44: 87.45473587 | AR44: 87.45473667
A45: 1600000US2004900 | B45: Beattie | C45: 86.5 | D45: 84.5 | E45: 87.4 | F45: 85.5 | G45: 77.8 | H45: 87.4 | I45: 83.1 | J45: 82.58426966 | K45: 87.56756757 | L45: 92.47311828 | M45: 87.26757508 | N45: 87.59213499 | O45: 87.91669491 | P45: 88.24125482 | Q45: 88.56581473 | R45: 88.89037465 | S45: 89.21493456 | T45: 89.53949448 | U45: 89.86405439 | V45: 90.1886143 | W45: 89.86405439 | X45: 89.97224103 | Y45: 90.00830324 | Z45: 89.94819955 | AA45: 89.97624794 | AB45: 89.97758358 | AC45: 89.96734369 | AD45: 89.97372507 | AE45: 89.97288411 | AF45: 89.97131762 | AG45: 89.97264227 | AH45: 89.97228133 | AI45: 89.97208041 | AJ45: 89.97233467 | AK45: 89.97223214 | AL45: 89.97221574 | AM45: 89.97226085 | AN45: 89.97223624 | AO45: 89.97223761 | AP45: 89.9722449 | AQ45: 89.97223958 | AR45: 89.9722407
A46: 1600000US2005337 | B46: Bel Aire | C46: 94.8 | D46: 91.9 | E46: 93.6 | F46: 95.7 | G46: 95.3 | H46: 95.4 | I46: 98.4 | J46: 97.57753716 | K46: 97.40886347 | L46: 96.25922023 | M46: 98.29398583 | N46: 98.77751742 | O46: 99.26104901 | P46: 99.7445806 | Q46: 100 | R46: 100 | S46: 100 | T46: 100 | U46: 100 | V46: 100 | W46: 100 | X46: 100 | Y46: 100 | Z46: 100 | AA46: 100 | AB46: 100 | AC46: 100 | AD46: 100 | AE46: 100 | AF46: 100 | AG46: 100 | AH46: 100 | AI46: 100 | AJ46: 100 | AK46: 100 | AL46: 100 | AM46: 100 | AN46: 100 | AO46: 100 | AP46: 100 | AQ46: 100 | AR46: 100
A47: 1600000US2005500 | B47: Belle Plaine | C47: 87.6 | D47: 87 | E47: 87.6 | F47: 89.7 | G47: 90.9 | H47: 93.2 | I47: 93 | J47: 92.65274555 | K47: 91.45098039 | L47: 91.0397295 | M47: 93.73361741 | N47: 94.33712139 | O47: 94.94062536 | P47: 95.54412934 | Q47: 96.14763332 | R47: 96.75113729 | S47: 97.35464127 | T47: 97.95814524 | U47: 98.56164922 | V47: 99.1651532 | W47: 98.56164922 | X47: 98.76281721 | Y47: 98.82987321 | Z47: 98.71811321 | AA47: 98.77026788 | AB47: 98.77275143 | AC47: 98.75371084 | AD47: 98.76557672 | AE47: 98.764013 | AF47: 98.76110019 | AG47: 98.7635633 | AH47: 98.76289216 | AI47: 98.76251855 | AJ47: 98.76299134 | AK47: 98.76280068 | AL47: 98.76277019 | AM47: 98.76285407 | AN47: 98.76280831 | AO47: 98.76281086 | AP47: 98.76282441 | AQ47: 98.76281453 | AR47: 98.7628166
A48: 1600000US2005600 | B48: Belleville | C48: 94.1 | D48: 92.8 | E48: 93.4 | F48: 92.2 | G48: 91.9 | H48: 91.5 | I48: 91.7 | J48: 94.69442579 | K48: 93.62279512 | L48: 94.6440678 | M48: 93.56373903 | N48: 93.65603179 | O48: 93.74832455 | P48: 93.84061731 | Q48: 93.93291006 | R48: 94.02520282 | S48: 94.11749558 | T48: 94.20978833 | U48: 94.30208109 | V48: 94.39437385 | W48: 94.30208109 | X48: 94.33284534 | Y48: 94.34310009 | Z48: 94.32600884 | AA48: 94.33398476 | AB48: 94.33436457 | AC48: 94.33145272 | AD48: 94.33326735 | AE48: 94.33302821 | AF48: 94.33258276 | AG48: 94.33295944 | AH48: 94.33285681 | AI48: 94.33279967 | AJ48: 94.33287197 | AK48: 94.33284282 | AL48: 94.33283815 | AM48: 94.33285098 | AN48: 94.33284398 | AO48: 94.33284437 | AP48: 94.33284644 | AQ48: 94.33284493 | AR48: 94.33284525
A49: 1600000US2005775 | B49: Beloit | C49: 91.9 | D49: 88.9 | E49: 91.4 | F49: 92.7 | G49: 94.3 | H49: 95.4 | I49: 95 | J49: 94.20788979 | K49: 94.73855148 | L49: 93.0976431 | M49: 95.62067834 | N49: 96.06727287 | O49: 96.5138674 | P49: 96.96046193 | Q49: 97.40705646 | R49: 97.85365099 | S49: 98.30024551 | T49: 98.74684004 | U49: 99.19343457 | V49: 99.6400291 | W49: 99.19343457 | X49: 99.34229941 | Y49: 99.39192103 | Z49: 99.30921834 | AA49: 99.34781293 | AB49: 99.34965076 | AC49: 99.33556068 | AD49: 99.34434146 | AE49: 99.3431843 | AF49: 99.34102881 | AG49: 99.34285152 | AH49: 99.34235488 | AI49: 99.3420784 | AJ49: 99.34242827 | AK49: 99.34228718 | AL49: 99.34226462 | AM49: 99.34232669 | AN49: 99.34229283 | AO49: 99.34229471 | AP49: 99.34230474 | AQ49: 99.34229743 | AR49: 99.34229896
A50: 1600000US2005825 | B50: Belpre | C50: 60.9 | D50: 41.2 | E50: 54.7 | F50: 53.3 | G50: 55.4 | H50: 64.2 | I50: 58.3 | J50: 66.37168142 | K50: 73.75 | L50: 66.17647059 | M50: 71.34636995 | N50: 73.51301626 | O50: 75.67966258 | P50: 77.8463089 | Q50: 80.01295522 | R50: 82.17960153 | S50: 84.34624785 | T50: 86.51289417 | U50: 88.67954049 | V50: 90.8461868 | W50: 88.67954049 | X50: 89.40175592 | Y50: 89.6424944 | Z50: 89.2412636 | AA50: 89.42850464 | AB50: 89.43742088 | AC50: 89.36906304 | AD50: 89.41166286 | AE50: 89.40604893 | AF50: 89.39559161 | AG50: 89.40443447 | AH50: 89.402025 | AI50: 89.40068369 | AJ50: 89.40238105 | AK50: 89.40169658 | AL50: 89.40158711 | AM50: 89.40188825 | AN50: 89.40172398 | AO50: 89.40173311 | AP50: 89.40178178 | AQ50: 89.40174629 | AR50: 89.40175373
A51: 1600000US2005925 | B51: Belvue | C51: 83.8 | D51: 82.3 | E51: 84.8 | F51: 88.2 | G51: 89.8 | H51: 95.2 | I51: 92.1 | J51: 95.48022599 | K51: 93.93939394 | L51: 91.28205128 | M51: 97.00067876 | N51: 98.32986269 | O51: 99.65904662 | P51: 100 | Q51: 100 | R51: 100 | S51: 100 | T51: 100 | U51: 100 | V51: 100 | W51: 100 | X51: 100 | Y51: 100 | Z51: 100 | AA51: 100 | AB51: 100 | AC51: 100 | AD51: 100 | AE51: 100 | AF51: 100 | AG51: 100 | AH51: 100 | AI51: 100 | AJ51: 100 | AK51: 100 | AL51: 100 | AM51: 100 | AN51: 100 | AO51: 100 | AP51: 100 | AQ51: 100 | AR51: 100
A52: 1600000US2006000 | B52: Benedict | C52: 90.7 | D52: 79.2 | E52: 74 | F52: 72.2 | G52: 63.2 | H52: 61.2 | I52: 61.5 | J52: 61.03896104 | K52: 60.2739726 | L52: 57.14285714 | M52: 50.26552334 | N52: 47.03278593 | O52: 43.80004852 | P52: 40.56731111 | Q52: 37.3345737 | R52: 34.1018363 | S52: 30.86909889 | T52: 27.63636148 | U52: 24.40362407 | V52: 21.17088666 | W52: 24.40362407 | X52: 23.32604494 | Y52: 22.96685189 | Z52: 23.56550697 | AA52: 23.2861346 | AB52: 23.27283115 | AC52: 23.37482424 | AD52: 23.31126333 | AE52: 23.31963957 | AF52: 23.33524238 | AG52: 23.32204843 | AH52: 23.32564346 | AI52: 23.32764476 | AJ52: 23.32511221 | AK52: 23.32613348 | AL52: 23.32629682 | AM52: 23.3258475 | AN52: 23.3260926 | AO52: 23.32607897 | AP52: 23.32600636 | AQ52: 23.32605931 | AR52: 23.32604821
A53: 1600000US2006075 | B53: Bennington | C53: 89.9 | D53: 91 | E53: 93.7 | F53: 94.6 | G53: 96.7 | H53: 93.8 | I53: 93.6 | J53: 93.19066148 | K53: 90.7444668 | L53: 92.79112754 | M53: 93.52878301 | N53: 93.624448 | O53: 93.72011299 | P53: 93.81577797 | Q53: 93.91144296 | R53: 94.00710795 | S53: 94.10277293 | T53: 94.19843792 | U53: 94.29410291 | V53: 94.3897679 | W53: 94.29410291 | X53: 94.32599124 | Y53: 94.33662068 | Z53: 94.31890494 | AA53: 94.32717229 | AB53: 94.32756597 | AC53: 94.32454773 | AD53: 94.32642866 | AE53: 94.32618079 | AF53: 94.32571906 | AG53: 94.3261095 | AH53: 94.32600312 | AI53: 94.32594389 | AJ53: 94.32601884 | AK53: 94.32598862 | AL53: 94.32598378 | AM53: 94.32599708 | AN53: 94.32598983 | AO53: 94.32599023 | AP53: 94.32599238 | AQ53: 94.32599081 | AR53: 94.32599114
A54: 1600000US2006125 | B54: Bentley | C54: 78.3 | D54: 76.9 | E54: 82.5 | F54: 85.6 | G54: 81.7 | H54: 85.2 | I54: 88.4 | J54: 87.28813559 | K54: 88.57142857 | L54: 88.252149 | M54: 91.17483861 | N54: 92.43005085 | O54: 93.68526309 | P54: 94.94047532 | Q54: 96.19568756 | R54: 97.45089979 | S54: 98.70611203 | T54: 100 | U54: 100 | V54: 100 | W54: 100 | X54: 100 | Y54: 100 | Z54: 100 | AA54: 100 | AB54: 100 | AC54: 100 | AD54: 100 | AE54: 100 | AF54: 100 | AG54: 100 | AH54: 100 | AI54: 100 | AJ54: 100 | AK54: 100 | AL54: 100 | AM54: 100 | AN54: 100 | AO54: 100 | AP54: 100 | AQ54: 100 | AR54: 100
A55: 1600000US2006175 | B55: Benton | C55: 89.8 | D55: 90.1 | E55: 90.4 | F55: 89.6 | G55: 93.3 | H55: 95.6 | I55: 97.6 | J55: 96.64122137 | K55: 96.65775401 | L55: 95.59748428 | M55: 98.71590408 | N55: 99.6588601 | O55: 100 | P55: 100 | Q55: 100 | R55: 100 | S55: 100 | T55: 100 | U55: 100 | V55: 100 | W55: 100 | X55: 100 | Y55: 100 | Z55: 100 | AA55: 100 | AB55: 100 | AC55: 100 | AD55: 100 | AE55: 100 | AF55: 100 | AG55: 100 | AH55: 100 | AI55: 100 | AJ55: 100 | AK55: 100 | AL55: 100 | AM55: 100 | AN55: 100 | AO55: 100 | AP55: 100 | AQ55: 100 | AR55: 100
A56: 1600000US2006275 | B56: Bern | C56: 91.7 | D56: 94.1 | E56: 87.3 | F56: 81.7 | G56: 87.5 | H56: 88.8 | I56: 90.3 | J56: 96.8 | K56: 95.96774194 | L56: 97.39130435 | M56: 95.78576905 | N56: 96.62756258 | O56: 97.46935611 | P56: 98.31114965 | Q56: 99.15294318 | R56: 99.99473671 | S56: 100 | T56: 100 | U56: 100 | V56: 100 | W56: 100 | X56: 100 | Y56: 100 | Z56: 100 | AA56: 100 | AB56: 100 | AC56: 100 | AD56: 100 | AE56: 100 | AF56: 100 | AG56: 100 | AH56: 100 | AI56: 100 | AJ56: 100 | AK56: 100 | AL56: 100 | AM56: 100 | AN56: 100 | AO56: 100 | AP56: 100 | AQ56: 100 | AR56: 100
A57: 1600000US2006500 | B57: Beverly | C57: 76.3 | D57: 82.2 | E57: 82.5 | F57: 84.6 | G57: 88.8 | H57: 93.9 | I57: 93.5 | J57: 95.3125 | K57: 91.91919192 | L57: 86.72566372 | M57: 96.16666279 | N57: 97.72864956 | O57: 99.29063633 | P57: 100 | Q57: 100 | R57: 100 | S57: 100 | T57: 100 | U57: 100 | V57: 100 | W57: 100 | X57: 100 | Y57: 100 | Z57: 100 | AA57: 100 | AB57: 100 | AC57: 100 | AD57: 100 | AE57: 100 | AF57: 100 | AG57: 100 | AH57: 100 | AI57: 100 | AJ57: 100 | AK57: 100 | AL57: 100 | AM57: 100 | AN57: 100 | AO57: 100 | AP57: 100 | AQ57: 100 | AR57: 100
A58: 1600000US2006825 | B58: Bird City | C58: 79.7 | D58: 85 | E58: 86.2 | F58: 85 | G58: 81.8 | H58: 86.6 | I58: 84.5 | J58: 80.98958333 | K58: 87.18592965 | L58: 89.71291866 | M58: 87.42436624 | N58: 87.92537043 | O58: 88.42637463 | P58: 88.92737882 | Q58: 89.42838302 | R58: 89.92938721 | S58: 90.4303914 | T58: 90.9313956 | U58: 91.43239979 | V58: 91.93340399 | W58: 91.43239979 | X58: 91.59940119 | Y58: 91.65506833 | Z58: 91.56228977 | AA58: 91.60558643 | AB58: 91.60764818 | AC58: 91.59184146 | AD58: 91.60169202 | AE58: 91.60039389 | AF58: 91.59797579 | AG58: 91.60002056 | AH58: 91.59946341 | AI58: 91.59915326 | AJ58: 91.59954574 | AK58: 91.59938747 | AL58: 91.59936216 | AM58: 91.59943179 | AN58: 91.59939381 | AO58: 91.59939592 | AP58: 91.59940717 | AQ58: 91.59939897 | AR58: 91.59940068
A59: 1600000US2006950 | B59: Bison | C59: 90.9 | D59: 92.6 | E59: 92.9 | F59: 94.3 | G59: 93.2 | H59: 89 | I59: 87.8 | J59: 86.30136986 | K59: 85.92592593 | L59: 91.04477612 | M59: 86.99358439 | N59: 86.37474388 | O59: 85.75590337 | P59: 85.13706286 | Q59: 84.51822235 | R59: 83.89938184 | S59: 83.28054133 | T59: 82.66170082 | U59: 82.04286031 | V59: 81.4240198 | W59: 82.04286031 | X59: 81.83658014 | Y59: 81.76782008 | Z59: 81.88242018 | AA59: 81.82894013 | AB59: 81.82639346 | AC59: 81.84591792 | AD59: 81.83375051 | AE59: 81.83535396 | AF59: 81.8383408 | AG59: 81.83581509 | AH59: 81.83650328 | AI59: 81.83688639 | AJ59: 81.83640159 | AK59: 81.83659709 | AL59: 81.83662835 | AM59: 81.83654234 | AN59: 81.83658926 | AO59: 81.83658665 | AP59: 81.83657275 | AQ59: 81.83658289 | AR59: 81.83658076
A60: 1600000US2007600 | B60: Blue Mound | C60: 78 | D60: 84.6 | E60: 85.5 | F60: 79.2 | G60: 76.2 | H60: 80.6 | I60: 80.6 | J60: 79.53667954 | K60: 83.69565217 | L60: 83.64312268 | M60: 81.93224767 | N60: 82.07310262 | O60: 82.21395757 | P60: 82.35481253 | Q60: 82.49566748 | R60: 82.63652243 | S60: 82.77737738 | T60: 82.91823233 | U60: 83.05908728 | V60: 83.19994223 | W60: 83.05908728 | X60: 83.10603893 | Y60: 83.12168948 | Z60: 83.09560523 | AA60: 83.10777788 | AB60: 83.10835753 | AC60: 83.10391355 | AD60: 83.10668299 | AE60: 83.10631802 | AF60: 83.10563819 | AG60: 83.10621307 | AH60: 83.10605643 | AI60: 83.10596923 | AJ60: 83.10607957 | AK60: 83.10603508 | AL60: 83.10602796 | AM60: 83.10604754 | AN60: 83.10603686 | AO60: 83.10603745 | AP60: 83.10604061 | AQ60: 83.10603831 | AR60: 83.10603879
A61: 1600000US2007650 | B61: Blue Rapids | C61: 82.5 | D61: 86.2 | E61: 86.4 | F61: 88.5 | G61: 85.7 | H61: 90.5 | I61: 90.9 | J61: 92.97297297 | K61: 93.76528117 | L61: 94.64668094 | M61: 96.11322556 | N61: 97.36863139 | O61: 98.62403722 | P61: 99.87944304 | Q61: 100 | R61: 100 | S61: 100 | T61: 100 | U61: 100 | V61: 100 | W61: 100 | X61: 100 | Y61: 100 | Z61: 100 | AA61: 100 | AB61: 100 | AC61: 100 | AD61: 100 | AE61: 100 | AF61: 100 | AG61: 100 | AH61: 100 | AI61: 100 | AJ61: 100 | AK61: 100 | AL61: 100 | AM61: 100 | AN61: 100 | AO61: 100 | AP61: 100 | AQ61: 100 | AR61: 100
A62: 1600000US2007775 | B62: Bluff City | C62: 61.9 | D62: 62.5 | E62: 78.8 | F62: 67.6 | G62: 73.2 | H62: 70.6 | I62: 89.7 | J62: 95.69892473 | K62: 94.73684211 | L62: 95.23809524 | M62: 100 | N62: 100 | O62: 100 | P62: 100 | Q62: 100 | R62: 100 | S62: 100 | T62: 100 | U62: 100 | V62: 100 | W62: 100 | X62: 100 | Y62: 100 | Z62: 100 | AA62: 100 | AB62: 100 | AC62: 100 | AD62: 100 | AE62: 100 | AF62: 100 | AG62: 100 | AH62: 100 | AI62: 100 | AJ62: 100 | AK62: 100 | AL62: 100 | AM62: 100 | AN62: 100 | AO62: 100 | AP62: 100 | AQ62: 100 | AR62: 100
A63: 1600000US2007825 | B63: Bogue | C63: 88.9 | D63: 83.5 | E63: 79.4 | F63: 82.3 | G63: 77.3 | H63: 87.7 | I63: 91.4 | J63: 90.6779661 | K63: 90.625 | L63: 96.02649007 | M63: 93.71972032 | N63: 94.98095208 | O63: 96.24218385 | P63: 97.50341561 | Q63: 98.76464738 | R63: 100 | S63: 100 | T63: 100 | U63: 100 | V63: 100 | W63: 100 | X63: 100 | Y63: 100 | Z63: 100 | AA63: 100 | AB63: 100 | AC63: 100 | AD63: 100 | AE63: 100 | AF63: 100 | AG63: 100 | AH63: 100 | AI63: 100 | AJ63: 100 | AK63: 100 | AL63: 100 | AM63: 100 | AN63: 100 | AO63: 100 | AP63: 100 | AQ63: 100 | AR63: 100
A64: 1600000US2007975 | B64: Bonner Springs | C64: 89.7 | D64: 89.5 | E64: 89.5 | F64: 89.8 | G64: 85.1 | H64: 89.6 | I64: 87.2 | J64: 87.94452347 | K64: 87.76297335 | L64: 88.65053172 | M64: 87.38641006 | N64: 87.18833865 | O64: 86.99026723 | P64: 86.79219582 | Q64: 86.5941244 | R64: 86.39605298 | S64: 86.19798157 | T64: 85.99991015 | U64: 85.80183873 | V64: 85.60376732 | W64: 85.80183873 | X64: 85.73581493 | Y64: 85.71380699 | Z64: 85.75048688 | AA64: 85.7333696 | AB64: 85.73255449 | AC64: 85.73880366 | AD64: 85.73490925 | AE64: 85.73542247 | AF64: 85.73637846 | AG64: 85.73557006 | AH64: 85.73579033 | AI64: 85.73591295 | AJ64: 85.73575778 | AK64: 85.73582035 | AL64: 85.73583036 | AM64: 85.73580283 | AN64: 85.73581785 | AO64: 85.73581701 | AP64: 85.73581256 | AQ64: 85.73581581 | AR64: 85.73581513
A65: 1600000US2008425 | B65: Brewster | C65: 82.2 | D65: 88.4 | E65: 90.9 | F65: 90.1 | G65: 88.7 | H65: 91.3 | I65: 94.6 | J65: 95.79831933 | K65: 95.88477366 | L65: 97.42268041 | M65: 99.19688187 | N65: 100 | O65: 100 | P65: 100 | Q65: 100 | R65: 100 | S65: 100 | T65: 100 | U65: 100 | V65: 100 | W65: 100 | X65: 100 | Y65: 100 | Z65: 100 | AA65: 100 | AB65: 100 | AC65: 100 | AD65: 100 | AE65: 100 | AF65: 100 | AG65: 100 | AH65: 100 | AI65: 100 | AJ65: 100 | AK65: 100 | AL65: 100 | AM65: 100 | AN65: 100 | AO65: 100 | AP65: 100 | AQ65: 100 | AR65: 100
A66: 1600000US2008475 | B66: Bronson | C66: 84.4 | D66: 87.7 | E66: 88.2 | F66: 92.1 | G66: 91.2 | H66: 90.3 | I66: 87.8 | J66: 83.7962963 | K66: 87.70053476 | L66: 84.79532164 | M66: 86.72398592 | N66: 86.52848968 | O66: 86.33299343 | P66: 86.13749718 | Q66: 85.94200094 | R66: 85.74650469 | S66: 85.55100845 | T66: 85.3555122 | U66: 85.16001596 | V66: 84.96451971 | W66: 85.16001596 | X66: 85.09485054 | Y66: 85.07312874 | Z66: 85.10933175 | AA66: 85.09243701 | AB66: 85.0916325 | AC66: 85.09780042 | AD66: 85.09395664 | AE66: 85.09446319 | AF66: 85.09540675 | AG66: 85.09460886 | AH66: 85.09482626 | AI66: 85.09494729 | AJ66: 85.09479414 | AK66: 85.0948559 | AL66: 85.09486578 | AM66: 85.0948386 | AN66: 85.09485343 | AO66: 85.0948526 | AP66: 85.09484821 | AQ66: 85.09485141 | AR66: 85.09485074
A67: 1600000US2008575 | B67: Brookville | C67: 88.4 | D67: 88.1 | E67: 83.1 | F67: 82.1 | G67: 85.5 | H67: 88.5 | I67: 90.2 | J67: 95.67567568 | K67: 90.36697248 | L67: 91.19496855 | M67: 92.68715843 | N67: 93.48232147 | O67: 94.27748452 | P67: 95.07264757 | Q67: 95.86781061 | R67: 96.66297366 | S67: 97.45813671 | T67: 98.25329975 | U67: 99.0484628 | V67: 99.84362585 | W67: 99.0484628 | X67: 99.31351715 | Y67: 99.4018686 | Z67: 99.25461618 | AA67: 99.32333398 | AB67: 99.32660625 | AC67: 99.3015188 | AD67: 99.31715301 | AE67: 99.31509269 | AF67: 99.31125484 | AG67: 99.31450018 | AH67: 99.3136159 | AI67: 99.31312364 | AJ67: 99.31374657 | AK67: 99.31349537 | AL67: 99.31345519 | AM67: 99.31356571 | AN67: 99.31350543 | AO67: 99.31350878 | AP67: 99.31352664 | AQ67: 99.31351361 | AR67: 99.31351634
A68: 1600000US2008675 | B68: Brownell | C68: 96.4 | D68: 96.6 | E68: 92.1 | F68: 93 | G68: 94 | H68: 94.3 | I68: 95.3 | J68: 90.90909091 | K68: 94.73684211 | L68: 95.55555556 | M68: 93.64359383 | N68: 93.52603837 | O68: 93.40848292 | P68: 93.29092746 | Q68: 93.173372 | R68: 93.05581654 | S68: 92.93826108 | T68: 92.82070562 | U68: 92.70315016 | V68: 92.5855947 | W68: 92.70315016 | X68: 92.66396501 | Y68: 92.65090329 | Z68: 92.67267282 | AA68: 92.66251371 | AB68: 92.66202994 | AC68: 92.66573882 | AD68: 92.66342749 | AE68: 92.66373208 | AF68: 92.66429947 | AG68: 92.66381968 | AH68: 92.66395041 | AI68: 92.66402318 | AJ68: 92.66393109 | AK68: 92.66396823 | AL68: 92.66397417 | AM68: 92.66395783 | AN68: 92.66396674 | AO68: 92.66396625 | AP68: 92.66396361 | AQ68: 92.66396553 | AR68: 92.66396513
A69: 1600000US2009000 | B69: Bucklin | C69: 87.8 | D69: 85.8 | E69: 83.8 | F69: 89.4 | G69: 86.1 | H69: 89.2 | I69: 89.4 | J69: 80.12048193 | K69: 91.16666667 | L69: 93.64791289 | M69: 90.14018256 | N69: 90.59412372 | O69: 91.04806489 | P69: 91.50200605 | Q69: 91.95594722 | R69: 92.40988838 | S69: 92.86382955 | T69: 93.31777071 | U69: 93.77171188 | V69: 94.22565305 | W69: 93.77171188 | X69: 93.9230256 | Y69: 93.97346351 | Z69: 93.88940033 | AA69: 93.92862981 | AB69: 93.93049788 | AC69: 93.91617601 | AD69: 93.92510124 | AE69: 93.92392504 | AF69: 93.9217341 | AG69: 93.92358679 | AH69: 93.92308198 | AI69: 93.92280095 | AJ69: 93.92315657 | AK69: 93.92301317 | AL69: 93.92299023 | AM69: 93.92305333 | AN69: 93.92301891 | AO69: 93.92302082 | AP69: 93.92303102 | AQ69: 93.92302358 | AR69: 93.92302514
A70: 1600000US2009150 | B70: Buffalo | C70: 84.5 | D70: 81.8 | E70: 78.4 | F70: 79.9 | G70: 84.3 | H70: 82.8 | I70: 84 | J70: 89.10891089 | K70: 92.30769231 | L70: 88 | M70: 90.15827367 | N70: 91.18493065 | O70: 92.21158762 | P70: 93.23824459 | Q70: 94.26490157 | R70: 95.29155854 | S70: 96.31821551 | T70: 97.34487249 | U70: 98.37152946 | V70: 99.39818643 | W70: 98.37152946 | X70: 98.71374845 | Y70: 98.82782145 | Z70: 98.63769979 | AA70: 98.72642323 | AB70: 98.73064816 | AC70: 98.69825706 | AD70: 98.71844281 | AE70: 98.71578268 | AF70: 98.71082752 | AG70: 98.71501767 | AH70: 98.71387595 | AI70: 98.71324038 | AJ70: 98.71404467 | AK70: 98.71372033 | AL70: 98.71366846 | AM70: 98.71381115 | AN70: 98.71373332 | AO70: 98.71373764 | AP70: 98.7137607 | AQ70: 98.71374389 | AR70: 98.71374741
A71: 1600000US2009200 | B71: Buhler | C71: 90.2 | D71: 91.7 | E71: 91.3 | F71: 93 | G71: 94.7 | H71: 95.1 | I71: 96 | J71: 94.51645065 | K71: 93.06608884 | L71: 91.53936545 | M71: 94.68216263 | N71: 94.96761211 | O71: 95.25306159 | P71: 95.53851107 | Q71: 95.82396055 | R71: 96.10941003 | S71: 96.39485951 | T71: 96.68030899 | U71: 96.96575847 | V71: 97.25120795 | W71: 96.96575847 | X71: 97.0609083 | Y71: 97.09262491 | Z71: 97.03976389 | AA71: 97.06443237 | AB71: 97.06560706 | AC71: 97.05660111 | AD71: 97.06221351 | AE71: 97.06147389 | AF71: 97.06009617 | AG71: 97.06126119 | AH71: 97.06094375 | AI71: 97.06076704 | AJ71: 97.06099066 | AK71: 97.06090048 | AL71: 97.06088606 | AM71: 97.06092573 | AN71: 97.06090409 | AO71: 97.0609053 | AP71: 97.06091171 | AQ71: 97.06090703 | AR71: 97.06090801
A72: 1600000US2009225 | B72: Bunker Hill | C72: 100 | D72: 98.8 | E72: 98.8 | F72: 93.1 | G72: 89.3 | H72: 79.5 | I72: 74.4 | J72: 75.55555556 | K72: 81.81818182 | L72: 80.21978022 | M72: 71.18212084 | N72: 68.27898795 | O72: 65.37585505 | P72: 62.47272216 | Q72: 59.56958927 | R72: 56.66645637 | S72: 53.76332348 | T72: 50.86019058 | U72: 47.95705769 | V72: 45.0539248 | W72: 47.95705769 | X72: 46.98934673 | Y72: 46.6667764 | Z72: 47.20439361 | AA72: 46.95350558 | AB72: 46.94155853 | AC72: 47.03315257 | AD72: 46.97607223 | AE72: 46.98359444 | AF72: 46.99760641 | AG72: 46.98575769 | AH72: 46.98898618 | AI72: 46.99078343 | AJ72: 46.9885091 | AK72: 46.98942624 | AL72: 46.98957292 | AM72: 46.98916942 | AN72: 46.98938953 | AO72: 46.98937729 | AP72: 46.98931208 | AQ72: 46.98935963 | AR72: 46.98934967
A73: 1600000US2009250 | B73: Burden | C73: 87.3 | D73: 90.9 | E73: 91 | F73: 92.4 | G73: 92.1 | H73: 93 | I73: 91.5 | J73: 92.19712526 | K73: 92.46861925 | L73: 93.62186788 | M73: 94.05085364 | N73: 94.48759771 | O73: 94.92434178 | P73: 95.36108585 | Q73: 95.79782993 | R73: 96.234574 | S73: 96.67131807 | T73: 97.10806214 | U73: 97.54480622 | V73: 97.98155029 | W73: 97.54480622 | X73: 97.69038757 | Y73: 97.73891469 | Z73: 97.65803616 | AA73: 97.69577948 | AB73: 97.69757678 | AC73: 97.68379747 | AD73: 97.69238457 | AE73: 97.69125294 | AF73: 97.689145 | AG73: 97.6909275 | AH73: 97.69044181 | AI73: 97.69017144 | AJ73: 97.69051358 | AK73: 97.69037561 | AL73: 97.69035354 | AM73: 97.69041425 | AN73: 97.69038113 | AO73: 97.69038298 | AP73: 97.69039279 | AQ73: 97.69038563 | AR73: 97.69038713
A74: 1600000US2009275 | B74: Burdett | C74: 95.2 | D74: 94.5 | E74: 94.5 | F74: 94.8 | G74: 97.8 | H74: 93.8 | I74: 95.9 | J74: 95.83333333 | K74: 95.34883721 | L74: 94.44444444 | M74: 95.38294574 | N74: 95.41390651 | O74: 95.44486728 | P74: 95.47582805 | Q74: 95.50678882 | R74: 95.53774959 | S74: 95.56871036 | T74: 95.59967113 | U74: 95.6306319 | V74: 95.66159267 | W74: 95.6306319 | X74: 95.64095216 | Y74: 95.64439224 | Z74: 95.63865877 | AA74: 95.64133439 | AB74: 95.6414618 | AC74: 95.64048499 | AD74: 95.64109372 | AE74: 95.6410135 | AF74: 95.64086407 | AG74: 95.64099043 | AH74: 95.640956 | AI74: 95.64093684 | AJ74: 95.64096109 | AK74: 95.64095131 | AL74: 95.64094974 | AM74: 95.64095405 | AN74: 95.6409517 | AO74: 95.64095183 | AP74: 95.64095253 | AQ74: 95.64095202 | AR74: 95.64095213
A75: 1600000US2009350 | B75: Burlingame | C75: 89.1 | D75: 91.4 | E75: 88.5 | F75: 89.1 | G75: 87.3 | H75: 87.3 | I75: 86.8 | J75: 92.44094488 | K75: 91.17221418 | L75: 91.82481752 | M75: 90.68491704 | N75: 90.9014842 | O75: 91.11805136 | P75: 91.33461852 | Q75: 91.55118568 | R75: 91.76775284 | S75: 91.98431999 | T75: 92.20088715 | U75: 92.41745431 | V75: 92.63402147 | W75: 92.41745431 | X75: 92.48964337 | Y75: 92.51370639 | Z75: 92.47360136 | AA75: 92.49231704 | AB75: 92.49320826 | AC75: 92.48637555 | AD75: 92.49063362 | AE75: 92.49007247 | AF75: 92.48902721 | AG75: 92.4899111 | AH75: 92.48967026 | AI75: 92.48953619 | AJ75: 92.48970585 | AK75: 92.48963744 | AL75: 92.48962649 | AM75: 92.48965659 | AN75: 92.48964017 | AO75: 92.48964109 | AP75: 92.48964595 | AQ75: 92.4896424 | AR75: 92.48964315
A76: 1600000US2009400 | B76: Burlington | C76: 90.3 | D76: 91.3 | E76: 92.2 | F76: 91.1 | G76: 90.7 | H76: 90.1 | I76: 91 | J76: 90.34825871 | K76: 91.84700554 | L76: 90.83419156 | M76: 90.92221412 | N76: 90.91299022 | O76: 90.90376632 | P76: 90.89454242 | Q76: 90.88531852 | R76: 90.87609462 | S76: 90.86687071 | T76: 90.85764681 | U76: 90.84842291 | V76: 90.83919901 | W76: 90.84842291 | X76: 90.84534828 | Y76: 90.8443234 | Z76: 90.84603153 | AA76: 90.8452344 | AB76: 90.84519644 | AC76: 90.84548746 | AD76: 90.8453061 | AE76: 90.84533 | AF76: 90.84537452 | AG76: 90.84533687 | AH76: 90.84534713 | AI76: 90.84535284 | AJ76: 90.84534562 | AK76: 90.84534853 | AL76: 90.845349 | AM76: 90.84534771 | AN76: 90.84534841 | AO76: 90.84534838 | AP76: 90.84534817 | AQ76: 90.84534832 | AR76: 90.84534829
A77: 1600000US2009450 | B77: Burns | C77: 76.3 | D77: 79.9 | E77: 83.3 | F77: 75.8 | G77: 78.2 | H77: 70.5 | I77: 76.5 | J77: 76.8115942 | K77: 77 | L77: 74.05405405 | M77: 74.21804674 | N77: 73.74195255 | O77: 73.26585835 | P77: 72.78976415 | Q77: 72.31366995 | R77: 71.83757576 | S77: 71.36148156 | T77: 70.88538736 | U77: 70.40929317 | V77: 69.93319897 | W77: 70.40929317 | X77: 70.2505951 | Y77: 70.19769575 | Z77: 70.28586134 | AA77: 70.24471739 | AB77: 70.24275816 | AC77: 70.25777896 | AD77: 70.24841817 | AE77: 70.24965177 | AF77: 70.25194963 | AG77: 70.25000652 | AH77: 70.25053597 | AI77: 70.25083071 | AJ77: 70.25045774 | AK77: 70.25060814 | AL77: 70.2506322 | AM77: 70.25056602 | AN77: 70.25060212 | AO77: 70.25060011 | AP77: 70.25058942 | AQ77: 70.25059722 | AR77: 70.25059558
A78: 1600000US2009525 | B78: Burr Oak | C78: 87 | D78: 78.8 | E78: 79.5 | F78: 77 | G78: 78.8 | H78: 81.4 | I78: 81 | J78: 85.625 | K78: 83.42541436 | L78: 80.68965517 | M78: 82.01766686 | N78: 82.14378684 | O78: 82.26990682 | P78: 82.3960268 | Q78: 82.52214679 | R78: 82.64826677 | S78: 82.77438675 | T78: 82.90050673 | U78: 83.02662672 | V78: 83.1527467 | W78: 83.02662672 | X78: 83.06866671 | Y78: 83.08268004 | Z78: 83.05932449 | AA78: 83.07022375 | AB78: 83.07074276 | AC78: 83.06676367 | AD78: 83.06924339 | AE78: 83.06891661 | AF78: 83.06830789 | AG78: 83.06882263 | AH78: 83.06868237 | AI78: 83.0686043 | AJ78: 83.0687031 | AK78: 83.06866326 | AL78: 83.06865688 | AM78: 83.06867441 | AN78: 83.06866485 | AO78: 83.06866538 | AP78: 83.06866822 | AQ78: 83.06866615 | AR78: 83.06866658
A79: 1600000US2009575 | B79: Burrton | C79: 91.2 | D79: 90.3 | E79: 90.6 | F79: 89.8 | G79: 93.3 | H79: 94 | I79: 92.5 | J79: 88.51454824 | K79: 92.22042139 | L79: 90.66874028 | M79: 91.54484944 | N79: 91.58748189 | O79: 91.63011433 | P79: 91.67274678 | Q79: 91.71537922 | R79: 91.75801167 | S79: 91.80064411 | T79: 91.84327656 | U79: 91.885909 | V79: 91.92854145 | W79: 91.885909 | X79: 91.90011982 | Y79: 91.90485676 | Z79: 91.89696186 | AA79: 91.90064614 | AB79: 91.90082159 | AC79: 91.89947653 | AD79: 91.90031475 | AE79: 91.90020429 | AF79: 91.89999852 | AG79: 91.90017252 | AH79: 91.90012511 | AI79: 91.90009872 | AJ79: 91.90013212 | AK79: 91.90011865 | AL79: 91.9001165 | AM79: 91.90012242 | AN79: 91.90011919 | AO79: 91.90011937 | AP79: 91.90012033 | AQ79: 91.90011963 | AR79: 91.90011977
A80: 1600000US2009675 | B80: Bushong | C80: 62.5 | D80: 58.8 | E80: 63 | F80: 56.5 | G80: 50 | H80: 59.1 | I80: 60 | J80: 71.42857143 | K80: 80 | L80: 77.77777778 | M80: 75.49873016 | N80: 77.60565657 | O80: 79.71258297 | P80: 81.81950938 | Q80: 83.92643579 | R80: 86.03336219 | S80: 88.1402886 | T80: 90.24721501 | U80: 92.35414141 | V80: 94.46106782 | W80: 92.35414141 | X80: 93.05645022 | Y80: 93.29055315 | Z80: 92.90038159 | AA80: 93.08246165 | AB80: 93.09113213 | AC80: 93.02465846 | AD80: 93.06608408 | AE80: 93.06062489 | AF80: 93.05045581 | AG80: 93.05905493 | AH80: 93.05671188 | AI80: 93.05540754 | AJ80: 93.05705811 | AK80: 93.05639251 | AL80: 93.05628605 | AM80: 93.05657889 | AN80: 93.05641915 | AO80: 93.05642803 | AP80: 93.05647536 | AQ80: 93.05644085 | AR80: 93.05644808
A81: 1600000US2009700 | B81: Bushton | C81: 84 | D81: 86.4 | E81: 92.7 | F81: 91.6 | G81: 92.9 | H81: 92 | I81: 92.1 | J81: 85.54913295 | K81: 91.04477612 | L81: 91.96428571 | M81: 92.32707511 | N81: 92.74548523 | O81: 93.16389534 | P81: 93.58230546 | Q81: 94.00071557 | R81: 94.41912569 | S81: 94.8375358 | T81: 95.25594592 | U81: 95.67435603 | V81: 96.09276615 | W81: 95.67435603 | X81: 95.81382607 | Y81: 95.86031608 | Z81: 95.78283273 | AA81: 95.81899163 | AB81: 95.82071348 | AC81: 95.80751261 | AD81: 95.81573924 | AE81: 95.81465511 | AF81: 95.81263566 | AG81: 95.81434334 | AH81: 95.81387803 | AI81: 95.81361901 | AJ81: 95.81394679 | AK81: 95.81381461 | AL81: 95.81379347 | AM81: 95.81385163 | AN81: 95.8138199 | AO81: 95.81382167 | AP81: 95.81383106 | AQ81: 95.81382421 | AR81: 95.81382565
A82: 1600000US2009800 | B82: Byers | C82: 54.8 | D82: 52.3 | E82: 50 | F82: 55 | G82: 74.4 | H82: 100 | I82: 100 | J82: 100 | K82: 100 | L82: 100 | M82: 100 | N82: 100 | O82: 100 | P82: 100 | Q82: 100 | R82: 100 | S82: 100 | T82: 100 | U82: 100 | V82: 100 | W82: 100 | X82: 100 | Y82: 100 | Z82: 100 | AA82: 100 | AB82: 100 | AC82: 100 | AD82: 100 | AE82: 100 | AF82: 100 | AG82: 100 | AH82: 100 | AI82: 100 | AJ82: 100 | AK82: 100 | AL82: 100 | AM82: 100 | AN82: 100 | AO82: 100 | AP82: 100 | AQ82: 100 | AR82: 100
A83: 1600000US2009900 | B83: Caldwell | C83: 87 | D83: 88.5 | E83: 90.3 | F83: 90.1 | G83: 90.4 | H83: 90.8 | I83: 92.3 | J83: 92.06896552 | K83: 92.80397022 | L83: 94.10348977 | M83: 94.50111012 | N83: 95.16719513 | O83: 95.83328015 | P83: 96.49936516 | Q83: 97.16545017 | R83: 97.83153518 | S83: 98.4976202 | T83: 99.16370521 | U83: 99.82979022 | V83: 100 | W83: 99.66449848 | X83: 99.83142957 | Y83: 99.83197601 | Z83: 99.77596802 | AA83: 99.81312453 | AB83: 99.80702286 | AC83: 99.79870514 | AD83: 99.80628418 | AE83: 99.80400406 | AF83: 99.80299779 | AG83: 99.80442867 | AH83: 99.80381017 | AI83: 99.80374555 | AJ83: 99.8039948 | AK83: 99.80385017 | AL83: 99.8038635 | AM83: 99.80390282 | AN83: 99.80387217 | AO83: 99.8038795 | AP83: 99.80388483 | AQ83: 99.80387883 | AR83: 99.80388105
A84: 1600000US2010125 | B84: Cambridge | C84: 86.7 | D84: 88.6 | E84: 83 | F84: 86.2 | G84: 83.7 | H84: 93 | I84: 89.5 | J84: 87.27272727 | K84: 90.51724138 | L84: 89.09090909 | M84: 90.27483804 | N84: 90.73242899 | O84: 91.19001995 | P84: 91.64761091 | Q84: 92.10520186 | R84: 92.56279282 | S84: 93.02038378 | T84: 93.47797473 | U84: 93.93556569 | V84: 94.39315664 | W84: 93.93556569 | X84: 94.08809601 | Y84: 94.13893945 | Z84: 94.05420038 | AA84: 94.09374528 | AB84: 94.09562837 | AC84: 94.08119134 | AD84: 94.09018833 | AE84: 94.08900268 | AF84: 94.08679412 | AG84: 94.08866171 | AH84: 94.08815284 | AI84: 94.08786955 | AJ84: 94.08822803 | AK84: 94.08808347 | AL84: 94.08806035 | AM84: 94.08812395 | AN84: 94.08808926 | AO84: 94.08809119 | AP84: 94.08810147 | AQ84: 94.08809397 | AR84: 94.08809554
A85: 1600000US2010375 | B85: Caney | C85: 84.7 | D85: 85 | E85: 84 | F85: 84.9 | G85: 86 | H85: 86.7 | I85: 84.8 | J85: 87.00866089 | K85: 86.74110258 | L85: 87.92480116 | M85: 87.66593089 | N85: 88.00928988 | O85: 88.35264887 | P85: 88.69600786 | Q85: 89.03936685 | R85: 89.38272583 | S85: 89.72608482 | T85: 90.06944381 | U85: 90.4128028 | V85: 90.75616178 | W85: 90.4128028 | X85: 90.52725579 | Y85: 90.56540679 | Z85: 90.50182179 | AA85: 90.53149479 | AB85: 90.53290779 | AC85: 90.52207479 | AD85: 90.52882579 | AE85: 90.52793612 | AF85: 90.5262789 | AG85: 90.52768027 | AH85: 90.52729843 | AI85: 90.52708587 | AJ85: 90.52735486 | AK85: 90.52724639 | AL85: 90.52722904 | AM85: 90.52727676 | AN85: 90.52725073 | AO85: 90.52725218 | AP85: 90.52725989 | AQ85: 90.52725426 | AR85: 90.52725544
A86: 1600000US2010475 | B86: Canton | C86: 85.4 | D86: 82.7 | E86: 82.5 | F86: 83.7 | G86: 85.9 | H86: 87.2 | I86: 87.1 | J86: 88.81239243 | K86: 85.09874327 | L86: 89.93576017 | M86: 89.19052314 | N86: 89.80067469 | O86: 90.41082625 | P86: 91.0209778 | Q86: 91.63112936 | R86: 92.24128091 | S86: 92.85143247 | T86: 93.46158402 | U86: 94.07173558 | V86: 94.68188713 | W86: 94.07173558 | X86: 94.27511943 | Y86: 94.34291405 | Z86: 94.22992302 | AA86: 94.28265216 | AB86: 94.28516308 | AC86: 94.26591275 | AD86: 94.27790933 | AE86: 94.27632839 | AF86: 94.27338349 | AG86: 94.27587374 | AH86: 94.2751952 | AI86: 94.27481748 | AJ86: 94.27529547 | AK86: 94.27510272 | AL86: 94.27507189 | AM86: 94.27515669 | AN86: 94.27511043 | AO86: 94.275113 | AP86: 94.27512671 | AQ86: 94.27511672 | AR86: 94.27511881
A87: 1600000US2010600 | B87: Carbondale | C87: 92.8 | D87: 93.6 | E87: 92.1 | F87: 92.2 | G87: 91 | H87: 92.1 | I87: 91.8 | J87: 91.12978525 | K87: 92.46778989 | L87: 91.2923923 | M87: 91.16749628 | N87: 91.00722347 | O87: 90.84695066 | P87: 90.68667785 | Q87: 90.52640504 | R87: 90.36613223 | S87: 90.20585942 | T87: 90.04558661 | U87: 89.88531379 | V87: 89.72504098 | W87: 89.88531379 | X87: 89.83188952 | Y87: 89.81408143 | Z87: 89.84376158 | AA87: 89.82991085 | AB87: 89.82925129 | AC87: 89.83430791 | AD87: 89.83115668 | AE87: 89.83157196 | AF87: 89.83234552 | AG87: 89.83169139 | AH87: 89.83186962 | AI87: 89.83196884 | AJ87: 89.83184328 | AK87: 89.83189391 | AL87: 89.83190201 | AM87: 89.83187974 | AN87: 89.83189189 | AO87: 89.83189121 | AP87: 89.83188761 | AQ87: 89.83189024 | AR87: 89.83188969
A88: 1600000US2010675 | B88: Carlton | C88: 100 | D88: 100 | E88: 100 | F88: 100 | G88: 92.3 | H88: 91.7 | I88: 93.3 | J88: 88.88888889 | K88: 90.90909091 | L88: 100 | M88: 91.04673401 | N88: 90.19890419 | O88: 89.35107438 | P88: 88.50324457 | Q88: 87.65541475 | R88: 86.80758494 | S88: 85.95975513 | T88: 85.11192531 | U88: 84.2640955 | V88: 83.41626569 | W88: 84.2640955 | X88: 83.98148556 | Y88: 83.88728225 | Z88: 84.04428777 | AA88: 83.97101853 | AB88: 83.96752952 | AC88: 83.99427861 | AD88: 83.97760888 | AE88: 83.97980567 | AF88: 83.98389772 | AG88: 83.98043742 | AH88: 83.98138027 | AI88: 83.98190514 | AJ88: 83.98124094 | AK88: 83.98150878 | AL88: 83.98155162 | AM88: 83.98143378 | AN88: 83.98149806 | AO88: 83.98149449 | AP88: 83.98147545 | AQ88: 83.98148933 | AR88: 83.98148642
A89: 1600000US2010925 | B89: Cassoday | C89: 84.7 | D89: 88.9 | E89: 93.4 | F89: 96.4 | G89: 95.2 | H89: 95.9 | I89: 93.7 | J89: 92.68292683 | K89: 96.15384615 | L89: 97.36842105 | M89: 98.56743096 | N89: 99.4995967 | O89: 100 | P89: 100 | Q89: 100 | R89: 100 | S89: 100 | T89: 100 | U89: 100 | V89: 100 | W89: 100 | X89: 100 | Y89: 100 | Z89: 100 | AA89: 100 | AB89: 100 | AC89: 100 | AD89: 100 | AE89: 100 | AF89: 100 | AG89: 100 | AH89: 100 | AI89: 100 | AJ89: 100 | AK89: 100 | AL89: 100 | AM89: 100 | AN89: 100 | AO89: 100 | AP89: 100 | AQ89: 100 | AR89: 100
A90: 1600000US2011175 | B90: Cawker City | C90: 91.4 | D90: 88.5 | E90: 90.1 | F90: 89.8 | G90: 91.4 | H90: 89.8 | I90: 90.6 | J90: 90.87136929 | K90: 91.62995595 | L90: 90.18789144 | M90: 90.95084037 | N90: 91.04573468 | O90: 91.14062899 | P90: 91.2355233 | Q90: 91.33041761 | R90: 91.42531192 | S90: 91.52020623 | T90: 91.61510054 | U90: 91.70999485 | V90: 91.80488916 | W90: 91.70999485 | X90: 91.74162628 | Y90: 91.7521701 | Z90: 91.73459707 | AA90: 91.74279782 | AB90: 91.74318833 | AC90: 91.74019441 | AD90: 91.74206018 | AE90: 91.74181431 | AF90: 91.7413563 | AG90: 91.7417436 | AH90: 91.74163807 | AI90: 91.74157932 | AJ90: 91.74165366 | AK90: 91.74162368 | AL90: 91.74161889 | AM90: 91.74163208 | AN90: 91.74162488 | AO90: 91.74162528 | AP90: 91.74162742 | AQ90: 91.74162586 | AR90: 91.74162619
A91: 1600000US2011425 | B91: Cedar Point | C91: 100 | D91: 100 | E91: 100 | F91: 100 | G91: 100 | H91: 100 | I91: 100 | J91: 100 | K91: 100 | L91: 100 | M91: 100 | N91: 100 | O91: 100 | P91: 100 | Q91: 100 | R91: 100 | S91: 100 | T91: 100 | U91: 100 | V91: 100 | W91: 100 | X91: 100 | Y91: 100 | Z91: 100 | AA91: 100 | AB91: 100 | AC91: 100 | AD91: 100 | AE91: 100 | AF91: 100 | AG91: 100 | AH91: 100 | AI91: 100 | AJ91: 100 | AK91: 100 | AL91: 100 | AM91: 100 | AN91: 100 | AO91: 100 | AP91: 100 | AQ91: 100 | AR91: 100
A92: 1600000US2011450 | B92: Cedar Vale | C92: 86.7 | D92: 85.2 | E92: 84.3 | F92: 84.1 | G92: 88.4 | H92: 89.1 | I92: 92 | J92: 89.54081633 | K92: 90.73569482 | L92: 92.54079254 | M92: 92.99243298 | N92: 93.85256072 | O92: 94.71268847 | P92: 95.57281622 | Q92: 96.43294397 | R92: 97.29307171 | S92: 98.15319946 | T92: 99.01332721 | U92: 99.87345495 | V92: 100 | W92: 99.62892739 | X92: 99.83412745 | Y92: 99.82101828 | Z92: 99.7613577 | AA92: 99.80550114 | AB92: 99.79595904 | AC92: 99.78760596 | AD92: 99.79635538 | AE92: 99.7933068 | AF92: 99.79242271 | AG92: 99.7940283 | AH92: 99.7932526 | AI92: 99.79323454 | AJ92: 99.79350515 | AK92: 99.79333076 | AL92: 99.79335682 | AM92: 99.79339757 | AN92: 99.79336172 | AO92: 99.79337204 | AP92: 99.79337711 | AQ92: 99.79337029 | AR92: 99.79337314
A93: 1600000US2012425 | B93: Centralia | C93: 90.3 | D93: 93.5 | E93: 88 | F93: 84 | G93: 85.8 | H93: 84.2 | I93: 84.1 | J93: 86.71328671 | K93: 92.32613909 | L93: 92.28915663 | M93: 88.1879188 | N93: 88.199748 | O93: 88.21157719 | P93: 88.22340638 | Q93: 88.23523558 | R93: 88.24706477 | S93: 88.25889396 | T93: 88.27072315 | U93: 88.28255235 | V93: 88.29438154 | W93: 88.28255235 | X93: 88.28649541 | Y93: 88.28780977 | Z93: 88.28561917 | AA93: 88.28664145 | AB93: 88.28669013 | AC93: 88.28631692 | AD93: 88.2865495 | AE93: 88.28651885 | AF93: 88.28646176 | AG93: 88.28651004 | AH93: 88.28649688 | AI93: 88.28648956 | AJ93: 88.28649882 | AK93: 88.28649509 | AL93: 88.28649449 | AM93: 88.28649613 | AN93: 88.28649524 | AO93: 88.28649529 | AP93: 88.28649555 | AQ93: 88.28649536 | AR93: 88.2864954
A94: 1600000US2012500 | B94: Chanute | C94: 83.7 | D94: 85.1 | E94: 86.7 | F94: 87.7 | G94: 90.5 | H94: 89.4 | I94: 88.6 | J94: 90.06386455 | K94: 90.53069719 | L94: 90.72562695 | M94: 92.29084706 | N94: 93.01608854 | O94: 93.74133003 | P94: 94.46657152 | Q94: 95.19181301 | R94: 95.9170545 | S94: 96.64229599 | T94: 97.36753747 | U94: 98.09277896 | V94: 98.81802045 | W94: 98.09277896 | X94: 98.33452613 | Y94: 98.41510851 | Z94: 98.28080453 | AA94: 98.34347972 | AB94: 98.34646426 | AC94: 98.32358284 | AD94: 98.33784227 | AE94: 98.33596312 | AF94: 98.33246275 | AG94: 98.33542271 | AH94: 98.33461619 | AI94: 98.33416722 | AJ94: 98.33473538 | AK94: 98.33450626 | AL94: 98.33446962 | AM94: 98.33457042 | AN94: 98.33451543 | AO94: 98.33451849 | AP94: 98.33453478 | AQ94: 98.3345229 | AR94: 98.33452539
A95: 1600000US2012550 | B95: Chapman | C95: 94.6 | D95: 95.8 | E95: 93.4 | F95: 93.4 | G95: 93.4 | H95: 92.7 | I95: 93.6 | J95: 93.7250996 | K95: 93.1744312 | L95: 93.38929696 | M95: 92.79388908 | N95: 92.6257084 | O95: 92.45752773 | P95: 92.28934706 | Q95: 92.12116639 | R95: 91.95298571 | S95: 91.78480504 | T95: 91.61662437 | U95: 91.4484437 | V95: 91.28026302 | W95: 91.4484437 | X95: 91.39238347 | Y95: 91.37369673 | Z95: 91.4048413 | AA95: 91.39030717 | AB95: 91.38961507 | AC95: 91.39492118 | AD95: 91.39161447 | AE95: 91.39205024 | AF95: 91.39286196 | AG95: 91.39217556 | AH95: 91.39236259 | AI95: 91.3924667 | AJ95: 91.39233495 | AK95: 91.39238808 | AL95: 91.39239658 | AM95: 91.3923732 | AN95: 91.39238595 | AO95: 91.39238524 | AP95: 91.39238147 | AQ95: 91.39238422 | AR95: 91.39238364
A96: 1600000US2012650 | B96: Chase | C96: 84 | D96: 83.4 | E96: 79.1 | F96: 72.6 | G96: 70.8 | H96: 73.7 | I96: 69.3 | J96: 81.01983003 | K96: 79.88505747 | L96: 82.92682927 | M96: 76.61770554 | N96: 76.4258026 | O96: 76.23389967 | P96: 76.04199674 | Q96: 75.8500938 | R96: 75.65819087 | S96: 75.46628793 | T96: 75.274385 | U96: 75.08248206 | V96: 74.89057913 | W96: 75.08248206 | X96: 75.01851442 | Y96: 74.99719187 | Z96: 75.03272945 | AA96: 75.01614525 | AB96: 75.01535552 | AC96: 75.02141007 | AD96: 75.01763695 | AE96: 75.01813418 | AF96: 75.0190604 | AG96: 75.01827718 | AH96: 75.01849059 | AI96: 75.01860939 | AJ96: 75.01845905 | AK96: 75.01851968 | AL96: 75.01852937 | AM96: 75.0185027 | AN96: 75.01851725 | AO96: 75.01851644 | AP96: 75.01851213 | AQ96: 75.01851527 | AR96: 75.01851461
A97: 1600000US2012675 | B97: Chautauqua | C97: 92 | D97: 89.8 | E97: 78.3 | F97: 79 | G97: 78.8 | H97: 71.2 | I97: 75.5 | J97: 79.54545455 | K97: 67.64705882 | L97: 70.27027027 | M97: 66.12258226 | N97: 63.92554661 | O97: 61.72851095 | P97: 59.5314753 | Q97: 57.33443964 | R97: 55.13740399 | S97: 52.94036833 | T97: 50.74333268 | U97: 48.54629702 | V97: 46.34926137 | W97: 48.54629702 | X97: 47.8139518 | Y97: 47.56983673 | Z97: 47.97669518 | AA97: 47.78682791 | AB97: 47.77778661 | AC97: 47.84710323 | AD97: 47.80390592 | AE97: 47.80959859 | AF97: 47.82020258 | AG97: 47.81123569 | AH97: 47.81367895 | AI97: 47.81503907 | AJ97: 47.81331791 | AK97: 47.81401198 | AL97: 47.81412299 | AM97: 47.81381762 | AN97: 47.8139842 | AO97: 47.81397493 | AP97: 47.81392558 | AQ97: 47.81396157 | AR97: 47.81395403
A98: 1600000US2012775 | B98: Cheney | C98: 93.3 | D98: 92.8 | E98: 93.8 | F98: 94.3 | G98: 92.7 | H98: 94.6 | I98: 94.4 | J98: 92.68471105 | K98: 92.19304471 | L98: 92.08633094 | M98: 92.66813689 | N98: 92.55572384 | O98: 92.44331079 | P98: 92.33089774 | Q98: 92.21848469 | R98: 92.10607164 | S98: 91.99365859 | T98: 91.88124554 | U98: 91.76883249 | V98: 91.65641943 | W98: 91.76883249 | X98: 91.73136147 | Y98: 91.71887113 | Z98: 91.73968836 | AA98: 91.72997365 | AB98: 91.72951105 | AC98: 91.73305769 | AD98: 91.73084746 | AE98: 91.73113873 | AF98: 91.73168129 | AG98: 91.7312225 | AH98: 91.73134751 | AI98: 91.7314171 | AJ98: 91.73132903 | AK98: 91.73136455 | AL98: 91.73137023 | AM98: 91.7313546 | AN98: 91.73136313 | AO98: 91.73136265 | AP98: 91.73136013 | AQ98: 91.73136197 | AR98: 91.73136158
A99: 1600000US2012825 | B99: Cherokee | C99: 91.9 | D99: 93.1 | E99: 87.6 | F99: 89.8 | G99: 90.4 | H99: 89.8 | I99: 90.3 | J99: 97.13375796 | K99: 96.62731872 | L99: 96.41109299 | M99: 96.10254556 | N99: 96.7926053 | O99: 97.48266504 | P99: 98.17272479 | Q99: 98.86278453 | R99: 99.55284428 | S99: 100 | T99: 100 | U99: 100 | V99: 100 | W99: 100 | X99: 100 | Y99: 100 | Z99: 100 | AA99: 100 | AB99: 100 | AC99: 100 | AD99: 100 | AE99: 100 | AF99: 100 | AG99: 100 | AH99: 100 | AI99: 100 | AJ99: 100 | AK99: 100 | AL99: 100 | AM99: 100 | AN99: 100 | AO99: 100 | AP99: 100 | AQ99: 100 | AR99: 100
A100: 1600000US2012925 | B100: Cherryvale | C100: 85.6 | D100: 81.2 | E100: 81.5 | F100: 83.3 | G100: 82.4 | H100: 85.9 | I100: 87.7 | J100: 86.94610778 | K100: 87.54740834 | L100: 90.26013309 | M100: 89.57881809 | N100: 90.36853685 | O100: 91.15825561 | P100: 91.94797437 | Q100: 92.73769313 | R100: 93.52741189 | S100: 94.31713064 | T100: 95.1068494 | U100: 95.89656816 | V100: 96.68628692 | W100: 95.89656816 | X100: 96.15980775 | Y100: 96.24755428 | Z100: 96.10131006 | AA100: 96.16955736 | AB100: 96.17280723 | AC100: 96.14789155 | AD100: 96.16341872 | AE100: 96.1613725 | AF100: 96.15756092 | AG100: 96.16078405 | AH100: 96.15990582 | AI100: 96.15941693 | AJ100: 96.1600356 | AK100: 96.15978612 | AL100: 96.15974622 | AM100: 96.15985598 | AN100: 96.1597961 | AO100: 96.15979943 | AP100: 96.15981717 | AQ100: 96.15980424 | AR100: 96.15980695
A101: 1600000US2012950 | B101: Chetopa | C101: 75.4 | D101: 77.2 | E101: 78.7 | F101: 83 | G101: 82 | H101: 84.4 | I101: 84.9 | J101: 84.33497537 | K101: 84.12698413 | L101: 86.34408602 | M101: 88.14928922 | N101: 89.25995916 | O101: 90.37062909 | P101: 91.48129903 | Q101: 92.59196897 | R101: 93.70263891 | S101: 94.81330885 | T101: 95.92397879 | U101: 97.03464873 | V101: 98.14531867 | W101: 97.03464873 | X101: 97.40487204 | Y101: 97.52827981 | Z101: 97.32260019 | AA101: 97.41858402 | AB101: 97.42315467 | AC101: 97.38811296 | AD101: 97.40995055 | AE101: 97.40707273 | AF101: 97.40171208 | AG101: 97.40624512 | AH101: 97.40500998 | AI101: 97.40432239 | AJ101: 97.4051925 | AK101: 97.40484162 | AL101: 97.4047855 | AM101: 97.40493987 | AN101: 97.40485567 | AO101: 97.40486035 | AP101: 97.4048853 | AQ101: 97.4048671 | AR101: 97.40487091
A102: 1600000US2013275 | B102: Cimarron | C102: 83.9 | D102: 86.4 | E102: 87.2 | F102: 85.3 | G102: 82.5 | H102: 84.5 | I102: 85.7 | J102: 81.92602931 | K102: 84.20348059 | L102: 87.7027027 | M102: 84.78918243 | N102: 84.76299355 | O102: 84.73680467 | P102: 84.71061579 | Q102: 84.68442691 | R102: 84.65823803 | S102: 84.63204915 | T102: 84.60586027 | U102: 84.5796714 | V102: 84.55348252 | W102: 84.5796714 | X102: 84.57094177 | Y102: 84.56803189 | Z102: 84.57288169 | AA102: 84.57061845 | AB102: 84.57051068 | AC102: 84.57133694 | AD102: 84.57082202 | AE102: 84.57088988 | AF102: 84.57101628 | AG102: 84.57090939 | AH102: 84.57093852 | AI102: 84.57095473 | AJ102: 84.57093421 | AK102: 84.57094249 | AL102: 84.57094381 | AM102: 84.57094017 | AN102: 84.57094216 | AO102: 84.57094205 | AP102: 84.57094146 | AQ102: 84.57094189 | AR102: 84.5709418
A103: 1600000US2013375 | B103: Circleville | C103: 88.6 | D103: 88.1 | E103: 90.5 | F103: 90.5 | G103: 92.2 | H103: 96.2 | I103: 96.4 | J103: 93.07692308 | K103: 92.08633094 | L103: 91.54929577 | M103: 94.88900811 | N103: 95.42859959 | O103: 95.96819107 | P103: 96.50778254 | Q103: 97.04737402 | R103: 97.5869655 | S103: 98.12655698 | T103: 98.66614846 | U103: 99.20573993 | V103: 99.74533141 | W103: 99.20573993 | X103: 99.38560376 | Y103: 99.44555837 | Z103: 99.34563402 | AA103: 99.39226538 | AB103: 99.39448592 | AC103: 99.37746178 | AD103: 99.38807103 | AE103: 99.38667291 | AF103: 99.38406857 | AG103: 99.38627084 | AH103: 99.38567077 | AI103: 99.38533673 | AJ103: 99.38575945 | AK103: 99.38558898 | AL103: 99.38556172 | AM103: 99.38563672 | AN103: 99.3855958 | AO103: 99.38559808 | AP103: 99.3856102 | AQ103: 99.38560136 | AR103: 99.38560321
A104: 1600000US2013425 | B104: Claflin | C104: 94.7 | D104: 94.8 | E104: 92.5 | F104: 90.9 | G104: 91.3 | H104: 91.5 | I104: 91.3 | J104: 95.04310345 | K104: 95.38461538 | L104: 95 | M104: 93.93969938 | N104: 94.06641347 | O104: 94.19312756 | P104: 94.31984165 | Q104: 94.44655574 | R104: 94.57326983 | S104: 94.69998392 | T104: 94.82669801 | U104: 94.95341211 | V104: 95.0801262 | W104: 94.95341211 | X104: 94.99565014 | Y104: 95.00972948 | Z104: 94.98626391 | AA104: 94.99721451 | AB104: 94.99773596 | AC104: 94.99373813 | AD104: 94.99622953 | AE104: 94.99590121 | AF104: 94.99528962 | AG104: 94.99580679 | AH104: 94.99566587 | AI104: 94.99558743 | AJ104: 94.9956867 | AK104: 94.99564666 | AL104: 94.99564026 | AM104: 94.99565787 | AN104: 94.99564827 | AO104: 94.9956488 | AP104: 94.99565165 | AQ104: 94.99564957 | AR104: 94.99565001
A105: 1600000US2013625 | B105: Clay Center | C105: 89.1 | D105: 91.2 | E105: 95.3 | F105: 94.4 | G105: 96.7 | H105: 95.9 | I105: 91.6 | J105: 89.92476284 | K105: 91.15397406 | L105: 90.21845452 | M105: 91.67197658 | N105: 91.51238703 | O105: 91.35279747 | P105: 91.19320792 | Q105: 91.03361836 | R105: 90.8740288 | S105: 90.71443925 | T105: 90.55484969 | U105: 90.39526014 | V105: 90.23567058 | W105: 90.39526014 | X105: 90.34206362 | Y105: 90.32433144 | Z105: 90.35388507 | AA105: 90.34009338 | AB105: 90.33943663 | AC105: 90.34447169 | AD105: 90.3413339 | AE105: 90.34174741 | AF105: 90.34251766 | AG105: 90.34186632 | AH105: 90.3420438 | AI105: 90.34214259 | AJ105: 90.34201757 | AK105: 90.34206799 | AL105: 90.34207605 | AM105: 90.34205387 | AN105: 90.34206597 | AO105: 90.3420653 | AP105: 90.34206171 | AQ105: 90.34206433 | AR105: 90.34206378
A106: 1600000US2013675 | B106: Clayton | C106: 96.3 | D106: 86.2 | E106: 73 | F106: 73.3 | G106: 69.2 | H106: 73.3 | I106: 71.6 | J106: 74.19354839 | K106: 84.31372549 | L106: 84.48275862 | M106: 74.76929151 | N106: 74.07479847 | O106: 73.38030543 | P106: 72.68581239 | Q106: 71.99131934 | R106: 71.2968263 | S106: 70.60233326 | T106: 69.90784022 | U106: 69.21334717 | V106: 68.51885413 | W106: 69.21334717 | X106: 68.98184949 | Y106: 68.9046836 | Z106: 69.03329342 | AA106: 68.9732755 | AB106: 68.97041751 | AC106: 68.99232881 | AD106: 68.97867394 | AE106: 68.98047342 | AF106: 68.98382539 | AG106: 68.98099092 | AH106: 68.98176324 | AI106: 68.98219318 | AJ106: 68.98164911 | AK106: 68.98186851 | AL106: 68.9819036 | AM106: 68.98180708 | AN106: 68.98185973 | AO106: 68.9818568 | AP106: 68.9818412 | AQ106: 68.98185258 | AR106: 68.9818502
A107: 1600000US2013925 | B107: Clearwater | C107: 89.6 | D107: 91.8 | E107: 92.4 | F107: 93.7 | G107: 94.6 | H107: 94.4 | I107: 94.2 | J107: 93.37748344 | K107: 93.34424441 | L107: 93.76063528 | M107: 94.93299783 | N107: 95.26295447 | O107: 95.59291111 | P107: 95.92286775 | Q107: 96.25282439 | R107: 96.58278103 | S107: 96.91273767 | T107: 97.24269431 | U107: 97.57265095 | V107: 97.90260759 | W107: 97.57265095 | X107: 97.6826365 | Y107: 97.71929835 | Z107: 97.65819527 | AA107: 97.68671004 | AB107: 97.68806789 | AC107: 97.67765773 | AD107: 97.68414522 | AE107: 97.68329028 | AF107: 97.68169774 | AG107: 97.68304441 | AH107: 97.68267748 | AI107: 97.68247321 | AJ107: 97.6827317 | AK107: 97.68262746 | AL107: 97.68261079 | AM107: 97.68265665 | AN107: 97.68263164 | AO107: 97.68263303 | AP107: 97.68264044 | AQ107: 97.68263503 | AR107: 97.68263617
A108: 1600000US2014200 | B108: Clifton | C108: 88.9 | D108: 86.4 | E108: 87.5 | F108: 90.1 | G108: 89.5 | H108: 92.3 | I108: 92.8 | J108: 90.95022624 | K108: 88.76712329 | L108: 89.53846154 | M108: 91.35781938 | N108: 91.66368088 | O108: 91.96954238 | P108: 92.27540389 | Q108: 92.58126539 | R108: 92.88712689 | S108: 93.1929884 | T108: 93.4988499 | U108: 93.8047114 | V108: 94.11057291 | W108: 93.8047114 | X108: 93.90666524 | Y108: 93.94064985 | Z108: 93.88400883 | AA108: 93.91044131 | AB108: 93.9117 | AC108: 93.90205004 | AD108: 93.90806378 | AE108: 93.90727127 | AF108: 93.90579503 | AG108: 93.90704336 | AH108: 93.90670322 | AI108: 93.90651387 | AJ108: 93.90675349 | AK108: 93.90665686 | AL108: 93.90664141 | AM108: 93.90668392 | AN108: 93.90666073 | AO108: 93.90666202 | AP108: 93.90666889 | AQ108: 93.90666388 | AR108: 93.90666493
A109: 1600000US2014275 | B109: Climax | C109: 95.7 | D109: 82.7 | E109: 84.6 | F109: 80.6 | G109: 86 | H109: 62.5 | I109: 72.7 | J109: 80.85106383 | K109: 85.18518519 | L109: 89.28571429 | M109: 78.46963113 | N109: 77.82552837 | O109: 77.1814256 | P109: 76.53732284 | Q109: 75.89322008 | R109: 75.24911731 | S109: 74.60501455 | T109: 73.96091179 | U109: 73.31680902 | V109: 72.67270626 | W109: 73.31680902 | X109: 73.1021081 | Y109: 73.03054113 | Z109: 73.14981942 | AA109: 73.09415622 | AB109: 73.09150559 | AC109: 73.11182707 | AD109: 73.09916296 | AE109: 73.10083187 | AF109: 73.10394063 | AG109: 73.10131182 | AH109: 73.10202811 | AI109: 73.10242686 | AJ109: 73.10192226 | AK109: 73.10212574 | AL109: 73.10215829 | AM109: 73.10206876 | AN109: 73.1021176 | AO109: 73.10211488 | AP109: 73.10210041 | AQ109: 73.10211096 | AR109: 73.10210875
A110: 1600000US2014475 | B110: Clyde | C110: 89.1 | D110: 92 | E110: 89.5 | F110: 90.1 | G110: 92.8 | H110: 90.8 | I110: 93 | J110: 92.41486068 | K110: 92.09677419 | L110: 92.42424242 | M110: 93.15258455 | N110: 93.46694761 | O110: 93.78131067 | P110: 94.09567372 | Q110: 94.41003678 | R110: 94.72439984 | S110: 95.0387629 | T110: 95.35312596 | U110: 95.66748901 | V110: 95.98185207 | W110: 95.66748901 | X110: 95.7722767 | Y110: 95.80720593 | Z110: 95.74899055 | AA110: 95.77615773 | AB110: 95.7774514 | AC110: 95.76753322 | AD110: 95.77371412 | AE110: 95.77289958 | AF110: 95.77138231 | AG110: 95.77266533 | AH110: 95.77231574 | AI110: 95.77212113 | AJ110: 95.7723674 | AK110: 95.77226809 | AL110: 95.77225221 | AM110: 95.7722959 | AN110: 95.77227206 | AO110: 95.77227339 | AP110: 95.77228045 | AQ110: 95.7722753 | AR110: 95.77227638
A111: 1600000US2014525 | B111: Coats | C111: 89 | D111: 89.1 | E111: 86.3 | F111: 79.6 | G111: 65.3 | H111: 61.9 | I111: 65.9 | J111: 74.72527473 | K111: 69.44444444 | L111: 84.61538462 | M111: 67.27437525 | N111: 65.58089614 | O111: 63.88741703 | P111: 62.19393791 | Q111: 60.5004588 | R111: 58.80697969 | S111: 57.11350057 | T111: 55.42002146 | U111: 53.72654235 | V111: 52.03306323 | W111: 53.72654235 | X111: 53.16204931 | Y111: 52.97388496 | Z111: 53.28749221 | AA111: 53.14114216 | AB111: 53.13417311 | AC111: 53.18760249 | AD111: 53.15430592 | AE111: 53.15869384 | AF111: 53.16686742 | AG111: 53.15995573 | AH111: 53.16183899 | AI111: 53.16288738 | AJ111: 53.1615607 | AK111: 53.16209569 | AL111: 53.16218126 | AM111: 53.16194588 | AN111: 53.16207428 | AO111: 53.16206714 | AP111: 53.1620291 | AQ111: 53.16205684 | AR111: 53.16205103
A112: 1600000US2014600 | B112: Coffeyville | C112: 82.7 | D112: 84.8 | E112: 83.6 | F112: 85 | G112: 83.1 | H112: 83.4 | I112: 84.8 | J112: 83.20064769 | K112: 82.43297858 | L112: 81.52525679 | M112: 82.47460163 | N112: 82.29618587 | O112: 82.11777011 | P112: 81.93935435 | Q112: 81.76093859 | R112: 81.58252282 | S112: 81.40410706 | T112: 81.2256913 | U112: 81.04727554 | V112: 80.86885978 | W112: 81.04727554 | X112: 80.98780362 | Y112: 80.96797965 | Z112: 81.00101961 | AA112: 80.98560096 | AB112: 80.98486674 | AC112: 80.99049577 | AD112: 80.98698782 | AE112: 80.98745011 | AF112: 80.98831123 | AG112: 80.98758306 | AH112: 80.98778147 | AI112: 80.98789192 | AJ112: 80.98775215 | AK112: 80.98780851 | AL112: 80.98781753 | AM112: 80.98779273 | AN112: 80.98780626 | AO112: 80.9878055 | AP112: 80.9878015 | AQ112: 80.98780442 | AR112: 80.98780381
A113: 1600000US2014650 | B113: Colby | C113: 84.8 | D113: 87.2 | E113: 87.4 | F113: 89.8 | G113: 92.1 | H113: 92 | I113: 95.3 | J113: 93.71495327 | K113: 93.64426155 | L113: 93.00554017 | M113: 96.46095745 | N113: 97.47268145 | O113: 98.48440544 | P113: 99.49612943 | Q113: 100 | R113: 100 | S113: 100 | T113: 100 | U113: 100 | V113: 100 | W113: 100 | X113: 100 | Y113: 100 | Z113: 100 | AA113: 100 | AB113: 100 | AC113: 100 | AD113: 100 | AE113: 100 | AF113: 100 | AG113: 100 | AH113: 100 | AI113: 100 | AJ113: 100 | AK113: 100 | AL113: 100 | AM113: 100 | AN113: 100 | AO113: 100 | AP113: 100 | AQ113: 100 | AR113: 100
A114: 1600000US2014700 | B114: Coldwater | C114: 90.7 | D114: 86.1 | E114: 88.1 | F114: 87.7 | G114: 88.8 | H114: 89.9 | I114: 92 | J114: 92.60450161 | K114: 92.91338583 | L114: 93.02325581 | M114: 93.68829803 | N114: 94.32542234 | O114: 94.96254665 | P114: 95.59967096 | Q114: 96.23679527 | R114: 96.87391958 | S114: 97.51104389 | T114: 98.1481682 | U114: 98.78529251 | V114: 99.42241682 | W114: 98.78529251 | X114: 98.99766728 | Y114: 99.06845887 | Z114: 98.95047289 | AA114: 99.00553301 | AB114: 99.00815492 | AC114: 98.98805361 | AD114: 99.00058051 | AE114: 98.99892968 | AF114: 98.9958546 | AG114: 98.99845493 | AH114: 98.9977464 | AI114: 98.99735198 | AJ114: 98.99785111 | AK114: 98.99764983 | AL114: 98.99761764 | AM114: 98.99770619 | AN114: 98.99765789 | AO114: 98.99766057 | AP114: 98.99767488 | AQ114: 98.99766445 | AR114: 98.99766663
A115: 1600000US2014900 | B115: Collyer | C115: 94.1 | D115: 90.9 | E115: 92.5 | F115: 94.4 | G115: 98.6 | H115: 98.2 | I115: 96.5 | J115: 91.52542373 | K115: 88.33333333 | L115: 84.28571429 | M115: 89.42550982 | N115: 88.78752122 | O115: 88.14953261 | P115: 87.51154401 | Q115: 86.87355541 | R115: 86.23556681 | S115: 85.5975782 | T115: 84.9595896 | U115: 84.321601 | V115: 83.6836124 | W115: 84.321601 | X115: 84.10893813 | Y115: 84.03805051 | Z115: 84.15619655 | AA115: 84.10106173 | AB115: 84.09843626 | AC115: 84.11856484 | AD115: 84.10602094 | AE115: 84.10767402 | AF115: 84.11075327 | AG115: 84.10814941 | AH115: 84.1088589 | AI115: 84.10925386 | AJ115: 84.10875406 | AK115: 84.1089556 | AL115: 84.10898784 | AM115: 84.10889917 | AN115: 84.10894754 | AO115: 84.10894485 | AP115: 84.10893052 | AQ115: 84.10894097 | AR115: 84.10893878
A116: 1600000US2014950 | B116: Colony | C116: 85.4 | D116: 88.1 | E116: 92.5 | F116: 94.3 | G116: 92.6 | H116: 93.9 | I116: 95.4 | J116: 93.85113269 | K116: 95.38043478 | L116: 92.68292683 | M116: 96.67361771 | N116: 97.4485574 | O116: 98.22349708 | P116: 98.99843677 | Q116: 99.77337646 | R116: 100 | S116: 100 | T116: 100 | U116: 100 | V116: 100 | W116: 100 | X116: 100 | Y116: 100 | Z116: 100 | AA116: 100 | AB116: 100 | AC116: 100 | AD116: 100 | AE116: 100 | AF116: 100 | AG116: 100 | AH116: 100 | AI116: 100 | AJ116: 100 | AK116: 100 | AL116: 100 | AM116: 100 | AN116: 100 | AO116: 100 | AP116: 100 | AQ116: 100 | AR116: 100
A117: 1600000US2015075 | B117: Columbus | C117: 86.1 | D117: 85.5 | E117: 83.6 | F117: 84.7 | G117: 84.1 | H117: 83.7 | I117: 85.9 | J117: 88.01300284 | K117: 86.66666667 | L117: 88.11188811 | M117: 87.35711156 | N117: 87.66946716 | O117: 87.98182276 | P117: 88.29417836 | Q117: 88.60653396 | R117: 88.91888956 | S117: 89.23124516 | T117: 89.54360075 | U117: 89.85595635 | V117: 90.16831195 | W117: 89.85595635 | X117: 89.96007489 | Y117: 89.99478106 | Z117: 89.93693744 | AA117: 89.96393113 | AB117: 89.96521654 | AC117: 89.9553617 | AD117: 89.96150312 | AE117: 89.96069379 | AF117: 89.95918621 | AG117: 89.96046104 | AH117: 89.96011368 | AI117: 89.95992031 | AJ117: 89.96016501 | AK117: 89.96006633 | AL117: 89.96005055 | AM117: 89.96009396 | AN117: 89.96007028 | AO117: 89.9600716 | AP117: 89.96007861 | AQ117: 89.9600735 | AR117: 89.96007457
A118: 1600000US2015100 | B118: Colwich | C118: 94.5 | D118: 94.3 | E118: 94 | F118: 95.7 | G118: 96.4 | H118: 97.7 | I118: 98.1 | J118: 98.27586207 | K118: 97.59797724 | L118: 97.58897819 | M118: 99.10848024 | N118: 99.59797088 | O118: 100 | P118: 100 | Q118: 100 | R118: 100 | S118: 100 | T118: 100 | U118: 100 | V118: 100 | W118: 100 | X118: 100 | Y118: 100 | Z118: 100 | AA118: 100 | AB118: 100 | AC118: 100 | AD118: 100 | AE118: 100 | AF118: 100 | AG118: 100 | AH118: 100 | AI118: 100 | AJ118: 100 | AK118: 100 | AL118: 100 | AM118: 100 | AN118: 100 | AO118: 100 | AP118: 100 | AQ118: 100 | AR118: 100
A119: 1600000US2015200 | B119: Concordia | C119: 87.4 | D119: 86.1 | E119: 87.4 | F119: 88 | G119: 89.5 | H119: 90 | I119: 91.5 | J119: 89.82587065 | K119: 90.69649212 | L119: 91.84095017 | M119: 92.40210961 | N119: 92.97952385 | O119: 93.55693809 | P119: 94.13435233 | Q119: 94.71176657 | R119: 95.28918081 | S119: 95.86659505 | T119: 96.44400929 | U119: 97.02142353 | V119: 97.59883777 | W119: 97.02142353 | X119: 97.21389495 | Y119: 97.27805208 | Z119: 97.17112352 | AA119: 97.22102352 | AB119: 97.22339971 | AC119: 97.20518225 | AD119: 97.21653516 | AE119: 97.21503904 | AF119: 97.21225215 | AG119: 97.21460878 | AH119: 97.21396665 | AI119: 97.21360919 | AJ119: 97.21406154 | AK119: 97.21387913 | AL119: 97.21384996 | AM119: 97.21393021 | AN119: 97.21388643 | AO119: 97.21388887 | AP119: 97.21390184 | AQ119: 97.21389238 | AR119: 97.21389436
A120: 1600000US2015325 | B120: Conway Springs | C120: 94.7 | D120: 92.8 | E120: 90.9 | F120: 87.8 | G120: 88.1 | H120: 89 | I120: 89.9 | J120: 91.64086687 | K120: 91.83266932 | L120: 89.98073218 | M120: 89.38741381 | N120: 89.15504781 | O120: 88.9226818 | P120: 88.6903158 | Q120: 88.45794979 | R120: 88.22558379 | S120: 87.99321778 | T120: 87.76085178 | U120: 87.52848577 | V120: 87.29611977 | W120: 87.52848577 | X120: 87.45103044 | Y120: 87.42521199 | Z120: 87.46824274 | AA120: 87.44816172 | AB120: 87.44720548 | AC120: 87.45453665 | AD120: 87.44996795 | AE120: 87.45057003 | AF120: 87.45169154 | AG120: 87.45074317 | AH120: 87.45100158 | AI120: 87.45114543 | AJ120: 87.4509634 | AK120: 87.4510368 | AL120: 87.45104854 | AM120: 87.45101625 | AN120: 87.45103386 | AO120: 87.45103289 | AP120: 87.45102767 | AQ120: 87.45103147 | AR120: 87.45103067
A121: 1600000US2015400 | B121: Coolidge | C121: 74.5 | D121: 75 | E121: 75.3 | F121: 82.9 | G121: 81.4 | H121: 85.9 | I121: 93.1 | J121: 94.44444444 | K121: 91.15044248 | L121: 89.76377953 | M121: 97.05417782 | N121: 99.36477985 | O121: 100 | P121: 100 | Q121: 100 | R121: 100 | S121: 100 | T121: 100 | U121: 100 | V121: 100 | W121: 100 | X121: 100 | Y121: 100 | Z121: 100 | AA121: 100 | AB121: 100 | AC121: 100 | AD121: 100 | AE121: 100 | AF121: 100 | AG121: 100 | AH121: 100 | AI121: 100 | AJ121: 100 | AK121: 100 | AL121: 100 | AM121: 100 | AN121: 100 | AO121: 100 | AP121: 100 | AQ121: 100 | AR121: 100
A122: 1600000US2015475 | B122: Copeland | C122: 76.6 | D122: 80.5 | E122: 91.3 | F122: 87.2 | G122: 81.7 | H122: 79.7 | I122: 80.5 | J122: 77.07509881 | K122: 72.65625 | L122: 75.57251908 | M122: 75.03445065 | N122: 74.08064408 | O122: 73.12683751 | P122: 72.17303094 | Q122: 71.21922437 | R122: 70.2654178 | S122: 69.31161123 | T122: 68.35780466 | U122: 67.40399808 | V122: 66.45019151 | W122: 67.40399808 | X122: 67.08606256 | Y122: 66.98008405 | Z122: 67.1567149 | AA122: 67.07428717 | AB122: 67.07036204 | AC122: 67.1004547 | AD122: 67.08170131 | AE122: 67.08417268 | AF122: 67.08877623 | AG122: 67.08488341 | AH122: 67.08594411 | AI122: 67.08653458 | AJ122: 67.08578737 | AK122: 67.08608868 | AL122: 67.08613688 | AM122: 67.08600431 | AN122: 67.08607662 | AO122: 67.0860726 | AP122: 67.08605118 | AQ122: 67.0860668 | AR122: 67.08606353
A123: 1600000US2015725 | B123: Corning | C123: 73.7 | D123: 84.8 | E123: 86.2 | F123: 79.5 | G123: 87.3 | H123: 96.1 | I123: 95.9 | J123: 93.6 | K123: 98.56115108 | L123: 95.83333333 | M123: 100 | N123: 100 | O123: 100 | P123: 100 | Q123: 100 | R123: 100 | S123: 100 | T123: 100 | U123: 100 | V123: 100 | W123: 100 | X123: 100 | Y123: 100 | Z123: 100 | AA123: 100 | AB123: 100 | AC123: 100 | AD123: 100 | AE123: 100 | AF123: 100 | AG123: 100 | AH123: 100 | AI123: 100 | AJ123: 100 | AK123: 100 | AL123: 100 | AM123: 100 | AN123: 100 | AO123: 100 | AP123: 100 | AQ123: 100 | AR123: 100
A124: 1600000US2015900 | B124: Cottonwood Falls | C124: 86.7 | D124: 87.4 | E124: 88.7 | F124: 88.6 | G124: 91.8 | H124: 88.1 | I124: 88 | J124: 90.37940379 | K124: 89.80582524 | L124: 90.69020867 | M124: 90.87253289 | N124: 91.20980364 | O124: 91.54707439 | P124: 91.88434514 | Q124: 92.22161589 | R124: 92.55888664 | S124: 92.89615739 | T124: 93.23342814 | U124: 93.57069889 | V124: 93.90796964 | W124: 93.57069889 | X124: 93.68312247 | Y124: 93.720597 | Z124: 93.65813945 | AA124: 93.68728631 | AB124: 93.68867425 | AC124: 93.67803334 | AD124: 93.68466463 | AE124: 93.68379074 | AF124: 93.68216291 | AG124: 93.68353943 | AH124: 93.68316436 | AI124: 93.68295556 | AJ124: 93.68321978 | AK124: 93.68311324 | AL124: 93.68309619 | AM124: 93.68314307 | AN124: 93.6831175 | AO124: 93.68311892 | AP124: 93.6831265 | AQ124: 93.68312097 | AR124: 93.68312213
A125: 1600000US2015925 | B125: Council Grove | C125: 86.7 | D125: 89.2 | E125: 89.6 | F125: 86.3 | G125: 85.6 | H125: 85.7 | I125: 83 | J125: 84.20479303 | K125: 85.65714286 | L125: 87.14788732 | M125: 84.39281402 | N125: 84.04405615 | O125: 83.69529828 | P125: 83.34654041 | Q125: 82.99778253 | R125: 82.64902466 | S125: 82.30026679 | T125: 81.95150892 | U125: 81.60275104 | V125: 81.25399317 | W125: 81.60275104 | X125: 81.48649842 | Y125: 81.44774754 | Z125: 81.51233234 | AA125: 81.48219277 | AB125: 81.48075755 | AC125: 81.49176088 | AD125: 81.48490373 | AE125: 81.48580739 | AF125: 81.48749067 | AG125: 81.48606726 | AH125: 81.48645511 | AI125: 81.48667101 | AJ125: 81.48639779 | AK125: 81.48650797 | AL125: 81.48652559 | AM125: 81.48647712 | AN125: 81.48650356 | AO125: 81.48650209 | AP125: 81.48649426 | AQ125: 81.48649997 | AR125: 81.48649877
A126: 1600000US2016025 | B126: Courtland | C126: 99.6 | D126: 98.5 | E126: 98 | F126: 98.7 | G126: 95.5 | H126: 90.7 | I126: 92.2 | J126: 86.74698795 | K126: 86.13445378 | L126: 89.71962617 | M126: 85.04519851 | N126: 83.49339701 | O126: 81.94159551 | P126: 80.389794 | Q126: 78.8379925 | R126: 77.28619099 | S126: 75.73438949 | T126: 74.18258798 | U126: 72.63078648 | V126: 71.07898497 | W126: 72.63078648 | X126: 72.11351931 | Y126: 71.94109692 | Z126: 72.22846757 | AA126: 72.09436127 | AB126: 72.08797525 | AC126: 72.1369347 | AD126: 72.10642374 | AE126: 72.11044456 | AF126: 72.11793433 | AG126: 72.11160088 | AH126: 72.11332659 | AI126: 72.11428727 | AJ126: 72.11307158 | AK126: 72.11356181 | AL126: 72.11364022 | AM126: 72.11342454 | AN126: 72.11354219 | AO126: 72.11353565 | AP126: 72.11350079 | AQ126: 72.11352621 | AR126: 72.11352088
A127: 1600000US2016150 | B127: Coyville | C127: 100 | D127: 100 | E127: 100 | F127: 100 | G127: 78.3 | H127: 82.6 | I127: 84.4 | J127: 83.33333333 | K127: 86.11111111 | L127: 100 | M127: 84.03925926 | N127: 82.68740741 | O127: 81.33555556 | P127: 79.9837037 | Q127: 78.63185185 | R127: 77.28 | S127: 75.92814815 | T127: 74.5762963 | U127: 73.22444444 | V127: 71.87259259 | W127: 73.22444444 | X127: 72.77382716 | Y127: 72.6236214 | Z127: 72.87396433 | AA127: 72.75713763 | AB127: 72.75157446 | AC127: 72.79422547 | AD127: 72.76764585 | AE127: 72.77114859 | AF127: 72.77767331 | AG127: 72.77215592 | AH127: 72.77365927 | AI127: 72.77449617 | AJ127: 72.77343712 | AK127: 72.77386419 | AL127: 72.77393249 | AM127: 72.7737446 | AN127: 72.77384709 | AO127: 72.77384139 | AP127: 72.77381103 | AQ127: 72.77383317 | AR127: 72.77382853
A128: 1600000US2016625 | B128: Cuba | C128: 94.4 | D128: 94.2 | E128: 95.4 | F128: 91.6 | G128: 91.9 | H128: 94.4 | I128: 94.3 | J128: 87.93969849 | K128: 91.03773585 | L128: 93.40659341 | M128: 90.93246891 | N128: 90.58229912 | O128: 90.23212932 | P128: 89.88195953 | Q128: 89.53178974 | R128: 89.18161994 | S128: 88.83145015 | T128: 88.48128036 | U128: 88.13111056 | V128: 87.78094077 | W128: 88.13111056 | X128: 88.0143873 | Y128: 87.97547954 | Z128: 88.0403258 | AA128: 88.01006421 | AB128: 88.00862319 | AC128: 88.01967107 | AD128: 88.01278616 | AE128: 88.01369347 | AF128: 88.01538356 | AG128: 88.0139544 | AH128: 88.01434381 | AI128: 88.01456059 | AJ128: 88.01428627 | AK128: 88.01439689 | AL128: 88.01441458 | AM128: 88.01436591 | AN128: 88.01439246 | AO128: 88.01439098 | AP128: 88.01438312 | AQ128: 88.01438885 | AR128: 88.01438765
A129: 1600000US2016675 | B129: Cullison | C129: 95 | D129: 89.2 | E129: 83.6 | F129: 85.7 | G129: 85 | H129: 78.4 | I129: 77.8 | J129: 93.84615385 | K129: 95.34883721 | L129: 90.32258065 | M129: 88.15095235 | N129: 88.2835333 | O129: 88.41611424 | P129: 88.54869518 | Q129: 88.68127612 | R129: 88.81385707 | S129: 88.94643801 | T129: 89.07901895 | U129: 89.21159989 | V129: 89.34418084 | W129: 89.21159989 | X129: 89.25579354 | Y129: 89.27052476 | Z129: 89.24597273 | AA129: 89.25743034 | AB129: 89.25797594 | AC129: 89.253793 | AD129: 89.25639976 | AE129: 89.25605624 | AF129: 89.25541634 | AG129: 89.25595745 | AH129: 89.25581001 | AI129: 89.25572793 | AJ129: 89.25583179 | AK129: 89.25578991 | AL129: 89.25578321 | AM129: 89.25580164 | AN129: 89.25579159 | AO129: 89.25579214 | AP129: 89.25579512 | AQ129: 89.25579295 | AR129: 89.25579341
A130: 1600000US2016700 | B130: Culver | C130: 90.7 | D130: 84 | E130: 84.9 | F130: 84.4 | G130: 86.1 | H130: 84 | I130: 82.1 | J130: 82.75862069 | K130: 86.36363636 | L130: 87.5 | M130: 84.21684431 | N130: 84.0231386 | O130: 83.82943289 | P130: 83.63572718 | Q130: 83.44202147 | R130: 83.24831576 | S130: 83.05461005 | T130: 82.86090434 | U130: 82.66719863 | V130: 82.47349292 | W130: 82.66719863 | X130: 82.60263006 | Y130: 82.58110721 | Z130: 82.61697863 | AA130: 82.60023863 | AB130: 82.59944149 | AC130: 82.60555292 | AD130: 82.60174435 | AE130: 82.60224625 | AF130: 82.60318117 | AG130: 82.60239059 | AH130: 82.60260601 | AI130: 82.60272592 | AJ130: 82.60257417 | AK130: 82.60263537 | AL130: 82.60264516 | AM130: 82.60261823 | AN130: 82.60263292 | AO130: 82.6026321 | AP130: 82.60262775 | AQ130: 82.60263092 | AR130: 82.60263026
A131: 1600000US2016775 | B131: Cunningham | C131: 94.3 | D131: 93.8 | E131: 93.1 | F131: 93.9 | G131: 94.9 | H131: 93.7 | I131: 94.7 | J131: 93.37539432 | K131: 94.15584416 | L131: 91.61490683 | M131: 93.11801594 | N131: 93.00227074 | O131: 92.88652554 | P131: 92.77078034 | Q131: 92.65503514 | R131: 92.53928994 | S131: 92.42354474 | T131: 92.30779955 | U131: 92.19205435 | V131: 92.07630915 | W131: 92.19205435 | X131: 92.15347261 | Y131: 92.14061204 | Z131: 92.16204633 | AA131: 92.15204366 | AB131: 92.15156734 | AC131: 92.15521911 | AD131: 92.15294337 | AE131: 92.15324328 | AF131: 92.15380192 | AG131: 92.15332952 | AH131: 92.15345824 | AI131: 92.15352989 | AJ131: 92.15343922 | AK131: 92.15347578 | AL131: 92.15348163 | AM131: 92.15346554 | AN131: 92.15347432 | AO131: 92.15347383 | AP131: 92.15347123 | AQ131: 92.15347313 | AR131: 92.15347273
A132: 1600000US2016975 | B132: Damar | C132: 95.1 | D132: 94.5 | E132: 92.2 | F132: 93.5 | G132: 95.1 | H132: 86.2 | I132: 90 | J132: 90.83333333 | K132: 86.44067797 | L132: 88.32116788 | M132: 86.43091536 | N132: 85.56026035 | O132: 84.68960534 | P132: 83.81895033 | Q132: 82.94829532 | R132: 82.07764032 | S132: 81.20698531 | T132: 80.3363303 | U132: 79.46567529 | V132: 78.59502028 | W132: 79.46567529 | X132: 79.17545695 | Y132: 79.0787175 | Z132: 79.23994991 | AA132: 79.16470812 | AB132: 79.16112518 | AC132: 79.1885944 | AD132: 79.1714759 | AE132: 79.17373183 | AF132: 79.17793404 | AG132: 79.17438059 | AH132: 79.17534882 | AI132: 79.17588782 | AJ132: 79.17520574 | AK132: 79.1754808 | AL132: 79.17552479 | AM132: 79.17540378 | AN132: 79.17546979 | AO132: 79.17546612 | AP132: 79.17544656 | AQ132: 79.17546082 | AR132: 79.17545783
A133: 1600000US2017000 | B133: Danville | C133: 51 | D133: 63.8 | E133: 77.1 | F133: 88 | G133: 93.1 | H133: 94.3 | I133: 93.5 | J133: 86.95652174 | K133: 88.57142857 | L133: 100 | M133: 100 | N133: 100 | O133: 100 | P133: 100 | Q133: 100 | R133: 100 | S133: 100 | T133: 100 | U133: 100 | V133: 100 | W133: 100 | X133: 100 | Y133: 100 | Z133: 100 | AA133: 100 | AB133: 100 | AC133: 100 | AD133: 100 | AE133: 100 | AF133: 100 | AG133: 100 | AH133: 100 | AI133: 100 | AJ133: 100 | AK133: 100 | AL133: 100 | AM133: 100 | AN133: 100 | AO133: 100 | AP133: 100 | AQ133: 100 | AR133: 100
A134: 1600000US2017850 | B134: De Soto | C134: 90.5 | D134: 90.8 | E134: 91 | F134: 91 | G134: 89.3 | H134: 90 | I134: 89.9 | J134: 88.50158443 | K134: 87.76619846 | L134: 86.50849035 | M134: 87.11921814 | N134: 86.68132556 | O134: 86.24343298 | P134: 85.8055404 | Q134: 85.36764782 | R134: 84.92975524 | S134: 84.49186267 | T134: 84.05397009 | U134: 83.61607751 | V134: 83.17818493 | W134: 83.61607751 | X134: 83.47011331 | Y134: 83.42145858 | Z134: 83.5025498 | AA134: 83.46470723 | AB134: 83.46290521 | AC134: 83.47672075 | AD134: 83.46811106 | AE134: 83.46924567 | AF134: 83.47135916 | AG134: 83.46957196 | AH134: 83.47005893 | AI134: 83.47033002 | AJ134: 83.46998697 | AK134: 83.47012531 | AL134: 83.47014743 | AM134: 83.47008657 | AN134: 83.47011977 | AO134: 83.47011792 | AP134: 83.47010809 | AQ134: 83.47011526 | AR134: 83.47011376
A135: 1600000US2017150 | B135: Dearing | C135: 71.1 | D135: 72.4 | E135: 81.2 | F135: 82.8 | G135: 89.2 | H135: 88.3 | I135: 89.1 | J135: 91.16945107 | K135: 83.29718004 | L135: 76.70588235 | M135: 89.01326658 | N135: 90.19254207 | O135: 91.37181757 | P135: 92.55109306 | Q135: 93.73036856 | R135: 94.90964406 | S135: 96.08891955 | T135: 97.26819505 | U135: 98.44747054 | V135: 99.62674604 | W135: 98.44747054 | X135: 98.84056238 | Y135: 98.97159299 | Z135: 98.75320864 | AA135: 98.85512133 | AB135: 98.85997432 | AC135: 98.8227681 | AD135: 98.84595458 | AE135: 98.842899 | AF135: 98.83720723 | AG135: 98.84202027 | AH135: 98.84070883 | AI135: 98.83997877 | AJ135: 98.84090262 | AK135: 98.84053008 | AL135: 98.84047049 | AM135: 98.8406344 | AN135: 98.84054499 | AO135: 98.84054996 | AP135: 98.84057645 | AQ135: 98.84055713 | AR135: 98.84056118
A136: 1600000US2017225 | B136: Deerfield | C136: 55.4 | D136: 62.4 | E136: 57.5 | F136: 68.9 | G136: 67.8 | H136: 62.8 | I136: 63.9 | J136: 72.32796486 | K136: 59.95762712 | L136: 52.39005736 | M136: 62.66935595 | N136: 62.72968159 | O136: 62.79000722 | P136: 62.85033286 | Q136: 62.9106585 | R136: 62.97098414 | S136: 63.03130978 | T136: 63.09163542 | U136: 63.15196106 | V136: 63.2122867 | W136: 63.15196106 | X136: 63.1720696 | Y136: 63.17877245 | Z136: 63.16760104 | AA136: 63.17281436 | AB136: 63.17306262 | AC136: 63.17115934 | AD136: 63.17234544 | AE136: 63.17218913 | AF136: 63.17189797 | AG136: 63.17214418 | AH136: 63.17207709 | AI136: 63.17203975 | AJ136: 63.17208701 | AK136: 63.17206795 | AL136: 63.1720649 | AM136: 63.17207329 | AN136: 63.17206871 | AO136: 63.17206897 | AP136: 63.17207032 | AQ136: 63.17206933 | AR136: 63.17206954
A137: 1600000US2017525 | B137: Delia | C137: 89.7 | D137: 89 | E137: 91.3 | F137: 92.9 | G137: 92.9 | H137: 89.9 | I137: 88.9 | J137: 89.8989899 | K137: 89.3442623 | L137: 91.80327869 | M137: 90.54246288 | N137: 90.5384283 | O137: 90.53439371 | P137: 90.53035913 | Q137: 90.52632455 | R137: 90.52228996 | S137: 90.51825538 | T137: 90.5142208 | U137: 90.51018621 | V137: 90.50615163 | W137: 90.51018621 | X137: 90.50884135 | Y137: 90.50839307 | Z137: 90.50914021 | AA137: 90.50879154 | AB137: 90.50877494 | AC137: 90.50890223 | AD137: 90.5088229 | AE137: 90.50883336 | AF137: 90.50885283 | AG137: 90.50883636 | AH137: 90.50884085 | AI137: 90.50884335 | AJ137: 90.50884019 | AK137: 90.50884146 | AL137: 90.50884167 | AM137: 90.50884111 | AN137: 90.50884141 | AO137: 90.5088414 | AP137: 90.5088413 | AQ137: 90.50884137 | AR137: 90.50884136
A138: 1600000US2017600 | B138: Delphos | C138: 89.2 | D138: 86.6 | E138: 87.9 | F138: 91 | G138: 91.5 | H138: 91.9 | I138: 92.5 | J138: 90.76923077 | K138: 88.60759494 | L138: 83.50515464 | M138: 88.74972171 | N138: 88.64090783 | O138: 88.53209395 | P138: 88.42328007 | Q138: 88.31446619 | R138: 88.20565232 | S138: 88.09683844 | T138: 87.98802456 | U138: 87.87921068 | V138: 87.77039681 | W138: 87.87921068 | X138: 87.84293939 | Y138: 87.83084896 | Z138: 87.85099968 | AA138: 87.84159601 | AB138: 87.84114822 | AC138: 87.8445813 | AD138: 87.84244184 | AE138: 87.84272379 | AF138: 87.84324898 | AG138: 87.84280487 | AH138: 87.84292588 | AI138: 87.84299324 | AJ138: 87.842908 | AK138: 87.84294237 | AL138: 87.84294787 | AM138: 87.84293275 | AN138: 87.842941 | AO138: 87.84294054 | AP138: 87.84293809 | AQ138: 87.84293987 | AR138: 87.8429395
A139: 1600000US2017625 | B139: Denison | C139: 89.8 | D139: 86.5 | E139: 89.1 | F139: 86.6 | G139: 85.8 | H139: 85.1 | I139: 87.2 | J139: 84.61538462 | K139: 88.29787234 | L139: 96.07843137 | M139: 89.50143256 | N139: 89.79093506 | O139: 90.08043755 | P139: 90.36994005 | Q139: 90.65944254 | R139: 90.94894504 | S139: 91.23844753 | T139: 91.52795003 | U139: 91.81745253 | V139: 92.10695502 | W139: 91.81745253 | X139: 91.91395336 | Y139: 91.9461203 | Z139: 91.89250873 | AA139: 91.91752746 | AB139: 91.91871883 | AC139: 91.90958501 | AD139: 91.9152771 | AE139: 91.91452698 | AF139: 91.9131297 | AG139: 91.91431126 | AH139: 91.91398931 | AI139: 91.91381009 | AJ139: 91.91403689 | AK139: 91.91394543 | AL139: 91.9139308 | AM139: 91.91397104 | AN139: 91.91394909 | AO139: 91.91395031 | AP139: 91.91395681 | AQ139: 91.91395207 | AR139: 91.91395307
A140: 1600000US2017750 | B140: Denton | C140: 94.8 | D140: 95.4 | E140: 97.5 | F140: 98 | G140: 98.5 | H140: 98.4 | I140: 98.6 | J140: 98.7012987 | K140: 94.61538462 | L140: 96.21212121 | M140: 97.57032301 | N140: 97.66076711 | O140: 97.75121121 | P140: 97.84165531 | Q140: 97.93209942 | R140: 98.02254352 | S140: 98.11298762 | T140: 98.20343172 | U140: 98.29387582 | V140: 98.38431992 | W140: 98.29387582 | X140: 98.32402385 | Y140: 98.3340732 | Z140: 98.31732429 | AA140: 98.32514045 | AB140: 98.32551265 | AC140: 98.32265913 | AD140: 98.32443741 | AE140: 98.32420306 | AF140: 98.32376653 | AG140: 98.32413567 | AH140: 98.32403509 | AI140: 98.3239791 | AJ140: 98.32404995 | AK140: 98.32402138 | AL140: 98.32401681 | AM140: 98.32402938 | AN140: 98.32402252 | AO140: 98.3240229 | AP140: 98.32402493 | AQ140: 98.32402345 | AR140: 98.32402376
A141: 1600000US2017800 | B141: Derby | C141: 96 | D141: 96.2 | E141: 96.1 | F141: 96.2 | G141: 96 | H141: 96.2 | I141: 96.2 | J141: 95.10462124 | K141: 95.5423477 | L141: 95.38664072 | M141: 95.39667118 | N141: 95.30636395 | O141: 95.21605672 | P141: 95.12574948 | Q141: 95.03544225 | R141: 94.94513502 | S141: 94.85482778 | T141: 94.76452055 | U141: 94.67421332 | V141: 94.58390609 | W141: 94.67421332 | X141: 94.64411091 | Y141: 94.63407677 | Z141: 94.65080033 | AA141: 94.642996 | AB141: 94.64262437 | AC141: 94.64547357 | AD141: 94.64369798 | AE141: 94.64393197 | AF141: 94.64436784 | AG141: 94.64399926 | AH141: 94.64409969 | AI141: 94.6441556 | AJ141: 94.64408485 | AK141: 94.64411338 | AL141: 94.64411794 | AM141: 94.64410539 | AN141: 94.64411224 | AO141: 94.64411186 | AP141: 94.64410983 | AQ141: 94.64411131 | AR141: 94.644111
A142: 1600000US2017925 | B142: Dexter | C142: 86.9 | D142: 83.1 | E142: 82.7 | F142: 83.6 | G142: 86.2 | H142: 86.7 | I142: 88.1 | J142: 88 | K142: 89.72332016 | L142: 87.68472906 | M142: 89.40166501 | N142: 89.9709123 | O142: 90.54015959 | P142: 91.10940688 | Q142: 91.67865417 | R142: 92.24790146 | S142: 92.81714875 | T142: 93.38639603 | U142: 93.95564332 | V142: 94.52489061 | W142: 93.95564332 | X142: 94.14539242 | Y142: 94.20864212 | Z142: 94.10322595 | AA142: 94.15242016 | AB142: 94.15476275 | AC142: 94.13680295 | AD142: 94.14799529 | AE142: 94.14652033 | AF142: 94.14377286 | AG142: 94.14609616 | AH142: 94.14546312 | AI142: 94.14511071 | AJ142: 94.14555666 | AK142: 94.14537683 | AL142: 94.14534807 | AM142: 94.14542719 | AN142: 94.14538403 | AO142: 94.14538643 | AP142: 94.14539921 | AQ142: 94.14538989 | AR142: 94.14539184
A143: 1600000US2018050 | B143: Dighton | C143: 86.7 | D143: 88.8 | E143: 91 | F143: 91.1 | G143: 94 | H143: 95.1 | I143: 94.1 | J143: 92.87564767 | K143: 94.77806789 | L143: 91.75572519 | M143: 95.58181875 | N143: 96.22925051 | O143: 96.87668227 | P143: 97.52411403 | Q143: 98.17154579 | R143: 98.81897755 | S143: 99.4664093 | T143: 100 | U143: 100 | V143: 100 | W143: 100 | X143: 100 | Y143: 100 | Z143: 100 | AA143: 100 | AB143: 100 | AC143: 100 | AD143: 100 | AE143: 100 | AF143: 100 | AG143: 100 | AH143: 100 | AI143: 100 | AJ143: 100 | AK143: 100 | AL143: 100 | AM143: 100 | AN143: 100 | AO143: 100 | AP143: 100 | AQ143: 100 | AR143: 100
A144: 1600000US2018250 | B144: Dodge City | C144: 66 | D144: 65.5 | E144: 66.9 | F144: 65.4 | G144: 64.2 | H144: 65.8 | I144: 67.9 | J144: 69.67833491 | K144: 69.81042654 | L144: 72.30777344 | M144: 71.01414087 | N144: 71.6804113 | O144: 72.34668173 | P144: 73.01295216 | Q144: 73.67922259 | R144: 74.34549303 | S144: 75.01176346 | T144: 75.67803389 | U144: 76.34430432 | V144: 77.01057476 | W144: 76.34430432 | X144: 76.56639447 | Y144: 76.64042452 | Z144: 76.5170411 | AA144: 76.57462003 | AB144: 76.57736188 | AC144: 76.556341 | AD144: 76.56944097 | AE144: 76.56771462 | AF144: 76.56449886 | AG144: 76.56721815 | AH144: 76.56647721 | AI144: 76.56606474 | AJ144: 76.5665867 | AK144: 76.56637622 | AL144: 76.56634255 | AM144: 76.56643516 | AN144: 76.56638464 | AO144: 76.56638745 | AP144: 76.56640242 | AQ144: 76.56639151 | AR144: 76.56639379
A145: 1600000US2018325 | B145: Dorrance | C145: 85.8 | D145: 89.8 | E145: 89.2 | F145: 98.5 | G145: 97.6 | H145: 99.2 | I145: 99.3 | J145: 97.54601227 | K145: 96.91358025 | L145: 96.17834395 | M145: 100 | N145: 100 | O145: 100 | P145: 100 | Q145: 100 | R145: 100 | S145: 100 | T145: 100 | U145: 100 | V145: 100 | W145: 100 | X145: 100 | Y145: 100 | Z145: 100 | AA145: 100 | AB145: 100 | AC145: 100 | AD145: 100 | AE145: 100 | AF145: 100 | AG145: 100 | AH145: 100 | AI145: 100 | AJ145: 100 | AK145: 100 | AL145: 100 | AM145: 100 | AN145: 100 | AO145: 100 | AP145: 100 | AQ145: 100 | AR145: 100
A146: 1600000US2018400 | B146: Douglass | C146: 92.6 | D146: 87.8 | E146: 89.9 | F146: 90.9 | G146: 89.8 | H146: 89 | I146: 90.7 | J146: 90.60297572 | K146: 88.4057971 | L146: 89.05750799 | M146: 89.02572909 | N146: 88.87102018 | O146: 88.71631127 | P146: 88.56160237 | Q146: 88.40689346 | R146: 88.25218455 | S146: 88.09747564 | T146: 87.94276673 | U146: 87.78805783 | V146: 87.63334892 | W146: 87.78805783 | X146: 87.73648819 | Y146: 87.71929831 | Z146: 87.74794811 | AA146: 87.7345782 | AB146: 87.73394154 | AC146: 87.73882262 | AD146: 87.73578079 | AE146: 87.73618165 | AF146: 87.73692835 | AG146: 87.73629693 | AH146: 87.73646898 | AI146: 87.73656475 | AJ146: 87.73644355 | AK146: 87.73649243 | AL146: 87.73650024 | AM146: 87.73647874 | AN146: 87.73649047 | AO146: 87.73648982 | AP146: 87.73648634 | AQ146: 87.73648888 | AR146: 87.73648835
A147: 1600000US2018500 | B147: Downs | C147: 83.2 | D147: 86.2 | E147: 85.9 | F147: 89.5 | G147: 88.3 | H147: 91.9 | I147: 92.2 | J147: 93.67977528 | K147: 93.77777778 | L147: 95.12937595 | M147: 97.01228305 | N147: 98.29111762 | O147: 99.56995219 | P147: 100 | Q147: 100 | R147: 100 | S147: 100 | T147: 100 | U147: 100 | V147: 100 | W147: 100 | X147: 100 | Y147: 100 | Z147: 100 | AA147: 100 | AB147: 100 | AC147: 100 | AD147: 100 | AE147: 100 | AF147: 100 | AG147: 100 | AH147: 100 | AI147: 100 | AJ147: 100 | AK147: 100 | AL147: 100 | AM147: 100 | AN147: 100 | AO147: 100 | AP147: 100 | AQ147: 100 | AR147: 100
A148: 1600000US2018600 | B148: Dresden | C148: 100 | D148: 100 | E148: 98.5 | F148: 91.4 | G148: 52.8 | H148: 57.8 | I148: 70.5 | J148: 53.57142857 | K148: 53.33333333 | L148: 100 | M148: 57.49015873 | N148: 53.79919192 | O148: 50.10822511 | P148: 46.4172583 | Q148: 42.72629149 | R148: 39.03532468 | S148: 35.34435786 | T148: 31.65339105 | U148: 27.96242424 | V148: 24.27145743 | W148: 27.96242424 | X148: 26.73210197 | Y148: 26.32199455 | Z148: 27.00550692 | AA148: 26.68653448 | AB148: 26.67134532 | AC148: 26.78779557 | AD148: 26.71522512 | AE148: 26.72478867 | AF148: 26.74260312 | AG148: 26.72753897 | AH148: 26.73164359 | AI148: 26.73392856 | AJ148: 26.73103704 | AK148: 26.73220306 | AL148: 26.73238956 | AM148: 26.73187655 | AN148: 26.73215639 | AO148: 26.73214083 | AP148: 26.73205793 | AQ148: 26.73211838 | AR148: 26.73210571
A149: 1600000US2018950 | B149: Dunlap | C149: 92.3 | D149: 88.9 | E149: 86.7 | F149: 85.7 | G149: 77.8 | H149: 90 | I149: 100 | J149: 71.42857143 | K149: 90 | L149: 91.30434783 | M149: 86.66269151 | N149: 86.52621871 | O149: 86.38974591 | P149: 86.2532731 | Q149: 86.1168003 | R149: 85.9803275 | S149: 85.8438547 | T149: 85.70738189 | U149: 85.57090909 | V149: 85.43443629 | W149: 85.57090909 | X149: 85.52541816 | Y149: 85.51025451 | Z149: 85.53552725 | AA149: 85.52373331 | AB149: 85.52317169 | AC149: 85.52747742 | AD149: 85.52479414 | AE149: 85.52514775 | AF149: 85.52580643 | AG149: 85.52524944 | AH149: 85.52540121 | AI149: 85.52548569 | AJ149: 85.52537878 | AK149: 85.52542189 | AL149: 85.52542879 | AM149: 85.52540982 | AN149: 85.52542017 | AO149: 85.52541959 | AP149: 85.52541653 | AQ149: 85.52541876 | AR149: 85.5254183
A150: 1600000US2019050 | B150: Durham | C150: 74.2 | D150: 74.3 | E150: 76.1 | F150: 75.5 | G150: 72.6 | H150: 79.3 | I150: 76.4 | J150: 76.66666667 | K150: 74.71264368 | L150: 77.5 | M150: 77.22199234 | N150: 77.49363985 | O150: 77.76528736 | P150: 78.03693487 | Q150: 78.30858238 | R150: 78.58022989 | S150: 78.85187739 | T150: 79.1235249 | U150: 79.39517241 | V150: 79.66681992 | W150: 79.39517241 | X150: 79.48572158 | Y150: 79.51590464 | Z150: 79.46559955 | AA150: 79.48907526 | AB150: 79.49019315 | AC150: 79.48162265 | AD150: 79.48696368 | AE150: 79.48625983 | AF150: 79.48494872 | AG150: 79.48605741 | AH150: 79.48575532 | AI150: 79.48558715 | AJ150: 79.48579996 | AK150: 79.48571414 | AL150: 79.48570042 | AM150: 79.48573817 | AN150: 79.48571758 | AO150: 79.48571872 | AP150: 79.48572483 | AQ150: 79.48572038 | AR150: 79.48572131
A151: 1600000US2019125 | B151: Dwight | C151: 82.1 | D151: 82 | E151: 88.2 | F151: 85.5 | G151: 87.9 | H151: 84.2 | I151: 80.9 | J151: 78.97727273 | K151: 79.64071856 | L151: 77.40112994 | M151: 78.60129756 | N151: 77.85936764 | O151: 77.11743772 | P151: 76.3755078 | Q151: 75.63357788 | R151: 74.89164795 | S151: 74.14971803 | T151: 73.40778811 | U151: 72.66585819 | V151: 71.92392827 | W151: 72.66585819 | X151: 72.41854822 | Y151: 72.33611156 | Z151: 72.47350599 | AA151: 72.40938859 | AB151: 72.40633538 | AC151: 72.42974332 | AD151: 72.41515576 | AE151: 72.41707816 | AF151: 72.42065908 | AG151: 72.417631 | AH151: 72.41845608 | AI151: 72.41891539 | AJ151: 72.41833415 | AK151: 72.41856854 | AL151: 72.41860603 | AM151: 72.41850291 | AN151: 72.41855916 | AO151: 72.41855603 | AP151: 72.41853937 | AQ151: 72.41855152 | AR151: 72.41854897
A152: 1600000US2019275 | B152: Earlton | C152: 41.7 | D152: 50 | E152: 55.6 | F152: 76.6 | G152: 73.2 | H152: 75 | I152: 73.8 | J152: 77.55102041 | K152: 80 | L152: 84.72222222 | M152: 92.16249433 | N152: 96.40707071 | O152: 100 | P152: 100 | Q152: 100 | R152: 100 | S152: 100 | T152: 100 | U152: 100 | V152: 100 | W152: 100 | X152: 100 | Y152: 100 | Z152: 100 | AA152: 100 | AB152: 100 | AC152: 100 | AD152: 100 | AE152: 100 | AF152: 100 | AG152: 100 | AH152: 100 | AI152: 100 | AJ152: 100 | AK152: 100 | AL152: 100 | AM152: 100 | AN152: 100 | AO152: 100 | AP152: 100 | AQ152: 100 | AR152: 100
A153: 1600000US2019300 | B153: Eastborough | C153: 98.2 | D153: 98.3 | E153: 98.4 | F153: 98.6 | G153: 98.3 | H153: 97.7 | I153: 97.9 | J153: 96.41577061 | K153: 96.58119658 | L153: 97.5177305 | M153: 96.76502989 | N153: 96.57840446 | O153: 96.39177902 | P153: 96.20515359 | Q153: 96.01852816 | R153: 95.83190272 | S153: 95.64527729 | T153: 95.45865186 | U153: 95.27202643 | V153: 95.08540099 | W153: 95.27202643 | X153: 95.20981795 | Y153: 95.18908179 | Z153: 95.22364205 | AA153: 95.20751393 | AB153: 95.20674592 | AC153: 95.21263397 | AD153: 95.20896461 | AE153: 95.20944817 | AF153: 95.21034891 | AG153: 95.20958723 | AH153: 95.20979477 | AI153: 95.20991031 | AJ153: 95.2097641 | AK153: 95.20982306 | AL153: 95.20983249 | AM153: 95.20980655 | AN153: 95.2098207 | AO153: 95.20981991 | AP153: 95.20981572 | AQ153: 95.20981878 | AR153: 95.20981814
A154: 1600000US2019600 | B154: Easton | C154: 72.3 | D154: 83.1 | E154: 79 | F154: 80.1 | G154: 78.9 | H154: 77.7 | I154: 79.7 | J154: 81.69491525 | K154: 81.73913043 | L154: 68.51851852 | M154: 77.19242829 | N154: 76.99555044 | O154: 76.7986726 | P154: 76.60179476 | Q154: 76.40491692 | R154: 76.20803907 | S154: 76.01116123 | T154: 75.81428339 | U154: 75.61740555 | V154: 75.4205277 | W154: 75.61740555 | X154: 75.5517796 | Y154: 75.52990428 | Z154: 75.56636314 | AA154: 75.54934901 | AB154: 75.54853881 | AC154: 75.55475032 | AD154: 75.55087938 | AE154: 75.5513895 | AF154: 75.55233974 | AG154: 75.55153621 | AH154: 75.55175515 | AI154: 75.55187703 | AJ154: 75.5517228 | AK154: 75.55178499 | AL154: 75.55179494 | AM154: 75.55176758 | AN154: 75.5517825 | AO154: 75.55178167 | AP154: 75.55177725 | AQ154: 75.55178047 | AR154: 75.5517798
A155: 1600000US2019825 | B155: Edgerton | C155: 87.8 | D155: 89.3 | E155: 87.5 | F155: 85.9 | G155: 87 | H155: 90.4 | I155: 88 | J155: 89.57627119 | K155: 91.65232358 | L155: 91.02880658 | M155: 91.00263614 | N155: 91.4002536 | O155: 91.79787106 | P155: 92.19548851 | Q155: 92.59310597 | R155: 92.99072342 | S155: 93.38834088 | T155: 93.78595834 | U155: 94.18357579 | V155: 94.58119325 | W155: 94.18357579 | X155: 94.31611494 | Y155: 94.36029466 | Z155: 94.2866618 | AA155: 94.3210238 | AB155: 94.32266009 | AC155: 94.31011523 | AD155: 94.31793304 | AE155: 94.31690279 | AF155: 94.31498368 | AG155: 94.3166065 | AH155: 94.31616432 | AI155: 94.31591817 | AJ155: 94.31622967 | AK155: 94.31610405 | AL155: 94.31608396 | AM155: 94.31613923 | AN155: 94.31610908 | AO155: 94.31611076 | AP155: 94.31611969 | AQ155: 94.31611318 | AR155: 94.31611454
A156: 1600000US2019875 | B156: Edmond | C156: 95.6 | D156: 93.2 | E156: 87 | F156: 81.8 | G156: 100 | H156: 100 | I156: 100 | J156: 100 | K156: 95.83333333 | L156: 98.93617021 | M156: 100 | N156: 100 | O156: 100 | P156: 100 | Q156: 100 | R156: 100 | S156: 100 | T156: 100 | U156: 100 | V156: 100 | W156: 100 | X156: 100 | Y156: 100 | Z156: 100 | AA156: 100 | AB156: 100 | AC156: 100 | AD156: 100 | AE156: 100 | AF156: 100 | AG156: 100 | AH156: 100 | AI156: 100 | AJ156: 100 | AK156: 100 | AL156: 100 | AM156: 100 | AN156: 100 | AO156: 100 | AP156: 100 | AQ156: 100 | AR156: 100
A157: 1600000US2019900 | B157: Edna | C157: 89.5 | D157: 90.2 | E157: 91.4 | F157: 92.4 | G157: 95.2 | H157: 95 | I157: 93.1 | J157: 92.58064516 | K157: 93.97163121 | L157: 95.88607595 | M157: 95.97981282 | N157: 96.53544511 | O157: 97.0910774 | P157: 97.64670969 | Q157: 98.20234198 | R157: 98.75797427 | S157: 99.31360656 | T157: 99.86923885 | U157: 100 | V157: 100 | W157: 99.95641295 | X157: 99.98547098 | Y157: 99.98062798 | Z157: 99.97417064 | AA157: 99.98008987 | AB157: 99.97829616 | AC157: 99.97751889 | AD157: 99.97863497 | AE157: 99.97815001 | AF157: 99.97810129 | AG157: 99.97829542 | AH157: 99.97818224 | AI157: 99.97819298 | AJ157: 99.97822355 | AK157: 99.97819959 | AL157: 99.97820537 | AM157: 99.9782095 | AN157: 99.97820482 | AO157: 99.97820657 | AP157: 99.97820696 | AQ157: 99.97820612 | AR157: 99.97820655
A158: 1600000US2020000 | B158: Edwardsville | C158: 81.8 | D158: 84.4 | E158: 86.3 | F158: 84.9 | G158: 86.8 | H158: 87.2 | I158: 87.1 | J158: 87.99357945 | K158: 88.80208333 | L158: 91.04755984 | M158: 90.95133957 | N158: 91.7362518 | O158: 92.52116404 | P158: 93.30607628 | Q158: 94.09098852 | R158: 94.87590075 | S158: 95.66081299 | T158: 96.44572523 | U158: 97.23063747 | V158: 98.0155497 | W158: 97.23063747 | X158: 97.49227488 | Y158: 97.57948735 | Z158: 97.43413323 | AA158: 97.50196515 | AB158: 97.50519524 | AC158: 97.48043121 | AD158: 97.49586387 | AE158: 97.49383011 | AF158: 97.49004173 | AG158: 97.49324523 | AH158: 97.49237236 | AI158: 97.49188644 | AJ158: 97.49250134 | AK158: 97.49225338 | AL158: 97.49221372 | AM158: 97.49232282 | AN158: 97.49226331 | AO158: 97.49226661 | AP158: 97.49228425 | AQ158: 97.49227139 | AR158: 97.49227408
A159: 1600000US2020025 | B159: Effingham | C159: 83 | D159: 86.9 | E159: 90.4 | F159: 89.4 | G159: 90 | H159: 92.6 | I159: 88.6 | J159: 87.79342723 | K159: 87.24489796 | L159: 87.53246753 | M159: 89.35953359 | N159: 89.5436162 | O159: 89.7276988 | P159: 89.91178141 | Q159: 90.09586401 | R159: 90.27994661 | S159: 90.46402922 | T159: 90.64811182 | U159: 90.83219443 | V159: 91.01627703 | W159: 90.83219443 | X159: 90.89355529 | Y159: 90.91400892 | Z159: 90.87991955 | AA159: 90.89582792 | AB159: 90.89658546 | AC159: 90.89077764 | AD159: 90.89439701 | AE159: 90.89392004 | AF159: 90.89303156 | AG159: 90.89378287 | AH159: 90.89357816 | AI159: 90.89346419 | AJ159: 90.89360841 | AK159: 90.89355025 | AL159: 90.89354095 | AM159: 90.89356654 | AN159: 90.89355258 | AO159: 90.89355336 | AP159: 90.89355749 | AQ159: 90.89355448 | AR159: 90.89355511
A160: 1600000US2020075 | B160: El Dorado | C160: 89.4 | D160: 90.6 | E160: 90.5 | F160: 92.2 | G160: 92 | H160: 91.6 | I160: 91.8 | J160: 91.86515947 | K160: 92.29614807 | L160: 92.37424547 | M160: 92.92579007 | N160: 93.19165094 | O160: 93.45751181 | P160: 93.72337267 | Q160: 93.98923354 | R160: 94.25509441 | S160: 94.52095528 | T160: 94.78681614 | U160: 95.05267701 | V160: 95.31853788 | W160: 95.05267701 | X160: 95.1412973 | Y160: 95.1708374 | Z160: 95.1216039 | AA160: 95.14457953 | AB160: 95.14567361 | AC160: 95.13728568 | AD160: 95.14251294 | AE160: 95.14182408 | AF160: 95.1405409 | AG160: 95.14162597 | AH160: 95.14133032 | AI160: 95.14116573 | AJ160: 95.14137401 | AK160: 95.14129002 | AL160: 95.14127658 | AM160: 95.14131354 | AN160: 95.14129338 | AO160: 95.1412945 | AP160: 95.14130047 | AQ160: 95.14129612 | AR160: 95.14129703
A161: 1600000US2020050 | B161: Elbing | C161: 93.7 | D161: 91.3 | E161: 91.9 | F161: 92.4 | G161: 97 | H161: 97.6 | I161: 98.9 | J161: 95.11111111 | K161: 96.96969697 | L161: 96.83257919 | M161: 98.63922696 | N161: 99.26975209 | O161: 99.90027723 | P161: 100 | Q161: 100 | R161: 100 | S161: 100 | T161: 100 | U161: 100 | V161: 100 | W161: 100 | X161: 100 | Y161: 100 | Z161: 100 | AA161: 100 | AB161: 100 | AC161: 100 | AD161: 100 | AE161: 100 | AF161: 100 | AG161: 100 | AH161: 100 | AI161: 100 | AJ161: 100 | AK161: 100 | AL161: 100 | AM161: 100 | AN161: 100 | AO161: 100 | AP161: 100 | AQ161: 100 | AR161: 100
A162: 1600000US2020125 | B162: Elgin | C162: 73.8 | D162: 75.5 | E162: 81.8 | F162: 83.1 | G162: 78.5 | H162: 75.3 | I162: 77.9 | J162: 70.65217391 | K162: 72.97297297 | L162: 76.5625 | M162: 74.36323737 | N162: 73.95495967 | O162: 73.54668198 | P162: 73.13840428 | Q162: 72.73012659 | R162: 72.32184889 | S162: 71.9135712 | T162: 71.5052935 | U162: 71.09701581 | V162: 70.68873812 | W162: 71.09701581 | X162: 70.96092325 | Y162: 70.91555906 | Z162: 70.99116604 | AA162: 70.95588278 | AB162: 70.95420262 | AC162: 70.96708381 | AD162: 70.95905641 | AE162: 70.96011428 | AF162: 70.96208483 | AG162: 70.96041851 | AH162: 70.96087254 | AI162: 70.96112529 | AJ162: 70.96080545 | AK162: 70.96093443 | AL162: 70.96095506 | AM162: 70.96089831 | AN162: 70.96092926 | AO162: 70.96092754 | AP162: 70.96091837 | AQ162: 70.96092506 | AR162: 70.96092366
A163: 1600000US2020250 | B163: Elk City | C163: 81.9 | D163: 84.7 | E163: 85.2 | F163: 84.1 | G163: 83 | H163: 84.4 | I163: 84 | J163: 79.04761905 | K163: 80.38277512 | L163: 85.46255507 | M163: 82.29197881 | N163: 82.12337588 | O163: 81.95477295 | P163: 81.78617002 | Q163: 81.6175671 | R163: 81.44896417 | S163: 81.28036124 | T163: 81.11175831 | U163: 80.94315538 | V163: 80.77455245 | W163: 80.94315538 | X163: 80.8869544 | Y163: 80.86822074 | Z163: 80.89944351 | AA163: 80.88487288 | AB163: 80.88417904 | AC163: 80.88949848 | AD163: 80.88618347 | AE163: 80.88662033 | AF163: 80.88743409 | AG163: 80.88674596 | AH163: 80.88693346 | AI163: 80.88703784 | AJ163: 80.88690576 | AK163: 80.88695902 | AL163: 80.88696754 | AM163: 80.8869441 | AN163: 80.88695689 | AO163: 80.88695618 | AP163: 80.88695239 | AQ163: 80.88695515 | AR163: 80.88695457
A164: 1600000US2020300 | B164: Elk Falls | C164: 89.6 | D164: 90.8 | E164: 91.9 | F164: 94.7 | G164: 88.9 | H164: 75.6 | I164: 84.7 | J164: 73.84615385 | K164: 73.23943662 | L164: 82.43243243 | M164: 73.87175954 | N164: 71.92629722 | O164: 69.9808349 | P164: 68.03537258 | Q164: 66.08991026 | R164: 64.14444795 | S164: 62.19898563 | T164: 60.25352331 | U164: 58.30806099 | V164: 56.36259867 | W164: 58.30806099 | X164: 57.65957355 | Y164: 57.44341107 | Z164: 57.80368187 | AA164: 57.6355555 | AB164: 57.62754948 | AC164: 57.68892895 | AD164: 57.65067798 | AE164: 57.6557188 | AF164: 57.66510858 | AG164: 57.65716845 | AH164: 57.65933194 | AI164: 57.66053632 | AJ164: 57.65901224 | AK164: 57.65962684 | AL164: 57.65972513 | AM164: 57.65945474 | AN164: 57.65960223 | AO164: 57.65959403 | AP164: 57.65955034 | AQ164: 57.6595822 | AR164: 57.65957552
A165: 1600000US2020350 | B165: Elkhart | C165: 87.4 | D165: 85.4 | E165: 82.4 | F165: 84.9 | G165: 84.8 | H165: 84.9 | I165: 87.1 | J165: 83.71934605 | K165: 84.31818182 | L165: 87.53138075 | M165: 85.47710519 | N165: 85.51896234 | O165: 85.56081949 | P165: 85.60267664 | Q165: 85.64453379 | R165: 85.68639094 | S165: 85.72824809 | T165: 85.77010524 | U165: 85.81196239 | V165: 85.85381954 | W165: 85.81196239 | X165: 85.82591477 | Y165: 85.83056556 | Z165: 85.82281424 | AA165: 85.82643153 | AB165: 85.82660378 | AC165: 85.82528318 | AD165: 85.82610616 | AE165: 85.82599771 | AF165: 85.82579568 | AG165: 85.82596652 | AH165: 85.82591997 | AI165: 85.82589406 | AJ165: 85.82592685 | AK165: 85.82591362 | AL165: 85.82591151 | AM165: 85.82591733 | AN165: 85.82591415 | AO165: 85.82591433 | AP165: 85.82591527 | AQ165: 85.82591458 | AR165: 85.82591473
A166: 1600000US2020425 | B166: Ellinwood | C166: 93.2 | D166: 88.6 | E166: 90.7 | F166: 88.8 | G166: 87.1 | H166: 84.7 | I166: 87.5 | J166: 84.61088356 | K166: 86.27015008 | L166: 87.70086527 | M166: 84.49996508 | N166: 83.87846966 | O166: 83.25697424 | P166: 82.63547882 | Q166: 82.0139834 | R166: 81.39248798 | S166: 80.77099257 | T166: 80.14949715 | U166: 79.52800173 | V166: 78.90650631 | W166: 79.52800173 | X166: 79.32083659 | Y166: 79.25178154 | Z166: 79.36687328 | AA166: 79.3131638 | AB166: 79.31060621 | AC166: 79.33021443 | AD166: 79.31799481 | AE166: 79.31960515 | AF166: 79.3226048 | AG166: 79.32006826 | AH166: 79.3207594 | AI166: 79.32114415 | AJ166: 79.32065727 | AK166: 79.32085361 | AL166: 79.32088501 | AM166: 79.32079863 | AN166: 79.32084575 | AO166: 79.32084313 | AP166: 79.32082917 | AQ166: 79.32083935 | AR166: 79.32083722
A167: 1600000US2020450 | B167: Ellis | C167: 91 | D167: 88.8 | E167: 89 | F167: 87.9 | G167: 87 | H167: 87.7 | I167: 86.5 | J167: 87.46701847 | K167: 89.2494929 | L167: 90.94622192 | M167: 88.27285799 | N167: 88.22132793 | O167: 88.16979787 | P167: 88.11826781 | Q167: 88.06673775 | R167: 88.01520769 | S167: 87.96367763 | T167: 87.91214757 | U167: 87.86061751 | V167: 87.80908744 | W167: 87.86061751 | X167: 87.84344082 | Y167: 87.83771526 | Z167: 87.84725786 | AA167: 87.84280464 | AB167: 87.84259259 | AC167: 87.84421836 | AD167: 87.8432052 | AE167: 87.84333872 | AF167: 87.84358743 | AG167: 87.84337711 | AH167: 87.84343442 | AI167: 87.84346632 | AJ167: 87.84342595 | AK167: 87.84344223 | AL167: 87.84344483 | AM167: 87.84343767 | AN167: 87.84344158 | AO167: 87.84344136 | AP167: 87.8434402 | AQ167: 87.84344105 | AR167: 87.84344087
A168: 1600000US2020500 | B168: Ellsworth | C168: 89.5 | D168: 88.6 | E168: 89.6 | F168: 88.7 | G168: 85.9 | H168: 87.4 | I168: 88.5 | J168: 85.33487298 | K168: 85.6918239 | L168: 87.039239 | M168: 85.52893636 | N168: 85.14754414 | O168: 84.76615192 | P168: 84.38475969 | Q168: 84.00336747 | R168: 83.62197525 | S168: 83.24058302 | T168: 82.8591908 | U168: 82.47779858 | V168: 82.09640635 | W168: 82.47779858 | X168: 82.35066784 | Y168: 82.30829092 | Z168: 82.37891911 | AA168: 82.34595929 | AB168: 82.34438977 | AC168: 82.35642273 | AD168: 82.34892393 | AE168: 82.34991214 | AF168: 82.35175293 | AG168: 82.35019634 | AH168: 82.35062047 | AI168: 82.35085658 | AJ168: 82.3505578 | AK168: 82.35067828 | AL168: 82.35069755 | AM168: 82.35064454 | AN168: 82.35067346 | AO168: 82.35067185 | AP168: 82.35066328 | AQ168: 82.35066953 | AR168: 82.35066822
A169: 1600000US2020675 | B169: Elmdale | C169: 75.9 | D169: 100 | E169: 96.6 | F169: 95.7 | G169: 66.7 | H169: 67.3 | I169: 66.7 | J169: 63.26530612 | K169: 67.79661017 | L169: 90 | M169: 67.27628502 | N169: 65.14539291 | O169: 63.0145008 | P169: 60.88360869 | Q169: 58.75271658 | R169: 56.62182447 | S169: 54.49093236 | T169: 52.36004025 | U169: 50.22914814 | V169: 48.09825603 | W169: 50.22914814 | X169: 49.51885077 | Y169: 49.28208498 | Z169: 49.67669463 | AA169: 49.49254346 | AB169: 49.48377436 | AC169: 49.55100415 | AD169: 49.50910732 | AE169: 49.51462861 | AF169: 49.52491336 | AG169: 49.51621643 | AH169: 49.51858613 | AI169: 49.51990531 | AJ169: 49.51823596 | AK169: 49.51890913 | AL169: 49.5190168 | AM169: 49.51872063 | AN169: 49.51888219 | AO169: 49.51887321 | AP169: 49.51882534 | AQ169: 49.51886024 | AR169: 49.51885293
A170: 1600000US2020875 | B170: Elsmore | C170: 89.1 | D170: 80.7 | E170: 82.6 | F170: 78.6 | G170: 79.2 | H170: 75.4 | I170: 84.8 | J170: 83.92857143 | K170: 87.5 | L170: 88.23529412 | M170: 85.04840336 | N170: 85.41967914 | O170: 85.79095493 | P170: 86.16223071 | Q170: 86.53350649 | R170: 86.90478228 | S170: 87.27605806 | T170: 87.64733384 | U170: 88.01860963 | V170: 88.38988541 | W170: 88.01860963 | X170: 88.14236822 | Y170: 88.18362108 | Z170: 88.11486631 | AA170: 88.14695187 | AB170: 88.14847976 | AC170: 88.13676598 | AD170: 88.14406587 | AE170: 88.14310387 | AF170: 88.14131191 | AG170: 88.14282721 | AH170: 88.14241433 | AI170: 88.14218448 | AJ170: 88.14247534 | AK170: 88.14235805 | AL170: 88.14233929 | AM170: 88.1423909 | AN170: 88.14236275 | AO170: 88.14236431 | AP170: 88.14237265 | AQ170: 88.14236657 | AR170: 88.14236784
A171: 1600000US2020950 | B171: Elwood | C171: 73.6 | D171: 76.6 | E171: 76.6 | F171: 82.2 | G171: 81.4 | H171: 84 | I171: 87.5 | J171: 81.75 | K171: 78.40440165 | L171: 78.81481481 | M171: 83.54739314 | N171: 84.17656978 | O171: 84.80574641 | P171: 85.43492305 | Q171: 86.06409969 | R171: 86.69327632 | S171: 87.32245296 | T171: 87.95162959 | U171: 88.58080623 | V171: 89.20998286 | W171: 88.58080623 | X171: 88.79053177 | Y171: 88.86044029 | Z171: 88.7439261 | AA171: 88.79829939 | AB171: 88.80088859 | AC171: 88.78103802 | AD171: 88.79340867 | AE171: 88.79177843 | AF171: 88.78874171 | AG171: 88.7913096 | AH171: 88.79060991 | AI171: 88.79022041 | AJ171: 88.79071331 | AK171: 88.79051454 | AL171: 88.79048275 | AM171: 88.7905702 | AN171: 88.7905225 | AO171: 88.79052515 | AP171: 88.79053928 | AQ171: 88.79052898 | AR171: 88.79053114
A172: 1600000US2021100 | B172: Emmett | C172: 87.3 | D172: 91.8 | E172: 90 | F172: 91.5 | G172: 91.4 | H172: 81.3 | I172: 87.3 | J172: 85.18518519 | K172: 84.70588235 | L172: 86.50793651 | M172: 84.24785144 | N172: 83.62020617 | O172: 82.9925609 | P172: 82.36491564 | Q172: 81.73727037 | R172: 81.1096251 | S172: 80.48197984 | T172: 79.85433457 | U172: 79.2266893 | V172: 78.59904404 | W172: 79.2266893 | X172: 79.01747421 | Y172: 78.94773585 | Z172: 79.06396646 | AA172: 79.00972551 | AB172: 79.0071426 | AC172: 79.02694485 | AD172: 79.01460432 | AE172: 79.01623059 | AF172: 79.01925992 | AG172: 79.01669828 | AH172: 79.01739627 | AI172: 79.01778482 | AJ172: 79.01729312 | AK172: 79.0174914 | AL172: 79.01752312 | AM172: 79.01743588 | AN172: 79.01748347 | AO172: 79.01748082 | AP172: 79.01746672 | AQ172: 79.017477 | AR172: 79.01747485
A173: 1600000US2021275 | B173: Emporia | C173: 81.2 | D173: 83.5 | E173: 84.9 | F173: 84.2 | G173: 84.6 | H173: 85.6 | I173: 86.3 | J173: 88.9017159 | K173: 88.89934641 | L173: 88.65968586 | M173: 90.08411406 | N173: 90.88557573 | O173: 91.68703741 | P173: 92.48849909 | Q173: 93.28996077 | R173: 94.09142245 | S173: 94.89288413 | T173: 95.69434581 | U173: 96.49580749 | V173: 97.29726917 | W173: 96.49580749 | X173: 96.76296139 | Y173: 96.85201268 | Z173: 96.70359385 | AA173: 96.77285597 | AB173: 96.77615417 | AC173: 96.750868 | AD173: 96.76662605 | AE173: 96.76454941 | AF173: 96.76068115 | AG173: 96.7639522 | AH173: 96.76306092 | AI173: 96.76256476 | AJ173: 96.76319263 | AK173: 96.76293943 | AL173: 96.76289894 | AM173: 96.76301033 | AN173: 96.76294957 | AO173: 96.76295295 | AP173: 96.76297095 | AQ173: 96.76295782 | AR173: 96.76296057
A174: 1600000US2021350 | B174: Englewood | C174: 74 | D174: 72.6 | E174: 89.2 | F174: 97.3 | G174: 98.7 | H174: 98.2 | I174: 96.4 | J174: 96.15384615 | K174: 95.91836735 | L174: 100 | M174: 100 | N174: 100 | O174: 100 | P174: 100 | Q174: 100 | R174: 100 | S174: 100 | T174: 100 | U174: 100 | V174: 100 | W174: 100 | X174: 100 | Y174: 100 | Z174: 100 | AA174: 100 | AB174: 100 | AC174: 100 | AD174: 100 | AE174: 100 | AF174: 100 | AG174: 100 | AH174: 100 | AI174: 100 | AJ174: 100 | AK174: 100 | AL174: 100 | AM174: 100 | AN174: 100 | AO174: 100 | AP174: 100 | AQ174: 100 | AR174: 100
A175: 1600000US2021400 | B175: Ensign | C175: 68.7 | D175: 76.4 | E175: 71.1 | F175: 57.7 | G175: 53.9 | H175: 61.1 | I175: 62.4 | J175: 64.64646465 | K175: 70.37037037 | L175: 72.99270073 | M175: 65.44626099 | N175: 65.35813506 | O175: 65.27000914 | P175: 65.18188321 | Q175: 65.09375729 | R175: 65.00563136 | S175: 64.91750544 | T175: 64.82937951 | U175: 64.74125359 | V175: 64.65312766 | W175: 64.74125359 | X175: 64.71187828 | Y175: 64.70208651 | Z175: 64.71840613 | AA175: 64.71079031 | AB175: 64.71042765 | AC175: 64.71320803 | AD175: 64.71147533 | AE175: 64.71170367 | AF175: 64.71212901 | AG175: 64.71176933 | AH175: 64.71186734 | AI175: 64.71192189 | AJ175: 64.71185285 | AK175: 64.71188069 | AL175: 64.71188515 | AM175: 64.7118729 | AN175: 64.71187958 | AO175: 64.71187921 | AP175: 64.71187723 | AQ175: 64.71187867 | AR175: 64.71187837
A176: 1600000US2021425 | B176: Enterprise | C176: 85 | D176: 85.7 | E176: 87.3 | F176: 90.7 | G176: 90 | H176: 89.6 | I176: 92.5 | J176: 90.625 | K176: 91.60401003 | L176: 92.27748691 | M176: 93.81233144 | N176: 94.59081903 | O176: 95.36930662 | P176: 96.14779421 | Q176: 96.9262818 | R176: 97.70476939 | S176: 98.48325698 | T176: 99.26174457 | U176: 100 | V176: 100 | W176: 99.75391486 | X176: 99.91797162 | Y176: 99.89062883 | Z176: 99.85417177 | AA176: 99.88759074 | AB176: 99.87746378 | AC176: 99.87307543 | AD176: 99.87937665 | AE176: 99.87663862 | AF176: 99.87636356 | AG176: 99.87745961 | AH176: 99.8768206 | AI176: 99.87688126 | AJ176: 99.87705382 | AK176: 99.87691856 | AL176: 99.87695121 | AM176: 99.87697453 | AN176: 99.8769481 | AO176: 99.87695795 | AP176: 99.87696019 | AQ176: 99.87695541 | AR176: 99.87695785
A177: 1600000US2021500 | B177: Erie | C177: 88 | D177: 89.7 | E177: 86.7 | F177: 88.8 | G177: 89.1 | H177: 93.3 | I177: 91.2 | J177: 92.32673267 | K177: 90.6323185 | L177: 90.77526987 | M177: 92.42134283 | N177: 92.85187205 | O177: 93.28240127 | P177: 93.7129305 | Q177: 94.14345972 | R177: 94.57398894 | S177: 95.00451816 | T177: 95.43504739 | U177: 95.86557661 | V177: 96.29610583 | W177: 95.86557661 | X177: 96.00908635 | Y177: 96.05692293 | Z177: 95.9771953 | AA177: 96.01440153 | AB177: 96.01617325 | AC177: 96.00259002 | AD177: 96.01105493 | AE177: 96.0099394 | AF177: 96.00786145 | AG177: 96.0096186 | AH177: 96.00913982 | AI177: 96.00887329 | AJ177: 96.00921057 | AK177: 96.00907456 | AL177: 96.00905281 | AM177: 96.00911264 | AN177: 96.00908 | AO177: 96.00908182 | AP177: 96.00909149 | AQ177: 96.00908444 | AR177: 96.00908591
A178: 1600000US2021600 | B178: Esbon | C178: 86.5 | D178: 81.4 | E178: 91.2 | F178: 83 | G178: 85.4 | H178: 87.4 | I178: 90.6 | J178: 92.72727273 | K178: 95.45454545 | L178: 95.6043956 | M178: 96.02054612 | N178: 97.30998698 | O178: 98.59942784 | P178: 99.88886871 | Q178: 100 | R178: 100 | S178: 100 | T178: 100 | U178: 100 | V178: 100 | W178: 100 | X178: 100 | Y178: 100 | Z178: 100 | AA178: 100 | AB178: 100 | AC178: 100 | AD178: 100 | AE178: 100 | AF178: 100 | AG178: 100 | AH178: 100 | AI178: 100 | AJ178: 100 | AK178: 100 | AL178: 100 | AM178: 100 | AN178: 100 | AO178: 100 | AP178: 100 | AQ178: 100 | AR178: 100
A179: 1600000US2021650 | B179: Eskridge | C179: 91.8 | D179: 95.9 | E179: 97.7 | F179: 96.4 | G179: 96.7 | H179: 92.5 | I179: 90.1 | J179: 86.0619469 | K179: 88.04347826 | L179: 91.46067416 | M179: 88.02194826 | N179: 87.17746432 | O179: 86.33298038 | P179: 85.48849643 | Q179: 84.64401249 | R179: 83.79952855 | S179: 82.95504461 | T179: 82.11056067 | U179: 81.26607673 | V179: 80.42159279 | W179: 81.26607673 | X179: 80.98458208 | Y179: 80.89075053 | Z179: 81.04713645 | AA179: 80.97415636 | AB179: 80.97068111 | AC179: 80.99732464 | AD179: 80.9807207 | AE179: 80.98290882 | AF179: 80.98698472 | AG179: 80.98353808 | AH179: 80.98447721 | AI179: 80.985 | AJ179: 80.98433843 | AK179: 80.98460521 | AL179: 80.98464788 | AM179: 80.98453051 | AN179: 80.98459453 | AO179: 80.98459097 | AP179: 80.98457201 | AQ179: 80.98458584 | AR179: 80.98458294
A180: 1600000US2021675 | B180: Eudora | C180: 95.7 | D180: 94.5 | E180: 94.3 | F180: 93.7 | G180: 91.6 | H180: 91.7 | I180: 93.6 | J180: 91.79049939 | K180: 93.33333333 | L180: 95.75757576 | M180: 92.91827459 | N180: 92.79466254 | O180: 92.67105049 | P180: 92.54743844 | Q180: 92.42382639 | R180: 92.30021435 | S180: 92.1766023 | T180: 92.05299025 | U180: 91.9293782 | V180: 91.80576615 | W180: 91.9293782 | X180: 91.88817419 | Y180: 91.87443951 | Z180: 91.89733063 | AA180: 91.88664811 | AB180: 91.88613942 | AC180: 91.89003939 | AD180: 91.88760897 | AE180: 91.88792926 | AF180: 91.88852587 | AG180: 91.88802137 | AH180: 91.88815883 | AI180: 91.88823536 | AJ180: 91.88813852 | AK180: 91.88817757 | AL180: 91.88818382 | AM180: 91.88816664 | AN180: 91.88817601 | AO180: 91.88817549 | AP180: 91.88817271 | AQ180: 91.88817474 | AR180: 91.88817431
A181: 1600000US2021800 | B181: Eureka | C181: 87.4 | D181: 89.6 | E181: 91.4 | F181: 91.2 | G181: 90.1 | H181: 90.4 | I181: 88.5 | J181: 87.04008786 | K181: 88.39184598 | L181: 89.62536023 | M181: 88.76478285 | N181: 88.65551984 | O181: 88.54625683 | P181: 88.43699382 | Q181: 88.32773081 | R181: 88.2184678 | S181: 88.10920479 | T181: 87.99994177 | U181: 87.89067876 | V181: 87.78141575 | W181: 87.89067876 | X181: 87.85425776 | Y181: 87.84211743 | Z181: 87.86235132 | AA181: 87.85290883 | AB181: 87.85245919 | AC181: 87.85590645 | AD181: 87.85375816 | AE181: 87.85404127 | AF181: 87.85456862 | AG181: 87.85412268 | AH181: 87.85424419 | AI181: 87.85431183 | AJ181: 87.85422624 | AK181: 87.85426075 | AL181: 87.85426627 | AM181: 87.85425109 | AN181: 87.85425937 | AO181: 87.85425891 | AP181: 87.85425646 | AQ181: 87.85425825 | AR181: 87.85425787
A182: 1600000US2022025 | B182: Everest | C182: 85.8 | D182: 86.2 | E182: 86.5 | F182: 93.2 | G182: 93.6 | H182: 90.9 | I182: 93.5 | J182: 91.85185185 | K182: 94.39655172 | L182: 97.32142857 | M182: 97.52791583 | N182: 98.65535812 | O182: 99.78280042 | P182: 100 | Q182: 100 | R182: 100 | S182: 100 | T182: 100 | U182: 100 | V182: 100 | W182: 100 | X182: 100 | Y182: 100 | Z182: 100 | AA182: 100 | AB182: 100 | AC182: 100 | AD182: 100 | AE182: 100 | AF182: 100 | AG182: 100 | AH182: 100 | AI182: 100 | AJ182: 100 | AK182: 100 | AL182: 100 | AM182: 100 | AN182: 100 | AO182: 100 | AP182: 100 | AQ182: 100 | AR182: 100
A183: 1600000US2022425 | B183: Fairview | C183: 86 | D183: 91.2 | E183: 90.5 | F183: 94.9 | G183: 91 | H183: 89.1 | I183: 90.4 | J183: 92.85714286 | K183: 91.20879121 | L183: 93.05019305 | M183: 93.01824572 | N183: 93.3812699 | O183: 93.74429408 | P183: 94.10731827 | Q183: 94.47034245 | R183: 94.83336663 | S183: 95.19639082 | T183: 95.559415 | U183: 95.92243918 | V183: 96.28546337 | W183: 95.92243918 | X183: 96.04344724 | Y183: 96.08378326 | Z183: 96.01655656 | AA183: 96.04792902 | AB183: 96.04942295 | AC183: 96.03796951 | AD183: 96.04510716 | AE183: 96.04416654 | AF183: 96.04241441 | AG183: 96.04389604 | AH183: 96.04349233 | AI183: 96.04326759 | AJ183: 96.04355198 | AK183: 96.0434373 | AL183: 96.04341896 | AM183: 96.04346941 | AN183: 96.04344189 | AO183: 96.04344342 | AP183: 96.04345158 | AQ183: 96.04344563 | AR183: 96.04344688
A184: 1600000US2022700 | B184: Fairway | C184: 97.8 | D184: 97.6 | E184: 98.3 | F184: 99.6 | G184: 99.6 | H184: 99.7 | I184: 99.9 | J184: 98.63387978 | K184: 99.21581998 | L184: 99.14559125 | M184: 99.8192111 | N184: 99.9773351 | O184: 100 | P184: 100 | Q184: 100 | R184: 100 | S184: 100 | T184: 100 | U184: 100 | V184: 100 | W184: 100 | X184: 100 | Y184: 100 | Z184: 100 | AA184: 100 | AB184: 100 | AC184: 100 | AD184: 100 | AE184: 100 | AF184: 100 | AG184: 100 | AH184: 100 | AI184: 100 | AJ184: 100 | AK184: 100 | AL184: 100 | AM184: 100 | AN184: 100 | AO184: 100 | AP184: 100 | AQ184: 100 | AR184: 100
A185: 1600000US2022775 | B185: Fall River | C185: 86.8 | D185: 86.7 | E185: 81.5 | F185: 84.4 | G185: 85.5 | H185: 89.5 | I185: 92.5 | J185: 87.61061947 | K185: 88.52459016 | L185: 91 | M185: 91.05102858 | N185: 91.71421178 | O185: 92.37739499 | P185: 93.04057819 | Q185: 93.70376139 | R185: 94.36694459 | S185: 95.0301278 | T185: 95.693311 | U185: 96.3564942 | V185: 97.01967741 | W185: 96.3564942 | X185: 96.57755527 | Y185: 96.65124229 | Z185: 96.52843059 | AA185: 96.58574272 | AB185: 96.58847187 | AC185: 96.56754839 | AD185: 96.58058766 | AE185: 96.57886931 | AF185: 96.57566845 | AG185: 96.57837514 | AH185: 96.57763763 | AI185: 96.57722707 | AJ185: 96.57774662 | AK185: 96.57753711 | AL185: 96.5775036 | AM185: 96.57759577 | AN185: 96.57754549 | AO185: 96.57754829 | AP185: 96.57756319 | AQ185: 96.57755232 | AR185: 96.5775546
A186: 1600000US2023600 | B186: Florence | C186: 84.4 | D186: 80.3 | E186: 86.1 | F186: 87.5 | G186: 89.3 | H186: 90.3 | I186: 91.9 | J186: 82.06521739 | K186: 87.64044944 | L186: 84.21052632 | M186: 87.82841831 | N186: 88.09329085 | O186: 88.3581634 | P186: 88.62303594 | Q186: 88.88790849 | R186: 89.15278103 | S186: 89.41765358 | T186: 89.68252612 | U186: 89.94739867 | V186: 90.21227121 | W186: 89.94739867 | X186: 90.03568952 | Y186: 90.0651198 | Z186: 90.01606933 | AA186: 90.03895955 | AB186: 90.04004956 | AC186: 90.03169281 | AD186: 90.03690064 | AE186: 90.03621434 | AF186: 90.03493593 | AG186: 90.03601697 | AH186: 90.03572241 | AI186: 90.03555844 | AJ186: 90.03576594 | AK186: 90.03568226 | AL186: 90.03566888 | AM186: 90.03570569 | AN186: 90.03568561 | AO186: 90.03568673 | AP186: 90.03569268 | AQ186: 90.03568834 | AR186: 90.03568925
A187: 1600000US2023650 | B187: Fontana | C187: 90.4 | D187: 92.7 | E187: 90.9 | F187: 80.4 | G187: 84.3 | H187: 83.2 | I187: 77.2 | J187: 76.08695652 | K187: 78.91891892 | L187: 80 | M187: 74.24949471 | N187: 72.58384147 | O187: 70.91818823 | P187: 69.25253499 | Q187: 67.58688174 | R187: 65.9212285 | S187: 64.25557526 | T187: 62.58992202 | U187: 60.92426877 | V187: 59.25861553 | W187: 60.92426877 | X187: 60.36905103 | Y187: 60.18397844 | Z187: 60.49243275 | AA187: 60.34848741 | AB187: 60.34163287 | AC187: 60.39418434 | AD187: 60.36143487 | AE187: 60.36575069 | AF187: 60.37378997 | AG187: 60.36699184 | AH187: 60.36884417 | AI187: 60.36987533 | AJ187: 60.36857045 | AK187: 60.36909665 | AL187: 60.36918081 | AM187: 60.3689493 | AN187: 60.36907559 | AO187: 60.36906856 | AP187: 60.36903115 | AQ187: 60.36905843 | AR187: 60.36905272
A188: 1600000US2023725 | B188: Ford | C188: 67.9 | D188: 79.9 | E188: 76.4 | F188: 79.8 | G188: 78.1 | H188: 89.1 | I188: 88 | J188: 93.87755102 | K188: 91.89189189 | L188: 89.24050633 | M188: 96.72084677 | N188: 99.13900165 | O188: 100 | P188: 100 | Q188: 100 | R188: 100 | S188: 100 | T188: 100 | U188: 100 | V188: 100 | W188: 100 | X188: 100 | Y188: 100 | Z188: 100 | AA188: 100 | AB188: 100 | AC188: 100 | AD188: 100 | AE188: 100 | AF188: 100 | AG188: 100 | AH188: 100 | AI188: 100 | AJ188: 100 | AK188: 100 | AL188: 100 | AM188: 100 | AN188: 100 | AO188: 100 | AP188: 100 | AQ188: 100 | AR188: 100
A189: 1600000US2023825 | B189: Formoso | C189: 78.1 | D189: 79.4 | E189: 81.4 | F189: 81.8 | G189: 88.2 | H189: 88.3 | I189: 89 | J189: 84.61538462 | K189: 79.01234568 | L189: 76.98412698 | M189: 83.51520192 | N189: 83.66684122 | O189: 83.81848053 | P189: 83.97011984 | Q189: 84.12175915 | R189: 84.27339845 | S189: 84.42503776 | T189: 84.57667707 | U189: 84.72831637 | V189: 84.87995568 | W189: 84.72831637 | X189: 84.77886281 | Y189: 84.79571162 | Z189: 84.76763027 | AA189: 84.7807349 | AB189: 84.78135893 | AC189: 84.7765747 | AD189: 84.77955618 | AE189: 84.77916327 | AF189: 84.77843138 | AG189: 84.77905028 | AH189: 84.77888164 | AI189: 84.77878777 | AJ189: 84.77890656 | AK189: 84.77885866 | AL189: 84.778851 | AM189: 84.77887207 | AN189: 84.77886057 | AO189: 84.77886121 | AP189: 84.77886462 | AQ189: 84.77886214 | AR189: 84.77886266
A190: 1600000US2024000 | B190: Fort Scott | C190: 84.3 | D190: 84.8 | E190: 84.3 | F190: 83.9 | G190: 86.2 | H190: 88.2 | I190: 89.4 | J190: 90.0372755 | K190: 89.59214757 | L190: 88.43490305 | M190: 90.84795054 | N190: 91.56277198 | O190: 92.27759343 | P190: 92.99241487 | Q190: 93.70723631 | R190: 94.42205775 | S190: 95.13687919 | T190: 95.85170064 | U190: 96.56652208 | V190: 97.28134352 | W190: 96.56652208 | X190: 96.80479589 | Y190: 96.8842205 | Z190: 96.75184616 | AA190: 96.81362085 | AB190: 96.8165625 | AC190: 96.79400983 | AD190: 96.80806439 | AE190: 96.80621224 | AF190: 96.80276216 | AG190: 96.8056796 | AH190: 96.80488467 | AI190: 96.80444214 | AJ190: 96.80500214 | AK190: 96.80477631 | AL190: 96.8047402 | AM190: 96.80483955 | AN190: 96.80478535 | AO190: 96.80478837 | AP190: 96.80480442 | AQ190: 96.80479271 | AR190: 96.80479517
A191: 1600000US2024175 | B191: Fowler | C191: 87.7 | D191: 87.2 | E191: 87.9 | F191: 87.9 | G191: 89.7 | H191: 80.7 | I191: 80.7 | J191: 79.36507937 | K191: 79.55182073 | L191: 72.75280899 | M191: 74.63575167 | N191: 73.05189363 | O191: 71.46803558 | P191: 69.88417754 | Q191: 68.30031949 | R191: 66.71646145 | S191: 65.13260341 | T191: 63.54874536 | U191: 61.96488732 | V191: 60.38102928 | W191: 61.96488732 | X191: 61.43693464 | Y191: 61.26095041 | Z191: 61.55425746 | AA191: 61.41738084 | AB191: 61.4108629 | AC191: 61.46083373 | AD191: 61.42969249 | AE191: 61.43379638 | AF191: 61.44144087 | AG191: 61.43497658 | AH191: 61.43673794 | AI191: 61.43771846 | AJ191: 61.43647766 | AK191: 61.43697802 | AL191: 61.43705805 | AM191: 61.43683791 | AN191: 61.43695799 | AO191: 61.43695132 | AP191: 61.43691574 | AQ191: 61.43694168 | AR191: 61.43693625
A192: 1600000US2024275 | B192: Frankfort | C192: 83.6 | D192: 87.8 | E192: 87.5 | F192: 89.8 | G192: 90.5 | H192: 88.4 | I192: 90.2 | J192: 90.97605893 | K192: 89.53068592 | L192: 91.31147541 | M192: 92.22843452 | N192: 92.82236406 | O192: 93.41629361 | P192: 94.01022315 | Q192: 94.6041527 | R192: 95.19808224 | S192: 95.79201178 | T192: 96.38594133 | U192: 96.97987087 | V192: 97.57380042 | W192: 96.97987087 | X192: 97.17784739 | Y192: 97.24383956 | Z192: 97.13385261 | AA192: 97.18517985 | AB192: 97.18762401 | AC192: 97.16888549 | AD192: 97.18056311 | AE192: 97.1790242 | AF192: 97.1761576 | AG192: 97.17858164 | AH192: 97.17792115 | AI192: 97.17755346 | AJ192: 97.17801875 | AK192: 97.17783112 | AL192: 97.17780111 | AM192: 97.17788366 | AN192: 97.17783863 | AO192: 97.17784113 | AP192: 97.17785448 | AQ192: 97.17784475 | AR192: 97.17784679
A193: 1600000US2024575 | B193: Fredonia | C193: 80.8 | D193: 79.9 | E193: 79.9 | F193: 82.7 | G193: 82.9 | H193: 87.4 | I193: 87.6 | J193: 86.08037274 | K193: 83.31428571 | L193: 86.16462347 | M193: 87.75204402 | N193: 88.49315599 | O193: 89.23426796 | P193: 89.97537993 | Q193: 90.7164919 | R193: 91.45760387 | S193: 92.19871584 | T193: 92.93982781 | U193: 93.68093978 | V193: 94.42205175 | W193: 93.68093978 | X193: 93.9279771 | Y193: 94.01032287 | Z193: 93.87307992 | AA193: 93.93712663 | AB193: 93.94017647 | AC193: 93.91679434 | AD193: 93.93136582 | AE193: 93.92944554 | AF193: 93.92586857 | AG193: 93.92889331 | AH193: 93.92806914 | AI193: 93.92761034 | AJ193: 93.92819093 | AK193: 93.9279568 | AL193: 93.92791936 | AM193: 93.92802236 | AN193: 93.92796617 | AO193: 93.9279693 | AP193: 93.92798594 | AQ193: 93.92797381 | AR193: 93.92797635
A194: 1600000US2024850 | B194: Frontenac | C194: 90.2 | D194: 90.5 | E194: 87.4 | F194: 89.6 | G194: 91.1 | H194: 93.5 | I194: 94.9 | J194: 94.75446429 | K194: 95.83958021 | L194: 97.23577236 | M194: 97.69535949 | N194: 98.63942818 | O194: 99.58349687 | P194: 100 | Q194: 100 | R194: 100 | S194: 100 | T194: 100 | U194: 100 | V194: 100 | W194: 100 | X194: 100 | Y194: 100 | Z194: 100 | AA194: 100 | AB194: 100 | AC194: 100 | AD194: 100 | AE194: 100 | AF194: 100 | AG194: 100 | AH194: 100 | AI194: 100 | AJ194: 100 | AK194: 100 | AL194: 100 | AM194: 100 | AN194: 100 | AO194: 100 | AP194: 100 | AQ194: 100 | AR194: 100
A195: 1600000US2024925 | B195: Fulton | C195: 96.6 | D195: 92.2 | E195: 89.6 | F195: 87.5 | G195: 89.1 | H195: 87.8 | I195: 94.8 | J195: 97.70114943 | K195: 97.33333333 | L195: 98.71794872 | M195: 97.00526378 | N195: 97.70890389 | O195: 98.41254401 | P195: 99.11618412 | Q195: 99.81982424 | R195: 100 | S195: 100 | T195: 100 | U195: 100 | V195: 100 | W195: 100 | X195: 100 | Y195: 100 | Z195: 100 | AA195: 100 | AB195: 100 | AC195: 100 | AD195: 100 | AE195: 100 | AF195: 100 | AG195: 100 | AH195: 100 | AI195: 100 | AJ195: 100 | AK195: 100 | AL195: 100 | AM195: 100 | AN195: 100 | AO195: 100 | AP195: 100 | AQ195: 100 | AR195: 100
A196: 1600000US2025050 | B196: Galatia | C196: 100 | D196: 100 | E196: 100 | F196: 100 | G196: 100 | H196: 100 | I196: 100 | J196: 100 | K196: 100 | L196: 100 | M196: 100 | N196: 100 | O196: 100 | P196: 100 | Q196: 100 | R196: 100 | S196: 100 | T196: 100 | U196: 100 | V196: 100 | W196: 100 | X196: 100 | Y196: 100 | Z196: 100 | AA196: 100 | AB196: 100 | AC196: 100 | AD196: 100 | AE196: 100 | AF196: 100 | AG196: 100 | AH196: 100 | AI196: 100 | AJ196: 100 | AK196: 100 | AL196: 100 | AM196: 100 | AN196: 100 | AO196: 100 | AP196: 100 | AQ196: 100 | AR196: 100
A197: 1600000US2025100 | B197: Galena | C197: 79.7 | D197: 78.9 | E197: 79.1 | F197: 81.3 | G197: 77.3 | H197: 80.8 | I197: 81.7 | J197: 85.64487633 | K197: 87.31790917 | L197: 89.25909689 | M197: 88.1815755 | N197: 89.28691864 | O197: 90.39226177 | P197: 91.49760491 | Q197: 92.60294805 | R197: 93.70829119 | S197: 94.81363433 | T197: 95.91897746 | U197: 97.0243206 | V197: 98.12966374 | W197: 97.0243206 | X197: 97.39276832 | Y197: 97.51558422 | Z197: 97.31089105 | AA197: 97.40641453 | AB197: 97.41096326 | AC197: 97.37608961 | AD197: 97.39782247 | AE197: 97.39495845 | AF197: 97.38962351 | AG197: 97.39413481 | AH197: 97.39290559 | AI197: 97.3922213 | AJ197: 97.39308723 | AK197: 97.39273804 | AL197: 97.39268219 | AM197: 97.39283582 | AN197: 97.39275202 | AO197: 97.39275668 | AP197: 97.39278151 | AQ197: 97.3927634 | AR197: 97.3927672
A198: 1600000US2025150 | B198: Galesburg | C198: 89 | D198: 85.9 | E198: 86.1 | F198: 89.5 | G198: 92.3 | H198: 88.4 | I198: 85.9 | J198: 86.84210526 | K198: 75 | L198: 63 | M198: 73.4845614 | N198: 71.53735247 | O198: 69.59014354 | P198: 67.64293461 | Q198: 65.69572568 | R198: 63.74851675 | S198: 61.80130781 | T198: 59.85409888 | U198: 57.90688995 | V198: 55.95968102 | W198: 57.90688995 | X198: 57.25782031 | Y198: 57.04146376 | Z198: 57.40205801 | AA198: 57.23378069 | AB198: 57.22576749 | AC198: 57.28720206 | AD198: 57.24891675 | AE198: 57.2539621 | AF198: 57.2633603 | AG198: 57.25541305 | AH198: 57.25757848 | AI198: 57.25878394 | AJ198: 57.25725849 | AK198: 57.25787364 | AL198: 57.25797203 | AM198: 57.25770139 | AN198: 57.25784902 | AO198: 57.25784081 | AP198: 57.25779707 | AQ198: 57.25782897 | AR198: 57.25782228
A199: 1600000US2025200 | B199: Galva | C199: 79.4 | D199: 81.3 | E199: 85.3 | F199: 87 | G199: 88.9 | H199: 90.7 | I199: 89.9 | J199: 86.69891173 | K199: 87.46987952 | L199: 85.73200993 | M199: 90.1624736 | N199: 90.87563606 | O199: 91.58879851 | P199: 92.30196096 | Q199: 93.01512341 | R199: 93.72828586 | S199: 94.44144832 | T199: 95.15461077 | U199: 95.86777322 | V199: 96.58093567 | W199: 95.86777322 | X199: 96.10549404 | Y199: 96.18473431 | Z199: 96.05266719 | AA199: 96.11429851 | AB199: 96.11723334 | AC199: 96.09473301 | AD199: 96.10875496 | AE199: 96.1069071 | AF199: 96.10346502 | AG199: 96.10637569 | AH199: 96.10558261 | AI199: 96.10514111 | AJ199: 96.1056998 | AK199: 96.10547451 | AL199: 96.10543847 | AM199: 96.10553759 | AN199: 96.10548352 | AO199: 96.10548653 | AP199: 96.10550255 | AQ199: 96.10549087 | AR199: 96.10549332
A200: 1600000US2025325 | B200: Garden City | C200: 68.2 | D200: 69.2 | E200: 69.6 | F200: 68.8 | G200: 69.7 | H200: 70.7 | I200: 71.9 | J200: 72.41768276 | K200: 71.84502238 | L200: 71.6066482 | M200: 72.84904881 | N200: 73.29488762 | O200: 73.74072644 | P200: 74.18656525 | Q200: 74.63240407 | R200: 75.07824288 | S200: 75.52408169 | T200: 75.96992051 | U200: 76.41575932 | V200: 76.86159814 | W200: 76.41575932 | X200: 76.56437226 | Y200: 76.61390991 | Z200: 76.53134716 | AA200: 76.56987644 | AB200: 76.57171117 | AC200: 76.55764493 | AD200: 76.56641085 | AE200: 76.56525565 | AF200: 76.56310381 | AG200: 76.56492343 | AH200: 76.56442763 | AI200: 76.56415162 | AJ200: 76.5645009 | AK200: 76.56436005 | AL200: 76.56433752 | AM200: 76.56439949 | AN200: 76.56436569 | AO200: 76.56436757 | AP200: 76.56437758 | AQ200: 76.56437028 | AR200: 76.56437181
... 419 more rows

Sheet Bachelors (hidden)
A1: GEO_ID | B1: NAME | C1: ED_BACH_10 | D1: ED_BACH_11 | E1: ED_BACH_12 | F1: ED_BACH_13 | G1: ED_BACH_14 | H1: ED_BACH_15 | I1: ED_BACH_16 | J1: ED_BACH_17 | K1: ED_BACH_18 | L1: ED_BACH_19 | M1: ED_BACH_20 | N1: ED_BACH_21 | O1: ED_BACH_22 | P1: ED_BACH_23 | Q1: ED_BACH_24 | R1: ED_BACH_25 | S1: ED_BACH_26 | T1: ED_BACH_27 | U1: ED_BACH_28 | V1: ED_BACH_29 | W1: ED_BACH_30 | X1: ED_BACH_31 | Y1: ED_BACH_32 | Z1: ED_BACH_33 | AA1: ED_BACH_34 | AB1: ED_BACH_35 | AC1: ED_BACH_36 | AD1: ED_BACH_37 | AE1: ED_BACH_38 | AF1: ED_BACH_39 | AG1: ED_BACH_40 | AH1: ED_BACH_41 | AI1: ED_BACH_42 | AJ1: ED_BACH_43 | AK1: ED_BACH_44 | AL1: ED_BACH_45 | AM1: ED_BACH_46 | AN1: ED_BACH_47 | AO1: ED_BACH_48 | AP1: ED_BACH_49 | AQ1: ED_BACH_50 | AR1: ED_BACH_51
A2: 1600000US2000100 | B2: Abbyville | C2: 17.7 | D2: 18.5 | E2: 10.8 | F2: 9.2 | G2: 10.1 | H2: 3 | I2: 3.8 | J2: 6.25 | K2: 4.47761194 | L2: 6.25 | M2: 5.65920398 | N2: 5.462271973 | O2: 5.790491985 | P2: 5.637322646 | Q2: 5.630028868 | R2: 5.685947833 | S2: 5.651099782 | T2: 5.655692161 | U2: 5.664246592 | V2: 5.657012845 | W2: 5.658983866 | X2: 5.660081101 | Y2: 5.658692604 | Z2: 5.659252524 | AA2: 5.659342076 | AB2: 5.659095735 | AC2: 5.659230112 | AD2: 5.659222641 | AE2: 5.659182829 | AF2: 5.659211861 | AG2: 5.659205777 | AH2: 5.659200155 | AI2: 5.659205931 | AJ2: 5.659203954 | AK2: 5.659203347 | AL2: 5.659204411 | AM2: 5.659203904 | AN2: 5.659203887 | AO2: 5.659204067 | AP2: 5.659203953 | AQ2: 5.659203969 | AR2: 5.659203996
A3: 1600000US2000125 | B3: Abilene | C3: 25 | D3: 22.6 | E3: 22.9 | F3: 20.1 | G3: 19.8 | H3: 22.8 | I3: 22.4 | J3: 21.93679918 | K3: 24.79558463 | L3: 25.32840722 | M3: 24.02026368 | N3: 24.71475184 | O3: 24.68780758 | P3: 24.47427437 | Q3: 24.62561127 | R3: 24.59589774 | S3: 24.56526112 | T3: 24.59559004 | U3: 24.58558297 | V3: 24.58214471 | W3: 24.58777257 | X3: 24.58516675 | Y3: 24.58502801 | Z3: 24.58598911 | AA3: 24.58539463 | AB3: 24.58547058 | AC3: 24.58561811 | AD3: 24.58549444 | AE3: 24.58552771 | AF3: 24.58554675 | AG3: 24.58552297 | AH3: 24.58553248 | AI3: 24.58553407 | AJ3: 24.58552984 | AK3: 24.58553213 | AL3: 24.58553201 | AM3: 24.58553132 | AN3: 24.58553182 | AO3: 24.58553172 | AP3: 24.58553162 | AQ3: 24.58553172 | AR3: 24.58553169
A4: 1600000US2000325 | B4: Admire | C4: 11.5 | D4: 13.6 | E4: 19.4 | F4: 22 | G4: 17.6 | H4: 14.3 | I4: 18.4 | J4: 18.75 | K4: 17.91044776 | L4: 21.25 | M4: 19.30348259 | N4: 19.48797678 | O4: 20.01381979 | P4: 19.60175972 | Q4: 19.70118543 | R4: 19.77225498 | S4: 19.69173338 | T4: 19.7217246 | U4: 19.72857098 | V4: 19.71400965 | W4: 19.72143508 | X4: 19.72133857 | Y4: 19.71892777 | Z4: 19.72056714 | AA4: 19.72027783 | AB4: 19.71992424 | AC4: 19.7202564 | AD4: 19.72015282 | AE4: 19.72011116 | AF4: 19.72017346 | AG4: 19.72014581 | AH4: 19.72014348 | AI4: 19.72015425 | AJ4: 19.72014785 | AK4: 19.72014853 | AL4: 19.72015021 | AM4: 19.72014886 | AN4: 19.7201492 | AO4: 19.72014942 | AP4: 19.72014916 | AQ4: 19.72014926 | AR4: 19.72014928
A5: 1600000US2000475 | B5: Agenda | C5: 11 | D5: 13 | E5: 9.6 | F5: 13.6 | G5: 13.1 | H5: 22.4 | I5: 16 | J5: 10 | K5: 8.823529412 | L5: 13.7254902 | M5: 10.8496732 | N5: 11.1328976 | O5: 11.902687 | P5: 11.29508594 | Q5: 11.44355685 | R5: 11.54710993 | S5: 11.42858424 | T5: 11.47308367 | U5: 11.48292594 | V5: 11.46153128 | W5: 11.47251363 | X5: 11.47232362 | Y5: 11.46878951 | Z5: 11.47120892 | AA5: 11.47077402 | AB5: 11.47025748 | AC5: 11.47074681 | AD5: 11.47059277 | AE5: 11.47053235 | AF5: 11.47062398 | AG5: 11.47058303 | AH5: 11.47057979 | AI5: 11.4705956 | AJ5: 11.47058614 | AK5: 11.47058718 | AL5: 11.47058964 | AM5: 11.47058765 | AN5: 11.47058816 | AO5: 11.47058848 | AP5: 11.4705881 | AQ5: 11.47058825 | AR5: 11.47058827
A6: 1600000US2000550 | B6: Agra | C6: 8.6 | D6: 7.4 | E6: 12.8 | F6: 13 | G6: 15.1 | H6: 16.1 | I6: 12.4 | J6: 14.22018349 | K6: 11.22994652 | L6: 9.782608696 | M6: 11.74424624 | N6: 10.91893382 | O6: 10.81526292 | P6: 11.15948099 | Q6: 10.96455924 | R6: 10.97976772 | S6: 11.03460265 | T6: 10.99297654 | U6: 11.00244897 | V6: 11.01000938 | W6: 11.00181163 | X6: 11.00475666 | Y6: 11.00552589 | Z6: 11.00403139 | AA6: 11.00477131 | AB6: 11.0047762 | AC6: 11.0045263 | AD6: 11.00469127 | AE6: 11.00466459 | AF6: 11.00462739 | AG6: 11.00466108 | AH6: 11.00465102 | AI6: 11.0046465 | AJ6: 11.00465287 | AK6: 11.00465013 | AL6: 11.00464983 | AM6: 11.00465094 | AN6: 11.0046503 | AO6: 11.00465036 | AP6: 11.00465053 | AQ6: 11.0046504 | AR6: 11.00465043
A7: 1600000US2000825 | B7: Albert | C7: 17 | D7: 20 | E7: 19.7 | F7: 24.5 | G7: 23.9 | H7: 21 | I7: 14.5 | J7: 11.25827815 | K7: 8.527131783 | L7: 12.5 | M7: 10.76180331 | N7: 10.5963117 | O7: 11.28603834 | P7: 10.88138445 | Q7: 10.92124483 | R7: 11.02955587 | S7: 10.94406171 | T7: 10.96495414 | U7: 10.97952391 | V7: 10.96284659 | W7: 10.96910821 | X7: 10.9704929 | Y7: 10.96748257 | Z7: 10.96902789 | AA7: 10.96900112 | AB7: 10.96850386 | AC7: 10.96884429 | AD7: 10.96878309 | AE7: 10.96871041 | AF7: 10.96877926 | AG7: 10.96875759 | AH7: 10.96874909 | AI7: 10.96876198 | AJ7: 10.96875622 | AK7: 10.96875576 | AL7: 10.96875799 | AM7: 10.96875666 | AN7: 10.9687568 | AO7: 10.96875715 | AP7: 10.96875687 | AQ7: 10.96875694 | AR7: 10.96875699
A8: 1600000US2000950 | B8: Alden | C8: 19.2 | D8: 20.6 | E8: 18.3 | F8: 14.3 | G8: 12.7 | H8: 9.7 | I8: 23.9 | J8: 19.40298507 | K8: 14.28571429 | L8: 13.75 | M8: 15.81289979 | N8: 14.61620469 | O8: 14.72636816 | P8: 15.05182421 | Q8: 14.79813235 | R8: 14.85877491 | S8: 14.90291049 | T8: 14.85327258 | U8: 14.87165266 | V8: 14.87594525 | W8: 14.86695683 | X8: 14.87151825 | Y8: 14.87147344 | Z8: 14.86998284 | AA8: 14.87099151 | AB8: 14.87081593 | AC8: 14.87059676 | AD8: 14.8708014 | AE8: 14.87073803 | AF8: 14.87071206 | AG8: 14.8707505 | AH8: 14.87073353 | AI8: 14.87073203 | AJ8: 14.87073869 | AK8: 14.87073475 | AL8: 14.87073515 | AM8: 14.8707362 | AN8: 14.87073537 | AO8: 14.87073557 | AP8: 14.87073571 | AQ8: 14.87073555 | AR8: 14.87073561
A9: 1600000US2001050 | B9: Alexander | C9: 10.2 | D9: 13 | E9: 26.5 | F9: 23.5 | G9: 14.7 | H9: 22.6 | I9: 17.9 | J9: 15.90909091 | K9: 13.63636364 | L9: 10.71428571 | M9: 13.41991342 | N9: 12.59018759 | O9: 12.24146224 | P9: 12.75052108 | Q9: 12.52739031 | R9: 12.50645788 | S9: 12.59478976 | T9: 12.54287931 | U9: 12.54804231 | V9: 12.56190379 | W9: 12.55094181 | X9: 12.55362931 | Y9: 12.55549164 | Z9: 12.55335425 | AA9: 12.5541584 | AB9: 12.55433476 | AC9: 12.55394914 | AD9: 12.55414743 | AE9: 12.55414378 | AF9: 12.55408011 | AG9: 12.55412377 | AH9: 12.55411589 | AI9: 12.55410659 | AJ9: 12.55411542 | AK9: 12.55411263 | AL9: 12.55411155 | AM9: 12.5541132 | AN9: 12.55411246 | AO9: 12.5541124 | AP9: 12.55411269 | AQ9: 12.55411252 | AR9: 12.55411254
A10: 1600000US2001275 | B10: Allen | C10: 22.8 | D10: 23.1 | E10: 29.4 | F10: 18.9 | G10: 16.6 | H10: 12.7 | I10: 10 | J10: 8.805031447 | K10: 7.692307692 | L10: 16.53543307 | M10: 11.01092407 | N10: 11.74622161 | O10: 13.09752625 | P10: 11.95155731 | Q10: 12.26510172 | R10: 12.43806176 | S10: 12.21824027 | T10: 12.30713458 | U10: 12.32114554 | V10: 12.28217346 | W10: 12.30348453 | X10: 12.30226784 | Y10: 12.29597528 | Z10: 12.30057588 | AA10: 12.29960633 | AB10: 12.29871916 | AC10: 12.29963379 | AD10: 12.29931976 | AE10: 12.29922424 | AF10: 12.2993926 | AG10: 12.2993122 | AH10: 12.29930968 | AI10: 12.29933816 | AJ10: 12.29932001 | AK10: 12.29932262 | AL10: 12.29932693 | AM10: 12.29932319 | AN10: 12.29932425 | AO10: 12.29932479 | AP10: 12.29932407 | AQ10: 12.29932437 | AR10: 12.29932441
A11: 1600000US2001350 | B11: Alma | C11: 25.3 | D11: 22.6 | E11: 21.8 | F11: 20.4 | G11: 21.2 | H11: 22.5 | I11: 23.8 | J11: 20.25157233 | K11: 18.86792453 | L11: 19.54350927 | M11: 19.55433538 | N11: 19.32192306 | O11: 19.4732559 | P11: 19.44983811 | Q11: 19.41500569 | R11: 19.44603324 | S11: 19.43695901 | T11: 19.43266598 | U11: 19.43855274 | V11: 19.43605925 | W11: 19.43575932 | X11: 19.43679044 | Y11: 19.436203 | Z11: 19.43625092 | AA11: 19.43641479 | AB11: 19.43628957 | AC11: 19.43631843 | AD11: 19.43634093 | AE11: 19.43631631 | AF11: 19.43632522 | AG11: 19.43632748 | AH11: 19.436323 | AI11: 19.43632524 | AJ11: 19.43632524 | AK11: 19.43632449 | AL11: 19.43632499 | AM11: 19.43632491 | AN11: 19.4363248 | AO11: 19.4363249 | AP11: 19.43632487 | AQ11: 19.43632486 | AR11: 19.43632487
A12: 1600000US2001425 | B12: Almena | C12: 23.6 | D12: 20.4 | E12: 18.7 | F12: 11.2 | G12: 11.1 | H12: 15.8 | I12: 14.9 | J12: 11.2195122 | K12: 14.83870968 | L12: 13.66459627 | M12: 13.24093938 | N12: 13.91474844 | O12: 13.60676137 | P12: 13.58748306 | Q12: 13.70299762 | R12: 13.63241402 | S12: 13.6409649 | T12: 13.65879218 | U12: 13.64405703 | V12: 13.64793804 | W12: 13.65026242 | X12: 13.64741916 | Y12: 13.64853987 | Z12: 13.64874049 | AA12: 13.64823317 | AB12: 13.64850451 | AC12: 13.64849272 | AD12: 13.64841014 | AE12: 13.64846912 | AF12: 13.64845733 | AG12: 13.64844553 | AH12: 13.64845733 | AI12: 13.6484534 | AJ12: 13.64845208 | AK12: 13.64845427 | AL12: 13.64845325 | AM12: 13.6484532 | AN12: 13.64845357 | AO12: 13.64845334 | AP12: 13.64845337 | AQ12: 13.64845343 | AR12: 13.64845338
A13: 1600000US2001575 | B13: Alta Vista | C13: 14.4 | D13: 13.9 | E13: 13.4 | F13: 13.3 | G13: 14.4 | H13: 18.7 | I13: 15 | J13: 15.01210654 | K13: 19.54887218 | L13: 16.57303371 | M13: 17.04467081 | N13: 17.72219223 | O13: 17.11329892 | P13: 17.29338732 | Q13: 17.37629282 | R13: 17.26099302 | S13: 17.31022439 | T13: 17.31583674 | U13: 17.29568472 | V13: 17.30724862 | W13: 17.30625669 | X13: 17.30306334 | Y13: 17.30552288 | Z13: 17.30494764 | AA13: 17.30451129 | AB13: 17.30499394 | AC13: 17.30481762 | AD13: 17.30477428 | AE13: 17.30486195 | AF13: 17.30481795 | AG13: 17.30481806 | AH13: 17.30483265 | AI13: 17.30482289 | AJ13: 17.30482453 | AK13: 17.30482669 | AL13: 17.3048247 | AM13: 17.30482531 | AN13: 17.30482557 | AO13: 17.30482519 | AP13: 17.30482536 | AQ13: 17.30482537 | AR13: 17.30482531
A14: 1600000US2001550 | B14: Altamont | C14: 19.9 | D14: 18 | E14: 22.4 | F14: 20.7 | G14: 23.1 | H14: 24.6 | I14: 30 | J14: 23.24723247 | K14: 23.45013477 | L14: 20.85427136 | M14: 22.51721287 | N14: 22.273873 | O14: 21.88178574 | P14: 22.22429054 | Q14: 22.12664976 | R14: 22.07757534 | S14: 22.14283855 | T14: 22.11568788 | U14: 22.11203392 | V14: 22.12352012 | W14: 22.11708064 | X14: 22.11754489 | Y14: 22.11938188 | Z14: 22.11800247 | AA14: 22.11830975 | AB14: 22.1185647 | AC14: 22.11829231 | AD14: 22.11838892 | AE14: 22.11841531 | AF14: 22.11836551 | AG14: 22.11838992 | AH14: 22.11839025 | AI14: 22.11838189 | AJ14: 22.11838735 | AK14: 22.1183865 | AL14: 22.11838525 | AM14: 22.11838636 | AN14: 22.11838604 | AO14: 22.11838588 | AP14: 22.11838609 | AQ14: 22.118386 | AR14: 22.11838599
A15: 1600000US2001600 | B15: Alton | C15: 10.7 | D15: 11 | E15: 9.7 | F15: 14.1 | G15: 20.9 | H15: 18.4 | I15: 16.7 | J15: 14 | K15: 18.26923077 | L15: 20 | M15: 17.42307692 | N15: 18.56410256 | O15: 18.66239316 | P15: 18.21652422 | Q15: 18.48100665 | R15: 18.45330801 | S15: 18.38361296 | T15: 18.4393092 | U15: 18.42541006 | V15: 18.41611074 | W15: 18.42694333 | X15: 18.42282138 | Y15: 18.42195848 | Z15: 18.42390773 | AA15: 18.42289586 | AB15: 18.42292069 | AC15: 18.42324143 | AD15: 18.42301933 | AE15: 18.42306048 | AF15: 18.42310708 | AG15: 18.4230623 | AH15: 18.42307662 | AI15: 18.423082 | AJ15: 18.42307364 | AK15: 18.42307742 | AL15: 18.42307769 | AM15: 18.42307625 | AN15: 18.42307712 | AO15: 18.42307702 | AP15: 18.42307679 | AQ15: 18.42307698 | AR15: 18.42307693
A16: 1600000US2001625 | B16: Altoona | C16: 3.3 | D16: 3.3 | E16: 2.8 | F16: 7.4 | G16: 5.9 | H16: 7 | I16: 10.4 | J16: 11.65048544 | K16: 9.954751131 | L16: 9.950248756 | M16: 10.51849511 | N16: 10.141165 | O16: 10.20330295 | P16: 10.28765435 | Q16: 10.21070744 | R16: 10.23388825 | S16: 10.24408335 | T16: 10.22955968 | U16: 10.23584376 | V16: 10.23649559 | W16: 10.23396634 | X16: 10.23543523 | Y16: 10.23529906 | Z16: 10.23490021 | AA16: 10.2352115 | AB16: 10.23513692 | AC16: 10.23508288 | AD16: 10.23514377 | AE16: 10.23512119 | AF16: 10.23511594 | AG16: 10.23512697 | AH16: 10.23512137 | AI16: 10.23512142 | AJ16: 10.23512325 | AK16: 10.23512201 | AL16: 10.23512223 | AM16: 10.2351225 | AN16: 10.23512225 | AO16: 10.23512233 | AP16: 10.23512236 | AQ16: 10.23512231 | AR16: 10.23512233
A17: 1600000US2001675 | B17: Americus | C17: 15.9 | D17: 13.6 | E17: 13.3 | F17: 13 | G17: 13.2 | H17: 11.7 | I17: 12.7 | J17: 12.84109149 | K17: 12.16931217 | L17: 10.10248902 | M17: 11.70429756 | N17: 11.32536625 | O17: 11.04405094 | P17: 11.35790492 | Q17: 11.2424407 | R17: 11.21479885 | S17: 11.27171483 | T17: 11.24298479 | U17: 11.24316616 | V17: 11.25262193 | W17: 11.24625763 | X17: 11.24734857 | Y17: 11.24874271 | Z17: 11.24744963 | AA17: 11.24784697 | AB17: 11.2480131 | AC17: 11.2477699 | AD17: 11.24787666 | AE17: 11.24788656 | AF17: 11.24784437 | AG17: 11.2478692 | AH17: 11.24786671 | AI17: 11.24786009 | AJ17: 11.24786533 | AK17: 11.24786404 | AL17: 11.24786316 | AM17: 11.24786418 | AN17: 11.24786379 | AO17: 11.24786371 | AP17: 11.24786389 | AQ17: 11.2478638 | AR17: 11.2478638
A18: 1600000US2001775 | B18: Andale | C18: 26.3 | D18: 26.9 | E18: 30 | F18: 29.7 | G18: 36 | H18: 36.8 | I18: 37.3 | J18: 31.46473779 | K18: 30.86876155 | L18: 29.91150442 | M18: 30.74833459 | N18: 30.50953352 | O18: 30.38979085 | P18: 30.54921965 | Q18: 30.48284801 | R18: 30.47395284 | S18: 30.50200683 | T18: 30.48626922 | U18: 30.48740963 | V18: 30.49189523 | W18: 30.48852469 | X18: 30.48927652 | Y18: 30.48989881 | Z18: 30.48923334 | AA18: 30.48946956 | AB18: 30.4895339 | AC18: 30.48941227 | AD18: 30.48947191 | AE18: 30.48947269 | AF18: 30.48945229 | AG18: 30.48946563 | AH18: 30.48946354 | AI18: 30.48946049 | AJ18: 30.48946322 | AK18: 30.48946242 | AL18: 30.48946204 | AM18: 30.48946256 | AN18: 30.48946234 | AO18: 30.48946231 | AP18: 30.4894624 | AQ18: 30.48946235 | AR18: 30.48946236
A19: 1600000US2001800 | B19: Andover | C19: 44.7 | D19: 47.1 | E19: 46.7 | F19: 45.2 | G19: 47.8 | H19: 46.7 | I19: 46.1 | J19: 44.25175146 | K19: 46.99291105 | L19: 47.79116466 | M19: 46.34527572 | N19: 47.04311714 | O19: 47.05985251 | P19: 46.81608179 | Q19: 46.97301715 | R19: 46.94965048 | S19: 46.91291647 | T19: 46.9451947 | U19: 46.93592055 | V19: 46.93134391 | W19: 46.93748639 | X19: 46.93491695 | Y19: 46.93458241 | Z19: 46.93566192 | AA19: 46.93505376 | AB19: 46.93509936 | AC19: 46.93527168 | AD19: 46.9351416 | AE19: 46.93517088 | AF19: 46.93519472 | AG19: 46.93516907 | AH19: 46.93517822 | AI19: 46.93518067 | AJ19: 46.93517599 | AK19: 46.93517829 | AL19: 46.93517832 | AM19: 46.93517753 | AN19: 46.93517805 | AO19: 46.93517797 | AP19: 46.93517785 | AQ19: 46.93517795 | AR19: 46.93517792
A20: 1600000US2001975 | B20: Anthony | C20: 18.1 | D20: 15.3 | E20: 13.7 | F20: 15.8 | G20: 19 | H20: 21.6 | I20: 23.4 | J20: 19.63574274 | K20: 19.64071856 | L20: 17.40467405 | M20: 18.89371178 | N20: 18.64636813 | O20: 18.31491799 | P20: 18.61833263 | Q20: 18.52653958 | R20: 18.48659674 | S20: 18.54382298 | T20: 18.51898643 | U20: 18.51646872 | V20: 18.52642605 | W20: 18.52062707 | X20: 18.52117394 | Y20: 18.52274235 | Z20: 18.52151445 | AA20: 18.52181025 | AB20: 18.52202235 | AC20: 18.52178235 | AD20: 18.52187165 | AE20: 18.52189212 | AF20: 18.52184871 | AG20: 18.52187083 | AH20: 18.52187055 | AI20: 18.52186336 | AJ20: 18.52186825 | AK20: 18.52186739 | AL20: 18.52186633 | AM20: 18.52186732 | AN20: 18.52186701 | AO20: 18.52186689 | AP20: 18.52186707 | AQ20: 18.52186699 | AR20: 18.52186698
A21: 1600000US2002175 | B21: Arcadia | C21: 9.5 | D21: 9.8 | E21: 7.3 | F21: 4.6 | G21: 4.7 | H21: 5.2 | I21: 7.3 | J21: 7.961783439 | K21: 7.903780069 | L21: 10.56338028 | M21: 8.80964793 | N21: 9.092269427 | O21: 9.488432546 | P21: 9.130116634 | Q21: 9.236939536 | R21: 9.285162905 | S21: 9.217406358 | T21: 9.246502933 | U21: 9.249690732 | V21: 9.237866675 | W21: 9.24468678 | X21: 9.244081396 | Y21: 9.242211617 | Z21: 9.243659931 | AA21: 9.243317648 | AB21: 9.243063065 | AC21: 9.243346881 | AD21: 9.243242531 | AE21: 9.243217493 | AF21: 9.243268968 | AG21: 9.243242997 | AH21: 9.243243153 | AI21: 9.243251706 | AJ21: 9.243245952 | AK21: 9.243246937 | AL21: 9.243248199 | AM21: 9.243247029 | AN21: 9.243247388 | AO21: 9.243247539 | AP21: 9.243247319 | AQ21: 9.243247415 | AR21: 9.243247424
A22: 1600000US2002250 | B22: Argonia | C22: 20.7 | D22: 19.6 | E22: 20.1 | F22: 16.5 | G22: 17.1 | H22: 21.3 | I22: 23.6 | J22: 21.31979695 | K22: 22.13333333 | L22: 22.47191011 | M22: 21.97501347 | N22: 22.19341897 | O22: 22.21344752 | P22: 22.12729332 | Q22: 22.17805327 | R22: 22.17293137 | S22: 22.15942598 | T22: 22.17013687 | U22: 22.16749808 | V22: 22.16568698 | W22: 22.16777398 | X22: 22.16698634 | Y22: 22.16681577 | Z22: 22.16719203 | AA22: 22.16699805 | AB22: 22.16700195 | AC22: 22.16706401 | AD22: 22.16702133 | AE22: 22.1670291 | AF22: 22.16703814 | AG22: 22.16702952 | AH22: 22.16703225 | AI22: 22.16703331 | AJ22: 22.1670317 | AK22: 22.16703242 | AL22: 22.16703247 | AM22: 22.1670322 | AN22: 22.16703236 | AO22: 22.16703234 | AP22: 22.1670323 | AQ22: 22.16703234 | AR22: 22.16703233
A23: 1600000US2002300 | B23: Arkansas City | C23: 13.9 | D23: 13.2 | E23: 13.9 | F23: 14.8 | G23: 15.7 | H23: 16.6 | I23: 16.2 | J23: 14.22678114 | K23: 14.2516466 | L23: 14.7596864 | M23: 14.41270471 | N23: 14.47467924 | O23: 14.54902345 | P23: 14.47880247 | Q23: 14.50083505 | R23: 14.50955366 | S23: 14.49639706 | T23: 14.50226192 | U23: 14.50273755 | V23: 14.50046551 | W23: 14.50182166 | X23: 14.5016749 | Y23: 14.50132069 | Z23: 14.50160575 | AA23: 14.50153378 | AB23: 14.50148674 | AC23: 14.50154209 | AD23: 14.50152087 | AE23: 14.50151657 | AF23: 14.50152651 | AG23: 14.50152132 | AH23: 14.50152147 | AI23: 14.5015231 | AJ23: 14.50152196 | AK23: 14.50152217 | AL23: 14.50152241 | AM23: 14.50152218 | AN23: 14.50152226 | AO23: 14.50152228 | AP23: 14.50152224 | AQ23: 14.50152226 | AR23: 14.50152226
A24: 1600000US2002325 | B24: Arlington | C24: 14.9 | D24: 13.8 | E24: 12.9 | F24: 15.6 | G24: 12.4 | H24: 10.8 | I24: 11.2 | J24: 12.55605381 | K24: 9.307359307 | L24: 10.25641026 | M24: 10.70660779 | N24: 10.09012579 | O24: 10.35104794 | P24: 10.38259384 | Q24: 10.27458919 | R24: 10.33607699 | S24: 10.33108667 | T24: 10.31391762 | U24: 10.32702709 | V24: 10.32401046 | W24: 10.32165173 | X24: 10.32422976 | Y24: 10.32329732 | Z24: 10.3230596 | AA24: 10.32352889 | AB24: 10.32329527 | AC24: 10.32329459 | AD24: 10.32337292 | AE24: 10.32332092 | AF24: 10.32332948 | AG24: 10.32334111 | AH24: 10.3233305 | AI24: 10.32333369 | AJ24: 10.3233351 | AK24: 10.3233331 | AL24: 10.32333397 | AM24: 10.32333406 | AN24: 10.32333371 | AO24: 10.32333391 | AP24: 10.32333389 | AQ24: 10.32333384 | AR24: 10.32333388
A25: 1600000US2002375 | B25: Arma | C25: 14.9 | D25: 13.9 | E25: 14 | F25: 18 | G25: 22.5 | H25: 23.2 | I25: 22.1 | J25: 21.33815552 | K25: 18.38095238 | L25: 15.63071298 | M25: 18.44994029 | N25: 17.48720188 | O25: 17.18928505 | P25: 17.70880908 | Q25: 17.46176534 | R25: 17.45328649 | S25: 17.54128697 | T25: 17.48544626 | U25: 17.49333991 | V25: 17.50669105 | W25: 17.49515907 | X25: 17.49839668 | Y25: 17.50008226 | Z25: 17.49787934 | AA25: 17.49878609 | AB25: 17.4989159 | AC25: 17.49852711 | AD25: 17.49874303 | AE25: 17.49872868 | AF25: 17.49866627 | AG25: 17.49871266 | AH25: 17.49870254 | AI25: 17.49869383 | AJ25: 17.49870301 | AK25: 17.49869979 | AL25: 17.49869888 | AM25: 17.49870056 | AN25: 17.49869974 | AO25: 17.49869973 | AP25: 17.49870001 | AQ25: 17.49869983 | AR25: 17.49869985
A26: 1600000US2002675 | B26: Ashland | C26: 18.3 | D26: 23.6 | E26: 27 | F26: 31.5 | G26: 32.9 | H26: 32.3 | I26: 33.2 | J26: 33.3976834 | K26: 31.74904943 | L26: 25.22045855 | M26: 30.12239713 | N26: 29.03063504 | O26: 28.12449691 | P26: 29.09250969 | Q26: 28.74921388 | R26: 28.65540682 | S26: 28.8323768 | T26: 28.74566583 | U26: 28.74448315 | V26: 28.77417526 | W26: 28.75477475 | X26: 28.75781105 | Y26: 28.76225369 | Z26: 28.75827983 | AA26: 28.75944819 | AB26: 28.7599939 | AC26: 28.75924064 | AD26: 28.75956091 | AE26: 28.75959848 | AF26: 28.75946668 | AG26: 28.75954203 | AH26: 28.75953573 | AI26: 28.75951481 | AJ26: 28.75953086 | AK26: 28.75952713 | AL26: 28.75952427 | AM26: 28.75952742 | AN26: 28.75952627 | AO26: 28.75952599 | AP26: 28.75952656 | AQ26: 28.75952627 | AR26: 28.75952627
A27: 1600000US2002850 | B27: Assaria | C27: 27.9 | D27: 24.9 | E27: 26.1 | F27: 27 | G27: 23 | H27: 24 | I27: 24.8 | J27: 21.83908046 | K27: 20.28169014 | L27: 20.54380665 | M27: 20.88819242 | N27: 20.57122973 | O27: 20.66774293 | P27: 20.70905503 | Q27: 20.64934256 | R27: 20.67538017 | S27: 20.67792592 | T27: 20.66754955 | U27: 20.67361855 | V27: 20.67303134 | W27: 20.67139982 | X27: 20.67268324 | Y27: 20.67237146 | Z27: 20.67215151 | AA27: 20.67240207 | AB27: 20.67230835 | AC27: 20.67228731 | AD27: 20.67233257 | AE27: 20.67230941 | AF27: 20.67230976 | AG27: 20.67231725 | AH27: 20.67231214 | AI27: 20.67231305 | AJ27: 20.67231415 | AK27: 20.67231311 | AL27: 20.67231344 | AM27: 20.67231357 | AN27: 20.67231337 | AO27: 20.67231346 | AP27: 20.67231346 | AQ27: 20.67231343 | AR27: 20.67231345
A28: 1600000US2002900 | B28: Atchison | C28: 25.6 | D28: 25.2 | E28: 24.3 | F28: 24.7 | G28: 22 | H28: 22.8 | I28: 23.7 | J28: 20.13630731 | K28: 21.9203344 | L28: 20.94910253 | M28: 21.00191475 | N28: 21.29045056 | O28: 21.08048928 | P28: 21.12428486 | Q28: 21.1650749 | R28: 21.12328301 | S28: 21.13754759 | T28: 21.1419685 | U28: 21.13426637 | V28: 21.13792749 | W28: 21.13805412 | X28: 21.13674933 | Y28: 21.13757698 | Z28: 21.13746014 | AA28: 21.13726215 | AB28: 21.13743309 | AC28: 21.13738513 | AD28: 21.13736012 | AE28: 21.13739278 | AF28: 21.13737934 | AG28: 21.13737741 | AH28: 21.13738318 | AI28: 21.13737998 | AJ28: 21.13738019 | AK28: 21.13738112 | AL28: 21.13738043 | AM28: 21.13738058 | AN28: 21.13738071 | AO28: 21.13738057 | AP28: 21.13738062 | AQ28: 21.13738063 | AR28: 21.13738061
A29: 1600000US2003025 | B29: Athol | C29: 0 | D29: 0 | E29: 3.8 | F29: 3.3 | G29: 4 | H29: 2.2 | I29: 5.6 | J29: 12.19512195 | K29: 17.64705882 | L29: 19.35483871 | M29: 16.39900649 | N29: 17.80030134 | O29: 17.85138218 | P29: 17.35023001 | Q29: 17.66730451 | R29: 17.62297223 | S29: 17.54683558 | T29: 17.61237078 | U29: 17.59405953 | V29: 17.58442196 | W29: 17.59695076 | X29: 17.59181075 | Y29: 17.59106116 | Z29: 17.59327422 | AA29: 17.59204871 | AB29: 17.59212803 | AC29: 17.59248365 | AD29: 17.59222013 | AE29: 17.59227727 | AF29: 17.59232702 | AG29: 17.59227481 | AH29: 17.59229303 | AI29: 17.59229829 | AJ29: 17.59228871 | AK29: 17.59229334 | AL29: 17.59229345 | AM29: 17.59229183 | AN29: 17.59229287 | AO29: 17.59229272 | AP29: 17.59229247 | AQ29: 17.59229269 | AR29: 17.59229263
A30: 1600000US2003050 | B30: Atlanta | C30: 23.5 | D30: 21 | E30: 23.5 | F30: 23.4 | G30: 21.2 | H30: 16.1 | I30: 17.6 | J30: 15.13157895 | K30: 18.18181818 | L30: 12.08053691 | M30: 15.13131135 | N30: 15.13122215 | O30: 14.1143568 | P30: 14.79229677 | Q30: 14.67929191 | R30: 14.52864849 | S30: 14.66674572 | T30: 14.62489537 | U30: 14.60676319 | V30: 14.63280143 | W30: 14.62148667 | X30: 14.62035043 | Y30: 14.62487951 | Z30: 14.62223887 | AA30: 14.6224896 | AB30: 14.62320266 | AC30: 14.62264371 | AD30: 14.62277866 | AE30: 14.62287501 | AF30: 14.62276579 | AG30: 14.62280649 | AH30: 14.62281576 | AI30: 14.62279601 | AJ30: 14.62280609 | AK30: 14.62280595 | AL30: 14.62280268 | AM30: 14.62280491 | AN30: 14.62280452 | AO30: 14.62280404 | AP30: 14.62280449 | AQ30: 14.62280435 | AR30: 14.62280429
A31: 1600000US2003100 | B31: Attica | C31: 6.4 | D31: 12.4 | E31: 12.4 | F31: 16 | G31: 15.9 | H31: 15.3 | I31: 16.6 | J31: 14.17624521 | K31: 12.37322515 | L31: 11.57894737 | M31: 12.70947258 | N31: 12.22054837 | O31: 12.1696561 | P31: 12.36655902 | Q31: 12.2522545 | R31: 12.2628232 | S31: 12.29387891 | T31: 12.2696522 | U31: 12.27545144 | V31: 12.27966085 | W31: 12.2749215 | X31: 12.27667793 | Y31: 12.27708676 | Z31: 12.27622873 | AA31: 12.27666447 | AB31: 12.27665998 | AC31: 12.27651773 | AD31: 12.27661406 | AE31: 12.27659726 | AF31: 12.27657635 | AG31: 12.27659589 | AH31: 12.27658983 | AI31: 12.27658736 | AJ31: 12.27659103 | AK31: 12.2765894 | AL31: 12.27658926 | AM31: 12.2765899 | AN31: 12.27658952 | AO31: 12.27658956 | AP31: 12.27658966 | AQ31: 12.27658958 | AR31: 12.2765896
A32: 1600000US2003150 | B32: Atwood | C32: 20 | D32: 25.6 | E32: 25.2 | F32: 28 | G32: 27.9 | H32: 25.4 | I32: 20.9 | J32: 20.19002375 | K32: 19.1314554 | L32: 19.10755149 | M32: 19.47634355 | N32: 19.23845014 | O32: 19.27411506 | P32: 19.32963625 | Q32: 19.28073382 | R32: 19.29482838 | S32: 19.30173281 | T32: 19.29243167 | U32: 19.29633095 | V32: 19.29683181 | W32: 19.29519815 | X32: 19.2961203 | Y32: 19.29605009 | Z32: 19.29578951 | AA32: 19.29598663 | AB32: 19.29594208 | AC32: 19.29590607 | AD32: 19.29594493 | AE32: 19.29593103 | AF32: 19.29592734 | AG32: 19.29593443 | AH32: 19.29593093 | AI32: 19.2959309 | AJ32: 19.29593209 | AK32: 19.29593131 | AL32: 19.29593143 | AM32: 19.29593161 | AN32: 19.29593145 | AO32: 19.2959315 | AP32: 19.29593152 | AQ32: 19.29593149 | AR32: 19.2959315
A33: 1600000US2003250 | B33: Auburn | C33: 18.7 | D33: 17.6 | E33: 16.6 | F33: 16.7 | G33: 18.6 | H33: 17.5 | I33: 23.1 | J33: 24.0521327 | K33: 25.03022975 | L33: 24.00482509 | M33: 24.36239585 | N33: 24.46581689 | O33: 24.27767928 | P33: 24.36863067 | Q33: 24.37070895 | R33: 24.3390063 | S33: 24.35944864 | T33: 24.35638796 | U33: 24.3516143 | V33: 24.35581697 | W33: 24.35460641 | X33: 24.35401256 | Y33: 24.35481198 | Z33: 24.35447698 | AA33: 24.35443384 | AB33: 24.35457427 | AC33: 24.35449503 | AD33: 24.35450105 | AE33: 24.35452345 | AF33: 24.35450651 | AG33: 24.35451033 | AH33: 24.35451343 | AI33: 24.35451009 | AJ33: 24.35451128 | AK33: 24.3545116 | AL33: 24.35451099 | AM33: 24.35451129 | AN33: 24.3545113 | AO33: 24.35451119 | AP33: 24.35451126 | AQ33: 24.35451125 | AR33: 24.35451123
A34: 1600000US2003300 | B34: Augusta | C34: 19.6 | D34: 20.4 | E34: 21.6 | F34: 22.4 | G34: 22.8 | H34: 22.6 | I34: 23 | J34: 20.94533374 | K34: 19.9699925 | L34: 20.01207365 | M34: 20.30913329 | N34: 20.09706648 | O34: 20.13942447 | P34: 20.18187475 | Q34: 20.13945524 | R34: 20.15358482 | S34: 20.15830494 | T34: 20.15044833 | U34: 20.15411269 | V34: 20.15428865 | W34: 20.15294989 | X34: 20.15378375 | Y34: 20.1536741 | Z34: 20.15346925 | AA34: 20.15364236 | AB34: 20.15359524 | AC34: 20.15356895 | AD34: 20.15360218 | AE34: 20.15358879 | AF34: 20.15358664 | AG34: 20.15359254 | AH34: 20.15358932 | AI34: 20.1535895 | AJ34: 20.15359045 | AK34: 20.15358976 | AL34: 20.1535899 | AM34: 20.15359004 | AN34: 20.1535899 | AO34: 20.15358995 | AP34: 20.15358996 | AQ34: 20.15358994 | AR34: 20.15358995
A35: 1600000US2003425 | B35: Aurora | C35: 18 | D35: 11.5 | E35: 13 | F35: 18.8 | G35: 11.4 | H35: 5.9 | I35: 6.7 | J35: 6.779661017 | K35: 0 | L35: 0 | M35: 2.259887006 | N35: 0.7532956685 | O35: 1.004394225 | P35: 1.3391923 | Q35: 1.032294064 | R35: 1.12529353 | S35: 1.165593298 | T35: 1.107726964 | U35: 1.132871264 | V35: 1.135397175 | W35: 1.125331801 | X35: 1.13120008 | Y35: 1.130643019 | Z35: 1.1290583 | AA35: 1.130300466 | AB35: 1.130000595 | AC35: 1.129786454 | AD35: 1.130029172 | AE35: 1.12993874 | AF35: 1.129918122 | AG35: 1.129962011 | AH35: 1.129939624 | AI35: 1.129939919 | AJ35: 1.129947185 | AK35: 1.129942243 | AL35: 1.129943116 | AM35: 1.129944181 | AN35: 1.12994318 | AO35: 1.129943492 | AP35: 1.129943618 | AQ35: 1.12994343 | AR35: 1.129943513
A36: 1600000US2003600 | B36: Axtell | C36: 14.9 | D36: 17.1 | E36: 14.6 | F36: 16.2 | G36: 17.9 | H36: 16.4 | I36: 17 | J36: 18.05555556 | K36: 16.31944444 | L36: 17.32851986 | M36: 17.23450662 | N36: 16.96082364 | O36: 17.1746167 | P36: 17.12331565 | Q36: 17.086252 | R36: 17.12806145 | S36: 17.11254304 | T36: 17.10895216 | U36: 17.11651888 | V36: 17.11267136 | W36: 17.11271414 | X36: 17.11396813 | Y36: 17.11311787 | Z36: 17.11326671 | AA36: 17.1134509 | AB36: 17.1132785 | AC36: 17.11333204 | AD36: 17.11335381 | AE36: 17.11332145 | AF36: 17.11333577 | AG36: 17.11333701 | AH36: 17.11333141 | AI36: 17.11333473 | AJ36: 17.11333438 | AK36: 17.11333351 | AL36: 17.11333421 | AM36: 17.11333403 | AN36: 17.11333391 | AO36: 17.11333405 | AP36: 17.113334 | AQ36: 17.11333399 | AR36: 17.11333401
A37: 1600000US2003900 | B37: Baldwin City | C37: 33.6 | D37: 33.4 | E37: 32 | F37: 31.6 | G37: 35.4 | H37: 37.3 | I37: 35.8 | J37: 29.82204363 | K37: 31.07391911 | L37: 28.29321071 | M37: 29.72972448 | N37: 29.69895143 | O37: 29.24062888 | P37: 29.55643493 | Q37: 29.49867175 | R37: 29.43191185 | S37: 29.49567284 | T37: 29.47541881 | U37: 29.46766784 | V37: 29.4795865 | W37: 29.47422438 | X37: 29.47382624 | Y37: 29.47587904 | Z37: 29.47464322 | AA37: 29.47478283 | AB37: 29.4751017 | AC37: 29.47484258 | AD37: 29.47490904 | AE37: 29.47495111 | AF37: 29.47490091 | AG37: 29.47492035 | AH37: 29.47492412 | AI37: 29.47491513 | AJ37: 29.47491987 | AK37: 29.47491971 | AL37: 29.47491823 | AM37: 29.47491927 | AN37: 29.47491907 | AO37: 29.47491886 | AP37: 29.47491906 | AQ37: 29.474919 | AR37: 29.47491897
A38: 1600000US2004225 | B38: Barnard | C38: 20.3 | D38: 27.3 | E38: 28.1 | F38: 24.6 | G38: 20 | H38: 22.4 | I38: 27.1 | J38: 27.65957447 | K38: 25.64102564 | L38: 30.76923077 | M38: 28.02327696 | N38: 28.14451112 | O38: 28.97900628 | P38: 28.38226479 | Q38: 28.5019274 | R38: 28.62106616 | S38: 28.50175278 | T38: 28.54158211 | U38: 28.55480035 | V38: 28.53271175 | W38: 28.5430314 | X38: 28.5435145 | Y38: 28.53975255 | Z38: 28.54209949 | AA38: 28.54178885 | AB38: 28.54121363 | AC38: 28.54170065 | AD38: 28.54156771 | AE38: 28.541494 | AF38: 28.54158745 | AG38: 28.54154972 | AH38: 28.54154372 | AI38: 28.5415603 | AJ38: 28.54155125 | AK38: 28.54155176 | AL38: 28.54155443 | AM38: 28.54155248 | AN38: 28.54155289 | AO38: 28.54155327 | AP38: 28.54155288 | AQ38: 28.54155301 | AR38: 28.54155305
A39: 1600000US2004250 | B39: Barnes | C39: 11.2 | D39: 7.6 | E39: 7 | F39: 6.5 | G39: 2.1 | H39: 2.5 | I39: 3.5 | J39: 2.702702703 | K39: 6.451612903 | L39: 5.303030303 | M39: 4.819115303 | N39: 5.52458617 | O39: 5.215577259 | P39: 5.186426244 | Q39: 5.308863224 | R39: 5.236955575 | S39: 5.244081681 | T39: 5.26330016 | U39: 5.248112472 | V39: 5.251831438 | W39: 5.25441469 | X39: 5.251452867 | Y39: 5.252566332 | Z39: 5.252811296 | AA39: 5.252276831 | AB39: 5.252551486 | AC39: 5.252546538 | AD39: 5.252458285 | AE39: 5.25251877 | AF39: 5.252507864 | AG39: 5.252494973 | AH39: 5.252507202 | AI39: 5.252503347 | AJ39: 5.252501841 | AK39: 5.25250413 | AL39: 5.252503106 | AM39: 5.252503026 | AN39: 5.25250342 | AO39: 5.252503184 | AP39: 5.25250321 | AQ39: 5.252503271 | AR39: 5.252503222
A40: 1600000US2004350 | B40: Bartlett | C40: 0 | D40: 11.7 | E40: 10.5 | F40: 10.5 | G40: 16.3 | H40: 9.7 | I40: 1.4 | J40: 3.773584906 | K40: 2.222222222 | L40: 4 | M40: 3.331935709 | N40: 3.184719311 | O40: 3.505551673 | P40: 3.340735564 | Q40: 3.343668849 | R40: 3.396652029 | S40: 3.360352148 | T40: 3.366891009 | U40: 3.374631728 | V40: 3.367291628 | W40: 3.369604788 | X40: 3.370509382 | Y40: 3.369135266 | Z40: 3.369749812 | AA40: 3.369798153 | AB40: 3.369561077 | AC40: 3.369703014 | AD40: 3.369687415 | AE40: 3.369650502 | AF40: 3.36968031 | AG40: 3.369672742 | AH40: 3.369667852 | AI40: 3.369673635 | AJ40: 3.36967141 | AK40: 3.369670965 | AL40: 3.369672003 | AM40: 3.369671459 | AN40: 3.369671476 | AO40: 3.369671646 | AP40: 3.369671527 | AQ40: 3.36967155 | AR40: 3.369671574
A41: 1600000US2004400 | B41: Basehor | C41: 31.3 | D41: 28.8 | E41: 28.8 | F41: 33.8 | G41: 37.7 | H41: 36.2 | I41: 40.7 | J41: 41.40875133 | K41: 35.28696498 | L41: 33.69488328 | M41: 36.79686653 | N41: 35.2595716 | O41: 35.25044047 | P41: 35.76895953 | Q41: 35.42632387 | R41: 35.48190796 | S41: 35.55906379 | T41: 35.48909854 | U41: 35.51002343 | V41: 35.51939525 | W41: 35.5061724 | X41: 35.51186369 | Y41: 35.51247712 | Z41: 35.51017107 | AA41: 35.51150396 | AB41: 35.51138405 | AC41: 35.51101969 | AD41: 35.51130257 | AE41: 35.51123544 | AF41: 35.5111859 | AG41: 35.5112413 | AH41: 35.51122088 | AI41: 35.51121603 | AJ41: 35.51122607 | AK41: 35.51122099 | AL41: 35.51122103 | AM41: 35.5112227 | AN41: 35.51122157 | AO41: 35.51122177 | AP41: 35.51122201 | AQ41: 35.51122178 | AR41: 35.51122185
A42: 1600000US2004450 | B42: Bassett | C42: 0 | D42: 0 | E42: 0 | F42: 7.1 | G42: 15.4 | H42: 28.6 | I42: 22.2 | J42: 20 | K42: 6.666666667 | L42: 7.692307692 | M42: 11.45299145 | N42: 8.603988604 | O42: 9.249762583 | P42: 9.768914213 | Q42: 9.207555133 | R42: 9.408743977 | S42: 9.461737774 | T42: 9.359345628 | U42: 9.40994246 | V42: 9.410341954 | W42: 9.393210014 | X42: 9.404498143 | Y42: 9.40268337 | Z42: 9.400130509 | AA42: 9.402437341 | AB42: 9.401750407 | AC42: 9.401439419 | AD42: 9.401875722 | AE42: 9.401688516 | AF42: 9.401667886 | AG42: 9.401744041 | AH42: 9.401700147 | AI42: 9.401704025 | AJ42: 9.401716071 | AK42: 9.401706748 | AL42: 9.401708948 | AM42: 9.401710589 | AN42: 9.401708762 | AO42: 9.401709433 | AP42: 9.401709594 | AQ42: 9.401709263 | AR42: 9.40170943
A43: 1600000US2004625 | B43: Baxter Springs | C43: 11.1 | D43: 14.5 | E43: 15.5 | F43: 15.6 | G43: 17.5 | H43: 18.6 | I43: 16.7 | J43: 15.12377077 | K43: 17.08148653 | L43: 18.27573922 | M43: 16.82699884 | N43: 17.39474153 | O43: 17.49915987 | P43: 17.24030008 | Q43: 17.37806716 | R43: 17.37250904 | S43: 17.33029209 | T43: 17.36028943 | U43: 17.35436352 | V43: 17.34831501 | W43: 17.35432265 | X43: 17.35233373 | Y43: 17.35165713 | Z43: 17.35277117 | AA43: 17.35225401 | AB43: 17.35222744 | AC43: 17.35241754 | AD43: 17.35229966 | AE43: 17.35231488 | AF43: 17.35234403 | AG43: 17.35231952 | AH43: 17.35232614 | AI43: 17.3523299 | AJ43: 17.35232519 | AK43: 17.35232708 | AL43: 17.35232739 | AM43: 17.35232655 | AN43: 17.35232701 | AO43: 17.35232698 | AP43: 17.35232685 | AQ43: 17.35232694 | AR43: 17.35232692
A44: 1600000US2004775 | B44: Bazine | C44: 11.3 | D44: 8.3 | E44: 9.7 | F44: 14.5 | G44: 13.3 | H44: 13.6 | I44: 13.4 | J44: 10.07751938 | K44: 9.302325581 | L44: 9.282700422 | M44: 9.554181794 | N44: 9.379735933 | O44: 9.405539383 | P44: 9.446485703 | Q44: 9.410587006 | R44: 9.420870698 | S44: 9.425981136 | T44: 9.41914628 | U44: 9.421999371 | V44: 9.422375596 | W44: 9.421173749 | X44: 9.421849572 | Y44: 9.421799639 | Z44: 9.421607653 | AA44: 9.421752288 | AB44: 9.42171986 | AC44: 9.421693267 | AD44: 9.421721805 | AE44: 9.421711644 | AF44: 9.421708905 | AG44: 9.421714118 | AH44: 9.421711556 | AI44: 9.421711526 | AJ44: 9.4217124 | AK44: 9.421711827 | AL44: 9.421711918 | AM44: 9.421712048 | AN44: 9.421711931 | AO44: 9.421711966 | AP44: 9.421711982 | AQ44: 9.42171196 | AR44: 9.421711969
A45: 1600000US2004900 | B45: Beattie | C45: 15.5 | D45: 19.3 | E45: 18 | F45: 18.8 | G45: 15.2 | H45: 22.4 | I45: 20.8 | J45: 23.59550562 | K45: 22.7027027 | L45: 12.90322581 | M45: 19.73381138 | N45: 18.44657996 | O45: 17.02787238 | P45: 18.40275457 | Q45: 17.95906897 | R45: 17.79656531 | S45: 18.05279628 | T45: 17.93614352 | U45: 17.9285017 | V45: 17.9724805 | W45: 17.94570858 | X45: 17.94889693 | Y45: 17.95569534 | Z45: 17.95010028 | AA45: 17.95156418 | AB45: 17.95245327 | AC45: 17.95137258 | AD45: 17.95179667 | AE45: 17.95187417 | AF45: 17.95168114 | AG45: 17.951784 | AH45: 17.95177977 | AI45: 17.9517483 | AJ45: 17.95177069 | AK45: 17.95176625 | AL45: 17.95176175 | AM45: 17.95176623 | AN45: 17.95176474 | AO45: 17.95176424 | AP45: 17.95176507 | AQ45: 17.95176469 | AR45: 17.95176467
A46: 1600000US2005337 | B46: Bel Aire | C46: 51.2 | D46: 51.7 | E46: 52.2 | F46: 55.1 | G46: 52.4 | H46: 55.3 | I46: 55.8 | J46: 55.69829326 | K46: 60.22158685 | L46: 54.65402178 | M46: 56.8579673 | N46: 57.24452531 | O46: 56.25217146 | P46: 56.78488802 | Q46: 56.76052826 | R46: 56.59919591 | S46: 56.71487073 | T46: 56.69153164 | U46: 56.66853276 | V46: 56.69164504 | W46: 56.68390315 | X46: 56.68136032 | Y46: 56.68563617 | Z46: 56.68363321 | AA46: 56.68354323 | AB46: 56.68427087 | AC46: 56.68381577 | AD46: 56.68387663 | AE46: 56.68398776 | AF46: 56.68389338 | AG46: 56.68391926 | AH46: 56.68393347 | AI46: 56.68391537 | AJ46: 56.6839227 | AK46: 56.68392384 | AL46: 56.68392064 | AM46: 56.68392239 | AN46: 56.68392229 | AO46: 56.68392177 | AP46: 56.68392215 | AQ46: 56.68392207 | AR46: 56.683922
A47: 1600000US2005500 | B47: Belle Plaine | C47: 20.1 | D47: 19.2 | E47: 19 | F47: 20.1 | G47: 17.7 | H47: 18 | I47: 14.3 | J47: 12.52900232 | K47: 12.23529412 | L47: 14.70836855 | M47: 13.157555 | N47: 13.36707256 | O47: 13.74433204 | P47: 13.42298653 | Q47: 13.51146371 | R47: 13.55959409 | S47: 13.49801478 | T47: 13.52302419 | U47: 13.52687769 | V47: 13.51597222 | W47: 13.52195803 | X47: 13.52160265 | Y47: 13.5198443 | Z47: 13.52113499 | AA47: 13.52086065 | AB47: 13.52061331 | AC47: 13.52086965 | AD47: 13.5207812 | AE47: 13.52075472 | AF47: 13.52080186 | AG47: 13.52077926 | AH47: 13.52077861 | AI47: 13.52078658 | AJ47: 13.52078148 | AK47: 13.52078222 | AL47: 13.52078343 | AM47: 13.52078238 | AN47: 13.52078268 | AO47: 13.52078283 | AP47: 13.52078263 | AQ47: 13.52078271 | AR47: 13.52078272
A48: 1600000US2005600 | B48: Belleville | C48: 15 | D48: 15.1 | E48: 16.3 | F48: 19.2 | G48: 20 | H48: 20.1 | I48: 19.5 | J48: 20.2820685 | K48: 19.19945726 | L48: 22.71186441 | M48: 20.73113006 | N48: 20.88081724 | O48: 21.44127057 | P48: 21.01773929 | Q48: 21.1132757 | R48: 21.19076185 | S48: 21.10725895 | T48: 21.13709883 | U48: 21.14503988 | V48: 21.12979922 | W48: 21.13731264 | X48: 21.13738391 | Y48: 21.13483192 | Z48: 21.13650949 | AA48: 21.13624178 | AB48: 21.13586106 | AC48: 21.13620411 | AD48: 21.13610232 | AE48: 21.13605583 | AF48: 21.13612075 | AG48: 21.13609297 | AH48: 21.13608985 | AI48: 21.13610119 | AJ48: 21.13609467 | AK48: 21.13609524 | AL48: 21.13609703 | AM48: 21.13609565 | AN48: 21.13609597 | AO48: 21.13609622 | AP48: 21.13609595 | AQ48: 21.13609604 | AR48: 21.13609607
A49: 1600000US2005775 | B49: Beloit | C49: 24 | D49: 21.8 | E49: 22.7 | F49: 24.7 | G49: 21.2 | H49: 26 | I49: 27.9 | J49: 23.10582342 | K49: 24.29360182 | L49: 23.97306397 | M49: 23.79082974 | N49: 24.01916518 | O49: 23.9276863 | P49: 23.9125604 | Q49: 23.95313729 | R49: 23.931128 | S49: 23.93227523 | T49: 23.93884684 | U49: 23.93408336 | V49: 23.93506848 | W49: 23.93599956 | X49: 23.93505046 | Y49: 23.93537283 | Z49: 23.93547428 | AA49: 23.93529919 | AB49: 23.9353821 | AC49: 23.93538519 | AD49: 23.9353555 | AE49: 23.93537426 | AF49: 23.93537165 | AG49: 23.93536714 | AH49: 23.93537102 | AI49: 23.93536993 | AJ49: 23.93536936 | AK49: 23.9353701 | AL49: 23.9353698 | AM49: 23.93536976 | AN49: 23.93536989 | AO49: 23.93536981 | AP49: 23.93536982 | AQ49: 23.93536984 | AR49: 23.93536982
A50: 1600000US2005825 | B50: Belpre | C50: 12.5 | D50: 4.7 | E50: 12.5 | F50: 9.3 | G50: 7.2 | H50: 6.3 | I50: 6.3 | J50: 4.424778761 | K50: 6.25 | L50: 8.823529412 | M50: 6.499436058 | N50: 7.19098849 | O50: 7.50465132 | P50: 7.065025289 | Q50: 7.253555033 | R50: 7.274410547 | S50: 7.197663623 | T50: 7.241876401 | U50: 7.237983524 | V50: 7.225841183 | W50: 7.235233702 | X50: 7.23301947 | Y50: 7.231364785 | Z50: 7.233205986 | AA50: 7.23253008 | AB50: 7.23236695 | AC50: 7.232701005 | AD50: 7.232532679 | AE50: 7.232533545 | AF50: 7.232589076 | AG50: 7.232551766 | AH50: 7.232558129 | AI50: 7.232566324 | AJ50: 7.23255874 | AK50: 7.232561064 | AL50: 7.232562043 | AM50: 7.232560616 | AN50: 7.232561241 | AO50: 7.2325613 | AP50: 7.232561052 | AQ50: 7.232561198 | AR50: 7.232561183
A51: 1600000US2005925 | B51: Belvue | C51: 20.8 | D51: 13.9 | E51: 11.6 | F51: 14 | G51: 8 | H51: 4.8 | I51: 4.8 | J51: 4.519774011 | K51: 3.896103896 | L51: 6.153846154 | M51: 4.856574687 | N51: 4.968841579 | O51: 5.326420807 | P51: 5.050612358 | Q51: 5.115291581 | R51: 5.164108248 | S51: 5.110004062 | T51: 5.129801297 | U51: 5.134637869 | V51: 5.12481441 | W51: 5.129751192 | X51: 5.12973449 | Y51: 5.128100031 | Z51: 5.129195238 | AA51: 5.12900992 | AB51: 5.128768396 | AC51: 5.128991184 | AD51: 5.128923167 | AE51: 5.128894249 | AF51: 5.1289362 | AG51: 5.128917872 | AH51: 5.128916107 | AI51: 5.128923393 | AJ51: 5.128919124 | AK51: 5.128919541 | AL51: 5.128920686 | AM51: 5.128919784 | AN51: 5.128920004 | AO51: 5.128920158 | AP51: 5.128919982 | AQ51: 5.128920048 | AR51: 5.128920063
A52: 1600000US2006000 | B52: Benedict | C52: 16.7 | D52: 24.5 | E52: 14 | F52: 11.1 | G52: 0 | H52: 0 | I52: 0 | J52: 0 | K52: 0 | L52: 0 | M52: 0 | N52: 0 | O52: 0 | P52: 0 | Q52: 0 | R52: 0 | S52: 0 | T52: 0 | U52: 0 | V52: 0 | W52: 0 | X52: 0 | Y52: 0 | Z52: 0 | AA52: 0 | AB52: 0 | AC52: 0 | AD52: 0 | AE52: 0 | AF52: 0 | AG52: 0 | AH52: 0 | AI52: 0 | AJ52: 0 | AK52: 0 | AL52: 0 | AM52: 0 | AN52: 0 | AO52: 0 | AP52: 0 | AQ52: 0 | AR52: 0
A53: 1600000US2006075 | B53: Bennington | C53: 19.1 | D53: 18.7 | E53: 17.3 | F53: 20.3 | G53: 19.7 | H53: 25.4 | I53: 20.6 | J53: 24.12451362 | K53: 25.55331992 | L53: 26.06284658 | M53: 25.24689337 | N53: 25.62101996 | O53: 25.64358664 | P53: 25.50383332 | Q53: 25.58947997 | R53: 25.57896664 | S53: 25.55742665 | T53: 25.57529109 | U53: 25.57056146 | V53: 25.56775973 | W53: 25.57120409 | X53: 25.56984176 | Y53: 25.56960186 | Z53: 25.57021591 | AA53: 25.56988651 | AB53: 25.56990143 | AC53: 25.57000128 | AD53: 25.56992974 | AE53: 25.56994415 | AF53: 25.56995839 | AG53: 25.56994409 | AH53: 25.56994888 | AI53: 25.56995045 | AJ53: 25.56994781 | AK53: 25.56994904 | AL53: 25.5699491 | AM53: 25.56994865 | AN53: 25.56994893 | AO53: 25.56994889 | AP53: 25.56994883 | AQ53: 25.56994888 | AR53: 25.56994887
A54: 1600000US2006125 | B54: Bentley | C54: 15.7 | D54: 16.6 | E54: 17.5 | F54: 17.2 | G54: 15.8 | H54: 14.5 | I54: 16.8 | J54: 16.94915254 | K54: 20.25974026 | L54: 20.05730659 | M54: 19.08873313 | N54: 19.80192666 | O54: 19.64932213 | P54: 19.51332731 | Q54: 19.6548587 | R54: 19.60583604 | S54: 19.59134068 | T54: 19.61734514 | U54: 19.60484062 | V54: 19.60450882 | W54: 19.60889819 | X54: 19.60608254 | Y54: 19.60649652 | Z54: 19.60715908 | AA54: 19.60657938 | AB54: 19.60674499 | AC54: 19.60682782 | AD54: 19.6067174 | AE54: 19.6067634 | AF54: 19.60676954 | AG54: 19.60675012 | AH54: 19.60676102 | AI54: 19.60676023 | AJ54: 19.60675712 | AK54: 19.60675946 | AL54: 19.60675893 | AM54: 19.6067585 | AN54: 19.60675896 | AO54: 19.6067588 | AP54: 19.60675876 | AQ54: 19.60675884 | AR54: 19.6067588
A55: 1600000US2006175 | B55: Benton | C55: 16.6 | D55: 15.9 | E55: 18.8 | F55: 21.5 | G55: 30 | H55: 36.2 | I55: 36.8 | J55: 31.60305344 | K55: 34.09090909 | L55: 29.68553459 | M55: 31.79316571 | N55: 31.85653646 | O55: 31.11174559 | P55: 31.58714925 | Q55: 31.5184771 | R55: 31.40579065 | S55: 31.50380567 | T55: 31.47602447 | U55: 31.46187359 | V55: 31.48056791 | W55: 31.47282199 | X55: 31.4717545 | Y55: 31.47504813 | Z55: 31.47320821 | AA55: 31.47333695 | AB55: 31.47386443 | AC55: 31.47346986 | AD55: 31.47355708 | AE55: 31.47363046 | AF55: 31.47355247 | AG55: 31.47358 | AH55: 31.47358764 | AI55: 31.47357337 | AJ55: 31.47358034 | AK55: 31.47358045 | AL55: 31.47357805 | AM55: 31.47357961 | AN55: 31.47357937 | AO55: 31.47357901 | AP55: 31.47357933 | AQ55: 31.47357924 | AR55: 31.47357919
A56: 1600000US2006275 | B56: Bern | C56: 22 | D56: 24.4 | E56: 24.5 | F56: 23.5 | G56: 26.7 | H56: 26.4 | I56: 30.6 | J56: 28 | K56: 19.35483871 | L56: 25.2173913 | M56: 24.19074334 | N56: 22.92099112 | O56: 24.10970859 | P56: 23.74048101 | Q56: 23.59039357 | R56: 23.81352772 | S56: 23.71480077 | T56: 23.70624069 | U56: 23.74485639 | V56: 23.72196595 | W56: 23.72435435 | X56: 23.73039223 | Y56: 23.72557084 | Z56: 23.72677247 | AA56: 23.72757852 | AB56: 23.72664061 | AC56: 23.7269972 | AD56: 23.72707211 | AE56: 23.72690331 | AF56: 23.72699087 | AG56: 23.72698876 | AH56: 23.72696098 | AI56: 23.7269802 | AJ56: 23.72697665 | AK56: 23.72697261 | AL56: 23.72697649 | AM56: 23.72697525 | AN56: 23.72697478 | AO56: 23.72697551 | AP56: 23.72697518 | AQ56: 23.72697516 | AR56: 23.72697528
A57: 1600000US2006500 | B57: Beverly | C57: 7.6 | D57: 5.5 | E57: 6.5 | F57: 5.6 | G57: 17.1 | H57: 2 | I57: 16.5 | J57: 3.125 | K57: 3.03030303 | L57: 6.194690265 | M57: 4.116664432 | N57: 4.447219243 | O57: 4.919524647 | P57: 4.49446944 | Q57: 4.620404443 | R57: 4.678132843 | S57: 4.597668909 | T57: 4.632068732 | U57: 4.635956828 | V57: 4.621898156 | W57: 4.629974572 | X57: 4.629276519 | Y57: 4.627049749 | Z57: 4.628766947 | AA57: 4.628364405 | AB57: 4.628060367 | AC57: 4.628397239 | AD57: 4.628274004 | AE57: 4.62824387 | AF57: 4.628305038 | AG57: 4.628274304 | AH57: 4.628274404 | AI57: 4.628284582 | AJ57: 4.628277763 | AK57: 4.628278916 | AL57: 4.62828042 | AM57: 4.628279033 | AN57: 4.628279457 | AO57: 4.628279637 | AP57: 4.628279376 | AQ57: 4.62827949 | AR57: 4.628279501
A58: 1600000US2006825 | B58: Bird City | C58: 10.5 | D58: 12.3 | E58: 16.8 | F58: 17.5 | G58: 13.3 | H58: 19.9 | I58: 22 | J58: 26.04166667 | K58: 23.61809045 | L58: 28.94736842 | M58: 26.20237518 | N58: 26.25594468 | O58: 27.13522943 | P58: 26.5311831 | Q58: 26.64078574 | R58: 26.76906609 | S58: 26.64701164 | T58: 26.68562116 | U58: 26.70056629 | V58: 26.67773303 | W58: 26.68797349 | X58: 26.68875761 | Y58: 26.68482138 | Z58: 26.68718416 | AA58: 26.68692105 | AB58: 26.68630886 | AC58: 26.68680469 | AD58: 26.6866782 | AE58: 26.68659725 | AF58: 26.68669338 | AG58: 26.68665628 | AH58: 26.68664897 | AI58: 26.68666621 | AJ58: 26.68665715 | AK58: 26.68665744 | AL58: 26.68666027 | AM58: 26.68665829 | AN58: 26.68665866 | AO58: 26.68665907 | AP58: 26.68665867 | AQ58: 26.6866588 | AR58: 26.68665885
A59: 1600000US2006950 | B59: Bison | C59: 30.7 | D59: 24.1 | E59: 22.5 | F59: 27 | G59: 22.7 | H59: 22.6 | I59: 21.8 | J59: 15.75342466 | K59: 11.11111111 | L59: 16.41791045 | M59: 14.42748207 | N59: 13.98550121 | O59: 14.94363124 | P59: 14.45220484 | Q59: 14.46044577 | R59: 14.61876062 | S59: 14.51047041 | T59: 14.52989226 | U59: 14.5530411 | V59: 14.53113459 | W59: 14.53802265 | X59: 14.54073278 | Y59: 14.53663001 | Z59: 14.53846181 | AA59: 14.5386082 | AB59: 14.53790001 | AC59: 14.53832334 | AD59: 14.53827718 | AE59: 14.53816684 | AF59: 14.53825579 | AG59: 14.53823327 | AH59: 14.53821863 | AI59: 14.5382359 | AJ59: 14.53822927 | AK59: 14.53822793 | AL59: 14.53823103 | AM59: 14.53822941 | AN59: 14.53822946 | AO59: 14.53822997 | AP59: 14.53822961 | AQ59: 14.53822968 | AR59: 14.53822975
A60: 1600000US2007600 | B60: Blue Mound | C60: 14.3 | D60: 10.7 | E60: 9.1 | F60: 8.4 | G60: 2.1 | H60: 4.2 | I60: 3.2 | J60: 3.474903475 | K60: 4.347826087 | L60: 4.832713755 | M60: 4.218481106 | N60: 4.466340316 | O60: 4.505845059 | P60: 4.396888827 | Q60: 4.456358067 | R60: 4.453030651 | S60: 4.435425848 | T60: 4.448271522 | U60: 4.445576007 | V60: 4.443091126 | W60: 4.445646218 | X60: 4.444771117 | Y60: 4.44450282 | Z60: 4.444973385 | AA60: 4.444749107 | AB60: 4.444741771 | AC60: 4.444821421 | AD60: 4.444770767 | AE60: 4.444777986 | AF60: 4.444790058 | AG60: 4.444779604 | AH60: 4.444782549 | AI60: 4.44478407 | AJ60: 4.444782074 | AK60: 4.444782898 | AL60: 4.444783014 | AM60: 4.444782662 | AN60: 4.444782858 | AO60: 4.444782845 | AP60: 4.444782788 | AQ60: 4.44478283 | AR60: 4.444782821
A61: 1600000US2007650 | B61: Blue Rapids | C61: 12.1 | D61: 11.1 | E61: 12.1 | F61: 12.8 | G61: 10.5 | H61: 10.4 | I61: 12.2 | J61: 10.94594595 | K61: 8.435207824 | L61: 7.922912206 | M61: 9.101355325 | N61: 8.486491785 | O61: 8.503586439 | P61: 8.697144516 | Q61: 8.56240758 | R61: 8.587712845 | S61: 8.61575498 | T61: 8.588625135 | U61: 8.59736432 | V61: 8.600581478 | W61: 8.595523645 | X61: 8.597823148 | Y61: 8.59797609 | Z61: 8.597107627 | AA61: 8.597635622 | AB61: 8.597573113 | AC61: 8.597438787 | AD61: 8.597549174 | AE61: 8.597520358 | AF61: 8.597502773 | AG61: 8.597524102 | AH61: 8.597515744 | AI61: 8.597514207 | AJ61: 8.597518018 | AK61: 8.59751599 | AL61: 8.597516071 | AM61: 8.597516693 | AN61: 8.597516251 | AO61: 8.597516338 | AP61: 8.597516427 | AQ61: 8.597516339 | AR61: 8.597516368
A62: 1600000US2007775 | B62: Bluff City | C62: 4.8 | D62: 0 | E62: 0 | F62: 0 | G62: 2.4 | H62: 2 | I62: 1.3 | J62: 1.075268817 | K62: 2.105263158 | L62: 0 | M62: 1.060177325 | N62: 1.055146828 | O62: 0.7051080509 | P62: 0.9401440679 | Q62: 0.9001329821 | R62: 0.8484617003 | S62: 0.8962462501 | T62: 0.8816136442 | U62: 0.8754405315 | V62: 0.8844334753 | W62: 0.8804958837 | X62: 0.8801232968 | Y62: 0.8816842186 | Z62: 0.8807677997 | AA62: 0.8808584384 | AB62: 0.8811034855 | AC62: 0.8809099079 | AD62: 0.8809572772 | AE62: 0.8809902235 | AF62: 0.8809524696 | AG62: 0.8809666568 | AH62: 0.8809697833 | AI62: 0.8809629699 | AJ62: 0.88096647 | AK62: 0.8809664077 | AL62: 0.8809652825 | AM62: 0.8809660534 | AN62: 0.8809659146 | AO62: 0.8809657502 | AP62: 0.880965906 | AQ62: 0.8809658569 | AR62: 0.8809658377
A63: 1600000US2007825 | B63: Bogue | C63: 27.8 | D63: 24.7 | E63: 25.2 | F63: 23 | G63: 20.8 | H63: 24.6 | I63: 30.1 | J63: 27.96610169 | K63: 29.16666667 | L63: 19.86754967 | M63: 25.66677268 | N63: 24.90032967 | O63: 23.47821734 | P63: 24.68177323 | Q63: 24.35344008 | R63: 24.17114355 | S63: 24.40211895 | T63: 24.30890086 | U63: 24.29405445 | V63: 24.33502476 | W63: 24.31266002 | X63: 24.31391308 | Y63: 24.32053262 | Z63: 24.31570191 | AA63: 24.31671587 | AB63: 24.31765013 | AC63: 24.3166893 | AD63: 24.31701843 | AE63: 24.31711929 | AF63: 24.31694234 | AG63: 24.31702669 | AH63: 24.31702944 | AI63: 24.31699949 | AJ63: 24.31701854 | AK63: 24.31701582 | AL63: 24.31701128 | AM63: 24.31701522 | AN63: 24.31701411 | AO63: 24.31701354 | AP63: 24.31701429 | AQ63: 24.31701398 | AR63: 24.31701393
A64: 1600000US2007975 | B64: Bonner Springs | C64: 28.8 | D64: 27.8 | E64: 25.7 | F64: 23.3 | G64: 20.6 | H64: 19.5 | I64: 18.9 | J64: 17.76315789 | K64: 20.54698457 | L64: 21.32379905 | M64: 19.8779805 | N64: 20.58292137 | O64: 20.59490031 | P64: 20.35193406 | Q64: 20.50991858 | R64: 20.48558432 | S64: 20.44914565 | T64: 20.48154952 | U64: 20.47209316 | V64: 20.46759611 | W64: 20.47374626 | X64: 20.47114518 | Y64: 20.47082919 | Z64: 20.47190688 | AA64: 20.47129375 | AB64: 20.47134327 | AC64: 20.47151463 | AD64: 20.47138388 | AE64: 20.47141393 | AF64: 20.47143748 | AG64: 20.47141176 | AH64: 20.47142106 | AI64: 20.47142343 | AJ64: 20.47141875 | AK64: 20.47142108 | AL64: 20.47142109 | AM64: 20.47142031 | AN64: 20.47142083 | AO64: 20.47142074 | AP64: 20.47142062 | AQ64: 20.47142073 | AR64: 20.4714207
A65: 1600000US2008425 | B65: Brewster | C65: 19.6 | D65: 14.6 | E65: 14.4 | F65: 15.1 | G65: 17.9 | H65: 18.5 | I65: 25.5 | J65: 21.42857143 | K65: 18.10699588 | L65: 25.77319588 | M65: 21.76958773 | N65: 21.88325983 | O65: 23.14201448 | P65: 22.26495401 | Q65: 22.43007611 | R65: 22.6123482 | S65: 22.43579277 | T65: 22.49273903 | U65: 22.51362667 | V65: 22.48071949 | W65: 22.49569506 | X65: 22.49668041 | Y65: 22.49103165 | Z65: 22.49446904 | AA65: 22.49406037 | AB65: 22.49318702 | AC65: 22.49390547 | AD65: 22.49371762 | AE65: 22.49360337 | AF65: 22.49374216 | AG65: 22.49368772 | AH65: 22.49367775 | AI65: 22.49370254 | AJ65: 22.49368933 | AK65: 22.49368987 | AL65: 22.49369392 | AM65: 22.49369104 | AN65: 22.49369161 | AO65: 22.49369219 | AP65: 22.49369161 | AQ65: 22.4936918 | AR65: 22.49369187
A66: 1600000US2008475 | B66: Bronson | C66: 6.1 | D66: 4.6 | E66: 5.7 | F66: 6.7 | G66: 5.4 | H66: 7.6 | I66: 5.6 | J66: 8.333333333 | K66: 6.951871658 | L66: 8.187134503 | M66: 7.824113165 | N66: 7.654373108 | O66: 7.888540259 | P66: 7.789008844 | Q66: 7.777307404 | R66: 7.818285502 | S66: 7.79486725 | T66: 7.796820052 | U66: 7.803324268 | V66: 7.79833719 | W66: 7.799493837 | X66: 7.800385098 | Y66: 7.799405375 | Z66: 7.799761437 | AA66: 7.799850637 | AB66: 7.799672483 | AC66: 7.799761519 | AD66: 7.799761546 | AE66: 7.799731849 | AF66: 7.799751638 | AG66: 7.799748344 | AH66: 7.799743944 | AI66: 7.799747975 | AJ66: 7.799746754 | AK66: 7.799746224 | AL66: 7.799746985 | AM66: 7.799746655 | AN66: 7.799746621 | AO66: 7.799746754 | AP66: 7.799746676 | AQ66: 7.799746684 | AR66: 7.799746705
A67: 1600000US2008575 | B67: Brookville | C67: 16.5 | D67: 15.7 | E67: 12.9 | F67: 12.5 | G67: 14 | H67: 15.4 | I67: 12.5 | J67: 14.05405405 | K67: 12.3853211 | L67: 11.32075472 | M67: 12.58670996 | N67: 12.09759526 | O67: 12.00168664 | P67: 12.22866395 | Q67: 12.10931529 | R67: 12.11322196 | S67: 12.1504004 | T67: 12.12431255 | U67: 12.12931164 | V67: 12.13467486 | W67: 12.12943302 | X67: 12.13113984 | Y67: 12.13174924 | Z67: 12.13077403 | AA67: 12.13122104 | AB67: 12.1312481 | AC67: 12.13108106 | AD67: 12.1311834 | AE67: 12.13117085 | AF67: 12.1311451 | AG67: 12.13116645 | AH67: 12.1311608 | AI67: 12.13115745 | AJ67: 12.13116157 | AK67: 12.13115994 | AL67: 12.13115965 | AM67: 12.13116039 | AN67: 12.13115999 | AO67: 12.13116001 | AP67: 12.13116013 | AQ67: 12.13116004 | AR67: 12.13116006
A68: 1600000US2008675 | B68: Brownell | C68: 10.7 | D68: 5.2 | E68: 7.9 | F68: 9.3 | G68: 18 | H68: 34.3 | I68: 30.2 | J68: 22.72727273 | K68: 13.15789474 | L68: 20 | M68: 18.62838915 | N68: 17.26209463 | O68: 18.63016126 | P68: 18.17354835 | Q68: 18.02193475 | R68: 18.27521479 | S68: 18.15689929 | T68: 18.15134961 | U68: 18.1944879 | V68: 18.16757893 | W68: 18.17113881 | X68: 18.17773521 | Y68: 18.17215099 | Z68: 18.173675 | AA68: 18.1745204 | AB68: 18.1734488 | AC68: 18.1738814 | AD68: 18.1739502 | AE68: 18.17376013 | AF68: 18.17386391 | AG68: 18.17385808 | AH68: 18.17382738 | AI68: 18.17384979 | AJ68: 18.17384508 | AK68: 18.17384075 | AL68: 18.17384521 | AM68: 18.17384368 | AN68: 18.17384321 | AO68: 18.17384403 | AP68: 18.17384364 | AQ68: 18.17384363 | AR68: 18.17384377
A69: 1600000US2009000 | B69: Bucklin | C69: 19.5 | D69: 19.5 | E69: 18.4 | F69: 15.9 | G69: 16.4 | H69: 19 | I69: 21 | J69: 20.3313253 | K69: 28 | L69: 26.13430127 | M69: 24.82187552 | N69: 26.3187256 | O69: 25.7583008 | P69: 25.63296731 | Q69: 25.90333123 | R69: 25.76486645 | S69: 25.767055 | T69: 25.81175089 | U69: 25.78122411 | V69: 25.78667667 | W69: 25.79321722 | X69: 25.78703933 | Y69: 25.78897774 | Z69: 25.78974477 | AA69: 25.78858728 | AB69: 25.78910326 | AC69: 25.7891451 | AD69: 25.78894521 | AE69: 25.78906453 | AF69: 25.78905161 | AG69: 25.78902045 | AH69: 25.78904553 | AI69: 25.7890392 | AJ69: 25.78903506 | AK69: 25.78903993 | AL69: 25.78903806 | AM69: 25.78903768 | AN69: 25.78903856 | AO69: 25.7890381 | AP69: 25.78903812 | AQ69: 25.78903826 | AR69: 25.78903816
A70: 1600000US2009150 | B70: Buffalo | C70: 5 | D70: 2.7 | E70: 4.8 | F70: 3.2 | G70: 4.2 | H70: 6.4 | I70: 7 | J70: 10.3960396 | K70: 8.205128205 | L70: 7.5 | M70: 8.70038927 | N70: 8.135172492 | O70: 8.11185392 | P70: 8.315805227 | Q70: 8.187610546 | R70: 8.205089898 | S70: 8.236168557 | T70: 8.209623001 | U70: 8.216960485 | V70: 8.220917348 | W70: 8.215833611 | X70: 8.217903815 | Y70: 8.218218258 | Z70: 8.217318561 | AA70: 8.217813545 | AB70: 8.217783455 | AC70: 8.21763852 | AD70: 8.217745173 | AE70: 8.217722383 | AF70: 8.217702025 | AG70: 8.217723194 | AH70: 8.217715867 | AI70: 8.217713695 | AJ70: 8.217717585 | AK70: 8.217715716 | AL70: 8.217715666 | AM70: 8.217716322 | AN70: 8.217715901 | AO70: 8.217715963 | AP70: 8.217716062 | AQ70: 8.217715976 | AR70: 8.217716
A71: 1600000US2009200 | B71: Buhler | C71: 31.3 | D71: 26.7 | E71: 27.9 | F71: 28.9 | G71: 29.8 | H71: 30.4 | I71: 32.2 | J71: 26.32103689 | K71: 25.78548212 | L71: 28.20211516 | M71: 26.76954472 | N71: 26.91904734 | O71: 27.29690241 | P71: 26.99516482 | Q71: 27.07037152 | R71: 27.12081292 | S71: 27.06211642 | T71: 27.08443362 | U71: 27.08912098 | V71: 27.07855701 | W71: 27.0840372 | X71: 27.08390507 | Y71: 27.08216643 | Z71: 27.08336957 | AA71: 27.08314702 | AB71: 27.08289434 | AC71: 27.08313697 | AD71: 27.08305944 | AE71: 27.08303025 | AF71: 27.08307556 | AG71: 27.08305508 | AH71: 27.08305363 | AI71: 27.08306142 | AJ71: 27.08305671 | AK71: 27.08305726 | AL71: 27.08305846 | AM71: 27.08305748 | AN71: 27.08305773 | AO71: 27.08305789 | AP71: 27.0830577 | AQ71: 27.08305777 | AR71: 27.08305779
A72: 1600000US2009225 | B72: Bunker Hill | C72: 0 | D72: 0 | E72: 2.4 | F72: 6.9 | G72: 9.3 | H72: 8.4 | I72: 12.2 | J72: 7.777777778 | K72: 9.090909091 | L72: 17.58241758 | M72: 11.48370148 | N72: 12.71900939 | O72: 13.92837615 | P72: 12.71036234 | Q72: 13.11924929 | R72: 13.25266259 | S72: 13.02742474 | T72: 13.13311221 | U72: 13.13773318 | V72: 13.09942338 | W72: 13.12342292 | X72: 13.12019316 | Y72: 13.11434649 | Z72: 13.11932086 | AA72: 13.1179535 | AB72: 13.11720695 | AC72: 13.11816044 | AD72: 13.11777363 | AE72: 13.11771367 | AF72: 13.11788258 | AG72: 13.11778996 | AH72: 13.1177954 | AI72: 13.11782265 | AJ72: 13.11780267 | AK72: 13.11780691 | AL72: 13.11781074 | AM72: 13.11780677 | AN72: 13.11780814 | AO72: 13.11780855 | AP72: 13.11780782 | AQ72: 13.11780817 | AR72: 13.11780818
A73: 1600000US2009250 | B73: Burden | C73: 8.5 | D73: 9.1 | E73: 13 | F73: 15.5 | G73: 16.2 | H73: 17.6 | I73: 14.9 | J73: 11.08829569 | K73: 14.22594142 | L73: 13.66742597 | M73: 12.99388769 | N73: 13.62908503 | O73: 13.4301329 | P73: 13.35103521 | Q73: 13.47008438 | R73: 13.41708416 | S73: 13.41273458 | T73: 13.43330104 | U73: 13.42103993 | V73: 13.42235852 | W73: 13.42556649 | X73: 13.42298831 | Y73: 13.42363777 | Z73: 13.42406419 | AA73: 13.42356343 | AB73: 13.42375513 | AC73: 13.42379425 | AD73: 13.42370427 | AE73: 13.42375122 | AF73: 13.42374991 | AG73: 13.42373513 | AH73: 13.42374542 | AI73: 13.42374349 | AJ73: 13.42374135 | AK73: 13.42374342 | AL73: 13.42374275 | AM73: 13.42374251 | AN73: 13.42374289 | AO73: 13.42374272 | AP73: 13.4237427 | AQ73: 13.42374277 | AR73: 13.42374273
A74: 1600000US2009275 | B74: Burdett | C74: 25 | D74: 33.3 | E74: 34.1 | F74: 34.6 | G74: 34.8 | H74: 40 | I74: 41.1 | J74: 27.65151515 | K74: 20.63953488 | L74: 20.1754386 | M74: 22.82216288 | N74: 21.21237879 | O74: 21.40332675 | P74: 21.81262281 | Q74: 21.47610945 | R74: 21.56401967 | S74: 21.61758397 | T74: 21.55257103 | U74: 21.57805822 | V74: 21.58273774 | W74: 21.57112233 | X74: 21.5773061 | Y74: 21.57705539 | Z74: 21.57516127 | AA74: 21.57650759 | AB74: 21.57624142 | AC74: 21.57597009 | AD74: 21.5762397 | AE74: 21.5761504 | AF74: 21.57612007 | AG74: 21.57617006 | AH74: 21.57614684 | AI74: 21.57614566 | AJ74: 21.57615419 | AK74: 21.57614889 | AL74: 21.57614958 | AM74: 21.57615089 | AN74: 21.57614979 | AO74: 21.57615008 | AP74: 21.57615025 | AQ74: 21.57615004 | AR74: 21.57615013
A75: 1600000US2009350 | B75: Burlingame | C75: 10 | D75: 11.4 | E75: 10.6 | F75: 9.4 | G75: 12 | H75: 12.3 | I75: 13.9 | J75: 13.22834646 | K75: 12.59044863 | L75: 12.40875912 | M75: 12.74251807 | N75: 12.58057527 | O75: 12.57728416 | P75: 12.63345917 | Q75: 12.5971062 | R75: 12.60261651 | S75: 12.61106062 | T75: 12.60359444 | U75: 12.60575719 | V75: 12.60680409 | W75: 12.60538524 | X75: 12.60598217 | Y75: 12.60605717 | Z75: 12.60580819 | AA75: 12.60594918 | AB75: 12.60593818 | AC75: 12.60589852 | AD75: 12.60592862 | AE75: 12.60592177 | AF75: 12.6059163 | AG75: 12.60592223 | AH75: 12.6059201 | AI75: 12.60591955 | AJ75: 12.60592063 | AK75: 12.60592009 | AL75: 12.60592009 | AM75: 12.60592027 | AN75: 12.60592015 | AO75: 12.60592017 | AP75: 12.6059202 | AQ75: 12.60592017 | AR75: 12.60592018
A76: 1600000US2009400 | B76: Burlington | C76: 22.5 | D76: 22.3 | E76: 23.3 | F76: 18.9 | G76: 19.1 | H76: 19 | I76: 17.8 | J76: 18.30845771 | K76: 16.80926019 | L76: 19.46446962 | M76: 18.19406251 | N76: 18.15593077 | O76: 18.60482097 | P76: 18.31827142 | Q76: 18.35967438 | R76: 18.42758892 | S76: 18.36851157 | T76: 18.38525829 | U76: 18.39378626 | V76: 18.38251871 | W76: 18.38718776 | X76: 18.38783091 | Y76: 18.38584579 | Z76: 18.38695482 | AA76: 18.38687717 | AB76: 18.38655926 | AC76: 18.38679708 | AD76: 18.38674451 | AE76: 18.38670028 | AF76: 18.38674729 | AG76: 18.38673069 | AH76: 18.38672609 | AI76: 18.38673469 | AJ76: 18.38673049 | AK76: 18.38673042 | AL76: 18.38673187 | AM76: 18.38673093 | AN76: 18.38673107 | AO76: 18.38673129 | AP76: 18.3867311 | AQ76: 18.38673115 | AR76: 18.38673118
A77: 1600000US2009450 | B77: Burns | C77: 4.2 | D77: 6 | E77: 6.9 | F77: 5.1 | G77: 12.1 | H77: 9.8 | I77: 10.2 | J77: 9.661835749 | K77: 15.5 | L77: 12.97297297 | M77: 12.71160291 | N77: 13.72819196 | O77: 13.13758928 | P77: 13.19246138 | Q77: 13.35274754 | R77: 13.2275994 | S77: 13.25760277 | T77: 13.27931657 | U77: 13.25483958 | V77: 13.26391964 | W77: 13.26602527 | X77: 13.26159483 | Y77: 13.26384658 | Z77: 13.26382223 | AA77: 13.26308788 | AB77: 13.26358556 | AC77: 13.26349856 | AD77: 13.26339067 | AE77: 13.26349159 | AF77: 13.26346027 | AG77: 13.26344751 | AH77: 13.26346646 | AI77: 13.26345808 | AJ77: 13.26345735 | AK77: 13.26346063 | AL77: 13.26345869 | AM77: 13.26345889 | AN77: 13.2634594 | AO77: 13.26345899 | AP77: 13.26345909 | AQ77: 13.26345916 | AR77: 13.26345908
A78: 1600000US2009525 | B78: Burr Oak | C78: 9.6 | D78: 11.5 | E78: 14.5 | F78: 15 | G78: 17.4 | H78: 14.5 | I78: 15.3 | J78: 14.375 | K78: 13.8121547 | L78: 10.34482759 | M78: 12.84399409 | N78: 12.33365879 | O78: 11.84082682 | P78: 12.33949324 | Q78: 12.17132628 | R78: 12.11721545 | S78: 12.20934499 | T78: 12.16596224 | U78: 12.16417423 | V78: 12.17982715 | W78: 12.16998787 | X78: 12.17132975 | Y78: 12.17371493 | Z78: 12.17167752 | AA78: 12.17224073 | AB78: 12.17254439 | AC78: 12.17215421 | AD78: 12.17231311 | AE78: 12.17233724 | AF78: 12.17226819 | AG78: 12.17230618 | AH78: 12.17230387 | AI78: 12.17229275 | AJ78: 12.17230093 | AK78: 12.17229918 | AL78: 12.17229762 | AM78: 12.17229924 | AN78: 12.17229868 | AO78: 12.17229851 | AP78: 12.17229881 | AQ78: 12.17229867 | AR78: 12.17229867
A79: 1600000US2009575 | B79: Burrton | C79: 12.4 | D79: 12.2 | E79: 17.1 | F79: 14.1 | G79: 16 | H79: 17.3 | I79: 20.9 | J79: 18.0704441 | K79: 21.06969206 | L79: 19.44012442 | M79: 19.52675353 | N79: 20.01219 | O79: 19.65968931 | P79: 19.73287761 | Q79: 19.80158564 | R79: 19.73138419 | S79: 19.75528248 | T79: 19.76275077 | U79: 19.74980581 | V79: 19.75594636 | W79: 19.75616765 | X79: 19.75397327 | Y79: 19.75536243 | Z79: 19.75516778 | AA79: 19.75483449 | AB79: 19.75512157 | AC79: 19.75504128 | AD79: 19.75499911 | AE79: 19.75505399 | AF79: 19.75503146 | AG79: 19.75502819 | AH79: 19.75503788 | AI79: 19.75503251 | AJ79: 19.75503286 | AK79: 19.75503442 | AL79: 19.75503326 | AM79: 19.75503351 | AN79: 19.75503373 | AO79: 19.7550335 | AP79: 19.75503358 | AQ79: 19.7550336 | AR79: 19.75503356
A80: 1600000US2009675 | B80: Bushong | C80: 43.8 | D80: 41.2 | E80: 33.3 | F80: 34.8 | G80: 18.2 | H80: 18.2 | I80: 12 | J80: 0 | K80: 0 | L80: 0 | M80: 0 | N80: 0 | O80: 0 | P80: 0 | Q80: 0 | R80: 0 | S80: 0 | T80: 0 | U80: 0 | V80: 0 | W80: 0 | X80: 0 | Y80: 0 | Z80: 0 | AA80: 0 | AB80: 0 | AC80: 0 | AD80: 0 | AE80: 0 | AF80: 0 | AG80: 0 | AH80: 0 | AI80: 0 | AJ80: 0 | AK80: 0 | AL80: 0 | AM80: 0 | AN80: 0 | AO80: 0 | AP80: 0 | AQ80: 0 | AR80: 0
A81: 1600000US2009700 | B81: Bushton | C81: 20.8 | D81: 19.9 | E81: 20 | F81: 17.2 | G81: 16.2 | H81: 15.1 | I81: 14.5 | J81: 16.1849711 | K81: 15.92039801 | L81: 13.83928571 | M81: 15.31488494 | N81: 15.02485622 | O81: 14.72634229 | P81: 15.02202782 | Q81: 14.92440878 | R81: 14.8909263 | S81: 14.94578763 | T81: 14.92037423 | U81: 14.91902939 | V81: 14.92839708 | W81: 14.92260024 | X81: 14.92334224 | Y81: 14.92477985 | Z81: 14.92357411 | AA81: 14.92389873 | AB81: 14.92408423 | AC81: 14.92385236 | AD81: 14.92394511 | AE81: 14.92396056 | AF81: 14.92391934 | AG81: 14.92394167 | AH81: 14.92394053 | AI81: 14.92393385 | AJ81: 14.92393868 | AK81: 14.92393768 | AL81: 14.92393674 | AM81: 14.9239377 | AN81: 14.92393737 | AO81: 14.92393727 | AP81: 14.92393745 | AQ81: 14.92393736 | AR81: 14.92393736
A82: 1600000US2009800 | B82: Byers | C82: 4.8 | D82: 4.5 | E82: 0 | F82: 0 | G82: 0 | H82: 0 | I82: 0 | J82: 0 | K82: 0 | L82: 0 | M82: 0 | N82: 0 | O82: 0 | P82: 0 | Q82: 0 | R82: 0 | S82: 0 | T82: 0 | U82: 0 | V82: 0 | W82: 0 | X82: 0 | Y82: 0 | Z82: 0 | AA82: 0 | AB82: 0 | AC82: 0 | AD82: 0 | AE82: 0 | AF82: 0 | AG82: 0 | AH82: 0 | AI82: 0 | AJ82: 0 | AK82: 0 | AL82: 0 | AM82: 0 | AN82: 0 | AO82: 0 | AP82: 0 | AQ82: 0 | AR82: 0
A83: 1600000US2009900 | B83: Caldwell | C83: 21.8 | D83: 19.5 | E83: 18.5 | F83: 18.7 | G83: 15.9 | H83: 15.5 | I83: 17.1 | J83: 14.82758621 | K83: 13.27543424 | L83: 13.95908544 | M83: 14.02070196 | N83: 13.75174055 | O83: 13.91050932 | P83: 13.89431728 | Q83: 13.85218905 | R83: 13.88567188 | S83: 13.87739273 | T83: 13.87175122 | U83: 13.87827195 | V83: 13.8758053 | W83: 13.87527616 | X83: 13.87645113 | Y83: 13.8758442 | Z83: 13.87585716 | AA83: 13.87605083 | AB83: 13.8759174 | AC83: 13.8759418 | AD83: 13.87597001 | AE83: 13.87594307 | AF83: 13.87595162 | AG83: 13.8759549 | AH83: 13.87594986 | AI83: 13.87595213 | AJ83: 13.8759523 | AK83: 13.87595143 | AL83: 13.87595195 | AM83: 13.87595189 | AN83: 13.87595176 | AO83: 13.87595187 | AP83: 13.87595184 | AQ83: 13.87595182 | AR83: 13.87595184
A84: 1600000US2010125 | B84: Cambridge | C84: 15.6 | D84: 11.4 | E84: 9.4 | F84: 5.2 | G84: 4.1 | H84: 4.7 | I84: 0 | J84: 0 | K84: 0 | L84: 2.727272727 | M84: 0.9090909091 | N84: 1.212121212 | O84: 1.616161616 | P84: 1.245791246 | Q84: 1.358024691 | R84: 1.406659184 | S84: 1.336825041 | T84: 1.367169639 | U84: 1.370217955 | V84: 1.358070878 | W84: 1.365152824 | X84: 1.364480552 | Y84: 1.362568085 | Z84: 1.364067153 | AA84: 1.363705263 | AB84: 1.363446834 | AC84: 1.36373975 | AD84: 1.363630616 | AE84: 1.363605733 | AF84: 1.3636587 | AG84: 1.363631683 | AH84: 1.363632039 | AI84: 1.363640807 | AJ84: 1.363634843 | AK84: 1.363635896 | AL84: 1.363637182 | AM84: 1.363635974 | AN84: 1.363636351 | AO84: 1.363636502 | AP84: 1.363636276 | AQ84: 1.363636376 | AR84: 1.363636385
A85: 1600000US2010375 | B85: Caney | C85: 14.4 | D85: 16.5 | E85: 16.8 | F85: 15.1 | G85: 14.6 | H85: 13.8 | I85: 12.4 | J85: 10.9260493 | K85: 11.1653873 | L85: 10.99060014 | M85: 11.02734558 | N85: 11.06111101 | O85: 11.02635224 | P85: 11.03826961 | Q85: 11.04191095 | R85: 11.03551094 | S85: 11.03856383 | T85: 11.03866191 | U85: 11.03757889 | V85: 11.03826821 | W85: 11.03816967 | X85: 11.03800559 | Y85: 11.03814783 | Z85: 11.0381077 | AA85: 11.03808704 | AB85: 11.03811419 | AC85: 11.03810297 | AD85: 11.0381014 | AE85: 11.03810619 | AF85: 11.03810352 | AG85: 11.0381037 | AH85: 11.03810447 | AI85: 11.0381039 | AJ85: 11.03810402 | AK85: 11.03810413 | AL85: 11.03810402 | AM85: 11.03810406 | AN85: 11.03810407 | AO85: 11.03810405 | AP85: 11.03810406 | AQ85: 11.03810406 | AR85: 11.03810405
A86: 1600000US2010475 | B86: Canton | C86: 16.4 | D86: 13.4 | E86: 12.9 | F86: 8.8 | G86: 9.6 | H86: 9.8 | I86: 11.1 | J86: 12.39242685 | K86: 13.82405745 | L86: 18.2012848 | M86: 14.80592303 | N86: 15.61042176 | O86: 16.20587653 | P86: 15.54074044 | Q86: 15.78567958 | R86: 15.84409885 | S86: 15.72350629 | T86: 15.78442824 | U86: 15.78401113 | V86: 15.76398188 | W86: 15.77747375 | X86: 15.77515559 | Y86: 15.77220374 | Z86: 15.77494436 | AA86: 15.77410123 | AB86: 15.77374978 | AC86: 15.77426512 | AD86: 15.77403871 | AE86: 15.77401787 | AF86: 15.77410723 | AG86: 15.7740546 | AH86: 15.7740599 | AI86: 15.77407391 | AJ86: 15.77406281 | AK86: 15.77406554 | AL86: 15.77406742 | AM86: 15.77406525 | AN86: 15.77406607 | AO86: 15.77406625 | AP86: 15.77406586 | AQ86: 15.77406606 | AR86: 15.77406606
A87: 1600000US2010600 | B87: Carbondale | C87: 13.6 | D87: 16 | E87: 15.4 | F87: 17.2 | G87: 16.2 | H87: 14.7 | I87: 13.4 | J87: 10.27077498 | K87: 9.415262636 | L87: 9.349220898 | M87: 9.678419504 | N87: 9.480967679 | O87: 9.50286936 | P87: 9.554085515 | Q87: 9.512640851 | R87: 9.523198575 | S87: 9.529974981 | T87: 9.521938136 | U87: 9.525037231 | V87: 9.525650116 | W87: 9.524208494 | X87: 9.52496528 | Y87: 9.524941297 | Z87: 9.524705024 | AA87: 9.524870533 | AB87: 9.524838951 | AC87: 9.524804836 | AD87: 9.524838107 | AE87: 9.524827298 | AF87: 9.524823414 | AG87: 9.524829606 | AH87: 9.524826773 | AI87: 9.524826598 | AJ87: 9.524827659 | AK87: 9.52482701 | AL87: 9.524827089 | AM87: 9.524827252 | AN87: 9.524827117 | AO87: 9.524827153 | AP87: 9.524827174 | AQ87: 9.524827148 | AR87: 9.524827158
A88: 1600000US2010675 | B88: Carlton | C88: 21.1 | D88: 29.6 | E88: 33.3 | F88: 13.3 | G88: 15.4 | H88: 16.7 | I88: 13.3 | J88: 11.11111111 | K88: 0 | L88: 0 | M88: 3.703703704 | N88: 1.234567901 | O88: 1.646090535 | P88: 2.19478738 | Q88: 1.691815272 | R88: 1.844231062 | S88: 1.910277905 | T88: 1.815441413 | U88: 1.856650127 | V88: 1.860789815 | W88: 1.844293785 | X88: 1.853911242 | Y88: 1.852998281 | Z88: 1.850401103 | AA88: 1.852436875 | AB88: 1.851945419 | AC88: 1.851594466 | AD88: 1.851992253 | AE88: 1.851844046 | AF88: 1.851810255 | AG88: 1.851882185 | AH88: 1.851845495 | AI88: 1.851845978 | AJ88: 1.851857886 | AK88: 1.851849787 | AL88: 1.851851217 | AM88: 1.851852963 | AN88: 1.851851322 | AO88: 1.851851834 | AP88: 1.85185204 | AQ88: 1.851851732 | AR88: 1.851851869
A89: 1600000US2010925 | B89: Cassoday | C89: 13.6 | D89: 13 | E89: 19.7 | F89: 12.5 | G89: 17.7 | H89: 13.7 | I89: 12.7 | J89: 6.097560976 | K89: 14.42307692 | L89: 17.54385965 | M89: 12.68816585 | N89: 14.88503414 | O89: 15.03901988 | P89: 14.20407329 | Q89: 14.70937577 | R89: 14.65082298 | S89: 14.52142401 | T89: 14.62720759 | U89: 14.59981819 | V89: 14.5828166 | W89: 14.60328079 | X89: 14.59530519 | Y89: 14.59380086 | Z89: 14.59746228 | AA89: 14.59552278 | AB89: 14.59559531 | AC89: 14.59619346 | AD89: 14.59577052 | AE89: 14.59585309 | AF89: 14.59593902 | AG89: 14.59585421 | AH89: 14.59588211 | AI89: 14.59589178 | AJ89: 14.59587603 | AK89: 14.59588331 | AL89: 14.59588371 | AM89: 14.59588102 | AN89: 14.59588268 | AO89: 14.59588247 | AP89: 14.59588205 | AQ89: 14.5958824 | AR89: 14.59588231
A90: 1600000US2011175 | B90: Cawker City | C90: 13.9 | D90: 17.6 | E90: 12.7 | F90: 16.1 | G90: 15.8 | H90: 18 | I90: 13.5 | J90: 15.14522822 | K90: 13.43612335 | L90: 10.22964509 | M90: 12.93699889 | N90: 12.20092244 | O90: 11.78918881 | P90: 12.30903671 | Q90: 12.09971599 | R90: 12.0659805 | S90: 12.1582444 | T90: 12.1079803 | U90: 12.11073507 | V90: 12.12565325 | W90: 12.11478954 | X90: 12.11705929 | Y90: 12.11916736 | Z90: 12.1170054 | AA90: 12.11774401 | AB90: 12.11797226 | AC90: 12.11757389 | AD90: 12.11776339 | AE90: 12.11776984 | AF90: 12.11770237 | AG90: 12.1177452 | AH90: 12.11773914 | AI90: 12.1177289 | AJ90: 12.11773775 | AK90: 12.11773526 | AL90: 12.11773397 | AM90: 12.11773566 | AN90: 12.11773497 | AO90: 12.11773487 | AP90: 12.11773516 | AQ90: 12.117735 | AR90: 12.11773501
A91: 1600000US2011425 | B91: Cedar Point | C91: 31.6 | D91: 23.8 | E91: 0 | F91: 0 | G91: 5.6 | H91: 5 | I91: 18.2 | J91: 25 | K91: 33.33333333 | L91: 0 | M91: 19.44444444 | N91: 17.59259259 | O91: 12.34567901 | P91: 16.46090535 | Q91: 15.46639232 | R91: 14.75765889 | S91: 15.56165219 | T91: 15.26190113 | U91: 15.1937374 | V91: 15.33909691 | W91: 15.26491182 | X91: 15.26591538 | Y91: 15.2899747 | Z91: 15.27360063 | AA91: 15.2764969 | AB91: 15.28002408 | AC91: 15.2767072 | AD91: 15.27774273 | AE91: 15.278158 | AF91: 15.27753598 | AG91: 15.27781224 | AH91: 15.27783541 | AI91: 15.27772787 | AJ91: 15.27779184 | AK91: 15.27778504 | AL91: 15.27776825 | AM91: 15.27778171 | AN91: 15.27777833 | AO91: 15.2777761 | AP91: 15.27777871 | AQ91: 15.27777771 | AR91: 15.27777751
A92: 1600000US2011450 | B92: Cedar Vale | C92: 14.9 | D92: 9.4 | E92: 14.6 | F92: 17.3 | G92: 17.6 | H92: 17.6 | I92: 18.8 | J92: 9.693877551 | K92: 9.536784741 | L92: 9.557109557 | M92: 9.59592395 | N92: 9.563272749 | O92: 9.572102085 | P92: 9.577099595 | Q92: 9.57082481 | R92: 9.573342163 | S92: 9.573755523 | T92: 9.572640832 | U92: 9.573246173 | V92: 9.573214176 | W92: 9.573033727 | X92: 9.573164692 | Y92: 9.573137531 | Z92: 9.573111983 | AA92: 9.573138069 | AB92: 9.573129195 | AC92: 9.573126416 | AD92: 9.573131226 | AE92: 9.573128945 | AF92: 9.573128862 | AG92: 9.573129678 | AH92: 9.573129162 | AI92: 9.573129234 | AJ92: 9.573129358 | AK92: 9.573129251 | AL92: 9.573129281 | AM92: 9.573129297 | AN92: 9.573129277 | AO92: 9.573129285 | AP92: 9.573129286 | AQ92: 9.573129283 | AR92: 9.573129285
A93: 1600000US2012425 | B93: Centralia | C93: 16.3 | D93: 19.6 | E93: 21.7 | F93: 18.3 | G93: 16.6 | H93: 19.4 | I93: 16.5 | J93: 16.31701632 | K93: 22.54196643 | L93: 23.85542169 | M93: 20.90480148 | N93: 22.4340632 | O93: 22.39809545 | P93: 21.91232004 | Q93: 22.24815956 | R93: 22.18619169 | S93: 22.1155571 | T93: 22.18330278 | U93: 22.16168386 | V93: 22.15351458 | W93: 22.16616707 | X93: 22.16045517 | Y93: 22.16004561 | Z93: 22.16222262 | AA93: 22.1609078 | AB93: 22.16105867 | AC93: 22.16139636 | AD93: 22.16112094 | AE93: 22.16119199 | AF93: 22.16123643 | AG93: 22.16118312 | AH93: 22.16120385 | AI93: 22.1612078 | AJ93: 22.16119826 | AK93: 22.1612033 | AL93: 22.16120312 | AM93: 22.16120156 | AN93: 22.16120266 | AO93: 22.16120245 | AP93: 22.16120222 | AQ93: 22.16120244 | AR93: 22.16120237
A94: 1600000US2012500 | B94: Chanute | C94: 13.4 | D94: 13.1 | E94: 14.2 | F94: 14.9 | G94: 18.1 | H94: 17.2 | I94: 16.1 | J94: 14.82251597 | K94: 17.4817898 | L94: 14.97254786 | M94: 15.75895121 | N94: 16.07109629 | O94: 15.60086512 | P94: 15.8103042 | Q94: 15.82742187 | R94: 15.74619706 | S94: 15.79464105 | T94: 15.78941999 | U94: 15.7767527 | V94: 15.78693791 | W94: 15.7843702 | X94: 15.78268694 | Y94: 15.78466502 | Z94: 15.78390739 | AA94: 15.78375312 | AB94: 15.78410851 | AC94: 15.783923 | AD94: 15.78392821 | AE94: 15.78398657 | AF94: 15.78394593 | AG94: 15.78395357 | AH94: 15.78396202 | AI94: 15.78395384 | AJ94: 15.78395648 | AK94: 15.78395745 | AL94: 15.78395592 | AM94: 15.78395662 | AN94: 15.78395666 | AO94: 15.7839564 | AP94: 15.78395656 | AQ94: 15.78395654 | AR94: 15.7839565
A95: 1600000US2012550 | B95: Chapman | C95: 27.2 | D95: 25.2 | E95: 26 | F95: 24.3 | G95: 26.8 | H95: 24 | I95: 24.5 | J95: 22.31075697 | K95: 22.53521127 | L95: 27.49213012 | M95: 24.11269945 | N95: 24.71334694 | O95: 25.43939217 | P95: 24.75514619 | Q95: 24.9692951 | R95: 25.05461115 | S95: 24.92635081 | T95: 24.98341902 | U95: 24.988127 | V95: 24.96596561 | W95: 24.97917054 | X95: 24.97775438 | Y95: 24.97429685 | Z95: 24.97707393 | AA95: 24.97637505 | AB95: 24.97591527 | AC95: 24.97645475 | AD95: 24.97624836 | AE95: 24.97620613 | AF95: 24.97630308 | AG95: 24.97625252 | AH95: 24.97625391 | AI95: 24.97626984 | AJ95: 24.97625876 | AK95: 24.97626083 | AL95: 24.97626314 | AM95: 24.97626091 | AN95: 24.97626163 | AO95: 24.97626189 | AP95: 24.97626148 | AQ95: 24.97626167 | AR95: 24.97626168
A96: 1600000US2012650 | B96: Chase | C96: 23 | D96: 18.6 | E96: 12.6 | F96: 9.6 | G96: 8.7 | H96: 10.2 | I96: 8.8 | J96: 8.781869688 | K96: 9.770114943 | L96: 13.24041812 | M96: 10.59746758 | N96: 11.20266688 | O96: 11.68018419 | P96: 11.16010622 | Q96: 11.34765243 | R96: 11.39598095 | S96: 11.30124653 | T96: 11.3482933 | U96: 11.34850693 | V96: 11.33268226 | W96: 11.34316083 | X96: 11.34145 | Y96: 11.3390977 | Z96: 11.34123618 | AA96: 11.34059463 | AB96: 11.3403095 | AC96: 11.34071343 | AD96: 11.34053919 | AE96: 11.34052071 | AF96: 11.34059111 | AG96: 11.34055033 | AH96: 11.34055405 | AI96: 11.34056516 | AJ96: 11.34055652 | AK96: 11.34055858 | AL96: 11.34056009 | AM96: 11.34055839 | AN96: 11.34055902 | AO96: 11.34055917 | AP96: 11.34055886 | AQ96: 11.34055901 | AR96: 11.34055901
A97: 1600000US2012675 | B97: Chautauqua | C97: 0 | D97: 4.1 | E97: 7.2 | F97: 4.8 | G97: 7.7 | H97: 6.8 | I97: 6.1 | J97: 6.818181818 | K97: 8.823529412 | L97: 8.108108108 | M97: 7.916606446 | N97: 8.282747989 | O97: 8.102487514 | P97: 8.100613983 | Q97: 8.161949829 | R97: 8.121683775 | S97: 8.128082529 | T97: 8.137238711 | U97: 8.129001672 | V97: 8.131440971 | W97: 8.132560451 | X97: 8.131001031 | Y97: 8.131667484 | Z97: 8.131742989 | AA97: 8.131470501 | AB97: 8.131626991 | AC97: 8.131613494 | AD97: 8.131570329 | AE97: 8.131603605 | AF97: 8.131595809 | AG97: 8.131589914 | AH97: 8.131596443 | AI97: 8.131594055 | AJ97: 8.131593471 | AK97: 8.131594656 | AL97: 8.131594061 | AM97: 8.131594063 | AN97: 8.13159426 | AO97: 8.131594128 | AP97: 8.13159415 | AQ97: 8.131594179 | AR97: 8.131594152
A98: 1600000US2012775 | B98: Cheney | C98: 23.7 | D98: 23 | E98: 28.9 | F98: 34.3 | G98: 33.2 | H98: 32.7 | I98: 31.1 | J98: 26.77395757 | K98: 26.40170334 | L98: 27.48201439 | M98: 26.88589177 | N98: 26.92320316 | O98: 27.09703644 | P98: 26.96871046 | Q98: 26.99631669 | R98: 27.02068786 | S98: 26.99523833 | T98: 27.00408096 | U98: 27.00666905 | V98: 27.00199612 | W98: 27.00424871 | X98: 27.00430463 | Y98: 27.00351648 | Z98: 27.00402327 | AA98: 27.00394813 | AB98: 27.00382929 | AC98: 27.00393356 | AD98: 27.00390366 | AE98: 27.00388884 | AF98: 27.00390869 | AG98: 27.0039004 | AH98: 27.00389931 | AI98: 27.0039028 | AJ98: 27.00390083 | AK98: 27.00390098 | AL98: 27.00390154 | AM98: 27.00390112 | AN98: 27.00390121 | AO98: 27.00390129 | AP98: 27.00390121 | AQ98: 27.00390124 | AR98: 27.00390124
A99: 1600000US2012825 | B99: Cherokee | C99: 13.4 | D99: 14.8 | E99: 12.6 | F99: 5.6 | G99: 13.8 | H99: 14.9 | I99: 14.7 | J99: 17.19745223 | K99: 19.39291737 | L99: 18.59706362 | M99: 18.39581107 | N99: 18.79526402 | O99: 18.59604624 | P99: 18.59570711 | Q99: 18.66233912 | R99: 18.61803082 | S99: 18.62535902 | T99: 18.63524299 | U99: 18.62621094 | V99: 18.62893765 | W99: 18.63013053 | X99: 18.62842637 | Y99: 18.62916485 | Z99: 18.62924058 | AA99: 18.62894394 | AB99: 18.62911646 | AC99: 18.62910033 | AD99: 18.62905357 | AE99: 18.62909012 | AF99: 18.62908134 | AG99: 18.62907501 | AH99: 18.62908216 | AI99: 18.6290795 | AJ99: 18.62907889 | AK99: 18.62908018 | AL99: 18.62907953 | AM99: 18.62907953 | AN99: 18.62907975 | AO99: 18.6290796 | AP99: 18.62907963 | AQ99: 18.62907966 | AR99: 18.62907963
A100: 1600000US2012925 | B100: Cherryvale | C100: 10.5 | D100: 12.4 | E100: 13.7 | F100: 12.6 | G100: 15.1 | H100: 18 | I100: 14.5 | J100: 10.65868263 | K100: 11.50442478 | L100: 10.40532365 | M100: 10.85614369 | N100: 10.92196404 | O100: 10.72781046 | P100: 10.83530606 | Q100: 10.82836019 | R100: 10.7971589 | S100: 10.82027505 | T100: 10.81526472 | U100: 10.81089956 | V100: 10.81547977 | W100: 10.81388135 | X100: 10.81342023 | Y100: 10.81426045 | Z100: 10.81385401 | AA100: 10.8138449 | AB100: 10.81398645 | AC100: 10.81389512 | AD100: 10.81390882 | AE100: 10.81393013 | AF100: 10.81391136 | AG100: 10.81391677 | AH100: 10.81391942 | AI100: 10.81391585 | AJ100: 10.81391735 | AK100: 10.81391754 | AL100: 10.81391691 | AM100: 10.81391726 | AN100: 10.81391724 | AO100: 10.81391714 | AP100: 10.81391721 | AQ100: 10.8139172 | AR100: 10.81391718
A101: 1600000US2012950 | B101: Chetopa | C101: 11.3 | D101: 10.8 | E101: 12.3 | F101: 11.1 | G101: 11.3 | H101: 12.5 | I101: 11.1 | J101: 9.753694581 | K101: 8.531746032 | L101: 9.139784946 | M101: 9.141741853 | N101: 8.93775761 | O101: 9.073094803 | P101: 9.050864756 | Q101: 9.02057239 | R101: 9.048177316 | S101: 9.039871487 | T101: 9.036207064 | U101: 9.041418623 | V101: 9.039165725 | W101: 9.038930471 | X101: 9.039838273 | Y101: 9.039311489 | Z101: 9.039360077 | AA101: 9.03950328 | AB101: 9.039391615 | AC101: 9.039418324 | AD101: 9.03943774 | AE101: 9.039415893 | AF101: 9.039423986 | AG101: 9.039425873 | AH101: 9.039421917 | AI101: 9.039423925 | AJ101: 9.039423905 | AK101: 9.039423249 | AL101: 9.039423693 | AM101: 9.039423616 | AN101: 9.039423519 | AO101: 9.03942361 | AP101: 9.039423582 | AQ101: 9.03942357 | AR101: 9.039423587
A102: 1600000US2013275 | B102: Cimarron | C102: 21 | D102: 22.2 | E102: 23 | F102: 23.7 | G102: 24.2 | H102: 23.3 | I102: 23.9 | J102: 23.16817865 | K102: 24.36412316 | L102: 20.87837838 | M102: 22.80356006 | N102: 22.68202053 | O102: 22.12131966 | P102: 22.53563342 | Q102: 22.44632454 | R102: 22.3677592 | S102: 22.44990572 | T102: 22.42132982 | U102: 22.41299825 | V102: 22.42807793 | W102: 22.420802 | X102: 22.42062606 | Y102: 22.42316866 | Z102: 22.42153224 | AA102: 22.42177565 | AB102: 22.42215885 | AC102: 22.42182225 | AD102: 22.42191892 | AE102: 22.42196667 | AF102: 22.42190261 | AG102: 22.4219294 | AH102: 22.4219329 | AI102: 22.42192164 | AJ102: 22.42192798 | AK102: 22.4219275 | AL102: 22.42192571 | AM102: 22.42192706 | AN102: 22.42192676 | AO102: 22.42192651 | AP102: 22.42192678 | AQ102: 22.42192668 | AR102: 22.42192665
A103: 1600000US2013375 | B103: Circleville | C103: 3.3 | D103: 5.9 | E103: 12.4 | F103: 14.7 | G103: 21.6 | H103: 27.4 | I103: 20 | J103: 16.92307692 | K103: 13.66906475 | L103: 7.746478873 | M103: 12.77954018 | N103: 11.39836127 | O103: 10.64146011 | P103: 11.60645385 | Q103: 11.21542508 | R103: 11.15444635 | S103: 11.32544176 | T103: 11.23177106 | U103: 11.23721972 | V103: 11.26481085 | W103: 11.24460054 | X103: 11.24887704 | Y103: 11.25276281 | Z103: 11.2487468 | AA103: 11.25012888 | AB103: 11.25054616 | AC103: 11.24980728 | AD103: 11.25016077 | AE103: 11.2501714 | AF103: 11.25004649 | AG103: 11.25012622 | AH103: 11.2501147 | AI103: 11.2500958 | AJ103: 11.25011224 | AK103: 11.25010758 | AL103: 11.25010521 | AM103: 11.25010835 | AN103: 11.25010705 | AO103: 11.25010687 | AP103: 11.25010742 | AQ103: 11.25010711 | AR103: 11.25010713
A104: 1600000US2013425 | B104: Claflin | C104: 32.5 | D104: 25.9 | E104: 24.4 | F104: 23.4 | G104: 21.9 | H104: 18.4 | I104: 20.9 | J104: 20.90517241 | K104: 22.82051282 | L104: 21.5625 | M104: 21.76272841 | N104: 22.04858041 | O104: 21.79126961 | P104: 21.86752614 | Q104: 21.90245872 | R104: 21.85375149 | S104: 21.87457878 | T104: 21.87692967 | U104: 21.86841998 | V104: 21.87330948 | W104: 21.87288637 | X104: 21.87153861 | Y104: 21.87257815 | Z104: 21.87233438 | AA104: 21.87215038 | AB104: 21.8723543 | AC104: 21.87227969 | AD104: 21.87226146 | AE104: 21.87229848 | AF104: 21.87227988 | AG104: 21.87227994 | AH104: 21.8722861 | AI104: 21.87228197 | AJ104: 21.87228267 | AK104: 21.87228358 | AL104: 21.87228274 | AM104: 21.872283 | AN104: 21.87228311 | AO104: 21.87228295 | AP104: 21.87228302 | AQ104: 21.87228302 | AR104: 21.872283
A105: 1600000US2013625 | B105: Clay Center | C105: 18.1 | D105: 15.1 | E105: 18.7 | F105: 20.9 | G105: 24.8 | H105: 25.5 | I105: 25 | J105: 24.04317959 | K105: 25.24110409 | L105: 23.54091947 | M105: 24.27506771 | N105: 24.35236376 | O105: 24.05611698 | P105: 24.22784948 | Q105: 24.21211007 | R105: 24.16535885 | S105: 24.2017728 | T105: 24.19308057 | U105: 24.18673741 | V105: 24.19386359 | W105: 24.19122719 | X105: 24.1906094 | Y105: 24.19190006 | Z105: 24.19124555 | AA105: 24.19125167 | AB105: 24.19146576 | AC105: 24.19132099 | AD105: 24.19134614 | AE105: 24.19137763 | AF105: 24.19134825 | AG105: 24.19135734 | AH105: 24.19136108 | AI105: 24.19135556 | AJ105: 24.19135799 | AK105: 24.19135821 | AL105: 24.19135725 | AM105: 24.19135782 | AN105: 24.19135776 | AO105: 24.19135761 | AP105: 24.19135773 | AQ105: 24.1913577 | AR105: 24.19135768
A106: 1600000US2013675 | B106: Clayton | C106: 1.9 | D106: 6.2 | E106: 10.8 | F106: 8.3 | G106: 11.5 | H106: 11.7 | I106: 10.4 | J106: 3.225806452 | K106: 3.921568627 | L106: 15.51724138 | M106: 7.554872153 | N106: 8.997894053 | O106: 10.69000253 | P106: 9.080922911 | Q106: 9.589606498 | R106: 9.786843979 | S106: 9.485791129 | T106: 9.620747202 | U106: 9.631127437 | V106: 9.579221923 | W106: 9.610365521 | X106: 9.60690496 | Y106: 9.598830801 | Z106: 9.605367094 | AA106: 9.603700952 | AB106: 9.602632949 | AC106: 9.603900332 | AD106: 9.603411411 | AE106: 9.603314897 | AF106: 9.603542213 | AG106: 9.60342284 | AH106: 9.60342665 | AI106: 9.603463901 | AJ106: 9.603437797 | AK106: 9.603442783 | AL106: 9.60344816 | AM106: 9.603442914 | AN106: 9.603444619 | AO106: 9.603445231 | AP106: 9.603444254 | AQ106: 9.603444701 | AR106: 9.603444729
A107: 1600000US2013925 | B107: Clearwater | C107: 26 | D107: 24.3 | E107: 28.9 | F107: 31.4 | G107: 30.1 | H107: 30.1 | I107: 32.3 | J107: 28.25607064 | K107: 24.76813966 | L107: 24.10663642 | M107: 25.71028224 | N107: 24.86168611 | O107: 24.89286825 | P107: 25.15494553 | Q107: 24.9698333 | R107: 25.00588236 | S107: 25.04355373 | T107: 25.00642313 | U107: 25.01861974 | V107: 25.02286553 | W107: 25.01596947 | X107: 25.01915158 | Y107: 25.01932886 | Z107: 25.01814997 | AA107: 25.0188768 | AB107: 25.01878521 | AC107: 25.01860399 | AD107: 25.01875534 | AE107: 25.01871485 | AF107: 25.01869139 | AG107: 25.01872053 | AH107: 25.01870892 | AI107: 25.01870695 | AJ107: 25.01871213 | AK107: 25.01870933 | AL107: 25.01870947 | AM107: 25.01871031 | AN107: 25.01870971 | AO107: 25.01870983 | AP107: 25.01870995 | AQ107: 25.01870983 | AR107: 25.01870987
A108: 1600000US2014200 | B108: Clifton | C108: 11.1 | D108: 10.7 | E108: 8.5 | F108: 7 | G108: 12.1 | H108: 14.3 | I108: 14.1 | J108: 13.12217195 | K108: 18.08219178 | L108: 11.69230769 | M108: 14.29889047 | N108: 14.69112998 | O108: 13.56077605 | P108: 14.18359883 | Q108: 14.14516829 | R108: 13.96318106 | S108: 14.09731606 | T108: 14.06855514 | U108: 14.04301742 | V108: 14.06962954 | W108: 14.0604007 | X108: 14.05768255 | Y108: 14.06257093 | Z108: 14.06021806 | AA108: 14.06015718 | AB108: 14.06098206 | AC108: 14.06045243 | AD108: 14.06053056 | AE108: 14.06065501 | AF108: 14.060546 | AG108: 14.06057719 | AH108: 14.06059273 | AI108: 14.06057197 | AJ108: 14.06058063 | AK108: 14.06058178 | AL108: 14.06057813 | AM108: 14.06058018 | AN108: 14.06058003 | AO108: 14.06057945 | AP108: 14.06057989 | AQ108: 14.06057979 | AR108: 14.06057971
A109: 1600000US2014275 | B109: Climax | C109: 25.7 | D109: 21.3 | E109: 20.5 | F109: 25 | G109: 33.3 | H109: 6.3 | I109: 6.1 | J109: 4.255319149 | K109: 7.407407407 | L109: 3.571428571 | M109: 5.078051709 | N109: 5.352295896 | O109: 4.667258726 | P109: 5.032535444 | Q109: 5.017363355 | R109: 4.905719175 | S109: 4.985205991 | T109: 4.969429507 | U109: 4.953451558 | V109: 4.969362352 | W109: 4.964081139 | X109: 4.962298349 | Y109: 4.96524728 | Z109: 4.963875589 | AA109: 4.963807073 | AB109: 4.964309981 | AC109: 4.963997548 | AD109: 4.964038201 | AE109: 4.964115243 | AF109: 4.96405033 | AG109: 4.964067925 | AH109: 4.964077833 | AI109: 4.964065363 | AJ109: 4.964070373 | AK109: 4.96407119 | AL109: 4.964068975 | AM109: 4.964070179 | AN109: 4.964070115 | AO109: 4.964069756 | AP109: 4.964070017 | AQ109: 4.964069963 | AR109: 4.964069912
A110: 1600000US2014475 | B110: Clyde | C110: 11.5 | D110: 14.2 | E110: 11.5 | F110: 11.3 | G110: 12.2 | H110: 13.7 | I110: 14.5 | J110: 15.94427245 | K110: 17.41935484 | L110: 20.60606061 | M110: 17.98989596 | N110: 18.67177047 | O110: 19.08924235 | P110: 18.58363626 | Q110: 18.78154969 | R110: 18.81814277 | S110: 18.72777624 | T110: 18.7758229 | U110: 18.77391397 | V110: 18.75917104 | W110: 18.76963597 | X110: 18.76757366 | Y110: 18.76546022 | Z110: 18.76755661 | AA110: 18.7668635 | AB110: 18.76662678 | AC110: 18.76701563 | AD110: 18.7668353 | AE110: 18.7668259 | AF110: 18.76689228 | AG110: 18.76685116 | AH110: 18.76685645 | AI110: 18.76686663 | AJ110: 18.76685808 | AK110: 18.76686038 | AL110: 18.7668617 | AM110: 18.76686005 | AN110: 18.76686071 | AO110: 18.76686082 | AP110: 18.76686053 | AQ110: 18.76686069 | AR110: 18.76686068
A111: 1600000US2014525 | B111: Coats | C111: 0 | D111: 0 | E111: 0 | F111: 2 | G111: 2 | H111: 3.1 | I111: 2.4 | J111: 3.296703297 | K111: 0 | L111: 3.076923077 | M111: 2.124542125 | N111: 1.733821734 | O111: 2.311762312 | P111: 2.056708723 | Q111: 2.03409759 | R111: 2.134189542 | S111: 2.074998618 | T111: 2.08109525 | U111: 2.096761137 | V111: 2.084285002 | W111: 2.087380463 | X111: 2.089475534 | Y111: 2.087046999 | Z111: 2.087967665 | AA111: 2.088163399 | AB111: 2.087726021 | AC111: 2.087952362 | AD111: 2.087947261 | AE111: 2.087875215 | AF111: 2.087924946 | AG111: 2.087915807 | AH111: 2.087905323 | AI111: 2.087915358 | AJ111: 2.087912163 | AK111: 2.087910948 | AL111: 2.087912823 | AM111: 2.087911978 | AN111: 2.087911916 | AO111: 2.087912239 | AP111: 2.087912044 | AQ111: 2.087912067 | AR111: 2.087912117
A112: 1600000US2014600 | B112: Coffeyville | C112: 13.8 | D112: 15.3 | E112: 13.4 | F112: 15 | G112: 13 | H112: 12.4 | I112: 14 | J112: 13.95223317 | K112: 13.3773407 | L112: 15.19628535 | M112: 14.17528641 | N112: 14.24963749 | O112: 14.54040308 | P112: 14.32177566 | Q112: 14.37060541 | R112: 14.41092805 | S112: 14.3677697 | T112: 14.38310105 | U112: 14.38726627 | V112: 14.37937901 | W112: 14.38324878 | X112: 14.38329802 | Y112: 14.38197527 | Z112: 14.38284069 | AA112: 14.38270466 | AB112: 14.38250687 | AC112: 14.38268407 | AD112: 14.38263187 | AE112: 14.3826076 | AF112: 14.38264118 | AG112: 14.38262688 | AH112: 14.38262522 | AI112: 14.3826311 | AJ112: 14.38262773 | AK112: 14.38262802 | AL112: 14.38262895 | AM112: 14.38262823 | AN112: 14.3826284 | AO112: 14.38262853 | AP112: 14.38262839 | AQ112: 14.38262844 | AR112: 14.38262845
A113: 1600000US2014650 | B113: Colby | C113: 23.3 | D113: 22.5 | E113: 27.1 | F113: 26.1 | G113: 28.9 | H113: 26.2 | I113: 25.7 | J113: 17.73364486 | K113: 17.78692273 | L113: 15.39704524 | M113: 16.97253761 | N113: 16.71883519 | O113: 16.36280602 | P113: 16.68472627 | Q113: 16.58878916 | R113: 16.54544048 | S113: 16.60631864 | T113: 16.58018276 | U113: 16.57731396 | V113: 16.58793845 | W113: 16.58181173 | X113: 16.58235471 | Y113: 16.58403496 | Z113: 16.5827338 | AA113: 16.58304116 | AB113: 16.58326997 | AC113: 16.58301498 | AD113: 16.5831087 | AE113: 16.58313122 | AF113: 16.58308497 | AG113: 16.5831083 | AH113: 16.58310816 | AI113: 16.58310048 | AJ113: 16.58310564 | AK113: 16.58310476 | AL113: 16.58310363 | AM113: 16.58310468 | AN113: 16.58310435 | AO113: 16.58310422 | AP113: 16.58310442 | AQ113: 16.58310433 | AR113: 16.58310432
A114: 1600000US2014700 | B114: Coldwater | C114: 12 | D114: 15.9 | E114: 10.3 | F114: 10.6 | G114: 15.3 | H114: 15.7 | I114: 14.2 | J114: 15.59485531 | K114: 13.22834646 | L114: 10.96345515 | M114: 13.26221897 | N114: 12.48467353 | O114: 12.23678255 | P114: 12.66122501 | Q114: 12.4608937 | R114: 12.45296709 | S114: 12.5250286 | T114: 12.47962979 | U114: 12.48587516 | V114: 12.49684452 | W114: 12.48744982 | X114: 12.4900565 | Y114: 12.49145028 | Z114: 12.4896522 | AA114: 12.49038633 | AB114: 12.49049627 | AC114: 12.49017827 | AD114: 12.49035362 | AE114: 12.49034272 | AF114: 12.49029154 | AG114: 12.49032929 | AH114: 12.49032118 | AI114: 12.490314 | AJ114: 12.49032149 | AK114: 12.49031889 | AL114: 12.49031813 | AM114: 12.49031951 | AN114: 12.49031884 | AO114: 12.49031883 | AP114: 12.49031906 | AQ114: 12.49031891 | AR114: 12.49031893
A115: 1600000US2014900 | B115: Collyer | C115: 19.1 | D115: 21.2 | E115: 19.4 | F115: 20.8 | G115: 19.4 | H115: 14 | I115: 10.5 | J115: 8.474576271 | K115: 8.333333333 | L115: 12.85714286 | M115: 9.888350821 | N115: 10.359609 | O115: 11.03503423 | P115: 10.42766468 | Q115: 10.60743597 | R115: 10.69004496 | S115: 10.57504854 | T115: 10.62417649 | U115: 10.62975666 | V115: 10.60966056 | W115: 10.62119791 | X115: 10.62020504 | Y115: 10.61702117 | Z115: 10.61947471 | AA115: 10.61890031 | AB115: 10.6184654 | AC115: 10.6189468 | AD115: 10.61877084 | AE115: 10.61872768 | AF115: 10.61881511 | AG115: 10.61877121 | AH115: 10.61877133 | AI115: 10.61878588 | AJ115: 10.61877614 | AK115: 10.61877778 | AL115: 10.61877993 | AM115: 10.61877795 | AN115: 10.61877856 | AO115: 10.61877881 | AP115: 10.61877844 | AQ115: 10.6187786 | AR115: 10.61877862
A116: 1600000US2014950 | B116: Colony | C116: 6.3 | D116: 6.4 | E116: 6.9 | F116: 10.4 | G116: 11.4 | H116: 10.1 | I116: 10.2 | J116: 11.32686084 | K116: 16.30434783 | L116: 14.90514905 | M116: 14.17878591 | N116: 15.12942759 | O116: 14.73778752 | P116: 14.68200034 | Q116: 14.84973848 | R116: 14.75650878 | S116: 14.7627492 | T116: 14.78966549 | U116: 14.76964116 | V116: 14.77401862 | W116: 14.77777509 | X116: 14.77381162 | Y116: 14.77520177 | Z116: 14.77559616 | AA116: 14.77486985 | AB116: 14.7752226 | AC116: 14.77522954 | AD116: 14.77510733 | AE116: 14.77518649 | AF116: 14.77517445 | AG116: 14.77515609 | AH116: 14.77517234 | AI116: 14.77516763 | AJ116: 14.77516535 | AK116: 14.77516844 | AL116: 14.77516714 | AM116: 14.77516698 | AN116: 14.77516752 | AO116: 14.77516721 | AP116: 14.77516724 | AQ116: 14.77516732 | AR116: 14.77516726
A117: 1600000US2015075 | B117: Columbus | C117: 16.3 | D117: 17.2 | E117: 17.7 | F117: 18.4 | G117: 16.7 | H117: 17.5 | I117: 21.1 | J117: 21.37342544 | K117: 17.76371308 | L117: 17.93500617 | M117: 19.02404823 | N117: 18.24092249 | O117: 18.3999923 | P117: 18.55498767 | Q117: 18.39863415 | R117: 18.45120471 | S117: 18.46827551 | T117: 18.43937146 | U117: 18.45295056 | V117: 18.45353251 | W117: 18.44861818 | X117: 18.45170042 | Y117: 18.4512837 | Z117: 18.4505341 | AA117: 18.45117274 | AB117: 18.45099685 | AC117: 18.45090123 | AD117: 18.4510236 | AE117: 18.45097389 | AF117: 18.45096624 | AG117: 18.45098791 | AH117: 18.45097601 | AI117: 18.45097672 | AJ117: 18.45098022 | AK117: 18.45097765 | AL117: 18.4509782 | AM117: 18.45097869 | AN117: 18.45097818 | AO117: 18.45097835 | AP117: 18.45097841 | AQ117: 18.45097831 | AR117: 18.45097836
A118: 1600000US2015100 | B118: Colwich | C118: 29.6 | D118: 25.3 | E118: 26.9 | F118: 32.8 | G118: 31.9 | H118: 36.5 | I118: 38.6 | J118: 35.591133 | K118: 37.04171934 | L118: 38.69115959 | M118: 37.10800398 | N118: 37.61362764 | O118: 37.80426373 | P118: 37.50863178 | Q118: 37.64217438 | R118: 37.65168997 | S118: 37.60083204 | T118: 37.63156546 | U118: 37.62802916 | V118: 37.62014222 | W118: 37.62657895 | X118: 37.62491678 | Y118: 37.62387932 | Z118: 37.62512501 | AA118: 37.62464037 | AB118: 37.62454823 | AC118: 37.62477121 | AD118: 37.62465327 | AE118: 37.62465757 | AF118: 37.62469401 | AG118: 37.62466828 | AH118: 37.62467329 | AI118: 37.62467853 | AJ118: 37.62467337 | AK118: 37.62467506 | AL118: 37.62467565 | AM118: 37.62467469 | AN118: 37.62467514 | AO118: 37.62467516 | AP118: 37.624675 | AQ118: 37.6246751 | AR118: 37.62467509
A119: 1600000US2015200 | B119: Concordia | C119: 16 | D119: 16.6 | E119: 17.9 | F119: 18.4 | G119: 19.3 | H119: 17.5 | I119: 22.3 | J119: 19.67661692 | K119: 21.65734621 | L119: 21.8951717 | M119: 21.07637828 | N119: 21.5429654 | O119: 21.50483846 | P119: 21.37472738 | Q119: 21.47417708 | R119: 21.45124764 | S119: 21.43338403 | T119: 21.45293625 | U119: 21.44585597 | V119: 21.44405875 | W119: 21.44761699 | X119: 21.4458439 | Y119: 21.44583988 | Z119: 21.44643359 | AA119: 21.44603913 | AB119: 21.4461042 | AC119: 21.44619231 | AD119: 21.44611188 | AE119: 21.44613613 | AF119: 21.44614677 | AG119: 21.44613159 | AH119: 21.44613816 | AI119: 21.44613884 | AJ119: 21.4461362 | AK119: 21.44613773 | AL119: 21.44613759 | AM119: 21.44613718 | AN119: 21.4461375 | AO119: 21.44613742 | AP119: 21.44613737 | AQ119: 21.44613743 | AR119: 21.44613741
A120: 1600000US2015325 | B120: Conway Springs | C120: 16.2 | D120: 16.6 | E120: 15.3 | F120: 13.7 | G120: 13.4 | H120: 17.4 | I120: 17.8 | J120: 16.20227038 | K120: 19.42231076 | L120: 19.26782274 | M120: 18.29746796 | N120: 18.99586715 | O120: 18.85371928 | P120: 18.7156848 | Q120: 18.85509041 | R120: 18.80816483 | S120: 18.79298001 | T120: 18.81874508 | U120: 18.80662997 | V120: 18.80611836 | W120: 18.81049781 | X120: 18.80774871 | Y120: 18.80812162 | Z120: 18.80878938 | AA120: 18.80821991 | AB120: 18.80837697 | AC120: 18.80846209 | AD120: 18.80835299 | AE120: 18.80839735 | AF120: 18.80840414 | AG120: 18.80838483 | AH120: 18.80839544 | AI120: 18.8083948 | AJ120: 18.80839169 | AK120: 18.80839398 | AL120: 18.80839349 | AM120: 18.80839305 | AN120: 18.8083935 | AO120: 18.80839335 | AP120: 18.8083933 | AQ120: 18.80839338 | AR120: 18.80839334
A121: 1600000US2015400 | B121: Coolidge | C121: 41.2 | D121: 15.8 | E121: 16.9 | F121: 17.1 | G121: 22.9 | H121: 31.8 | I121: 32.8 | J121: 50 | K121: 37.16814159 | L121: 8.661417323 | M121: 31.94318631 | N121: 25.92424841 | O121: 22.17628401 | P121: 26.68123957 | Q121: 24.92725733 | R121: 24.59492697 | S121: 25.40114129 | T121: 24.97444187 | U121: 24.99017004 | V121: 25.12191773 | W121: 25.02884321 | X121: 25.046977 | Y121: 25.06591265 | Z121: 25.04724429 | AA121: 25.05337798 | AB121: 25.05551164 | AC121: 25.05204463 | AD121: 25.05364475 | AE121: 25.05373367 | AF121: 25.05314102 | AG121: 25.05350648 | AH121: 25.05346039 | AI121: 25.0533693 | AJ121: 25.05344539 | AK121: 25.05342503 | AL121: 25.05341324 | AM121: 25.05342788 | AN121: 25.05342205 | AO121: 25.05342106 | AP121: 25.05342366 | AQ121: 25.05342226 | AR121: 25.05342233
A122: 1600000US2015475 | B122: Copeland | C122: 16.1 | D122: 16.5 | E122: 20.8 | F122: 15.6 | G122: 20.3 | H122: 17.3 | I122: 18.6 | J122: 20.9486166 | K122: 19.53125 | L122: 14.1221374 | M122: 18.200668 | N122: 17.28468514 | O122: 16.53583018 | P122: 17.34039444 | Q122: 17.05363659 | R122: 16.9766204 | S122: 17.12355048 | T122: 17.05126915 | U122: 17.05048001 | V122: 17.07509988 | W122: 17.05894968 | X122: 17.06150986 | Y122: 17.06518647 | Z122: 17.061882 | AA122: 17.06285944 | AB122: 17.06330931 | AC122: 17.06268359 | AD122: 17.06295078 | AE122: 17.06298122 | AF122: 17.06287186 | AG122: 17.06293462 | AH122: 17.06292924 | AI122: 17.06291191 | AJ122: 17.06292525 | AK122: 17.06292213 | AL122: 17.06291976 | AM122: 17.06292238 | AN122: 17.06292143 | AO122: 17.06292119 | AP122: 17.06292167 | AQ122: 17.06292143 | AR122: 17.06292143
A123: 1600000US2015725 | B123: Corning | C123: 16.2 | D123: 26.7 | E123: 21.8 | F123: 19.2 | G123: 22.8 | H123: 30.3 | I123: 33 | J123: 24.8 | K123: 28.05755396 | L123: 28.33333333 | M123: 27.0636291 | N123: 27.81817213 | O123: 27.73837819 | P123: 27.5400598 | Q123: 27.69887004 | R123: 27.65910268 | S123: 27.63267751 | T123: 27.66355007 | U123: 27.65177675 | V123: 27.64933478 | W123: 27.6548872 | X123: 27.65199958 | Y123: 27.65207385 | Z123: 27.65298688 | AA123: 27.65235344 | AB123: 27.65247139 | AC123: 27.6526039 | AD123: 27.65247624 | AE123: 27.65251718 | AF123: 27.65253244 | AG123: 27.65250862 | AH123: 27.65251941 | AI123: 27.65252016 | AJ123: 27.65251606 | AK123: 27.65251854 | AL123: 27.65251825 | AM123: 27.65251762 | AN123: 27.65251814 | AO123: 27.652518 | AP123: 27.65251792 | AQ123: 27.65251802 | AR123: 27.65251798
A124: 1600000US2015900 | B124: Cottonwood Falls | C124: 19.8 | D124: 15.5 | E124: 18.7 | F124: 21.3 | G124: 21.1 | H124: 19.3 | I124: 20.5 | J124: 22.76422764 | K124: 20.38834951 | L124: 21.66934189 | M124: 21.60730635 | N124: 21.22166592 | O124: 21.49943805 | P124: 21.44280344 | Q124: 21.38796914 | R124: 21.44340354 | S124: 21.42472538 | T124: 21.41869935 | U124: 21.42894276 | V124: 21.4241225 | W124: 21.42392154 | X124: 21.42566226 | Y124: 21.42456876 | Z124: 21.42471752 | AA124: 21.42498285 | AB124: 21.42475638 | AC124: 21.42481892 | AD124: 21.42485271 | AE124: 21.42480934 | AF124: 21.42482699 | AG124: 21.42482968 | AH124: 21.424822 | AI124: 21.42482622 | AJ124: 21.42482597 | AK124: 21.42482473 | AL124: 21.42482564 | AM124: 21.42482545 | AN124: 21.42482527 | AO124: 21.42482545 | AP124: 21.42482539 | AQ124: 21.42482537 | AR124: 21.42482541
A125: 1600000US2015925 | B125: Council Grove | C125: 14.7 | D125: 16.7 | E125: 18.2 | F125: 18.4 | G125: 17.6 | H125: 16.3 | I125: 14 | J125: 11.87363834 | K125: 14.85714286 | L125: 15.78638498 | M125: 14.17238873 | N125: 14.93863885 | O125: 14.96580419 | P125: 14.69227725 | Q125: 14.86557343 | R125: 14.84121829 | S125: 14.79968966 | T125: 14.83549379 | U125: 14.82546725 | V125: 14.8202169 | W125: 14.82705931 | X125: 14.82424782 | Y125: 14.82384134 | Z125: 14.82504949 | AA125: 14.82437955 | AB125: 14.82442346 | AC125: 14.8246175 | AD125: 14.82447351 | AE125: 14.82450482 | AF125: 14.82453194 | AG125: 14.82450342 | AH125: 14.8245134 | AI125: 14.82451626 | AJ125: 14.82451103 | AK125: 14.82451356 | AL125: 14.82451361 | AM125: 14.82451273 | AN125: 14.8245133 | AO125: 14.82451322 | AP125: 14.82451308 | AQ125: 14.8245132 | AR125: 14.82451317
A126: 1600000US2016025 | B126: Courtland | C126: 25.9 | D126: 22.2 | E126: 18.6 | F126: 20.7 | G126: 23.4 | H126: 24 | I126: 27.7 | J126: 24.49799197 | K126: 27.31092437 | L126: 25.23364486 | M126: 25.68085373 | N126: 26.07514099 | O126: 25.66321319 | P126: 25.80640264 | Q126: 25.84825227 | R126: 25.7726227 | S126: 25.80909254 | T126: 25.80998917 | U126: 25.7972348 | V126: 25.80543884 | W126: 25.80422094 | X126: 25.80229819 | Y126: 25.80398599 | Z126: 25.80350171 | AA126: 25.80326196 | AB126: 25.80358322 | AC126: 25.80344896 | AD126: 25.80343138 | AE126: 25.80348785 | AF126: 25.80345607 | AG126: 25.80345843 | AH126: 25.80346745 | AI126: 25.80346065 | AJ126: 25.80346218 | AK126: 25.80346343 | AL126: 25.80346209 | AM126: 25.80346256 | AN126: 25.80346269 | AO126: 25.80346245 | AP126: 25.80346257 | AQ126: 25.80346257 | AR126: 25.80346253
A127: 1600000US2016150 | B127: Coyville | C127: 25 | D127: 3.3 | E127: 5.6 | F127: 7.1 | G127: 4.3 | H127: 4.3 | I127: 6.3 | J127: 3.333333333 | K127: 2.777777778 | L127: 0 | M127: 2.037037037 | N127: 1.604938272 | O127: 1.21399177 | P127: 1.618655693 | Q127: 1.479195245 | R127: 1.437280902 | S127: 1.511710613 | T127: 1.476062253 | U127: 1.475017923 | V127: 1.48759693 | W127: 1.479559035 | X127: 1.480724629 | Y127: 1.482626865 | Z127: 1.480970177 | AA127: 1.481440557 | AB127: 1.481679199 | AC127: 1.481363311 | AD127: 1.481494356 | AE127: 1.481512289 | AF127: 1.481456652 | AG127: 1.481487765 | AH127: 1.481485569 | AI127: 1.481476662 | AJ127: 1.481483332 | AK127: 1.481481854 | AL127: 1.481480616 | AM127: 1.481481934 | AN127: 1.481481468 | AO127: 1.481481339 | AP127: 1.481481581 | AQ127: 1.481481463 | AR127: 1.481481461
